Workbook

Sheet Swaps
B3: WTI Crude | T3: Brent Crude | AL3: Brent - WTI | AO3: RBOB | BN3: Heating Oil | CM3: RBOB - HO | CP3: Gasoil | DL3: HO - GO
B4: Mo/Yr | C4: Symb | D4: Mkt Sprd | E4: Prev Sprd | F4: My Sprd | G4: Imp Fut | H4: Last Trade | I4: Net Chg | J4: Time | K4: OldSet | L4: NewSet | M4: Chg | N4: Exp Date | O4: Month Ratio | P4: Swap OldSet | Q4: Swap NewSet | R4: Swap Chg | S4: Swap | T4: Mo/Yr | U4: Symb | V4: Mkt Sprd | W4: Prev Sprd | X4: My Sprd | Y4: Imp Fut | Z4: Last Trade | AA4: Net Chg | AB4: Time | AC4: OldSet | AD4: NewSet | AE4: Chg | AF4: Exp Date | AG4: Month Ratio | AH4: Swap OldSet | AI4: Swap NewSet | AJ4: Swap Chg | AK4: Swap | AL4: Mo/Yr | AM4: Future | AN4: Swap | AO4: Mo/Yr | AP4: Symb | AQ4: Mkt Sprd | AR4: Prev Sprd | AS4: My Sprd | AT4: Imp Fut | AU4: Last Trade | AV4: Net Chg | AW4: Time | AX4: OldSet | AY4: NewSet | AZ4: Chg | BA4: Exp Date | BB4: Swap OldSet | BC4: Swap NewSet | BD4: Swap Chg | BE4: Swap | BF4: WTI Crack | BG4: WTI Crk OldSet | BH4: WTI Crk NewSet | BI4: WTI Crk Chg | BJ4: Brent Crack | BK4: BRN Crk OldSet | BL4: BRN Crk NewSet | BM4: BRN Crk Chg | BN4: Mo/Yr | BO4: Symb | BP4: Mkt Sprd | BQ4: Prev Sprd | BR4: My Sprd | BS4: Imp Fut | BT4: Last Trade | BU4: Net Chg | BV4: Time | BW4: OldSet | BX4: NewSet | BY4: Chg | BZ4: Exp Date | CA4: Swap OldSet | CB4: Swap NewSet | CC4: Swap Chg | CD4: Swap | CE4: WTI Crack | CF4: WTI Crk OldSet | CG4: WTI Crk NewSet | CH4: WTI Crk Chg | CI4: Brent Crack | CJ4: BRN Crk OldSet | CK4: BRN Crk NewSet | CL4: BRN Crk Chg | CM4: Mo/Yr | CN4: Future | CO4: Swap | CP4: Mo/Yr | CQ4: Symb | CR4: Mkt Sprd | CS4: Prev Sprd | CT4: My Sprd | CU4: Imp Fut | CV4: Last Trade | CW4: Net Chg | CX4: Time | CY4: OldSet | CZ4: NewSet | DA4: Chg | DB4: Exp Date | DC4: Month Ratio | DD4: Swap OldSet | DE4: Swap NewSet | DF4: Swap Chg | DG4: Swap | DH4: Brent Crack | DI4: Brent Crk OldSet | DJ4: Brent Crk NewSet | DK4: Brent Crk Chg | DL4: Mo/Yr | DM4: Future | DN4: Swap
B7: Bal Mo | S7: =IF(TEXT(TODAY(),"mmm'yy")=B8,IF(OR(G9="",G10=""),"",(O8*G9)+(1-O8)*G10),G9) -> 46.23227273 | T7: Bal Mo | AK7: =IF(TEXT(TODAY(),"mmm'yy")=T8,IF(OR(Y9="",Y10=""),"",(AG8*Y9)+(1-AG8)*Y10),Y9) -> 49.44727273
B8: =TEXT(N9,"mmm") & "'"& TEXT(N9,"yy") -> Oct'15 | M8: =IF(AND(K8<>"",L8<>""),K8-L8,"") ->  | O8: =NetDaysRatioBalmo(N9,NYMEXHolidays) -> 0.6363636364 | Q8: =IF(OR(L9="",L10=""),"",(O9*L9)+(1-O9)*L10) ->  | R8: =IF(AND(P8<>"",Q8<>""),Q8-P8,"") ->  | S8: =IF(OR(G9="",G10=""),"",(O9*G9)+(1-O9)*G10) -> 46.18 | T8: =TEXT(AF9,"mmm") & "'"& TEXT(AF9,"yy") -> Oct'15 | AE8: =IF(AND(AC8<>"",AD8<>""),AD8-AC8,"") ->  | AG8: =NetDaysRatioBalmo(AF9,ICEHolidays,-1) -> 0.4545454545 | AJ8: =IF(AND(AH8<>"",AI8<>""),AI8-AH8,"") ->  | AK8: =(AG9*Y9)+(1-AG9)*Y10 -> 49.46428571 | AL8: =B8 -> Oct'15 | AN8: =IF(T8=B8,S8-AK8,IF(T6=B8,S8-AK6,"")) -> -3.284285714 | AO8: =TEXT(BA9,"mmm") & "'"& TEXT(BA9,"yy") -> Oct'15 | AZ8: =IF(AND(AX8<>"",AY8<>""),AY8-AX8,"") ->  | BD8: =IF(AND(BB8<>"",BC8<>""),BC8-BB8,"") ->  | BE8: =AT9 -> 1.40245 | BF8: =IF(BE8="","",IF(CLEXPDATE<XRBEXPDATE,(BE8*42)-S8,"")) -> 12.7229 | BH8: =IFERROR(IF(DATEVALUE(CLEXPDATE)<DATEVALUE(XRBEXPDATE),(BC8*42)-Q8,""),"") ->  | BI8: =IF(AND(BG8<>"",BH8<>""),BH8-BG8,"") ->  | BJ8: =IF(BE8="","",IF(BRNEXPDATE<XRBEXPDATE,(BE8*42)-AK8,"")) -> 9.438614286 | BM8: =IF(AND(BK8<>"",BL8<>""),BL8-BK8,"") ->  | BN8: =TEXT(BZ9,"mmm") & "'"& TEXT(BZ9,"yy") -> Oct'15 | CD8: =BS9 -> 1.56285 | CE8: =IF(CD8="","",IF(CLEXPDATE<HOEXPDATE,(CD8*42)-S8,"")) -> 19.4597 | CI8: =IF(CD8="","",IF(BRNEXPDATE<HOEXPDATE,(CD8*42)-AK8,"")) -> 16.17541429 | CM8: =BN8 -> Oct'15 | CP8: =RTD("esrtd",,"GAS 1!-ICE","Delivery") -> Oct'15 | CQ8: =RTD("esrtd",,"GAS 1!-ICE","Symbol") -> GAS 5V-ICE | CU8: =RTD("esrtd",,CQ8,"Market") -> 472.125 | CV8: =RTD("esrtd",,"GAS 1!-ICE","Last") -> 472.25 | CW8: =RTD("esrtd",,"GAS 1!-ICE","Change") -> 8.25 | CX8: =RTD("esrtd",,"GAS 1!-ICE","Time") -> 42278.36931 | CY8: =RTD("esrtd",,"GAS 1!-ICE","PrevPrice") -> 464 | CZ8: =RTD("esrtd",,"GAS 1!-ICE","NewSettlement") ->  | DA8: =IF(AND(CY8<>"",CZ8<>""),CZ8-CY8,"") ->  | DB8: =RTD("esrtd",,"GAS 1!-ICE","Expiration") -> 2015-10-12 | DC8: =NetDaysRatio(DB8,ICEHolidays,-1) -> 0.3181818182 | DD8: =IF(OR(CY8="",CY9=""),"",IF(DC8<1,(DC8*CY8)+(1-DC8)*CY9,"")) -> 466.0454545 | DE8: =IF(OR(CZ8="",CZ9=""),"",IF(DC8<1,(DC8*CZ8)+(1-DC8)*CZ9,"")) ->  | DF8: =IF(AND(DD8<>"",DE8<>""),DE8-DD8,"") ->  | DG8: =IF(DC8<1,(DC8*CU8)+(1-DC8)*CU9,"") -> 474.1704545 | DH8: =IF(DG8="","",IF(BRNEXPDATE<GASEXPDATE,(DG8/7.45)-AK9,(DG8/7.45)-AK8)) -> 14.18275516 | DI8: =IF(DD8="","",IF(BRNEXPDATE<GASEXPDATE,(DD8/7.45)-AH9,"")) ->  | DJ8: =IFERROR(IF(DE8="","",IF(BRNEXPDATE<GASEXPDATE,(DE8/7.45)-AI9,"")),"") ->  | DK8: =IF(AND(DI8<>"",DJ8<>""),DJ8-DI8,"") ->  | DL8: =CP8 -> Oct'15 | DM8: =IFERROR(IF(CP8=BN9,BS9-CU8/312.9,""),"") ->  | DN8: =IFERROR(IF(CP8=BN9,CD9-DG8/312.9,""),"") -> 
B9: =RTD("esrtd",,"CL 1!","Delivery") -> Nov'15 | C9: =RTD("esrtd",,"CL 1!","Symbol") -> CL X5 | G9: =RTD("esrtd",,C9,"Market") -> 46.065 | H9: =RTD("esrtd",,"CL 1!","Last") -> 46.06 | I9: =RTD("esrtd",,"CL 1!","Change") -> 0.97 | J9: =RTD("esrtd",,"CL 1!","Time") -> 42278.36932 | K9: =RTD("esrtd",,"CL 1!","PrevPrice") -> 45.09 | L9: =RTD("esrtd",,"CL 1!","NewSettlement") ->  | M9: =IF(AND(K9<>"",L9<>""),L9-K9,"") ->  | N9: =RTD("esrtd",,"CL 1!","Expiration") -> 2015-10-20 | O9: =NetDaysRatio(N10,NYMEXHolidays) -> 0.75 | P9: =(O9*K10)+(1-O9)*K11 -> 45.71 | Q9: =IF(OR(L10="",L11=""),"",(O9*L10)+(1-O9)*L11) ->  | S9: =IF(OR(G10="",G11=""),"",(O9*G10)+(1-O9)*G11) -> 46.67125 | T9: =RTD("esrtd",,"BRN 1!-ICE","Delivery") -> Nov'15 | U9: =RTD("esrtd",,"BRN 1!-ICE","Symbol") -> BRN 5X-ICE | Y9: =RTD("esrtd",,U9,"Market") -> 49.09 | Z9: =RTD("esrtd",,"BRN 1!-ICE","Last") -> 49.08 | AA9: =RTD("esrtd",,"BRN 1!-ICE","Change") -> 0.71 | AB9: =RTD("esrtd",,"BRN 1!-ICE","Time") -> 42278.36932 | AC9: =RTD("esrtd",,"BRN 1!-ICE","PrevPrice") -> 48.37 | AD9: =RTD("esrtd",,"BRN 1!-ICE","NewSettlement") ->  | AE9: =IF(AND(AC9<>"",AD9<>""),AD9-AC9,"") ->  | AF9: =RTD("esrtd",,"BRN 1!-ICE","Expiration") -> 2015-10-15 | AG9: =IF(BRNDateDiff(AF9,BRNNewExpDate)>0,NetDaysRatio(AF10,ICEHolidays,-1),IF(BRNDateDiff(AF9,BRNNewExpDate)=0,"",IF(BRNDateDiff(AF9,BRNNewExpDate)<0,NetDaysRatio(AF11,ICEHolidays,-1)))) -> 0.4285714286 | AH9: =IF(BRNDateDiff(AF9,BRNNewExpDate)>0,(AG9*AC10)+(1-AG9)*AC11,IF(BRNDateDiff(AF9,BRNNewExpDate)=0,((8/20)*AC10+(11/20)*AC11+1/20*AC12),IF(BRNDateDiff(AF9,BRNNewExpDate)<0,(AG9*AC11)+(1-AG9)*AC12))) -> 49.42714286 | AI9: =IF(OR(AD10="",AD11="",AD12=""),"",IF(BRNDateDiff(AF9,BRNNewExpDate)>0,(AG9*AD10)+(1-AG9)*AD11,IF(BRNDateDiff(AF9,BRNNewExpDate)=0,((8/20)*AD10+(11/20)*AD11+1/20*AD12),IF(BRNDateDiff(AF9,BRNNewExpDate)<0,(AG9*AD11)+(1-AG9)*AD12)))) ->  | AJ9: =IF(AND(AH9<>"",AI9<>""),AI9-AH9,"") ->  | AK9: =IF(BRNDateDiff(AF9,BRNNewExpDate)>0,IF(OR(Y10="",Y11=""),"",(AG9*Y10)+(1-AG9)*Y11),IF(BRNDateDiff(AF9,BRNNewExpDate)=0,IF(OR(Y10="",Y11="",Y12=""),"",(8/20*Y10)+11/20*Y11)+(1/20*Y12),IF(BRNDateDiff(AF9,BRNNewExpDate)<0,IF(OR(Y11="",Y12=""),"",(AG9*Y11)+(1-AG9)*Y12)))) -> 50.11357143 | AL9: =B9 -> Nov'15 | AM9: =IF(T9=B9,G9-Y9,IF(AND(T8=B9,Y8<>""),G9-Y8,"")) -> -3.025 | AN9: =IF(T9=B9,S9-AK9,IF(T8=B9,S9-AK8,"")) -> -3.442321429 | AO9: =RTD("esrtd",,"XRB 1!","Delivery") -> Nov'15 | AP9: =RTD("esrtd",,"XRB 1!","Symbol") -> XRB X5 | AT9: =RTD("esrtd",,AP9,"Market") -> 1.40245 | AU9: =RTD("esrtd",,"XRB 1!","Last") -> 1.4026 | AV9: =RTD("esrtd",,"XRB 1!","Change") -> 0.0359 | AW9: =RTD("esrtd",,"XRB 1!","Time") -> 42278.36931 | AX9: =RTD("esrtd",,"XRB 1!","PrevPrice") -> 1.3667 | AY9: =RTD("esrtd",,"XRB 1!","NewSettlement") ->  | AZ9: =IF(AND(AX9<>"",AY9<>""),AY9-AX9,"") ->  | BA9: =RTD("esrtd",,"XRB 1!","Expiration") -> 2015-10-30 | BB9: =AX10 -> 1.3368 | BC9: =AY10 ->  | BD9: =IF(AND(BB9<>"",BC9<>""),BC9-BB9,"") ->  | BE9: =AT10 -> 1.3688 | BF9: =IF(BE9="","",IF(CLEXPDATE<XRBEXPDATE,(BE9*42)-S9,(BE9*42)-S8)) -> 10.81835 | BG9: =IF(CLEXPDATE<XRBEXPDATE,(BB9*42)-P9,"") -> 10.4356 | BH9: =IFERROR(IF(DATEVALUE(CLEXPDATE)<DATEVALUE(XRBEXPDATE),(BC9*42)-Q9,""),"") ->  | BI9: =IF(AND(BG9<>"",BH9<>""),BH9-BG9,"") ->  | BJ9: =IF(BE9="","",IF(BRNEXPDATE<XRBEXPDATE,(BE9*42)-AK9,(BE9*42)-AK8)) -> 7.376028571 | BK9: =IF(BRNEXPDATE<XRBEXPDATE,(BB9*42)-AH9,"") -> 6.718457143 | BL9: =IFERROR(IF(BRNEXPDATE<XRBEXPDATE,(BC9*42)-AI9,""),"") ->  | BM9: =IF(AND(BK9<>"",BL9<>""),BL9-BK9,"") ->  | BN9: =RTD("esrtd",,"HO 1!","Delivery") -> Nov'15 | BO9: =RTD("esrtd",,"HO 1!","Symbol") -> HO X5 | BS9: =RTD("esrtd",,BO9,"Market") -> 1.56285 | BT9: =RTD("esrtd",,"HO 1!","Last") -> 1.5627 | BU9: =RTD("esrtd",,"HO 1!","Change") -> 0.0253 | BV9: =RTD("esrtd",,"HO 1!","Time") -> 42278.36931 | BW9: =RTD("esrtd",,"HO 1!","PrevPrice") -> 1.5374 | BX9: =RTD("esrtd",,"HO 1!","NewSettlement") ->  | BY9: =IF(AND(BW9<>"",BX9<>""),BX9-BW9,"") ->  | BZ9: =RTD("esrtd",,"HO 1!","Expiration") -> 2015-10-30 | CA9: =BW10 -> 1.5568 | CB9: =BX10 ->  | CC9: =IF(AND(CA9<>"",CB9<>""),CB9-CA9,"") ->  | CD9: =BS10 -> 1.5811 | CE9: =IF(CD9="","",IF(CLEXPDATE<HOEXPDATE,(CD9*42)-S9,(CD9*42)-S8)) -> 19.73495 | CF9: =IF(CLEXPDATE<HOEXPDATE,(CA9*42)-P9,"") -> 19.6756 | CG9: =IFERROR(IF(DATEVALUE(CLEXPDATE)<DATEVALUE(HOEXPDATE),(CB9*42)-Q9,""),"") ->  | CH9: =IF(AND(CF9<>"",CG9<>""),CG9-CF9,"") ->  | CI9: =IF(CD9="","",IF(BRNEXPDATE<HOEXPDATE,(CD9*42)-AK9,(CD9*42)-AK8)) -> 16.29262857 | CJ9: =IF(BRNEXPDATE<HOEXPDATE,(CA9*42)-AH9,"") -> 15.95845714 | CK9: =IFERROR(IF(BRNEXPDATE<HOEXPDATE,(CB9*42)-AI9,""),"") ->  | CL9: =IF(AND(CJ9<>"",CK9<>""),CK9-CJ9,"") ->  | CM9: =BN9 -> Nov'15 | CN9: =IFERROR(AT9-BS9,"") -> -0.1604 | CO9: =IFERROR(AT10-BS10,"") -> -0.2123 | CP9: =RTD("esrtd",,"GAS 2!-ICE","Delivery") -> Nov'15 | CQ9: =RTD("esrtd",,"GAS 2!-ICE","Symbol") -> GAS 5X-ICE | CU9: =RTD("esrtd",,CQ9,"Market") -> 475.125 | CV9: =RTD("esrtd",,"GAS 2!-ICE","Last") -> 475.25 | CW9: =RTD("esrtd",,"GAS 2!-ICE","Change") -> 8.25 | CX9: =RTD("esrtd",,"GAS 2!-ICE","Time") -> 42278.36931 | CY9: =RTD("esrtd",,"GAS 2!-ICE","PrevPrice") -> 467 | CZ9: =RTD("esrtd",,"GAS 2!-ICE","NewSettlement") ->  | DA9: =IF(AND(CY9<>"",CZ9<>""),CZ9-CY9,"") ->  | DB9: =RTD("esrtd",,"GAS 2!-ICE","Expiration") -> 2015-11-12 | DC9: 0.380952381 | DD9: 468.3928571 | DF9: =IF(AND(DD9<>"",DE9<>""),DE9-DD9,"") ->  | DG9: =IF(CU10="","",IF(DC9<1,(DC9*CU9)+(1-DC9)*CU10,"")) -> 476.4404762 | DH9: 13.83817034 | DI9: =IF(DD9="","",IF(BRNEXPDATE<GASEXPDATE,(DD9/7.45)-AH10,(DD9/7.45)-AH9)) -> 13.44438159 | DJ9: =IFERROR(IF(DE9="","",IF(BRNEXPDATE<GASEXPDATE,(DE9/7.45)-AI10,(DE9/7.45)-AI9)),"") ->  | DK9: =IF(AND(DI9<>"",DJ9<>""),DJ9-DI9,"") ->  | DL9: =CP9 -> Nov'15 | DM9: =IFERROR(IF(CP9=BN10,BS10-CU9/312.9,BS9-CU9/312.9),"") -> 0.04439362416 | DN9: =IFERROR(IF(CP9=BN10,CD10-DG9/312.9,CD9-DG9/312.9),"") -> 0.05843948165
B10: =RTD("esrtd",,"CL 2!","Delivery") -> Dec'15 | C10: =RTD("esrtd",,"CL 2!","Symbol") -> CL Z5 | D10: =RTD("esrtd",,C9 & ":" & SUBSTITUTE(C10," ",""),"Market") -> -0.465 | G10: =RTD("esrtd",,C10,"Market") -> 46.525 | H10: =RTD("esrtd",,"CL 2!","Last") -> 46.52 | I10: =RTD("esrtd",,"CL 2!","Change") -> 0.96 | J10: =RTD("esrtd",,"CL 2!","Time") -> 42278.36932 | K10: =RTD("esrtd",,"CL 2!","PrevPrice") -> 45.56 | L10: =RTD("esrtd",,"CL 2!","NewSettlement") ->  | M10: =IF(AND(K10<>"",L10<>""),L10-K10,"") ->  | N10: =RTD("esrtd",,"CL 2!","Expiration") -> 2015-11-20 | O10: =NetDaysRatio(N11,NYMEXHolidays) -> 0.6818181818 | P10: =(O10*K11)+(1-O10)*K12 -> 46.35090909 | S10: =IF(OR(G11="",G12=""),"",(O10*G11)+(1-O10)*G12) -> 47.29295455 | T10: =RTD("esrtd",,"BRN 2!-ICE","Delivery") -> Dec'15 | U10: =RTD("esrtd",,"BRN 2!-ICE","Symbol") -> BRN 5Z-ICE | Y10: =RTD("esrtd",,U10,"Market") -> 49.745 | Z10: =RTD("esrtd",,"BRN 2!-ICE","Last") -> 49.74 | AA10: =RTD("esrtd",,"BRN 2!-ICE","Change") -> 0.69 | AB10: =RTD("esrtd",,"BRN 2!-ICE","Time") -> 42278.36932 | AC10: =RTD("esrtd",,"BRN 2!-ICE","PrevPrice") -> 49.05 | AD10: =RTD("esrtd",,"BRN 2!-ICE","NewSettlement") ->  | AF10: =RTD("esrtd",,"BRN 2!-ICE","Expiration") -> 2015-11-13 | AG10: =IF(BRNDateDiff(AF10,BRNNewExpDate)>0,NetDaysRatio(AF11,ICEHolidays,-1),IF(BRNDateDiff(AF10,BRNNewExpDate)=0,"",IF(BRNDateDiff(AF10,BRNNewExpDate)<0,NetDaysRatio(AF12,ICEHolidays,-1)))) -> 0.5 | AH10: =IF(BRNDateDiff(AF10,BRNNewExpDate)>0,(AG10*AC11)+(1-AG10)*AC12,IF(BRNDateDiff(AF10,BRNNewExpDate)=0,((8/20)*AC11+(11/20)*AC12+1/20*AC13),IF(BRNDateDiff(AF10,BRNNewExpDate)<0,(AG10*AC12)+(1-AG10)*AC13))) -> 50.04 | AI10: =IF(OR(AD11="",AD12="",AD13=""),"",IF(BRNDateDiff(AF10,BRNNewExpDate)>0,(AG10*AD11)+(1-AG10)*AD12,IF(BRNDateDiff(AF10,BRNNewExpDate)=0,((8/20)*AD11+(11/20)*AD12+1/20*AD13),IF(BRNDateDiff(AF10,BRNNewExpDate)<0,(AG10*AD12)+(1-AG10)*AD13)))) ->  | AK10: =IF(BRNDateDiff(AF10,BRNNewExpDate)>0,IF(OR(Y11="",Y12=""),"",(AG10*Y11)+(1-AG10)*Y12),IF(BRNDateDiff(AF10,BRNNewExpDate)=0,IF(OR(Y11="",Y12="",Y13=""),"",(8/20*Y11)+11/20*Y12)+(1/20*Y13),IF(BRNDateDiff(AF10,BRNNewExpDate)<0,IF(OR(Y12="",Y13=""),"",(AG10*Y12)+(1-AG10)*Y13)))) -> 50.7175 | AL10: =B10 -> Dec'15 | AM10: =IF(T10=B10,G10-Y10,IF(AND(T9=B10,Y9<>""),G10-Y9,"")) -> -3.22 | AN10: -3.424545455 | AO10: =RTD("esrtd",,"XRB 2!","Delivery") -> Dec'15 | AP10: =RTD("esrtd",,"XRB 2!","Symbol") -> XRB Z5 | AT10: =RTD("esrtd",,AP10,"Market") -> 1.3688 | AU10: =RTD("esrtd",,"XRB 2!","Last") -> 1.3689 | AV10: =RTD("esrtd",,"XRB 2!","Change") -> 0.0321 | AW10: =RTD("esrtd",,"XRB 2!","Time") -> 42278.36931 | AX10: =RTD("esrtd",,"XRB 2!","PrevPrice") -> 1.3368 | AY10: =RTD("esrtd",,"XRB 2!","NewSettlement") ->  | AZ10: =IF(AND(AX10<>"",AY10<>""),AY10-AX10,"") ->  | BA10: =RTD("esrtd",,"XRB 2!","Expiration") -> 2015-11-30 | BB10: =AX11 -> 1.3387 | BC10: =AY11 ->  | BD10: =IF(AND(BB10<>"",BC10<>""),BC10-BB10,"") ->  | BE10: =AT11 -> 1.36845 | BF10: 10.18194545 | BG10: =IF(CLEXPDATE<XRBEXPDATE,(BB10*42)-P10,(BB10*42)-P9) -> 9.874490909 | BH10: =IFERROR(IF(DATEVALUE(CLEXPDATE)<DATEVALUE(XRBEXPDATE),(BC10*42)-Q10,(BC10*42)-Q9),"") ->  | BI10: =IF(AND(BG10<>"",BH10<>""),BH10-BG10,"") ->  | BJ10: 6.7574 | BK10: =IF(BRNEXPDATE<XRBEXPDATE,(BB10*42)-AH10,(BB10*42)-AH9) -> 6.1854 | BL10: =IFERROR(IF(BRNEXPDATE<XRBEXPDATE,(BC10*42)-AI10,(BC10*42)-AI9),"") ->  | BM10: =IF(AND(BK10<>"",BL10<>""),BL10-BK10,"") ->  | BN10: =RTD("esrtd",,"HO 2!","Delivery") -> Dec'15 | BO10: =RTD("esrtd",,"HO 2!","Symbol") -> HO Z5 | BS10: =RTD("esrtd",,BO10,"Market") -> 1.5811 | BT10: =RTD("esrtd",,"HO 2!","Last") -> 1.5807 | BU10: =RTD("esrtd",,"HO 2!","Change") -> 0.0239 | BV10: =RTD("esrtd",,"HO 2!","Time") -> 42278.36931 | BW10: =RTD("esrtd",,"HO 2!","PrevPrice") -> 1.5568 | BX10: =RTD("esrtd",,"HO 2!","NewSettlement") ->  | BY10: =IF(AND(BW10<>"",BX10<>""),BX10-BW10,"") ->  | BZ10: =RTD("esrtd",,"HO 2!","Expiration") -> 2015-11-30 | CA10: =BW11 -> 1.5762 | CB10: =BX11 ->  | CC10: =IF(AND(CA10<>"",CB10<>""),CB10-CA10,"") ->  | CD10: =BS11 -> 1.59985 | CE10: 19.90074545 | CF10: =IF(CLEXPDATE<HOEXPDATE,(CA10*42)-P10,(CA10*42)-P9) -> 19.84949091 | CG10: =IFERROR(IF(DATEVALUE(CLEXPDATE)<DATEVALUE(HOEXPDATE),(CB10*42)-Q10,(CB10*42)-Q9),"") ->  | CI10: 16.4762 | CJ10: =IF(BRNEXPDATE<HOEXPDATE,(CA10*42)-AH10,(CA10*42)-AH9) -> 16.1604 | CK10: =IFERROR(IF(BRNEXPDATE<HOEXPDATE,(CB10*42)-AI10,(CB10*42)-AI9),"") ->  | CM10: Dec'15 | CN10: =IFERROR(AT10-BS10,"") -> -0.2123 | CO10: =IFERROR(AT11-BS11,"") -> -0.2314 | CP10: =RTD("esrtd",,"GAS 3!-ICE","Delivery") -> Dec'15 | CQ10: =RTD("esrtd",,"GAS 3!-ICE","Symbol") -> GAS 5Z-ICE | CR10: =RTD("esrtd",, SUBSTITUTE(CQ9,"-ICE","") & ":" & SUBSTITUTE(CQ10," ",""),"Market") -> -2.125 | CS10: =CY9-CY10 -> -2.25 | CU10: =IF(CU9="","",IF(CT10<>"",CU9-CT10,IF(CR10<>"",CU9-CR10,CU9-CS10))) -> 477.25 | CV10: =RTD("esrtd",,"GAS 3!-ICE","Last") -> 477.25 | CW10: =RTD("esrtd",,"GAS 3!-ICE","Change") -> 8 | CX10: =RTD("esrtd",,"GAS 3!-ICE","Time") -> 42278.36931 | CY10: =RTD("esrtd",,"GAS 3!-ICE","PrevPrice") -> 469.25 | CZ10: =RTD("esrtd",,"GAS 3!-ICE","NewSettlement") ->  | DB10: =RTD("esrtd",,"GAS 3!-ICE","Expiration") -> 2015-12-10 | DC10: 0.3181818182 | DD10: 471.9772727 | DG10: 479.8920455 | DH10: 13.69753966 | DI10: 13.31265406 | DL10: Dec'15 | DM10: =IFERROR(IF(CP10=BN11,BS11-CU10/312.9,BS10-CU10/312.9),"") -> 0.05585231703 | DN10: =IFERROR(IF(CP10=BN11,CD11-DG10/312.9,CD10-DG10/312.9),"") -> 0.06615857956
B11: =RTD("esrtd",,"CL 3!","Delivery") -> Jan'16 | C11: =RTD("esrtd",,"CL 3!","Symbol") -> CL F6 | D11: =RTD("esrtd",,C10 & ":" & SUBSTITUTE(C11," ",""),"Market") -> -0.585 | E11: =K10-K11 -> -0.6 | G11: =IF(G10="","",IF(F11<>"",G10-F11,IF(D11<>"",G10-D11,G10-E11))) -> 47.11 | H11: =RTD("esrtd",,"CL 3!","Last") -> 47.11 | I11: =RTD("esrtd",,"CL 3!","Change") -> 0.95 | J11: =RTD("esrtd",,"CL 3!","Time") -> 42278.36932 | K11: =RTD("esrtd",,"CL 3!","PrevPrice") -> 46.16 | L11: =RTD("esrtd",,"CL 3!","NewSettlement") ->  | N11: =RTD("esrtd",,"CL 3!","Expiration") -> 2015-12-21 | O11: 0.6315789474 | P11: =(O11*K12)+(1-O11)*K13 -> 46.98473684 | S11: =IF(OR(G12="",G13=""),"",(O11*G12)+(1-O11)*G13) -> 47.90052632 | T11: =RTD("esrtd",,"BRN 3!-ICE","Delivery") -> Jan'16 | U11: =RTD("esrtd",,"BRN 3!-ICE","Symbol") -> BRN 6F-ICE | V11: =RTD("esrtd",, SUBSTITUTE(U10,"-ICE","") & ":" & SUBSTITUTE(U11," ",""),"Market") -> -0.645 | W11: =AC10-AC11 -> -0.66 | Y11: =IF(Y10="","",IF(X11<>"",Y10-X11,IF(V11<>"",Y10-V11,Y10-W11))) -> 50.39 | Z11: =RTD("esrtd",,"BRN 3!-ICE","Last") -> 50.46 | AA11: =RTD("esrtd",,"BRN 3!-ICE","Change") -> 0.75 | AB11: =RTD("esrtd",,"BRN 3!-ICE","Time") -> 42278.36932 | AC11: =RTD("esrtd",,"BRN 3!-ICE","PrevPrice") -> 49.71 | AD11: =RTD("esrtd",,"BRN 3!-ICE","NewSettlement") ->  | AF11: =RTD("esrtd",,"BRN 3!-ICE","Expiration") -> 2015-12-16 | AG11: =IF(BRNDateDiff(AF11,BRNNewExpDate)>0,NetDaysRatio(AF12,ICEHolidays,-1),IF(BRNDateDiff(AF11,BRNNewExpDate)=0,"",IF(BRNDateDiff(AF11,BRNNewExpDate)<0,NetDaysRatio(AF13,ICEHolidays,-1)))) ->  | AH11: =IF(BRNDateDiff(AF11,BRNNewExpDate)>0,(AG11*AC12)+(1-AG11)*AC13,IF(BRNDateDiff(AF11,BRNNewExpDate)=0,((8/20)*AC12+(11/20)*AC13+1/20*AC14),IF(BRNDateDiff(AF11,BRNNewExpDate)<0,(AG11*AC13)+(1-AG11)*AC14))) -> 50.7515 | AI11: =IF(OR(AD12="",AD13="",AD14=""),"",IF(BRNDateDiff(AF11,BRNNewExpDate)>0,(AG11*AD12)+(1-AG11)*AD13,IF(BRNDateDiff(AF11,BRNNewExpDate)=0,((8/20)*AD12+(11/20)*AD13+1/20*AD14),IF(BRNDateDiff(AF11,BRNNewExpDate)<0,(AG11*AD13)+(1-AG11)*AD14)))) ->  | AK11: =IF(BRNDateDiff(AF11,BRNNewExpDate)>0,IF(OR(Y12="",Y13=""),"",(AG11*Y12)+(1-AG11)*Y13),IF(BRNDateDiff(AF11,BRNNewExpDate)=0,IF(OR(Y12="",Y13="",Y14=""),"",(8/20*Y12)+11/20*Y13)+(1/20*Y14),IF(BRNDateDiff(AF11,BRNNewExpDate)<0,IF(OR(Y13="",Y14=""),"",(AG11*Y13)+(1-AG11)*Y14)))) -> 51.42325 | AL11: =B11 -> Jan'16 | AM11: =IF(T11=B11,G11-Y11,IF(AND(T10=B11,Y10<>""),G11-Y10,"")) -> -3.28 | AN11: -3.522723684 | AO11: =RTD("esrtd",,"XRB 3!","Delivery") -> Jan'16 | AP11: =RTD("esrtd",,"XRB 3!","Symbol") -> XRB F6 | AQ11: =RTD("esrtd",,AP10 & ":" & SUBSTITUTE(AP11," ",""),"Market") -> 0.00035 | AR11: =AX10-AX11 -> -0.0019 | AT11: =IF(AT10="","",IF(AS11<>"",AT10-AS11,IF(AQ11<>"",AT10-AQ11,AT10-AR11))) -> 1.36845 | AU11: =RTD("esrtd",,"XRB 3!","Last") -> 1.3689 | AV11: =RTD("esrtd",,"XRB 3!","Change") -> 0.0302 | AW11: =RTD("esrtd",,"XRB 3!","Time") -> 42278.36931 | AX11: =RTD("esrtd",,"XRB 3!","PrevPrice") -> 1.3387 | AY11: =RTD("esrtd",,"XRB 3!","NewSettlement") ->  | BA11: =RTD("esrtd",,"XRB 3!","Expiration") -> 2015-12-31 | BB11: 1.3555 | BE11: 1.3839 | BF11: 10.22327368 | BG11: 9.946263158 | BJ11: 6.70055 | BK11: 6.1795 | BN11: =RTD("esrtd",,"HO 3!","Delivery") -> Jan'16 | BO11: =RTD("esrtd",,"HO 3!","Symbol") -> HO F6 | BP11: =RTD("esrtd",,BO10 & ":" & SUBSTITUTE(BO11," ",""),"Market") -> -0.01875 | BQ11: =BW10-BW11 -> -0.0194 | BS11: =IF(BS10="","",IF(BR11<>"",BS10-BR11,IF(BP11<>"",BS10-BP11,BS10-BQ11))) -> 1.59985 | BT11: =RTD("esrtd",,"HO 3!","Last") -> 1.5996 | BU11: =RTD("esrtd",,"HO 3!","Change") -> 0.0234 | BV11: =RTD("esrtd",,"HO 3!","Time") -> 42278.36931 | BW11: =RTD("esrtd",,"HO 3!","PrevPrice") -> 1.5762 | BX11: =RTD("esrtd",,"HO 3!","NewSettlement") ->  | BZ11: =RTD("esrtd",,"HO 3!","Expiration") -> 2015-12-31 | CA11: 1.5894 | CD11: 1.6123 | CE11: 19.81607368 | CF11: 19.77006316 | CI11: 16.29335 | CJ11: 16.0033 | CM11: Jan'16 | CN11: =IFERROR(AT11-BS11,"") -> -0.2314 | CO11: =IFERROR(AT12-BS12,"") -> -0.2284 | CP11: =RTD("esrtd",,"GAS 4!-ICE","Delivery") -> Jan'16 | CQ11: =RTD("esrtd",,"GAS 4!-ICE","Symbol") -> GAS 6F-ICE | CR11: =RTD("esrtd",, SUBSTITUTE(CQ10,"-ICE","") & ":" & SUBSTITUTE(CQ11," ",""),"Market") -> -3.875 | CS11: -4 | CU11: =IF(CU10="","",IF(CT11<>"",CU10-CT11,IF(CR11<>"",CU10-CR11,CU10-CS11))) -> 481.125 | CV11: =RTD("esrtd",,"GAS 4!-ICE","Last") -> 481.5 | CW11: =RTD("esrtd",,"GAS 4!-ICE","Change") -> 8.25 | CX11: =RTD("esrtd",,"GAS 4!-ICE","Time") -> 42278.36931 | CY11: =RTD("esrtd",,"GAS 4!-ICE","PrevPrice") -> 473.25 | CZ11: =RTD("esrtd",,"GAS 4!-ICE","NewSettlement") ->  | DB11: =RTD("esrtd",,"GAS 4!-ICE","Expiration") -> 2016-01-12 | DC11: 0.3 | DD11: 476.05 | DG11: 483.8375 | DH11: 13.52138087 | DI11: 13.14782886 | DL11: Jan'16 | DM11: =IFERROR(IF(CP11=BN12,BS12-CU11/312.9,BS11-CU11/312.9),"") -> 0.06221816874 | DN11: =IFERROR(IF(CP11=BN12,CD12-DG11/312.9,CD11-DG11/312.9),"") -> 0.06599926494
B12: =RTD("esrtd",,"CL 4!","Delivery") -> Feb'16 | C12: =RTD("esrtd",,"CL 4!","Symbol") -> CL G6 | D12: =RTD("esrtd",,C11 & ":" & SUBSTITUTE(C12," ",""),"Market") -> -0.575 | E12: -0.6 | G12: =IF(G11="","",IF(F12<>"",G11-F12,IF(D12<>"",G11-D12,G11-E12))) -> 47.685 | H12: =RTD("esrtd",,"CL 4!","Last") -> 47.67 | I12: =RTD("esrtd",,"CL 4!","Change") -> 0.91 | J12: =RTD("esrtd",,"CL 4!","Time") -> 42278.36932 | K12: =RTD("esrtd",,"CL 4!","PrevPrice") -> 46.76 | L12: =RTD("esrtd",,"CL 4!","NewSettlement") ->  | N12: =RTD("esrtd",,"CL 4!","Expiration") -> 2016-01-20 | O12: =NetDaysRatio(N13,NYMEXHolidays) -> 0.7619047619 | P12: 47.49857143 | S12: 48.39261905 | T12: =RTD("esrtd",,"BRN 4!-ICE","Delivery") -> Feb'16 | U12: =RTD("esrtd",,"BRN 4!-ICE","Symbol") -> BRN 6G-ICE | V12: =RTD("esrtd",, SUBSTITUTE(U11,"-ICE","") & ":" & SUBSTITUTE(U12," ",""),"Market") -> -0.655 | W12: -0.66 | Y12: =IF(Y11="","",IF(X12<>"",Y11-X12,IF(V12<>"",Y11-V12,Y11-W12))) -> 51.045 | Z12: =RTD("esrtd",,"BRN 4!-ICE","Last") -> 50.93 | AA12: =RTD("esrtd",,"BRN 4!-ICE","Change") -> 0.56 | AB12: =RTD("esrtd",,"BRN 4!-ICE","Time") -> 42278.36932 | AC12: =RTD("esrtd",,"BRN 4!-ICE","PrevPrice") -> 50.37 | AD12: =RTD("esrtd",,"BRN 4!-ICE","NewSettlement") ->  | AF12: =RTD("esrtd",,"BRN 4!-ICE","Expiration") -> 2016-01-14 | AG12: =IF(BRNDateDiff(AF12,BRNNewExpDate)>0,NetDaysRatio(AF13,ICEHolidays,-1),IF(BRNDateDiff(AF12,BRNNewExpDate)=0,"",IF(BRNDateDiff(AF12,BRNNewExpDate)<0,NetDaysRatio(AF14,ICEHolidays,-1)))) -> 0.9523809524 | AH12: =IF(BRNDateDiff(AF12,BRNNewExpDate)>0,(AG12*AC13)+(1-AG12)*AC14,IF(BRNDateDiff(AF12,BRNNewExpDate)=0,((8/20)*AC13+(11/20)*AC14+1/20*AC15),IF(BRNDateDiff(AF12,BRNNewExpDate)<0,(AG12*AC14)+(1-AG12)*AC15))) -> 51.64904762 | AI12: =IF(OR(AD13="",AD14="",AD15=""),"",IF(BRNDateDiff(AF12,BRNNewExpDate)>0,(AG12*AD13)+(1-AG12)*AD14,IF(BRNDateDiff(AF12,BRNNewExpDate)=0,((8/20)*AD13+(11/20)*AD14+1/20*AD15),IF(BRNDateDiff(AF12,BRNNewExpDate)<0,(AG12*AD14)+(1-AG12)*AD15)))) ->  | AK12: =IF(BRNDateDiff(AF12,BRNNewExpDate)>0,IF(OR(Y13="",Y14=""),"",(AG12*Y13)+(1-AG12)*Y14),IF(BRNDateDiff(AF12,BRNNewExpDate)=0,IF(OR(Y13="",Y14="",Y15=""),"",(8/20*Y13)+11/20*Y14)+(1/20*Y15),IF(BRNDateDiff(AF12,BRNNewExpDate)<0,IF(OR(Y14="",Y15=""),"",(AG12*Y14)+(1-AG12)*Y15)))) -> 52.31380952 | AL12: Feb'16 | AM12: -3.36 | AN12: -3.921190476 | AO12: =RTD("esrtd",,"XRB 4!","Delivery") -> Feb'16 | AP12: =RTD("esrtd",,"XRB 4!","Symbol") -> XRB G6 | AQ12: =RTD("esrtd",,AP11 & ":" & SUBSTITUTE(AP12," ",""),"Market") -> -0.01545 | AR12: -0.0168 | AT12: =IF(AT11="","",IF(AS12<>"",AT11-AS12,IF(AQ12<>"",AT11-AQ12,AT11-AR12))) -> 1.3839 | AU12: =RTD("esrtd",,"XRB 4!","Last") -> 1.384 | AV12: =RTD("esrtd",,"XRB 4!","Change") -> 0.0285 | AW12: =RTD("esrtd",,"XRB 4!","Time") -> 42278.36931 | AX12: =RTD("esrtd",,"XRB 4!","PrevPrice") -> 1.3555 | AY12: =RTD("esrtd",,"XRB 4!","NewSettlement") ->  | BA12: =RTD("esrtd",,"XRB 4!","Expiration") -> 2016-01-29 | BB12: 1.3833 | BE12: 1.41005 | BF12: 10.82948095 | BG12: 10.60002857 | BJ12: 6.908290476 | BK12: 6.449552381 | BN12: =RTD("esrtd",,"HO 4!","Delivery") -> Feb'16 | BO12: =RTD("esrtd",,"HO 4!","Symbol") -> HO G6 | BP12: =RTD("esrtd",,BO11 & ":" & SUBSTITUTE(BO12," ",""),"Market") -> -0.01245 | BQ12: -0.0132 | BS12: =IF(BS11="","",IF(BR12<>"",BS11-BR12,IF(BP12<>"",BS11-BP12,BS11-BQ12))) -> 1.6123 | BT12: =RTD("esrtd",,"HO 4!","Last") -> 1.6134 | BU12: =RTD("esrtd",,"HO 4!","Change") -> 0.024 | BV12: =RTD("esrtd",,"HO 4!","Time") -> 42278.36931 | BW12: =RTD("esrtd",,"HO 4!","PrevPrice") -> 1.5894 | BX12: =RTD("esrtd",,"HO 4!","NewSettlement") ->  | BZ12: =RTD("esrtd",,"HO 4!","Expiration") -> 2016-01-29 | CA12: 1.5918 | CD12: 1.61405 | CE12: 19.39748095 | CF12: 19.35702857 | CI12: 15.47629048 | CJ12: 15.20655238 | CM12: Feb'16 | CN12: -0.2284 | CO12: -0.204 | CP12: =RTD("esrtd",,"GAS 5!-ICE","Delivery") -> Feb'16 | CQ12: =RTD("esrtd",,"GAS 5!-ICE","Symbol") -> GAS 6G-ICE | CR12: =RTD("esrtd",, SUBSTITUTE(CQ11,"-ICE","") & ":" & SUBSTITUTE(CQ12," ",""),"Market") -> -3.875 | CS12: -4 | CU12: 485 | CV12: =RTD("esrtd",,"GAS 5!-ICE","Last") -> 484.25 | CW12: =RTD("esrtd",,"GAS 5!-ICE","Change") -> 7 | CX12: =RTD("esrtd",,"GAS 5!-ICE","Time") -> 42278.36931 | CY12: =RTD("esrtd",,"GAS 5!-ICE","PrevPrice") -> 477.25 | CZ12: =RTD("esrtd",,"GAS 5!-ICE","NewSettlement") ->  | DB12: =RTD("esrtd",,"GAS 5!-ICE","Expiration") -> 2016-02-11 | DC12: 0.380952381 | DD12: 479.4166667 | DG12: 487.0892857 | DH12: 13.06730265 | DI12: 12.70218281 | DL12: Feb'16 | DM12: 0.06228402045 | DN12: 0.05735685294
B13: =RTD("esrtd",,"CL 5!","Delivery") -> Mar'16 | C13: =RTD("esrtd",,"CL 5!","Symbol") -> CL H6 | D13: =RTD("esrtd",,C12 & ":" & SUBSTITUTE(C13," ",""),"Market") -> -0.585 | E13: -0.61 | G13: =IF(G12="","",IF(F13<>"",G12-F13,IF(D13<>"",G12-D13,G12-E13))) -> 48.27 | H13: =RTD("esrtd",,"CL 5!","Last") -> 48.22 | I13: =RTD("esrtd",,"CL 5!","Change") -> 0.85 | J13: =RTD("esrtd",,"CL 5!","Time") -> 42278.36932 | K13: =RTD("esrtd",,"CL 5!","PrevPrice") -> 47.37 | L13: =RTD("esrtd",,"CL 5!","NewSettlement") ->  | N13: =RTD("esrtd",,"CL 5!","Expiration") -> 2016-02-22 | O13: 0.6818181818 | P13: 48.05636364 | S13: 48.92659091 | T13: =RTD("esrtd",,"BRN 5!-ICE","Delivery") -> Mar'16 | U13: =RTD("esrtd",,"BRN 5!-ICE","Symbol") -> BRN 6H-ICE | V13: =RTD("esrtd",, SUBSTITUTE(U12,"-ICE","") & ":" & SUBSTITUTE(U13," ",""),"Market") -> -0.575 | W13: -0.58 | Y13: 51.62 | Z13: =RTD("esrtd",,"BRN 5!-ICE","Last") -> 51.64 | AA13: =RTD("esrtd",,"BRN 5!-ICE","Change") -> 0.69 | AB13: =RTD("esrtd",,"BRN 5!-ICE","Time") -> 42278.36932 | AC13: =RTD("esrtd",,"BRN 5!-ICE","PrevPrice") -> 50.95 | AD13: =RTD("esrtd",,"BRN 5!-ICE","NewSettlement") ->  | AF13: =RTD("esrtd",,"BRN 5!-ICE","Expiration") -> 2016-01-29 | AG13: =IF(BRNDateDiff(AF13,BRNNewExpDate)>0,NetDaysRatio(AF14,ICEHolidays,-1),IF(BRNDateDiff(AF13,BRNNewExpDate)=0,"",IF(BRNDateDiff(AF13,BRNNewExpDate)<0,NetDaysRatio(AF15,ICEHolidays,-1)))) -> 0.9545454545 | AH13: =IF(BRNDateDiff(AF13,BRNNewExpDate)>0,(AG13*AC14)+(1-AG13)*AC15,IF(BRNDateDiff(AF13,BRNNewExpDate)=0,((8/20)*AC14+(11/20)*AC15+1/20*AC16),IF(BRNDateDiff(AF13,BRNNewExpDate)<0,(AG13*AC15)+(1-AG13)*AC16))) -> 52.255 | AI13: =IF(OR(AD14="",AD15="",AD16=""),"",IF(BRNDateDiff(AF13,BRNNewExpDate)>0,(AG13*AD14)+(1-AG13)*AD15,IF(BRNDateDiff(AF13,BRNNewExpDate)=0,((8/20)*AD14+(11/20)*AD15+1/20*AD16),IF(BRNDateDiff(AF13,BRNNewExpDate)<0,(AG13*AD15)+(1-AG13)*AD16)))) ->  | AK13: =IF(BRNDateDiff(AF13,BRNNewExpDate)>0,IF(OR(Y14="",Y15=""),"",(AG13*Y14)+(1-AG13)*Y15),IF(BRNDateDiff(AF13,BRNNewExpDate)=0,IF(OR(Y14="",Y15="",Y16=""),"",(8/20*Y14)+11/20*Y15)+(1/20*Y16),IF(BRNDateDiff(AF13,BRNNewExpDate)<0,IF(OR(Y15="",Y16=""),"",(AG13*Y15)+(1-AG13)*Y16)))) -> 52.91477273 | AL13: Mar'16 | AM13: -3.35 | AN13: -3.988181818 | AO13: =RTD("esrtd",,"XRB 5!","Delivery") -> Mar'16 | AP13: =RTD("esrtd",,"XRB 5!","Symbol") -> XRB H6 | AQ13: =RTD("esrtd",,AP12 & ":" & SUBSTITUTE(AP13," ",""),"Market") -> -0.02615 | AR13: -0.0278 | AT13: 1.41005 | AU13: =RTD("esrtd",,"XRB 5!","Last") -> 1.4104 | AV13: =RTD("esrtd",,"XRB 5!","Change") -> 0.0271 | AW13: =RTD("esrtd",,"XRB 5!","Time") -> 42278.36931 | AX13: =RTD("esrtd",,"XRB 5!","PrevPrice") -> 1.3833 | AY13: =RTD("esrtd",,"XRB 5!","NewSettlement") ->  | BA13: =RTD("esrtd",,"XRB 5!","Expiration") -> 2016-02-29 | BB13: 1.592 | BE13: 1.6161 | BF13: 18.94960909 | BG13: 18.80763636 | BJ13: 14.96142727 | BK13: 14.609 | BN13: =RTD("esrtd",,"HO 5!","Delivery") -> Mar'16 | BO13: =RTD("esrtd",,"HO 5!","Symbol") -> HO H6 | BP13: =RTD("esrtd",,BO12 & ":" & SUBSTITUTE(BO13," ",""),"Market") -> -0.00175 | BQ13: -0.0024 | BS13: 1.61405 | BT13: =RTD("esrtd",,"HO 5!","Last") -> 1.6145 | BU13: =RTD("esrtd",,"HO 5!","Change") -> 0.0227 | BV13: =RTD("esrtd",,"HO 5!","Time") -> 42278.36931 | BW13: =RTD("esrtd",,"HO 5!","PrevPrice") -> 1.5918 | BX13: =RTD("esrtd",,"HO 5!","NewSettlement") ->  | BZ13: =RTD("esrtd",,"HO 5!","Expiration") -> 2016-02-29 | CA13: 1.587 | CD13: 1.6088 | CE13: 18.64300909 | CF13: 18.59763636 | CI13: 14.65482727 | CJ13: 14.399 | CM13: Mar'16 | CN13: -0.204 | CO13: 0.0073 | CP13: =RTD("esrtd",,"GAS 6!-ICE","Delivery") -> Mar'16 | CQ13: =RTD("esrtd",,"GAS 6!-ICE","Symbol") -> GAS 6H-ICE | CR13: =RTD("esrtd",, SUBSTITUTE(CQ12,"-ICE","") & ":" & SUBSTITUTE(CQ13," ",""),"Market") -> -3.375 | CS13: -3.5 | CU13: 488.375 | CV13: =RTD("esrtd",,"GAS 6!-ICE","Last") -> 485.75 | CW13: =RTD("esrtd",,"GAS 6!-ICE","Change") -> 5 | CX13: =RTD("esrtd",,"GAS 6!-ICE","Time") -> 42278.36931 | CY13: =RTD("esrtd",,"GAS 6!-ICE","PrevPrice") -> 480.75 | CZ13: =RTD("esrtd",,"GAS 6!-ICE","NewSettlement") ->  | DB13: =RTD("esrtd",,"GAS 6!-ICE","Expiration") -> 2016-03-10 | DC13: 0.3181818182 | DD13: 482.7954545 | DG13: 490.3352273 | DH13: 12.9020363 | DI13: 12.549759 | DL13: Mar'16 | DM13: 0.05324782678 | DN13: 0.04173311834
B14: =RTD("esrtd",,"CL 6!","Delivery") -> Apr'16 | C14: =RTD("esrtd",,"CL 6!","Symbol") -> CL J6 | D14: =RTD("esrtd",,C13 & ":" & SUBSTITUTE(C14," ",""),"Market") -> -0.515 | E14: -0.54 | G14: =IF(G13="","",IF(F14<>"",G13-F14,IF(D14<>"",G13-D14,G13-E14))) -> 48.785 | H14: =RTD("esrtd",,"CL 6!","Last") -> 48.48 | I14: =RTD("esrtd",,"CL 6!","Change") -> 0.57 | J14: =RTD("esrtd",,"CL 6!","Time") -> 42278.36929 | K14: =RTD("esrtd",,"CL 6!","PrevPrice") -> 47.91 | L14: =RTD("esrtd",,"CL 6!","NewSettlement") ->  | N14: =RTD("esrtd",,"CL 6!","Expiration") -> 2016-03-21 | O14: 0.6666666667 | P14: 48.49333333 | S14: =IF(OR(G15="",G16=""),"",(O14*G15)+(1-O14)*G16) -> 49.34833333 | T14: =RTD("esrtd",,"BRN 6!-ICE","Delivery") -> Apr'16 | U14: =RTD("esrtd",,"BRN 6!-ICE","Symbol") -> BRN 6J-ICE | V14: =RTD("esrtd",, SUBSTITUTE(U13,"-ICE","") & ":" & SUBSTITUTE(U14," ",""),"Market") -> -0.665 | W14: -0.67 | Y14: 52.285 | Z14: =RTD("esrtd",,"BRN 6!-ICE","Last") -> 52.38 | AA14: =RTD("esrtd",,"BRN 6!-ICE","Change") -> 0.76 | AB14: =RTD("esrtd",,"BRN 6!-ICE","Time") -> 42278.36932 | AC14: =RTD("esrtd",,"BRN 6!-ICE","PrevPrice") -> 51.62 | AD14: =RTD("esrtd",,"BRN 6!-ICE","NewSettlement") ->  | AF14: =RTD("esrtd",,"BRN 6!-ICE","Expiration") -> 2016-02-29 | AG14: =IF(BRNDateDiff(AF14,BRNNewExpDate)>0,NetDaysRatio(AF15,ICEHolidays,-1),IF(BRNDateDiff(AF14,BRNNewExpDate)=0,"",IF(BRNDateDiff(AF14,BRNNewExpDate)<0,NetDaysRatio(AF16,ICEHolidays,-1)))) -> 0.9523809524 | AH14: =IF(BRNDateDiff(AF14,BRNNewExpDate)>0,(AG14*AC15)+(1-AG14)*AC16,IF(BRNDateDiff(AF14,BRNNewExpDate)=0,((8/20)*AC15+(11/20)*AC16+1/20*AC17),IF(BRNDateDiff(AF14,BRNNewExpDate)<0,(AG14*AC16)+(1-AG14)*AC17))) -> 52.80238095 | AI14: =IF(OR(AD15="",AD16="",AD17=""),"",IF(BRNDateDiff(AF14,BRNNewExpDate)>0,(AG14*AD15)+(1-AG14)*AD16,IF(BRNDateDiff(AF14,BRNNewExpDate)=0,((8/20)*AD15+(11/20)*AD16+1/20*AD17),IF(BRNDateDiff(AF14,BRNNewExpDate)<0,(AG14*AD16)+(1-AG14)*AD17)))) ->  | AK14: =IF(BRNDateDiff(AF14,BRNNewExpDate)>0,IF(OR(Y15="",Y16=""),"",(AG14*Y15)+(1-AG14)*Y16),IF(BRNDateDiff(AF14,BRNNewExpDate)=0,IF(OR(Y15="",Y16="",Y17=""),"",(8/20*Y15)+11/20*Y16)+(1/20*Y17),IF(BRNDateDiff(AF14,BRNNewExpDate)<0,IF(OR(Y16="",Y17=""),"",(AG14*Y16)+(1-AG14)*Y17)))) -> 53.45714286 | AL14: Apr'16 | AM14: -3.5 | AN14: -4.108809524 | AO14: =RTD("esrtd",,"XRB 6!","Delivery") -> Apr'16 | AP14: =RTD("esrtd",,"XRB 6!","Symbol") -> XRB J6 | AQ14: =RTD("esrtd",,AP13 & ":" & SUBSTITUTE(AP14," ",""),"Market") -> -0.20605 | AR14: -0.2087 | AT14: 1.6161 | AU14: =RTD("esrtd",,"XRB 6!","Last") -> 1.6141 | AV14: =RTD("esrtd",,"XRB 6!","Change") -> 0.0221 | AW14: =RTD("esrtd",,"XRB 6!","Time") -> 42278.36931 | AX14: =RTD("esrtd",,"XRB 6!","PrevPrice") -> 1.592 | AY14: =RTD("esrtd",,"XRB 6!","NewSettlement") ->  | BA14: =RTD("esrtd",,"XRB 6!","Expiration") -> 2016-03-31 | BB14: 1.6045 | BE14: 1.62725 | BF14: 18.99616667 | BG14: 18.89566667 | BJ14: 14.88735714 | BK14: 14.58661905 | BN14: =RTD("esrtd",,"HO 6!","Delivery") -> Apr'16 | BO14: =RTD("esrtd",,"HO 6!","Symbol") -> HO J6 | BP14: =RTD("esrtd",,BO13 & ":" & SUBSTITUTE(BO14," ",""),"Market") -> 0.00525 | BQ14: 0.0048 | BS14: 1.6088 | BT14: =RTD("esrtd",,"HO 6!","Last") -> 1.6083 | BU14: =RTD("esrtd",,"HO 6!","Change") -> 0.0213 | BV14: =RTD("esrtd",,"HO 6!","Time") -> 42278.36931 | BW14: =RTD("esrtd",,"HO 6!","PrevPrice") -> 1.587 | BX14: =RTD("esrtd",,"HO 6!","NewSettlement") ->  | BZ14: =RTD("esrtd",,"HO 6!","Expiration") -> 2016-03-31 | CA14: 1.5929 | CD14: 1.61445 | CE14: 18.45856667 | CF14: 18.40846667 | CI14: 14.34975714 | CJ14: 14.09941905 | CM14: Apr'16 | CN14: 0.0073 | CO14: 0.0128 | CP14: =RTD("esrtd",,"GAS 7!-ICE","Delivery") -> Apr'16 | CQ14: =RTD("esrtd",,"GAS 7!-ICE","Symbol") -> GAS 6J-ICE | CR14: =RTD("esrtd",, SUBSTITUTE(CQ13,"-ICE","") & ":" & SUBSTITUTE(CQ14," ",""),"Market") -> -2.875 | CS14: -3 | CU14: 491.25 | CV14: =RTD("esrtd",,"GAS 7!-ICE","Last") -> 491.25 | CW14: =RTD("esrtd",,"GAS 7!-ICE","Change") -> 7.5 | CX14: =RTD("esrtd",,"GAS 7!-ICE","Time") -> 42278.36931 | CY14: =RTD("esrtd",,"GAS 7!-ICE","PrevPrice") -> 483.75 | CZ14: =RTD("esrtd",,"GAS 7!-ICE","NewSettlement") ->  | DB14: =RTD("esrtd",,"GAS 7!-ICE","Expiration") -> 2016-04-12 | DC14: 0.3333333333 | DD14: 485.9166667 | DG14: 493.3333333 | DH14: 12.76209652 | DI14: 12.42133269 | DL14: Apr'16 | DM14: 0.03880958773 | DN14: 0.03780144349
B15: =RTD("esrtd",,"CL 7!","Delivery") -> May'16 | C15: =RTD("esrtd",,"CL 7!","Symbol") -> CL K6 | D15: =RTD("esrtd",,C14 & ":" & SUBSTITUTE(C15," ",""),"Market") -> -0.445 | E15: -0.46 | G15: =IF(G14="","",IF(F15<>"",G14-F15,IF(D15<>"",G14-D15,G14-E15))) -> 49.23 | H15: =RTD("esrtd",,"CL 7!","Last") -> 49.29 | I15: =RTD("esrtd",,"CL 7!","Change") -> 0.92 | J15: =RTD("esrtd",,"CL 7!","Time") -> 42278.36932 | K15: =RTD("esrtd",,"CL 7!","PrevPrice") -> 48.37 | L15: =RTD("esrtd",,"CL 7!","NewSettlement") ->  | N15: =RTD("esrtd",,"CL 7!","Expiration") -> 2016-04-20 | O15: 0.7142857143 | P15: 48.82571429 | S15: =IF(OR(G16="",G17=""),"",(O15*G16)+(1-O15)*G17) -> 49.66642857 | T15: =RTD("esrtd",,"BRN 7!-ICE","Delivery") -> May'16 | U15: =RTD("esrtd",,"BRN 7!-ICE","Symbol") -> BRN 6K-ICE | V15: =RTD("esrtd",, SUBSTITUTE(U14,"-ICE","") & ":" & SUBSTITUTE(U15," ",""),"Market") -> -0.605 | W15: -0.61 | Y15: 52.89 | Z15: =RTD("esrtd",,"BRN 7!-ICE","Last") -> 52.65 | AA15: =RTD("esrtd",,"BRN 7!-ICE","Change") -> 0.42 | AB15: =RTD("esrtd",,"BRN 7!-ICE","Time") -> 42278.36932 | AC15: =RTD("esrtd",,"BRN 7!-ICE","PrevPrice") -> 52.23 | AD15: =RTD("esrtd",,"BRN 7!-ICE","NewSettlement") ->  | AF15: =RTD("esrtd",,"BRN 7!-ICE","Expiration") -> 2016-03-31 | AG15: =IF(BRNDateDiff(AF15,BRNNewExpDate)>0,NetDaysRatio(AF16,ICEHolidays,-1),IF(BRNDateDiff(AF15,BRNNewExpDate)=0,"",IF(BRNDateDiff(AF15,BRNNewExpDate)<0,NetDaysRatio(AF17,ICEHolidays,-1)))) -> 0.9545454545 | AH15: =IF(BRNDateDiff(AF15,BRNNewExpDate)>0,(AG15*AC16)+(1-AG15)*AC17,IF(BRNDateDiff(AF15,BRNNewExpDate)=0,((8/20)*AC16+(11/20)*AC17+1/20*AC18),IF(BRNDateDiff(AF15,BRNNewExpDate)<0,(AG15*AC17)+(1-AG15)*AC18))) -> 53.26863636 | AI15: =IF(OR(AD16="",AD17="",AD18=""),"",IF(BRNDateDiff(AF15,BRNNewExpDate)>0,(AG15*AD16)+(1-AG15)*AD17,IF(BRNDateDiff(AF15,BRNNewExpDate)=0,((8/20)*AD16+(11/20)*AD17+1/20*AD18),IF(BRNDateDiff(AF15,BRNNewExpDate)<0,(AG15*AD17)+(1-AG15)*AD18)))) ->  | AK15: =IF(BRNDateDiff(AF15,BRNNewExpDate)>0,IF(OR(Y16="",Y17=""),"",(AG15*Y16)+(1-AG15)*Y17),IF(BRNDateDiff(AF15,BRNNewExpDate)=0,IF(OR(Y16="",Y17="",Y18=""),"",(8/20*Y16)+11/20*Y17)+(1/20*Y18),IF(BRNDateDiff(AF15,BRNNewExpDate)<0,IF(OR(Y17="",Y18=""),"",(AG15*Y17)+(1-AG15)*Y18)))) -> 53.91886364 | AL15: May'16 | AM15: -3.66 | AN15: -4.252435065 | AO15: =RTD("esrtd",,"XRB 7!","Delivery") -> May'16 | AP15: =RTD("esrtd",,"XRB 7!","Symbol") -> XRB K6 | AQ15: =RTD("esrtd",,AP14 & ":" & SUBSTITUTE(AP15," ",""),"Market") -> -0.01115 | AR15: -0.0125 | AT15: 1.62725 | AU15: =RTD("esrtd",,"XRB 7!","Last") -> 1.6281 | AV15: =RTD("esrtd",,"XRB 7!","Change") -> 0.0236 | AW15: =RTD("esrtd",,"XRB 7!","Time") -> 42278.36931 | AX15: =RTD("esrtd",,"XRB 7!","PrevPrice") -> 1.6045 | AY15: =RTD("esrtd",,"XRB 7!","NewSettlement") ->  | BA15: =RTD("esrtd",,"XRB 7!","Expiration") -> 2016-04-29 | BB15: 1.603 | BE15: 1.6249 | BF15: 18.57937143 | BG15: 18.50028571 | BJ15: 14.32693636 | BK15: 14.05736364 | BN15: =RTD("esrtd",,"HO 7!","Delivery") -> May'16 | BO15: =RTD("esrtd",,"HO 7!","Symbol") -> HO K6 | BP15: =RTD("esrtd",,BO14 & ":" & SUBSTITUTE(BO15," ",""),"Market") -> -0.00565 | BQ15: -0.0059 | BS15: 1.61445 | BT15: =RTD("esrtd",,"HO 7!","Last") -> 1.6076 | BU15: =RTD("esrtd",,"HO 7!","Change") -> 0.0147 | BV15: =RTD("esrtd",,"HO 7!","Time") -> 42278.36929 | BW15: =RTD("esrtd",,"HO 7!","PrevPrice") -> 1.5929 | BX15: =RTD("esrtd",,"HO 7!","NewSettlement") ->  | BZ15: =RTD("esrtd",,"HO 7!","Expiration") -> 2016-04-29 | CA15: 1.602 | CD15: 1.6235 | CE15: 18.52057143 | CF15: 18.45828571 | CI15: 14.26813636 | CJ15: 14.01536364 | CM15: May'16 | CN15: 0.0128 | CO15: 0.0014 | CP15: =RTD("esrtd",,"GAS 8!-ICE","Delivery") -> May'16 | CQ15: =RTD("esrtd",,"GAS 8!-ICE","Symbol") -> GAS 6K-ICE | CR15: =RTD("esrtd",, SUBSTITUTE(CQ14,"-ICE","") & ":" & SUBSTITUTE(CQ15," ",""),"Market") -> -3.125 | CS15: -3.25 | CU15: 494.375 | CV15: =RTD("esrtd",,"GAS 8!-ICE","Last") -> 492.5 | CW15: =RTD("esrtd",,"GAS 8!-ICE","Change") -> 5.5 | CX15: =RTD("esrtd",,"GAS 8!-ICE","Time") -> 42278.36931 | CY15: =RTD("esrtd",,"GAS 8!-ICE","PrevPrice") -> 487 | CZ15: =RTD("esrtd",,"GAS 8!-ICE","NewSettlement") ->  | DB15: =RTD("esrtd",,"GAS 8!-ICE","Expiration") -> 2016-05-12 | DC15: 0.3636363636 | DD15: 488.75 | DG15: 495.8863636 | DH15: 12.64306437 | DI15: 12.33539048 | DL15: May'16 | DM15: 0.03447237136 | DN15: 0.03869219036
B16: =RTD("esrtd",,"CL 8!","Delivery") -> Jun'16 | C16: =RTD("esrtd",,"CL 8!","Symbol") -> CL M6 | D16: =RTD("esrtd",,C15 & ":" & SUBSTITUTE(C16," ",""),"Market") -> -0.355 | E16: -0.37 | G16: 49.585 | H16: =RTD("esrtd",,"CL 8!","Last") -> 49.57 | I16: =RTD("esrtd",,"CL 8!","Change") -> 0.83 | J16: =RTD("esrtd",,"CL 8!","Time") -> 42278.36932 | K16: =RTD("esrtd",,"CL 8!","PrevPrice") -> 48.74 | L16: =RTD("esrtd",,"CL 8!","NewSettlement") ->  | N16: =RTD("esrtd",,"CL 8!","Expiration") -> 2016-05-20 | O16: 0.6818181818 | P16: 49.13545455 | S16: =IF(OR(G17="",G18=""),"",(O16*G17)+(1-O16)*G18) -> 49.96068182 | T16: =RTD("esrtd",,"BRN 8!-ICE","Delivery") -> Jun'16 | U16: =RTD("esrtd",,"BRN 8!-ICE","Symbol") -> BRN 6M-ICE | V16: =RTD("esrtd",, SUBSTITUTE(U15,"-ICE","") & ":" & SUBSTITUTE(U16," ",""),"Market") -> -0.545 | W16: -0.55 | Y16: 53.435 | Z16: =RTD("esrtd",,"BRN 8!-ICE","Last") -> 53.45 | AA16: =RTD("esrtd",,"BRN 8!-ICE","Change") -> 0.67 | AB16: =RTD("esrtd",,"BRN 8!-ICE","Time") -> 42278.36932 | AC16: =RTD("esrtd",,"BRN 8!-ICE","PrevPrice") -> 52.78 | AD16: =RTD("esrtd",,"BRN 8!-ICE","NewSettlement") ->  | AF16: =RTD("esrtd",,"BRN 8!-ICE","Expiration") -> 2016-04-29 | AG16: =IF(BRNDateDiff(AF16,BRNNewExpDate)>0,NetDaysRatio(AF17,ICEHolidays,-1),IF(BRNDateDiff(AF16,BRNNewExpDate)=0,"",IF(BRNDateDiff(AF16,BRNNewExpDate)<0,NetDaysRatio(AF18,ICEHolidays,-1)))) -> 0.9545454545 | AH16: =IF(BRNDateDiff(AF16,BRNNewExpDate)>0,(AG16*AC17)+(1-AG16)*AC18,IF(BRNDateDiff(AF16,BRNNewExpDate)=0,((8/20)*AC17+(11/20)*AC18+1/20*AC19),IF(BRNDateDiff(AF16,BRNNewExpDate)<0,(AG16*AC18)+(1-AG16)*AC19))) -> 53.67863636 | AI16: =IF(OR(AD17="",AD18="",AD19=""),"",IF(BRNDateDiff(AF16,BRNNewExpDate)>0,(AG16*AD17)+(1-AG16)*AD18,IF(BRNDateDiff(AF16,BRNNewExpDate)=0,((8/20)*AD17+(11/20)*AD18+1/20*AD19),IF(BRNDateDiff(AF16,BRNNewExpDate)<0,(AG16*AD18)+(1-AG16)*AD19)))) ->  | AK16: =IF(BRNDateDiff(AF16,BRNNewExpDate)>0,IF(OR(Y17="",Y18=""),"",(AG16*Y17)+(1-AG16)*Y18),IF(BRNDateDiff(AF16,BRNNewExpDate)=0,IF(OR(Y17="",Y18="",Y19=""),"",(8/20*Y17)+11/20*Y18)+(1/20*Y19),IF(BRNDateDiff(AF16,BRNNewExpDate)<0,IF(OR(Y18="",Y19=""),"",(AG16*Y18)+(1-AG16)*Y19)))) -> 54.33295455 | AL16: Jun'16 | AM16: -3.85 | AN16: -4.372272727 | AO16: =RTD("esrtd",,"XRB 8!","Delivery") -> Jun'16 | AP16: =RTD("esrtd",,"XRB 8!","Symbol") -> XRB M6 | AQ16: =RTD("esrtd",,AP15 & ":" & SUBSTITUTE(AP16," ",""),"Market") -> 0.00235 | AR16: 0.0015 | AT16: 1.6249 | AU16: =RTD("esrtd",,"XRB 8!","Last") -> 1.6262 | AV16: =RTD("esrtd",,"XRB 8!","Change") -> 0.0232 | AW16: =RTD("esrtd",,"XRB 8!","Time") -> 42278.36931 | AX16: =RTD("esrtd",,"XRB 8!","PrevPrice") -> 1.603 | AY16: =RTD("esrtd",,"XRB 8!","NewSettlement") ->  | BA16: =RTD("esrtd",,"XRB 8!","Expiration") -> 2016-05-31 | BB16: 1.5938 | BE16: 1.61505 | BF16: 17.87141818 | BG16: 17.80414545 | BJ16: 13.49914545 | BK16: 13.26096364 | BN16: =RTD("esrtd",,"HO 8!","Delivery") -> Jun'16 | BO16: =RTD("esrtd",,"HO 8!","Symbol") -> HO M6 | BP16: =RTD("esrtd",,BO15 & ":" & SUBSTITUTE(BO16," ",""),"Market") -> -0.00905 | BQ16: -0.0091 | BS16: 1.6235 | BT16: =RTD("esrtd",,"HO 8!","Last") -> 1.6215 | BU16: =RTD("esrtd",,"HO 8!","Change") -> 0.0195 | BV16: =RTD("esrtd",,"HO 8!","Time") -> 42278.36929 | BW16: =RTD("esrtd",,"HO 8!","PrevPrice") -> 1.602 | BX16: =RTD("esrtd",,"HO 8!","NewSettlement") ->  | BZ16: =RTD("esrtd",,"HO 8!","Expiration") -> 2016-05-31 | CA16: 1.6146 | CD16: 1.6355 | CE16: 18.73031818 | CF16: 18.67774545 | CI16: 14.35804545 | CJ16: 14.13456364 | CM16: Jun'16 | CN16: 0.0014 | CO16: -0.02045 | CP16: =RTD("esrtd",,"GAS 9!-ICE","Delivery") -> Jun'16 | CQ16: =RTD("esrtd",,"GAS 9!-ICE","Symbol") -> GAS 6M-ICE | CR16: =RTD("esrtd",, SUBSTITUTE(CQ15,"-ICE","") & ":" & SUBSTITUTE(CQ16," ",""),"Market") -> -2.375 | CS16: -2.75 | CU16: 496.75 | CV16: =RTD("esrtd",,"GAS 9!-ICE","Last") -> 496.75 | CW16: =RTD("esrtd",,"GAS 9!-ICE","Change") -> 7 | CX16: =RTD("esrtd",,"GAS 9!-ICE","Time") -> 42278.36931 | CY16: =RTD("esrtd",,"GAS 9!-ICE","PrevPrice") -> 489.75 | CZ16: =RTD("esrtd",,"GAS 9!-ICE","NewSettlement") ->  | DB16: =RTD("esrtd",,"GAS 9!-ICE","Expiration") -> 2016-06-10 | DC16: 0.3181818182 | DD16: 492.9886364 | DG16: 499.7329545 | DH16: 12.74529439 | DI16: 12.49433496 | DL16: Jun'16 | DM16: 0.03593208693 | DN16: 0.03839883495
B17: =RTD("esrtd",,"CL 9!","Delivery") -> Jul'16 | C17: =RTD("esrtd",,"CL 9!","Symbol") -> CL N6 | D17: =RTD("esrtd",,C16 & ":" & SUBSTITUTE(C17," ",""),"Market") -> -0.285 | E17: -0.3 | G17: 49.87 | H17: =RTD("esrtd",,"CL 9!","Last") -> 49.92 | I17: =RTD("esrtd",,"CL 9!","Change") -> 0.88 | J17: =RTD("esrtd",,"CL 9!","Time") -> 42278.36929 | K17: =RTD("esrtd",,"CL 9!","PrevPrice") -> 49.04 | L17: =RTD("esrtd",,"CL 9!","NewSettlement") ->  | N17: =RTD("esrtd",,"CL 9!","Expiration") -> 2016-06-21 | O17: 0.65 | P17: 49.452 | S17: =IF(OR(G18="",G19=""),"",(O17*G18)+(1-O17)*G19) -> 50.26525 | T17: =RTD("esrtd",,"BRN 9!-ICE","Delivery") -> Jul'16 | U17: =RTD("esrtd",,"BRN 9!-ICE","Symbol") -> BRN 6N-ICE | V17: =RTD("esrtd",, SUBSTITUTE(U16,"-ICE","") & ":" & SUBSTITUTE(U17," ",""),"Market") -> -0.465 | W17: -0.47 | Y17: 53.9 | Z17: =RTD("esrtd",,"BRN 9!-ICE","Last") -> 54 | AA17: =RTD("esrtd",,"BRN 9!-ICE","Change") -> 0.75 | AB17: =RTD("esrtd",,"BRN 9!-ICE","Time") -> 42278.36932 | AC17: =RTD("esrtd",,"BRN 9!-ICE","PrevPrice") -> 53.25 | AD17: =RTD("esrtd",,"BRN 9!-ICE","NewSettlement") ->  | AF17: =RTD("esrtd",,"BRN 9!-ICE","Expiration") -> 2016-05-31 | AG17: =IF(BRNDateDiff(AF17,BRNNewExpDate)>0,NetDaysRatio(AF18,ICEHolidays,-1),IF(BRNDateDiff(AF17,BRNNewExpDate)=0,"",IF(BRNDateDiff(AF17,BRNNewExpDate)<0,NetDaysRatio(AF19,ICEHolidays,-1)))) -> 0.9523809524 | AH17: =IF(BRNDateDiff(AF17,BRNNewExpDate)>0,(AG17*AC18)+(1-AG17)*AC19,IF(BRNDateDiff(AF17,BRNNewExpDate)=0,((8/20)*AC18+(11/20)*AC19+1/20*AC20),IF(BRNDateDiff(AF17,BRNNewExpDate)<0,(AG17*AC19)+(1-AG17)*AC20))) -> 54.08857143 | AI17: =IF(OR(AD18="",AD19="",AD20=""),"",IF(BRNDateDiff(AF17,BRNNewExpDate)>0,(AG17*AD18)+(1-AG17)*AD19,IF(BRNDateDiff(AF17,BRNNewExpDate)=0,((8/20)*AD18+(11/20)*AD19+1/20*AD20),IF(BRNDateDiff(AF17,BRNNewExpDate)<0,(AG17*AD19)+(1-AG17)*AD20)))) ->  | AK17: =IF(BRNDateDiff(AF17,BRNNewExpDate)>0,IF(OR(Y18="",Y19=""),"",(AG17*Y18)+(1-AG17)*Y19),IF(BRNDateDiff(AF17,BRNNewExpDate)=0,IF(OR(Y18="",Y19="",Y20=""),"",(8/20*Y18)+11/20*Y19)+(1/20*Y20),IF(BRNDateDiff(AF17,BRNNewExpDate)<0,IF(OR(Y19="",Y20=""),"",(AG17*Y19)+(1-AG17)*Y20)))) -> 54.72833333 | AL17: Jul'16 | AM17: -4.03 | AN17: -4.463083333 | AO17: =RTD("esrtd",,"XRB 9!","Delivery") -> Jul'16 | AP17: =RTD("esrtd",,"XRB 9!","Symbol") -> XRB N6 | AQ17: =RTD("esrtd",,AP16 & ":" & SUBSTITUTE(AP17," ",""),"Market") -> 0.00985 | AR17: 0.0092 | AT17: 1.61505 | AU17: =RTD("esrtd",,"XRB 9!","Last") ->  | AV17: =RTD("esrtd",,"XRB 9!","Change") ->  | AW17: =RTD("esrtd",,"XRB 9!","Time") -> 42278.36931 | AX17: =RTD("esrtd",,"XRB 9!","PrevPrice") -> 1.5938 | AY17: =RTD("esrtd",,"XRB 9!","NewSettlement") ->  | BA17: =RTD("esrtd",,"XRB 9!","Expiration") -> 2016-06-30 | BB17: 1.5782 | BE17: 1.5986 | BF17: 16.87595 | BG17: 16.8324 | BJ17: 12.41286667 | BK17: 12.19582857 | BN17: =RTD("esrtd",,"HO 9!","Delivery") -> Jul'16 | BO17: =RTD("esrtd",,"HO 9!","Symbol") -> HO N6 | BP17: =RTD("esrtd",,BO16 & ":" & SUBSTITUTE(BO17," ",""),"Market") -> -0.012 | BQ17: -0.0126 | BS17: 1.6355 | BT17: =RTD("esrtd",,"HO 9!","Last") -> 1.6375 | BU17: =RTD("esrtd",,"HO 9!","Change") -> 0.0229 | BV17: =RTD("esrtd",,"HO 9!","Time") -> 42278.36929 | BW17: =RTD("esrtd",,"HO 9!","PrevPrice") -> 1.6146 | BX17: =RTD("esrtd",,"HO 9!","NewSettlement") ->  | BZ17: =RTD("esrtd",,"HO 9!","Expiration") -> 2016-06-30 | CA17: 1.6274 | CD17: 1.64765 | CE17: 18.93605 | CF17: 18.8988 | CI17: 14.47296667 | CJ17: 14.26222857 | CM17: Jul'16 | CN17: -0.02045 | CO17: -0.04905 | CP17: =RTD("esrtd",,"GAS 10!-ICE","Delivery") -> Jul'16 | CQ17: =RTD("esrtd",,"GAS 10!-ICE","Symbol") -> GAS 6N-ICE | CR17: =RTD("esrtd",, SUBSTITUTE(CQ16,"-ICE","") & ":" & SUBSTITUTE(CQ17," ",""),"Market") -> -4.375 | CS17: -4.75 | CU17: 501.125 | CV17: =RTD("esrtd",,"GAS 10!-ICE","Last") -> 502 | CW17: =RTD("esrtd",,"GAS 10!-ICE","Change") -> 7.5 | CX17: =RTD("esrtd",,"GAS 10!-ICE","Time") -> 42278.36931 | CY17: =RTD("esrtd",,"GAS 10!-ICE","PrevPrice") -> 494.5 | CZ17: =RTD("esrtd",,"GAS 10!-ICE","NewSettlement") ->  | DB17: =RTD("esrtd",,"GAS 10!-ICE","Expiration") -> 2016-07-12 | DC17: 0.3333333333 | DD17: 497.5 | DG17: 504.0416667 | DH17: 12.92826622 | DI17: 12.68995206 | DL17: Jul'16 | DM17: 0.03394998402 | DN17: 0.03677858208
B18: =RTD("esrtd",,"CL 10!","Delivery") -> Aug'16 | C18: =RTD("esrtd",,"CL 10!","Symbol") -> CL Q6 | D18: =RTD("esrtd",,C17 & ":" & SUBSTITUTE(C18," ",""),"Market") -> -0.285 | E18: -0.3 | G18: 50.155 | H18: =RTD("esrtd",,"CL 10!","Last") ->  | I18: =RTD("esrtd",,"CL 10!","Change") ->  | J18: =RTD("esrtd",,"CL 10!","Time") -> 42278.36921 | K18: =RTD("esrtd",,"CL 10!","PrevPrice") -> 49.34 | L18: =RTD("esrtd",,"CL 10!","NewSettlement") ->  | N18: =RTD("esrtd",,"CL 10!","Expiration") -> 2016-07-20 | O18: 0.6956521739 | P18: 49.76043478 | S18: 50.5673913 | T18: =RTD("esrtd",,"BRN 10!-ICE","Delivery") -> Aug'16 | U18: =RTD("esrtd",,"BRN 10!-ICE","Symbol") -> BRN 6Q-ICE | V18: =RTD("esrtd",, SUBSTITUTE(U17,"-ICE","") & ":" & SUBSTITUTE(U18," ",""),"Market") -> -0.415 | W18: -0.41 | Y18: 54.315 | Z18: =RTD("esrtd",,"BRN 10!-ICE","Last") ->  | AA18: =RTD("esrtd",,"BRN 10!-ICE","Change") ->  | AB18: =RTD("esrtd",,"BRN 10!-ICE","Time") -> 42278.36929 | AC18: =RTD("esrtd",,"BRN 10!-ICE","PrevPrice") -> 53.66 | AD18: =RTD("esrtd",,"BRN 10!-ICE","NewSettlement") ->  | AF18: =RTD("esrtd",,"BRN 10!-ICE","Expiration") -> 2016-06-30 | AG18: =IF(BRNDateDiff(AF18,BRNNewExpDate)>0,NetDaysRatio(AF19,ICEHolidays,-1),IF(BRNDateDiff(AF18,BRNNewExpDate)=0,"",IF(BRNDateDiff(AF18,BRNNewExpDate)<0,NetDaysRatio(AF20,ICEHolidays,-1)))) -> 0.9565217391 | AH18: =IF(BRNDateDiff(AF18,BRNNewExpDate)>0,(AG18*AC19)+(1-AG18)*AC20,IF(BRNDateDiff(AF18,BRNNewExpDate)=0,((8/20)*AC19+(11/20)*AC20+1/20*AC21),IF(BRNDateDiff(AF18,BRNNewExpDate)<0,(AG18*AC20)+(1-AG18)*AC21))) -> 54.47695652 | AI18: =IF(OR(AD19="",AD20="",AD21=""),"",IF(BRNDateDiff(AF18,BRNNewExpDate)>0,(AG18*AD19)+(1-AG18)*AD20,IF(BRNDateDiff(AF18,BRNNewExpDate)=0,((8/20)*AD19+(11/20)*AD20+1/20*AD21),IF(BRNDateDiff(AF18,BRNNewExpDate)<0,(AG18*AD20)+(1-AG18)*AD21)))) ->  | AK18: =IF(BRNDateDiff(AF18,BRNNewExpDate)>0,IF(OR(Y19="",Y20=""),"",(AG18*Y19)+(1-AG18)*Y20),IF(BRNDateDiff(AF18,BRNNewExpDate)=0,IF(OR(Y19="",Y20="",Y21=""),"",(8/20*Y19)+11/20*Y20)+(1/20*Y21),IF(BRNDateDiff(AF18,BRNNewExpDate)<0,IF(OR(Y20="",Y21=""),"",(AG18*Y20)+(1-AG18)*Y21)))) -> 55.11173913 | AL18: Aug'16 | AM18: -4.16 | AN18: -4.544347826 | AO18: =RTD("esrtd",,"XRB 10!","Delivery") -> Aug'16 | AP18: =RTD("esrtd",,"XRB 10!","Symbol") -> XRB Q6 | AQ18: =RTD("esrtd",,AP17 & ":" & SUBSTITUTE(AP18," ",""),"Market") -> 0.01645 | AR18: 0.0156 | AT18: 1.5986 | AU18: =RTD("esrtd",,"XRB 10!","Last") ->  | AV18: =RTD("esrtd",,"XRB 10!","Change") ->  | AW18: =RTD("esrtd",,"XRB 10!","Time") -> 42278.36931 | AX18: =RTD("esrtd",,"XRB 10!","PrevPrice") -> 1.5782 | AY18: =RTD("esrtd",,"XRB 10!","NewSettlement") ->  | BA18: =RTD("esrtd",,"XRB 10!","Expiration") -> 2016-07-29 | BB18: 1.5556 | BE18: 1.57535 | BF18: 15.5973087 | BG18: 15.57476522 | BJ18: 11.05296087 | BK18: 10.85824348 | BN18: =RTD("esrtd",,"HO 10!","Delivery") -> Aug'16 | BO18: =RTD("esrtd",,"HO 10!","Symbol") -> HO Q6 | BP18: =RTD("esrtd",,BO17 & ":" & SUBSTITUTE(BO18," ",""),"Market") -> -0.01215 | BQ18: -0.0128 | BS18: 1.64765 | BT18: =RTD("esrtd",,"HO 10!","Last") ->  | BU18: =RTD("esrtd",,"HO 10!","Change") ->  | BV18: =RTD("esrtd",,"HO 10!","Time") -> 42278.36929 | BW18: =RTD("esrtd",,"HO 10!","PrevPrice") -> 1.6274 | BX18: =RTD("esrtd",,"HO 10!","NewSettlement") ->  | BZ18: =RTD("esrtd",,"HO 10!","Expiration") -> 2016-07-29 | CA18: 1.6414 | CD18: 1.66125 | CE18: 19.2051087 | CF18: 19.17836522 | CI18: 14.66076087 | CJ18: 14.46184348 | CM18: Aug'16 | CN18: -0.04905 | CO18: -0.0859 | CP18: =RTD("esrtd",,"GAS 11!-ICE","Delivery") -> Aug'16 | CQ18: =RTD("esrtd",,"GAS 11!-ICE","Symbol") -> GAS 6Q-ICE | CR18: =RTD("esrtd",, SUBSTITUTE(CQ17,"-ICE","") & ":" & SUBSTITUTE(CQ18," ",""),"Market") -> -4.375 | CS18: -4.5 | CU18: 505.5 | CV18: =RTD("esrtd",,"GAS 11!-ICE","Last") -> 503.25 | CW18: =RTD("esrtd",,"GAS 11!-ICE","Change") -> 4.25 | CX18: =RTD("esrtd",,"GAS 11!-ICE","Time") -> 42278.36931 | CY18: =RTD("esrtd",,"GAS 11!-ICE","PrevPrice") -> 499 | CZ18: =RTD("esrtd",,"GAS 11!-ICE","NewSettlement") ->  | DB18: =RTD("esrtd",,"GAS 11!-ICE","Expiration") -> 2016-08-11 | DC18: 0.347826087 | DD18: =IF(OR(CY18="",CY19=""),"",IF(DC18<1,(DC18*CY18)+(1-DC18)*CY19,"")) -> 501.4456522 | DE18: =IF(OR(CZ18="",CZ19=""),"",IF(DC18<1,(DC18*CZ18)+(1-DC18)*CZ19,"")) ->  | DF18: =IF(AND(DD18<>"",DE18<>""),DE18-DD18,"") ->  | DG18: =IF(CU19="","",IF(DC18<1,(DC18*CU18)+(1-DC18)*CU19,"")) -> 507.8641304 | DH18: 13.05794281 | DI18: 12.83118471 | DK18: =IF(AND(DI18<>"",DJ18<>""),DJ18-DI18,"") ->  | DL18: Aug'16 | DM18: 0.03211788111 | DN18: 0.03816233482
B19: =RTD("esrtd",,"CL 11!","Delivery") -> Sep'16 | C19: =RTD("esrtd",,"CL 11!","Symbol") -> CL U6 | D19: =RTD("esrtd",,C18 & ":" & SUBSTITUTE(C19," ",""),"Market") -> -0.315 | E19: -0.32 | G19: 50.47 | H19: =RTD("esrtd",,"CL 11!","Last") -> 50.38 | I19: =RTD("esrtd",,"CL 11!","Change") -> 0.72 | J19: =RTD("esrtd",,"CL 11!","Time") -> 42278.36929 | K19: =RTD("esrtd",,"CL 11!","PrevPrice") -> 49.66 | L19: =RTD("esrtd",,"CL 11!","NewSettlement") ->  | N19: =RTD("esrtd",,"CL 11!","Expiration") -> 2016-08-22 | O19: 0.619047619 | P19: 50.13095238 | S19: 50.92333333 | T19: =RTD("esrtd",,"BRN 11!-ICE","Delivery") -> Sep'16 | U19: =RTD("esrtd",,"BRN 11!-ICE","Symbol") -> BRN 6U-ICE | V19: =RTD("esrtd",, SUBSTITUTE(U18,"-ICE","") & ":" & SUBSTITUTE(U19," ",""),"Market") -> -0.395 | W19: -0.41 | Y19: 54.71 | Z19: =RTD("esrtd",,"BRN 11!-ICE","Last") ->  | AA19: =RTD("esrtd",,"BRN 11!-ICE","Change") ->  | AB19: =RTD("esrtd",,"BRN 11!-ICE","Time") -> 42278.36926 | AC19: =RTD("esrtd",,"BRN 11!-ICE","PrevPrice") -> 54.07 | AD19: =RTD("esrtd",,"BRN 11!-ICE","NewSettlement") ->  | AF19: =RTD("esrtd",,"BRN 11!-ICE","Expiration") -> 2016-07-29 | AG19: =IF(BRNDateDiff(AF19,BRNNewExpDate)>0,NetDaysRatio(AF20,ICEHolidays,-1),IF(BRNDateDiff(AF19,BRNNewExpDate)=0,"",IF(BRNDateDiff(AF19,BRNNewExpDate)<0,NetDaysRatio(AF21,ICEHolidays,-1)))) -> 0.9545454545 | AH19: =IF(BRNDateDiff(AF19,BRNNewExpDate)>0,(AG19*AC20)+(1-AG19)*AC21,IF(BRNDateDiff(AF19,BRNNewExpDate)=0,((8/20)*AC20+(11/20)*AC21+1/20*AC22),IF(BRNDateDiff(AF19,BRNNewExpDate)<0,(AG19*AC21)+(1-AG19)*AC22))) -> 54.86727273 | AI19: =IF(OR(AD20="",AD21="",AD22=""),"",IF(BRNDateDiff(AF19,BRNNewExpDate)>0,(AG19*AD20)+(1-AG19)*AD21,IF(BRNDateDiff(AF19,BRNNewExpDate)=0,((8/20)*AD20+(11/20)*AD21+1/20*AD22),IF(BRNDateDiff(AF19,BRNNewExpDate)<0,(AG19*AD21)+(1-AG19)*AD22)))) ->  | AK19: =IF(BRNDateDiff(AF19,BRNNewExpDate)>0,IF(OR(Y20="",Y21=""),"",(AG19*Y20)+(1-AG19)*Y21),IF(BRNDateDiff(AF19,BRNNewExpDate)=0,IF(OR(Y20="",Y21="",Y22=""),"",(8/20*Y20)+11/20*Y21)+(1/20*Y22),IF(BRNDateDiff(AF19,BRNNewExpDate)<0,IF(OR(Y21="",Y22=""),"",(AG19*Y21)+(1-AG19)*Y22)))) -> 55.49681818 | AL19: =B19 -> Sep'16 | AM19: -4.24 | AN19: -4.573484848 | AO19: =RTD("esrtd",,"XRB 11!","Delivery") -> Sep'16 | AP19: =RTD("esrtd",,"XRB 11!","Symbol") -> XRB U6 | AQ19: =RTD("esrtd",,AP18 & ":" & SUBSTITUTE(AP19," ",""),"Market") -> 0.02325 | AR19: 0.0226 | AT19: 1.57535 | AU19: =RTD("esrtd",,"XRB 11!","Last") ->  | AV19: =RTD("esrtd",,"XRB 11!","Change") ->  | AW19: =RTD("esrtd",,"XRB 11!","Time") -> 42278.36931 | AX19: =RTD("esrtd",,"XRB 11!","PrevPrice") -> 1.5556 | AY19: =RTD("esrtd",,"XRB 11!","NewSettlement") ->  | BA19: =RTD("esrtd",,"XRB 11!","Expiration") -> 2016-08-31 | BB19: 1.422 | BE19: 1.43975 | BF19: 9.546166667 | BG19: 9.593047619 | BJ19: 4.972681818 | BK19: 4.856727273 | BN19: =RTD("esrtd",,"HO 11!","Delivery") -> Sep'16 | BO19: =RTD("esrtd",,"HO 11!","Symbol") -> HO U6 | BP19: =RTD("esrtd",,BO18 & ":" & SUBSTITUTE(BO19," ",""),"Market") -> -0.0136 | BQ19: -0.014 | BS19: 1.66125 | BT19: =RTD("esrtd",,"HO 11!","Last") ->  | BU19: =RTD("esrtd",,"HO 11!","Change") ->  | BV19: =RTD("esrtd",,"HO 11!","Time") -> 42278.36929 | BW19: =RTD("esrtd",,"HO 11!","PrevPrice") -> 1.6414 | BX19: =RTD("esrtd",,"HO 11!","NewSettlement") ->  | BZ19: =RTD("esrtd",,"HO 11!","Expiration") -> 2016-08-31 | CA19: 1.6581 | CD19: 1.67755 | CE19: 19.53376667 | CF19: 19.50924762 | CI19: 14.96028182 | CJ19: 14.77292727 | CM19: Sep'16 | CN19: -0.0859 | CO19: -0.2378 | CP19: =RTD("esrtd",,"GAS 12!-ICE","Delivery") -> Sep'16 | CQ19: =RTD("esrtd",,"GAS 12!-ICE","Symbol") -> GAS 6U-ICE | CR19: =RTD("esrtd",, SUBSTITUTE(CQ18,"-ICE","") & ":" & SUBSTITUTE(CQ19," ",""),"Market") -> -3.625 | CS19: -3.75 | CU19: 509.125 | CV19: =RTD("esrtd",,"GAS 12!-ICE","Last") -> 510 | CW19: =RTD("esrtd",,"GAS 12!-ICE","Change") -> 7.25 | CX19: =RTD("esrtd",,"GAS 12!-ICE","Time") -> 42278.36931 | CY19: =RTD("esrtd",,"GAS 12!-ICE","PrevPrice") -> 502.75 | CZ19: =RTD("esrtd",,"GAS 12!-ICE","NewSettlement") ->  | DB19: =RTD("esrtd",,"GAS 12!-ICE","Expiration") -> 2016-09-12 | DC19: 0.3181818182 | DD19: 505.6477273 | DG19: 512.1079545 | DH19: 13.24250458 | DI19: 13.00490543 | DL19: Sep'16 | DM19: 0.03413271013 | DN19: 0.04089945815
B20: =RTD("esrtd",,"CL 12!","Delivery") -> Oct'16 | C20: =RTD("esrtd",,"CL 12!","Symbol") -> CL V6 | D20: =RTD("esrtd",,C19 & ":" & SUBSTITUTE(C20," ",""),"Market") -> -0.32 | E20: -0.33 | G20: 50.79 | H20: =RTD("esrtd",,"CL 12!","Last") ->  | I20: =RTD("esrtd",,"CL 12!","Change") ->  | J20: =RTD("esrtd",,"CL 12!","Time") -> 42278.36927 | K20: =RTD("esrtd",,"CL 12!","PrevPrice") -> 49.99 | L20: =RTD("esrtd",,"CL 12!","NewSettlement") ->  | N20: =RTD("esrtd",,"CL 12!","Expiration") -> 2016-09-20 | O20: 0.6666666667 | P20: 50.48333333 | S20: 51.26 | T20: =RTD("esrtd",,"BRN 12!-ICE","Delivery") -> Oct'16 | U20: =RTD("esrtd",,"BRN 12!-ICE","Symbol") -> BRN 6V-ICE | V20: =RTD("esrtd",, SUBSTITUTE(U19,"-ICE","") & ":" & SUBSTITUTE(U20," ",""),"Market") -> -0.385 | W20: -0.39 | Y20: 55.095 | Z20: =RTD("esrtd",,"BRN 12!-ICE","Last") ->  | AA20: =RTD("esrtd",,"BRN 12!-ICE","Change") ->  | AB20: =RTD("esrtd",,"BRN 12!-ICE","Time") -> 42278.3691 | AC20: =RTD("esrtd",,"BRN 12!-ICE","PrevPrice") -> 54.46 | AD20: =RTD("esrtd",,"BRN 12!-ICE","NewSettlement") ->  | AF20: =RTD("esrtd",,"BRN 12!-ICE","Expiration") -> 2016-08-31 | AG20: =IF(BRNDateDiff(AF20,BRNNewExpDate)>0,NetDaysRatio(AF21,ICEHolidays,-1),IF(BRNDateDiff(AF20,BRNNewExpDate)=0,"",IF(BRNDateDiff(AF20,BRNNewExpDate)<0,NetDaysRatio(AF22,ICEHolidays,-1)))) -> 0.9523809524 | AH20: =IF(BRNDateDiff(AF20,BRNNewExpDate)>0,(AG20*AC21)+(1-AG20)*AC22,IF(BRNDateDiff(AF20,BRNNewExpDate)=0,((8/20)*AC21+(11/20)*AC22+1/20*AC23),IF(BRNDateDiff(AF20,BRNNewExpDate)<0,(AG20*AC22)+(1-AG20)*AC23))) -> 55.24714286 | AI20: =IF(OR(AD21="",AD22="",AD23=""),"",IF(BRNDateDiff(AF20,BRNNewExpDate)>0,(AG20*AD21)+(1-AG20)*AD22,IF(BRNDateDiff(AF20,BRNNewExpDate)=0,((8/20)*AD21+(11/20)*AD22+1/20*AD23),IF(BRNDateDiff(AF20,BRNNewExpDate)<0,(AG20*AD22)+(1-AG20)*AD23)))) ->  | AK20: =IF(BRNDateDiff(AF20,BRNNewExpDate)>0,IF(OR(Y21="",Y22=""),"",(AG20*Y21)+(1-AG20)*Y22),IF(BRNDateDiff(AF20,BRNNewExpDate)=0,IF(OR(Y21="",Y22="",Y23=""),"",(8/20*Y21)+11/20*Y22)+(1/20*Y23),IF(BRNDateDiff(AF20,BRNNewExpDate)<0,IF(OR(Y22="",Y23=""),"",(AG20*Y22)+(1-AG20)*Y23)))) -> 55.86690476 | AL20: Oct'16 | AM20: -4.305 | AN20: -4.606904762 | AO20: =RTD("esrtd",,"XRB 12!","Delivery") -> Oct'16 | AP20: =RTD("esrtd",,"XRB 12!","Symbol") -> XRB V6 | AQ20: =RTD("esrtd",,AP19 & ":" & SUBSTITUTE(AP20," ",""),"Market") -> 0.1356 | AR20: 0.1336 | AT20: 1.43975 | AU20: =RTD("esrtd",,"XRB 12!","Last") ->  | AV20: =RTD("esrtd",,"XRB 12!","Change") ->  | AW20: =RTD("esrtd",,"XRB 12!","Time") -> 42278.36929 | AX20: =RTD("esrtd",,"XRB 12!","PrevPrice") -> 1.422 | AY20: =RTD("esrtd",,"XRB 12!","NewSettlement") ->  | BA20: =RTD("esrtd",,"XRB 12!","Expiration") -> 2016-09-30 | BB20: 1.3987 | BE20: 1.41475 | BF20: 8.1595 | BG20: 8.262066667 | BJ20: 3.552595238 | BK20: 3.498257143 | BN20: =RTD("esrtd",,"HO 12!","Delivery") -> Oct'16 | BO20: =RTD("esrtd",,"HO 12!","Symbol") -> HO V6 | BP20: =RTD("esrtd",,BO19 & ":" & SUBSTITUTE(BO20," ",""),"Market") -> -0.0163 | BQ20: -0.0167 | BS20: 1.67755 | BT20: =RTD("esrtd",,"HO 12!","Last") ->  | BU20: =RTD("esrtd",,"HO 12!","Change") ->  | BV20: =RTD("esrtd",,"HO 12!","Time") -> 42278.36921 | BW20: =RTD("esrtd",,"HO 12!","PrevPrice") -> 1.6581 | BX20: =RTD("esrtd",,"HO 12!","NewSettlement") ->  | BZ20: =RTD("esrtd",,"HO 12!","Expiration") -> 2016-09-30 | CA20: 1.6737 | CD20: 1.69295 | CE20: 19.8439 | CF20: 19.81206667 | CI20: 15.23699524 | CJ20: 15.04825714 | CM20: Oct'16 | CN20: -0.2378 | CO20: -0.2782 | CP20: =RTD("esrtd",,"GAS 13!-ICE","Delivery") -> Oct'16 | CQ20: =RTD("esrtd",,"GAS 13!-ICE","Symbol") -> GAS 6V-ICE | CR20: =RTD("esrtd",, SUBSTITUTE(CQ19,"-ICE","") & ":" & SUBSTITUTE(CQ20," ",""),"Market") -> -4.375 | CS20: -4.25 | CU20: 513.5 | CV20: =RTD("esrtd",,"GAS 13!-ICE","Last") ->  | CW20: =RTD("esrtd",,"GAS 13!-ICE","Change") ->  | CX20: =RTD("esrtd",,"GAS 13!-ICE","Time") -> 42278.3684 | CY20: =RTD("esrtd",,"GAS 13!-ICE","PrevPrice") -> 507 | CZ20: =RTD("esrtd",,"GAS 13!-ICE","NewSettlement") ->  | DB20: =RTD("esrtd",,"GAS 13!-ICE","Expiration") -> 2016-10-12 | DC20: 0.3333333333 | DD20: 508.5 | DG20: 514.9166667 | DH20: 13.24942633 | DI20: 13.0078907 | DL20: Oct'16 | DM20: 0.03645060722 | DN20: 0.04732306914
B21: =RTD("esrtd",,"CL 13!","Delivery") -> Nov'16 | C21: =RTD("esrtd",,"CL 13!","Symbol") -> CL X6 | D21: =RTD("esrtd",,C20 & ":" & SUBSTITUTE(C21," ",""),"Market") -> -0.35 | E21: -0.37 | G21: 51.14 | H21: =RTD("esrtd",,"CL 13!","Last") ->  | I21: =RTD("esrtd",,"CL 13!","Change") ->  | J21: =RTD("esrtd",,"CL 13!","Time") -> 42278.36927 | K21: =RTD("esrtd",,"CL 13!","PrevPrice") -> 50.36 | L21: =RTD("esrtd",,"CL 13!","NewSettlement") ->  | N21: =RTD("esrtd",,"CL 13!","Expiration") -> 2016-10-20 | O21: 0.7142857143 | P21: 50.80714286 | S21: 51.57571429 | T21: =RTD("esrtd",,"BRN 13!-ICE","Delivery") -> Nov'16 | U21: =RTD("esrtd",,"BRN 13!-ICE","Symbol") -> BRN 6X-ICE | V21: =RTD("esrtd",, SUBSTITUTE(U20,"-ICE","") & ":" & SUBSTITUTE(U21," ",""),"Market") -> -0.385 | W21: -0.39 | Y21: 55.48 | Z21: =RTD("esrtd",,"BRN 13!-ICE","Last") ->  | AA21: =RTD("esrtd",,"BRN 13!-ICE","Change") ->  | AB21: =RTD("esrtd",,"BRN 13!-ICE","Time") -> 42278.36932 | AC21: =RTD("esrtd",,"BRN 13!-ICE","PrevPrice") -> 54.85 | AD21: =RTD("esrtd",,"BRN 13!-ICE","NewSettlement") ->  | AF21: =RTD("esrtd",,"BRN 13!-ICE","Expiration") -> 2016-09-30 | AG21: =IF(BRNDateDiff(AF21,BRNNewExpDate)>0,NetDaysRatio(AF22,ICEHolidays,-1),IF(BRNDateDiff(AF21,BRNNewExpDate)=0,"",IF(BRNDateDiff(AF21,BRNNewExpDate)<0,NetDaysRatio(AF23,ICEHolidays,-1)))) -> 0.9545454545 | AH21: =IF(BRNDateDiff(AF21,BRNNewExpDate)>0,(AG21*AC22)+(1-AG21)*AC23,IF(BRNDateDiff(AF21,BRNNewExpDate)=0,((8/20)*AC22+(11/20)*AC23+1/20*AC24),IF(BRNDateDiff(AF21,BRNNewExpDate)<0,(AG21*AC23)+(1-AG21)*AC24))) -> 55.60636364 | AI21: =IF(OR(AD22="",AD23="",AD24=""),"",IF(BRNDateDiff(AF21,BRNNewExpDate)>0,(AG21*AD22)+(1-AG21)*AD23,IF(BRNDateDiff(AF21,BRNNewExpDate)=0,((8/20)*AD22+(11/20)*AD23+1/20*AD24),IF(BRNDateDiff(AF21,BRNNewExpDate)<0,(AG21*AD23)+(1-AG21)*AD24)))) ->  | AK21: =IF(BRNDateDiff(AF21,BRNNewExpDate)>0,IF(OR(Y22="",Y23=""),"",(AG21*Y22)+(1-AG21)*Y23),IF(BRNDateDiff(AF21,BRNNewExpDate)=0,IF(OR(Y22="",Y23="",Y24=""),"",(8/20*Y22)+11/20*Y23)+(1/20*Y24),IF(BRNDateDiff(AF21,BRNNewExpDate)<0,IF(OR(Y23="",Y24=""),"",(AG21*Y23)+(1-AG21)*Y24)))) -> 56.22113636 | AL21: Nov'16 | AM21: -4.34 | AN21: -4.645422078 | AO21: =RTD("esrtd",,"XRB 13!","Delivery") -> Nov'16 | AP21: =RTD("esrtd",,"XRB 13!","Symbol") -> XRB X6 | AQ21: =RTD("esrtd",,AP20 & ":" & SUBSTITUTE(AP21," ",""),"Market") -> 0.025 | AR21: 0.0233 | AT21: 1.41475 | AU21: =RTD("esrtd",,"XRB 13!","Last") ->  | AV21: =RTD("esrtd",,"XRB 13!","Change") ->  | AW21: =RTD("esrtd",,"XRB 13!","Time") -> 42278.36928 | AX21: =RTD("esrtd",,"XRB 13!","PrevPrice") -> 1.3987 | AY21: =RTD("esrtd",,"XRB 13!","NewSettlement") ->  | BA21: =RTD("esrtd",,"XRB 13!","Expiration") -> 2016-10-31 | BB21: 1.3891 | BE21: 1.4038 | BF21: 7.383885714 | BG21: 7.535057143 | BJ21: 2.738463636 | BK21: 2.735836364 | BN21: =RTD("esrtd",,"HO 13!","Delivery") -> Nov'16 | BO21: =RTD("esrtd",,"HO 13!","Symbol") -> HO X6 | BP21: =RTD("esrtd",,BO20 & ":" & SUBSTITUTE(BO21," ",""),"Market") -> -0.0154 | BQ21: -0.0156 | BS21: 1.69295 | BT21: =RTD("esrtd",,"HO 13!","Last") ->  | BU21: =RTD("esrtd",,"HO 13!","Change") ->  | BV21: =RTD("esrtd",,"HO 13!","Time") -> 42278.36921 | BW21: =RTD("esrtd",,"HO 13!","PrevPrice") -> 1.6737 | BX21: =RTD("esrtd",,"HO 13!","NewSettlement") ->  | BZ21: =RTD("esrtd",,"HO 13!","Expiration") -> 2016-10-31 | CA21: =BW22 -> 1.6889 | CB21: =BX22 ->  | CD21: =BS22 -> 1.70815 | CE21: 20.16658571 | CF21: 20.12665714 | CI21: 15.52116364 | CJ21: 15.32743636 | CM21: Nov'16 | CN21: -0.2782 | CO21: -0.30435 | CP21: =RTD("esrtd",,"GAS 14!-ICE","Delivery") -> Nov'16 | CQ21: =RTD("esrtd",,"GAS 14!-ICE","Symbol") -> GAS 6X-ICE | CR21: =RTD("esrtd",, SUBSTITUTE(CQ20,"-ICE","") & ":" & SUBSTITUTE(CQ21," ",""),"Market") -> -2.125 | CS21: -2.25 | CU21: 515.625 | CV21: =RTD("esrtd",,"GAS 14!-ICE","Last") ->  | CW21: =RTD("esrtd",,"GAS 14!-ICE","Change") ->  | CX21: =RTD("esrtd",,"GAS 14!-ICE","Time") -> 42278.3684 | CY21: =RTD("esrtd",,"GAS 14!-ICE","PrevPrice") -> 509.25 | CZ21: =RTD("esrtd",,"GAS 14!-ICE","NewSettlement") ->  | DB21: =RTD("esrtd",,"GAS 14!-ICE","Expiration") -> 2016-11-10 | DC21: 0.3181818182 | DD21: 510.7840909 | DG21: 517.0738636 | DH21: 13.18475137 | DI21: 12.9552593 | DL21: Nov'16 | DM21: 0.0450593001 | DN21: 0.05562886342
B22: =RTD("esrtd",,"CL 14!","Delivery") -> Dec'16 | C22: =RTD("esrtd",,"CL 14!","Symbol") -> CL Z6 | D22: =RTD("esrtd",,C21 & ":" & SUBSTITUTE(C22," ",""),"Market") -> -0.36 | E22: -0.37 | G22: 51.5 | H22: =RTD("esrtd",,"CL 14!","Last") -> 51.48 | I22: =RTD("esrtd",,"CL 14!","Change") -> 0.75 | J22: =RTD("esrtd",,"CL 14!","Time") -> 42278.36929 | K22: =RTD("esrtd",,"CL 14!","PrevPrice") -> 50.73 | L22: =RTD("esrtd",,"CL 14!","NewSettlement") ->  | N22: =RTD("esrtd",,"CL 14!","Expiration") -> 2016-11-21 | O22: 0.6666666667 | P22: 51.09333333 | S22: 51.855 | T22: =RTD("esrtd",,"BRN 14!-ICE","Delivery") -> Dec'16 | U22: =RTD("esrtd",,"BRN 14!-ICE","Symbol") -> BRN 6Z-ICE | V22: =RTD("esrtd",, SUBSTITUTE(U21,"-ICE","") & ":" & SUBSTITUTE(U22," ",""),"Market") -> -0.37 | W22: -0.38 | Y22: 55.85 | Z22: =RTD("esrtd",,"BRN 14!-ICE","Last") -> 55.85 | AA22: =RTD("esrtd",,"BRN 14!-ICE","Change") -> 0.62 | AB22: =RTD("esrtd",,"BRN 14!-ICE","Time") -> 42278.36932 | AC22: =RTD("esrtd",,"BRN 14!-ICE","PrevPrice") -> 55.23 | AD22: =RTD("esrtd",,"BRN 14!-ICE","NewSettlement") ->  | AF22: =RTD("esrtd",,"BRN 14!-ICE","Expiration") -> 2016-10-31 | AG22: =IF(BRNDateDiff(AF22,BRNNewExpDate)>0,NetDaysRatio(AF23,ICEHolidays,-1),IF(BRNDateDiff(AF22,BRNNewExpDate)=0,"",IF(BRNDateDiff(AF22,BRNNewExpDate)<0,NetDaysRatio(AF24,ICEHolidays,-1)))) -> 0.9047619048 | AH22: =IF(BRNDateDiff(AF22,BRNNewExpDate)>0,(AG22*AC23)+(1-AG22)*AC24,IF(BRNDateDiff(AF22,BRNNewExpDate)=0,((8/20)*AC23+(11/20)*AC24+1/20*AC25),IF(BRNDateDiff(AF22,BRNNewExpDate)<0,(AG22*AC24)+(1-AG22)*AC25))) -> 55.9852381 | AI22: =IF(OR(AD23="",AD24="",AD25=""),"",IF(BRNDateDiff(AF22,BRNNewExpDate)>0,(AG22*AD23)+(1-AG22)*AD24,IF(BRNDateDiff(AF22,BRNNewExpDate)=0,((8/20)*AD23+(11/20)*AD24+1/20*AD25),IF(BRNDateDiff(AF22,BRNNewExpDate)<0,(AG22*AD24)+(1-AG22)*AD25)))) ->  | AK22: =IF(BRNDateDiff(AF22,BRNNewExpDate)>0,IF(OR(Y23="",Y24=""),"",(AG22*Y23)+(1-AG22)*Y24),IF(BRNDateDiff(AF22,BRNNewExpDate)=0,IF(OR(Y23="",Y24="",Y25=""),"",(8/20*Y23)+11/20*Y24)+(1/20*Y25),IF(BRNDateDiff(AF22,BRNNewExpDate)<0,IF(OR(Y24="",Y25=""),"",(AG22*Y24)+(1-AG22)*Y25)))) -> 56.59380952 | AL22: Dec'16 | AM22: -4.35 | AN22: -4.738809524 | AO22: =RTD("esrtd",,"XRB 14!","Delivery") -> Dec'16 | AP22: =RTD("esrtd",,"XRB 14!","Symbol") -> XRB Z6 | AQ22: =RTD("esrtd",,AP21 & ":" & SUBSTITUTE(AP22," ",""),"Market") -> 0.01095 | AR22: 0.0096 | AT22: 1.4038 | AU22: =RTD("esrtd",,"XRB 14!","Last") -> 1.4053 | AV22: =RTD("esrtd",,"XRB 14!","Change") -> 0.0162 | AW22: =RTD("esrtd",,"XRB 14!","Time") -> 42278.36931 | AX22: =RTD("esrtd",,"XRB 14!","PrevPrice") -> 1.3891 | AY22: =RTD("esrtd",,"XRB 14!","NewSettlement") ->  | BA22: =RTD("esrtd",,"XRB 14!","Expiration") -> 2016-11-30 | BB22: 1.3935 | BE22: 1.40785 | BF22: 7.2747 | BG22: 7.433666667 | BJ22: 2.535890476 | BK22: 2.541761905 | BN22: =RTD("esrtd",,"HO 14!","Delivery") -> Dec'16 | BO22: =RTD("esrtd",,"HO 14!","Symbol") -> HO Z6 | BP22: =RTD("esrtd",,BO21 & ":" & SUBSTITUTE(BO22," ",""),"Market") -> -0.0152 | BQ22: =BW21-BW22 -> -0.0152 | BS22: 1.70815 | BT22: =RTD("esrtd",,"HO 14!","Last") -> 1.7133 | BU22: =RTD("esrtd",,"HO 14!","Change") -> 0.0244 | BV22: =RTD("esrtd",,"HO 14!","Time") -> 42278.36931 | BW22: =RTD("esrtd",,"HO 14!","PrevPrice") -> 1.6889 | BX22: =RTD("esrtd",,"HO 14!","NewSettlement") ->  | BZ22: =RTD("esrtd",,"HO 14!","Expiration") -> 2016-11-30 | CA22: 1.7039 | CD22: 1.72285 | CE22: 20.5047 | CF22: 20.47046667 | CI22: 15.76589048 | CJ22: 15.5785619 | CM22: Dec'16 | CN22: -0.30435 | CO22: -0.315 | CP22: =RTD("esrtd",,"GAS 15!-ICE","Delivery") -> Dec'16 | CQ22: =RTD("esrtd",,"GAS 15!-ICE","Symbol") -> GAS 6Z-ICE | CR22: =RTD("esrtd",, SUBSTITUTE(CQ21,"-ICE","") & ":" & SUBSTITUTE(CQ22," ",""),"Market") -> -2.125 | CS22: -2.25 | CU22: 517.75 | CV22: =RTD("esrtd",,"GAS 15!-ICE","Last") -> 517 | CW22: =RTD("esrtd",,"GAS 15!-ICE","Change") -> 5.5 | CX22: =RTD("esrtd",,"GAS 15!-ICE","Time") -> 42278.36931 | CY22: =RTD("esrtd",,"GAS 15!-ICE","PrevPrice") -> 511.5 | CZ22: =RTD("esrtd",,"GAS 15!-ICE","NewSettlement") ->  | DB22: =RTD("esrtd",,"GAS 15!-ICE","Expiration") -> 2016-12-12 | DC22: 0.3333333333 | DD22: 514.1666667 | DG22: 520.3333333 | DH22: 13.24959092 | DI22: 13.03042186 | DL22: Dec'16 | DM22: 0.05346799297 | DN22: 0.05991189411
B23: =RTD("esrtd",,"CL 15!","Delivery") -> Jan'17 | C23: =RTD("esrtd",,"CL 15!","Symbol") -> CL F7 | D23: =RTD("esrtd",,C22 & ":" & SUBSTITUTE(C23," ",""),"Market") -> -0.265 | E23: -0.27 | G23: 51.765 | H23: =RTD("esrtd",,"CL 15!","Last") ->  | I23: =RTD("esrtd",,"CL 15!","Change") ->  | J23: =RTD("esrtd",,"CL 15!","Time") -> 42278.36845 | K23: =RTD("esrtd",,"CL 15!","PrevPrice") -> 51 | L23: =RTD("esrtd",,"CL 15!","NewSettlement") ->  | N23: =RTD("esrtd",,"CL 15!","Expiration") -> 2016-12-20 | O23: 0.65 | P23: 51.378 | S23: 52.12775 | T23: =RTD("esrtd",,"BRN 15!-ICE","Delivery") -> Jan'17 | U23: =RTD("esrtd",,"BRN 15!-ICE","Symbol") -> BRN 7F-ICE | V23: =RTD("esrtd",, SUBSTITUTE(U22,"-ICE","") & ":" & SUBSTITUTE(U23," ",""),"Market") -> -0.355 | W23: -0.36 | Y23: 56.205 | Z23: =RTD("esrtd",,"BRN 15!-ICE","Last") ->  | AA23: =RTD("esrtd",,"BRN 15!-ICE","Change") ->  | AB23: =RTD("esrtd",,"BRN 15!-ICE","Time") -> 42278.36932 | AC23: =RTD("esrtd",,"BRN 15!-ICE","PrevPrice") -> 55.59 | AD23: =RTD("esrtd",,"BRN 15!-ICE","NewSettlement") ->  | AF23: =RTD("esrtd",,"BRN 15!-ICE","Expiration") -> 2016-11-30 | AG23: =IF(BRNDateDiff(AF23,BRNNewExpDate)>0,NetDaysRatio(AF24,ICEHolidays,-1),IF(BRNDateDiff(AF23,BRNNewExpDate)=0,"",IF(BRNDateDiff(AF23,BRNNewExpDate)<0,NetDaysRatio(AF25,ICEHolidays,-1)))) -> 0.9523809524 | AH23: =IF(BRNDateDiff(AF23,BRNNewExpDate)>0,(AG23*AC24)+(1-AG23)*AC25,IF(BRNDateDiff(AF23,BRNNewExpDate)=0,((8/20)*AC24+(11/20)*AC25+1/20*AC26),IF(BRNDateDiff(AF23,BRNNewExpDate)<0,(AG23*AC25)+(1-AG23)*AC26))) -> 56.33761905 | AI23: =IF(OR(AD24="",AD25="",AD26=""),"",IF(BRNDateDiff(AF23,BRNNewExpDate)>0,(AG23*AD24)+(1-AG23)*AD25,IF(BRNDateDiff(AF23,BRNNewExpDate)=0,((8/20)*AD24+(11/20)*AD25+1/20*AD26),IF(BRNDateDiff(AF23,BRNNewExpDate)<0,(AG23*AD25)+(1-AG23)*AD26)))) ->  | AK23: =IF(BRNDateDiff(AF23,BRNNewExpDate)>0,IF(OR(Y24="",Y25=""),"",(AG23*Y24)+(1-AG23)*Y25),IF(BRNDateDiff(AF23,BRNNewExpDate)=0,IF(OR(Y24="",Y25="",Y26=""),"",(8/20*Y24)+11/20*Y25)+(1/20*Y26),IF(BRNDateDiff(AF23,BRNNewExpDate)<0,IF(OR(Y25="",Y26=""),"",(AG23*Y25)+(1-AG23)*Y26)))) -> 56.93214286 | AL23: Jan'17 | AM23: -4.44 | AN23: -4.804392857 | AO23: =RTD("esrtd",,"XRB 15!","Delivery") -> Jan'17 | AP23: =RTD("esrtd",,"XRB 15!","Symbol") -> XRB F7 | AQ23: =RTD("esrtd",,AP22 & ":" & SUBSTITUTE(AP23," ",""),"Market") -> -0.00405 | AR23: -0.0044 | AT23: 1.40785 | AU23: =RTD("esrtd",,"XRB 15!","Last") ->  | AV23: =RTD("esrtd",,"XRB 15!","Change") ->  | AW23: =RTD("esrtd",,"XRB 15!","Time") -> 42278.36907 | AX23: =RTD("esrtd",,"XRB 15!","PrevPrice") -> 1.3935 | AY23: =RTD("esrtd",,"XRB 15!","NewSettlement") ->  | BA23: =RTD("esrtd",,"XRB 15!","Expiration") -> 2016-12-30 | BB23: 1.4075 | BE23: 1.421 | BF23: 7.55425 | BG23: 7.737 | BJ23: 2.749857143 | BK23: 2.777380952 | BN23: =RTD("esrtd",,"HO 15!","Delivery") -> Jan'17 | BO23: =RTD("esrtd",,"HO 15!","Symbol") -> HO F7 | BP23: =RTD("esrtd",,BO22 & ":" & SUBSTITUTE(BO23," ",""),"Market") -> -0.0147 | BQ23: -0.015 | BS23: 1.72285 | BT23: =RTD("esrtd",,"HO 15!","Last") ->  | BU23: =RTD("esrtd",,"HO 15!","Change") ->  | BV23: =RTD("esrtd",,"HO 15!","Time") -> 42278.36931 | BW23: =RTD("esrtd",,"HO 15!","PrevPrice") -> 1.7039 | BX23: =RTD("esrtd",,"HO 15!","NewSettlement") ->  | BZ23: =RTD("esrtd",,"HO 15!","Expiration") -> 2016-12-30 | CA23: 1.7109 | CD23: 1.7294 | CE23: 20.50705 | CF23: 20.4798 | CI23: 15.70265714 | CJ23: 15.52018095 | CM23: Jan'17 | CN23: -0.315 | CO23: -0.3084 | CP23: =RTD("esrtd",,"GAS 16!-ICE","Delivery") -> Jan'17 | CQ23: =RTD("esrtd",,"GAS 16!-ICE","Symbol") -> GAS 7F-ICE | CR23: =RTD("esrtd",, SUBSTITUTE(CQ22,"-ICE","") & ":" & SUBSTITUTE(CQ23," ",""),"Market") -> -3.875 | CS23: -4 | CU23: 521.625 | CV23: =RTD("esrtd",,"GAS 16!-ICE","Last") ->  | CW23: =RTD("esrtd",,"GAS 16!-ICE","Change") ->  | CX23: =RTD("esrtd",,"GAS 16!-ICE","Time") -> 42278.3684 | CY23: =RTD("esrtd",,"GAS 16!-ICE","PrevPrice") -> 515.5 | CZ23: =RTD("esrtd",,"GAS 16!-ICE","NewSettlement") ->  | DB23: =RTD("esrtd",,"GAS 16!-ICE","Expiration") -> 2017-01-12 | DC23: 0.3333333333 | DD23: 517.8333333 | DG23: 524.0416667 | DH23: 13.40902045 | DI23: 13.17021093 | DL23: Jan'17 | DM23: 0.05578384468 | DN23: 0.05461039736
B24: =RTD("esrtd",,"CL 16!","Delivery") -> Feb'17 | C24: =RTD("esrtd",,"CL 16!","Symbol") -> CL G7 | D24: =RTD("esrtd",,C23 & ":" & SUBSTITUTE(C24," ",""),"Market") -> -0.27 | E24: -0.28 | G24: 52.035 | H24: =RTD("esrtd",,"CL 16!","Last") ->  | I24: =RTD("esrtd",,"CL 16!","Change") ->  | J24: =RTD("esrtd",,"CL 16!","Time") -> 42278.36845 | K24: =RTD("esrtd",,"CL 16!","PrevPrice") -> 51.28 | L24: =RTD("esrtd",,"CL 16!","NewSettlement") ->  | N24: =RTD("esrtd",,"CL 16!","Expiration") -> 2017-01-20 | O24: 0.7368421053 | P24: 51.63105263 | S24: 52.36578947 | T24: =RTD("esrtd",,"BRN 16!-ICE","Delivery") -> Feb'17 | U24: =RTD("esrtd",,"BRN 16!-ICE","Symbol") -> BRN 7G-ICE | V24: =RTD("esrtd",, SUBSTITUTE(U23,"-ICE","") & ":" & SUBSTITUTE(U24," ",""),"Market") -> -0.355 | W24: -0.36 | Y24: 56.56 | Z24: =RTD("esrtd",,"BRN 16!-ICE","Last") ->  | AA24: =RTD("esrtd",,"BRN 16!-ICE","Change") ->  | AB24: =RTD("esrtd",,"BRN 16!-ICE","Time") -> 42278.36932 | AC24: =RTD("esrtd",,"BRN 16!-ICE","PrevPrice") -> 55.95 | AD24: =RTD("esrtd",,"BRN 16!-ICE","NewSettlement") ->  | AF24: =RTD("esrtd",,"BRN 16!-ICE","Expiration") -> 2016-12-29 | AG24: =IF(BRNDateDiff(AF24,BRNNewExpDate)>0,NetDaysRatio(AF25,ICEHolidays,-1),IF(BRNDateDiff(AF24,BRNNewExpDate)=0,"",IF(BRNDateDiff(AF24,BRNNewExpDate)<0,NetDaysRatio(AF26,ICEHolidays,-1)))) -> 0.95 | AH24: =IF(BRNDateDiff(AF24,BRNNewExpDate)>0,(AG24*AC25)+(1-AG24)*AC26,IF(BRNDateDiff(AF24,BRNNewExpDate)=0,((8/20)*AC25+(11/20)*AC26+1/20*AC27),IF(BRNDateDiff(AF24,BRNNewExpDate)<0,(AG24*AC26)+(1-AG24)*AC27))) -> 56.706 | AI24: =IF(OR(AD25="",AD26="",AD27=""),"",IF(BRNDateDiff(AF24,BRNNewExpDate)>0,(AG24*AD25)+(1-AG24)*AD26,IF(BRNDateDiff(AF24,BRNNewExpDate)=0,((8/20)*AD25+(11/20)*AD26+1/20*AD27),IF(BRNDateDiff(AF24,BRNNewExpDate)<0,(AG24*AD26)+(1-AG24)*AD27)))) ->  | AK24: =IF(BRNDateDiff(AF24,BRNNewExpDate)>0,IF(OR(Y25="",Y26=""),"",(AG24*Y25)+(1-AG24)*Y26),IF(BRNDateDiff(AF24,BRNNewExpDate)=0,IF(OR(Y25="",Y26="",Y27=""),"",(8/20*Y25)+11/20*Y26)+(1/20*Y27),IF(BRNDateDiff(AF24,BRNNewExpDate)<0,IF(OR(Y26="",Y27=""),"",(AG24*Y26)+(1-AG24)*Y27)))) -> 57.2905 | AL24: Feb'17 | AM24: -4.525 | AN24: -4.924710526 | AO24: =RTD("esrtd",,"XRB 16!","Delivery") -> Feb'17 | AP24: =RTD("esrtd",,"XRB 16!","Symbol") -> XRB G7 | AQ24: =RTD("esrtd",,AP23 & ":" & SUBSTITUTE(AP24," ",""),"Market") -> -0.01315 | AR24: -0.014 | AT24: 1.421 | AU24: =RTD("esrtd",,"XRB 16!","Last") ->  | AV24: =RTD("esrtd",,"XRB 16!","Change") ->  | AW24: =RTD("esrtd",,"XRB 16!","Time") -> 42278.36929 | AX24: =RTD("esrtd",,"XRB 16!","PrevPrice") -> 1.4075 | AY24: =RTD("esrtd",,"XRB 16!","NewSettlement") ->  | BA24: =RTD("esrtd",,"XRB 16!","Expiration") -> 2017-01-31 | BB24: 1.43 | BE24: 1.44235 | BF24: 8.212910526 | BG24: 8.428947368 | BJ24: 3.2882 | BK24: 3.354 | BN24: =RTD("esrtd",,"HO 16!","Delivery") -> Feb'17 | BO24: =RTD("esrtd",,"HO 16!","Symbol") -> HO G7 | BP24: =RTD("esrtd",,BO23 & ":" & SUBSTITUTE(BO24," ",""),"Market") -> -0.00655 | BQ24: -0.007 | BS24: 1.7294 | BT24: =RTD("esrtd",,"HO 16!","Last") ->  | BU24: =RTD("esrtd",,"HO 16!","Change") ->  | BV24: =RTD("esrtd",,"HO 16!","Time") -> 42278.36931 | BW24: =RTD("esrtd",,"HO 16!","PrevPrice") -> 1.7109 | BX24: =RTD("esrtd",,"HO 16!","NewSettlement") ->  | BZ24: =RTD("esrtd",,"HO 16!","Expiration") -> 2017-01-31 | CA24: 1.7104 | CD24: 1.7288 | CE24: 20.24381053 | CF24: 20.20574737 | CI24: 15.3191 | CJ24: 15.1308 | CM24: Feb'17 | CN24: -0.3084 | CO24: -0.28645 | CP24: =RTD("esrtd",,"GAS 17!-ICE","Delivery") -> Feb'17 | CQ24: =RTD("esrtd",,"GAS 17!-ICE","Symbol") -> GAS 7G-ICE | CR24: =RTD("esrtd",, SUBSTITUTE(CQ23,"-ICE","") & ":" & SUBSTITUTE(CQ24," ",""),"Market") -> -3.625 | CS24: -3.5 | CU24: 525.25 | CV24: =RTD("esrtd",,"GAS 17!-ICE","Last") ->  | CW24: =RTD("esrtd",,"GAS 17!-ICE","Change") ->  | CX24: =RTD("esrtd",,"GAS 17!-ICE","Time") -> 42278.3684 | CY24: =RTD("esrtd",,"GAS 17!-ICE","PrevPrice") -> 519 | CZ24: =RTD("esrtd",,"GAS 17!-ICE","NewSettlement") ->  | DB24: =RTD("esrtd",,"GAS 17!-ICE","Expiration") -> 2017-02-10 | DC24: 0.35 | DD24: 520.7875 | DG24: 526.79375 | DH24: 13.42007047 | DI24: 13.19836242 | DL24: Feb'17 | DM24: 0.0507486737 | DN24: 0.04521498881
B25: =RTD("esrtd",,"CL 17!","Delivery") -> Mar'17 | C25: =RTD("esrtd",,"CL 17!","Symbol") -> CL H7 | D25: =RTD("esrtd",,C24 & ":" & SUBSTITUTE(C25," ",""),"Market") -> -0.265 | E25: -0.28 | G25: 52.3 | H25: =RTD("esrtd",,"CL 17!","Last") ->  | I25: =RTD("esrtd",,"CL 17!","Change") ->  | J25: =RTD("esrtd",,"CL 17!","Time") -> 42278.36845 | K25: =RTD("esrtd",,"CL 17!","PrevPrice") -> 51.56 | L25: =RTD("esrtd",,"CL 17!","NewSettlement") ->  | N25: =RTD("esrtd",,"CL 17!","Expiration") -> 2017-02-21 | O25: 0.652173913 | P25: 51.91 | S25: 52.62652174 | T25: =RTD("esrtd",,"BRN 17!-ICE","Delivery") -> Mar'17 | U25: =RTD("esrtd",,"BRN 17!-ICE","Symbol") -> BRN 7H-ICE | V25: =RTD("esrtd",, SUBSTITUTE(U24,"-ICE","") & ":" & SUBSTITUTE(U25," ",""),"Market") -> -0.355 | W25: -0.37 | Y25: 56.915 | Z25: =RTD("esrtd",,"BRN 17!-ICE","Last") ->  | AA25: =RTD("esrtd",,"BRN 17!-ICE","Change") ->  | AB25: =RTD("esrtd",,"BRN 17!-ICE","Time") -> 42278.36932 | AC25: =RTD("esrtd",,"BRN 17!-ICE","PrevPrice") -> 56.32 | AD25: =RTD("esrtd",,"BRN 17!-ICE","NewSettlement") ->  | AF25: =RTD("esrtd",,"BRN 17!-ICE","Expiration") -> 2017-01-31 | AG25: =IF(BRNDateDiff(AF25,BRNNewExpDate)>0,NetDaysRatio(AF26,ICEHolidays,-1),IF(BRNDateDiff(AF25,BRNNewExpDate)=0,"",IF(BRNDateDiff(AF25,BRNNewExpDate)<0,NetDaysRatio(AF27,ICEHolidays,-1)))) -> 0.9565217391 | AH25: =IF(BRNDateDiff(AF25,BRNNewExpDate)>0,(AG25*AC26)+(1-AG25)*AC27,IF(BRNDateDiff(AF25,BRNNewExpDate)=0,((8/20)*AC26+(11/20)*AC27+1/20*AC28),IF(BRNDateDiff(AF25,BRNNewExpDate)<0,(AG25*AC27)+(1-AG25)*AC28))) -> 57.02217391 | AI25: =IF(OR(AD26="",AD27="",AD28=""),"",IF(BRNDateDiff(AF25,BRNNewExpDate)>0,(AG25*AD26)+(1-AG25)*AD27,IF(BRNDateDiff(AF25,BRNNewExpDate)=0,((8/20)*AD26+(11/20)*AD27+1/20*AD28),IF(BRNDateDiff(AF25,BRNNewExpDate)<0,(AG25*AD27)+(1-AG25)*AD28)))) ->  | AK25: =IF(BRNDateDiff(AF25,BRNNewExpDate)>0,IF(OR(Y26="",Y27=""),"",(AG25*Y26)+(1-AG25)*Y27),IF(BRNDateDiff(AF25,BRNNewExpDate)=0,IF(OR(Y26="",Y27="",Y28=""),"",(8/20*Y26)+11/20*Y27)+(1/20*Y28),IF(BRNDateDiff(AF25,BRNNewExpDate)<0,IF(OR(Y27="",Y28=""),"",(AG25*Y27)+(1-AG25)*Y28)))) -> 57.59673913 | AL25: Mar'17 | AM25: -4.615 | AN25: -4.970217391 | AO25: =RTD("esrtd",,"XRB 17!","Delivery") -> Mar'17 | AP25: =RTD("esrtd",,"XRB 17!","Symbol") -> XRB H7 | AQ25: =RTD("esrtd",,AP24 & ":" & SUBSTITUTE(AP25," ",""),"Market") -> -0.02135 | AR25: -0.0225 | AT25: 1.44235 | AU25: =RTD("esrtd",,"XRB 17!","Last") ->  | AV25: =RTD("esrtd",,"XRB 17!","Change") ->  | AW25: =RTD("esrtd",,"XRB 17!","Time") -> 42278.3684 | AX25: =RTD("esrtd",,"XRB 17!","PrevPrice") -> 1.43 | AY25: =RTD("esrtd",,"XRB 17!","NewSettlement") ->  | BA25: =RTD("esrtd",,"XRB 17!","Expiration") -> 2017-02-28 | BB25: 1.6561 | BE25: 1.6653 | BF25: 17.31607826 | BG25: 17.6462 | BJ25: 12.34586087 | BK25: 12.53402609 | BN25: =RTD("esrtd",,"HO 17!","Delivery") -> Mar'17 | BO25: =RTD("esrtd",,"HO 17!","Symbol") -> HO H7 | BP25: =RTD("esrtd",,BO24 & ":" & SUBSTITUTE(BO25," ",""),"Market") -> 0.0006 | BQ25: 0.0005 | BS25: 1.7288 | BT25: =RTD("esrtd",,"HO 17!","Last") ->  | BU25: =RTD("esrtd",,"HO 17!","Change") ->  | BV25: =RTD("esrtd",,"HO 17!","Time") -> 42278.36904 | BW25: =RTD("esrtd",,"HO 17!","PrevPrice") -> 1.7104 | BX25: =RTD("esrtd",,"HO 17!","NewSettlement") ->  | BZ25: =RTD("esrtd",,"HO 17!","Expiration") -> 2017-02-28 | CA25: 1.7034 | CD25: 1.7208 | CE25: 19.64707826 | CF25: 19.6328 | CI25: 14.67686087 | CJ25: 14.52062609 | CM25: Mar'17 | CN25: -0.28645 | CO25: -0.0555 | CP25: =RTD("esrtd",,"GAS 18!-ICE","Delivery") -> Mar'17 | CQ25: =RTD("esrtd",,"GAS 18!-ICE","Symbol") -> GAS 7H-ICE | CR25: =RTD("esrtd",, SUBSTITUTE(CQ24,"-ICE","") & ":" & SUBSTITUTE(CQ25," ",""),"Market") -> -2.375 | CS25: -2.75 | CU25: 527.625 | CV25: =RTD("esrtd",,"GAS 18!-ICE","Last") -> 527 | CW25: =RTD("esrtd",,"GAS 18!-ICE","Change") -> 5.25 | CX25: =RTD("esrtd",,"GAS 18!-ICE","Time") -> 42278.35954 | CY25: =RTD("esrtd",,"GAS 18!-ICE","PrevPrice") -> 521.75 | CZ25: =RTD("esrtd",,"GAS 18!-ICE","NewSettlement") ->  | DB25: =RTD("esrtd",,"GAS 18!-ICE","Expiration") -> 2017-03-09T23:00:00 | DC25: 0.2608695652 | DD25: 523.4130435 | DG25: 529.1032609 | DH25: 13.4238328 | DI25: 13.23461045 | DL25: Mar'17 | DM25: 0.04255838926 | DN25: 0.0298340017
B26: =RTD("esrtd",,"CL 18!","Delivery") -> Apr'17 | C26: =RTD("esrtd",,"CL 18!","Symbol") -> CL J7 | D26: =RTD("esrtd",,C25 & ":" & SUBSTITUTE(C26," ",""),"Market") -> -0.25 | E26: -0.27 | G26: 52.55 | H26: =RTD("esrtd",,"CL 18!","Last") ->  | I26: =RTD("esrtd",,"CL 18!","Change") ->  | J26: =RTD("esrtd",,"CL 18!","Time") -> 42278.36845 | K26: =RTD("esrtd",,"CL 18!","PrevPrice") -> 51.83 | L26: =RTD("esrtd",,"CL 18!","NewSettlement") ->  | N26: =RTD("esrtd",,"CL 18!","Expiration") -> 2017-03-21 | O26: 0.6842105263 | P26: 52.14210526 | S26: 52.84736842 | T26: =RTD("esrtd",,"BRN 18!-ICE","Delivery") -> Apr'17 | U26: =RTD("esrtd",,"BRN 18!-ICE","Symbol") -> BRN 7J-ICE | V26: =RTD("esrtd",, SUBSTITUTE(U25,"-ICE","") & ":" & SUBSTITUTE(U26," ",""),"Market") -> -0.36 | W26: -0.37 | Y26: 57.275 | Z26: =RTD("esrtd",,"BRN 18!-ICE","Last") ->  | AA26: =RTD("esrtd",,"BRN 18!-ICE","Change") ->  | AB26: =RTD("esrtd",,"BRN 18!-ICE","Time") -> 42278.36932 | AC26: =RTD("esrtd",,"BRN 18!-ICE","PrevPrice") -> 56.69 | AD26: =RTD("esrtd",,"BRN 18!-ICE","NewSettlement") ->  | AF26: =RTD("esrtd",,"BRN 18!-ICE","Expiration") -> 2017-02-28 | AG26: =IF(BRNDateDiff(AF26,BRNNewExpDate)>0,NetDaysRatio(AF27,ICEHolidays,-1),IF(BRNDateDiff(AF26,BRNNewExpDate)=0,"",IF(BRNDateDiff(AF26,BRNNewExpDate)<0,NetDaysRatio(AF28,ICEHolidays,-1)))) -> 0.9473684211 | AH26: =IF(BRNDateDiff(AF26,BRNNewExpDate)>0,(AG26*AC27)+(1-AG26)*AC28,IF(BRNDateDiff(AF26,BRNNewExpDate)=0,((8/20)*AC27+(11/20)*AC28+1/20*AC29),IF(BRNDateDiff(AF26,BRNNewExpDate)<0,(AG26*AC28)+(1-AG26)*AC29))) -> 57.30315789 | AI26: =IF(OR(AD27="",AD28="",AD29=""),"",IF(BRNDateDiff(AF26,BRNNewExpDate)>0,(AG26*AD27)+(1-AG26)*AD28,IF(BRNDateDiff(AF26,BRNNewExpDate)=0,((8/20)*AD27+(11/20)*AD28+1/20*AD29),IF(BRNDateDiff(AF26,BRNNewExpDate)<0,(AG26*AD28)+(1-AG26)*AD29)))) ->  | AK26: =IF(BRNDateDiff(AF26,BRNNewExpDate)>0,IF(OR(Y27="",Y28=""),"",(AG26*Y27)+(1-AG26)*Y28),IF(BRNDateDiff(AF26,BRNNewExpDate)=0,IF(OR(Y27="",Y28="",Y29=""),"",(8/20*Y27)+11/20*Y28)+(1/20*Y29),IF(BRNDateDiff(AF26,BRNNewExpDate)<0,IF(OR(Y28="",Y29=""),"",(AG26*Y28)+(1-AG26)*Y29)))) -> 57.86789474 | AL26: Apr'17 | AM26: -4.725 | AN26: -5.020526316 | AO26: =RTD("esrtd",,"XRB 18!","Delivery") -> Apr'17 | AP26: =RTD("esrtd",,"XRB 18!","Symbol") -> XRB J7 | AQ26: =RTD("esrtd",,AP25 & ":" & SUBSTITUTE(AP26," ",""),"Market") -> -0.22295 | AR26: -0.2261 | AT26: 1.6653 | AU26: =RTD("esrtd",,"XRB 18!","Last") ->  | AV26: =RTD("esrtd",,"XRB 18!","Change") ->  | AW26: =RTD("esrtd",,"XRB 18!","Time") -> 42278.36929 | AX26: =RTD("esrtd",,"XRB 18!","PrevPrice") -> 1.6561 | AY26: =RTD("esrtd",,"XRB 18!","NewSettlement") ->  | BA26: =RTD("esrtd",,"XRB 18!","Expiration") -> 2017-03-31 | BB26: 1.6666 | BE26: 1.67525 | BF26: 17.51313158 | BG26: 17.85509474 | BJ26: 12.49260526 | BK26: 12.69404211 | BN26: =RTD("esrtd",,"HO 18!","Delivery") -> Apr'17 | BO26: =RTD("esrtd",,"HO 18!","Symbol") -> HO J7 | BP26: =RTD("esrtd",,BO25 & ":" & SUBSTITUTE(BO26," ",""),"Market") -> 0.008 | BQ26: 0.007 | BS26: 1.7208 | BT26: =RTD("esrtd",,"HO 18!","Last") ->  | BU26: =RTD("esrtd",,"HO 18!","Change") ->  | BV26: =RTD("esrtd",,"HO 18!","Time") -> 42278.36845 | BW26: =RTD("esrtd",,"HO 18!","PrevPrice") -> 1.7034 | BX26: =RTD("esrtd",,"HO 18!","NewSettlement") ->  | BZ26: =RTD("esrtd",,"HO 18!","Expiration") -> 2017-03-31 | CA26: 1.7064 | CD26: 1.72335 | CE26: 19.53333158 | CF26: 19.52669474 | CI26: 14.51280526 | CJ26: 14.36564211 | CM26: Apr'17 | CN26: -0.0555 | CO26: -0.0481 | CP26: =RTD("esrtd",,"GAS 19!-ICE","Delivery") -> Apr'17 | CQ26: =RTD("esrtd",,"GAS 19!-ICE","Symbol") -> GAS 7J-ICE | CR26: =RTD("esrtd",, SUBSTITUTE(CQ25,"-ICE","") & ":" & SUBSTITUTE(CQ26," ",""),"Market") -> -2 | CS26: -2.25 | CU26: 529.625 | CV26: =RTD("esrtd",,"GAS 19!-ICE","Last") ->  | CW26: =RTD("esrtd",,"GAS 19!-ICE","Change") ->  | CX26: =RTD("esrtd",,"GAS 19!-ICE","Time") -> 42278.3684 | CY26: =RTD("esrtd",,"GAS 19!-ICE","PrevPrice") -> 524 | CZ26: =RTD("esrtd",,"GAS 19!-ICE","NewSettlement") ->  | DB26: =RTD("esrtd",,"GAS 19!-ICE","Expiration") -> 2017-04-12 | DC26: 0.3684210526 | DD26: =IF(OR(CY26="",CY27=""),"",IF(DC26<1,(DC26*CY26)+(1-DC26)*CY27,"")) -> 525.4210526 | DE26: =IF(OR(CZ26="",CZ27=""),"",IF(DC26<1,(DC26*CZ26)+(1-DC26)*CZ27,"")) ->  | DF26: =IF(AND(DD26<>"",DE26<>""),DE26-DD26,"") ->  | DG26: =IF(CU27="","",IF(DC26<1,(DC26*CU26)+(1-DC26)*CU27,"")) -> 530.9671053 | DH26: 13.40285765 | DI26: 13.22315789 | DK26: =IF(AND(DI26<>"",DJ26<>""),DJ26-DI26,"") ->  | DL26: Apr'17 | DM26: 0.02816657079 | DN26: 0.02642732418
B27: =RTD("esrtd",,"CL 19!","Delivery") -> May'17 | C27: =RTD("esrtd",,"CL 19!","Symbol") -> CL K7 | D27: =RTD("esrtd",,C26 & ":" & SUBSTITUTE(C27," ",""),"Market") -> -0.22 | E27: -0.23 | G27: 52.77 | H27: =RTD("esrtd",,"CL 19!","Last") ->  | I27: =RTD("esrtd",,"CL 19!","Change") ->  | J27: =RTD("esrtd",,"CL 19!","Time") -> 42278.36845 | K27: =RTD("esrtd",,"CL 19!","PrevPrice") -> 52.06 | L27: =RTD("esrtd",,"CL 19!","NewSettlement") ->  | N27: =RTD("esrtd",,"CL 19!","Expiration") -> 2017-04-20 | O27: 0.7272727273 | P27: 52.37727273 | S27: 53.06818182 | T27: =RTD("esrtd",,"BRN 19!-ICE","Delivery") -> May'17 | U27: =RTD("esrtd",,"BRN 19!-ICE","Symbol") -> BRN 7K-ICE | V27: =RTD("esrtd",, SUBSTITUTE(U26,"-ICE","") & ":" & SUBSTITUTE(U27," ",""),"Market") -> -0.31 | W27: -0.32 | Y27: 57.585 | Z27: =RTD("esrtd",,"BRN 19!-ICE","Last") ->  | AA27: =RTD("esrtd",,"BRN 19!-ICE","Change") ->  | AB27: =RTD("esrtd",,"BRN 19!-ICE","Time") -> 42278.36931 | AC27: =RTD("esrtd",,"BRN 19!-ICE","PrevPrice") -> 57.01 | AD27: =RTD("esrtd",,"BRN 19!-ICE","NewSettlement") ->  | AF27: =RTD("esrtd",,"BRN 19!-ICE","Expiration") -> 2017-03-31 | AG27: =IF(BRNDateDiff(AF27,BRNNewExpDate)>0,NetDaysRatio(AF28,ICEHolidays,-1),IF(BRNDateDiff(AF27,BRNNewExpDate)=0,"",IF(BRNDateDiff(AF27,BRNNewExpDate)<0,NetDaysRatio(AF29,ICEHolidays,-1)))) -> 0.9565217391 | AH27: =IF(BRNDateDiff(AF27,BRNNewExpDate)>0,(AG27*AC28)+(1-AG27)*AC29,IF(BRNDateDiff(AF27,BRNNewExpDate)=0,((8/20)*AC28+(11/20)*AC29+1/20*AC30),IF(BRNDateDiff(AF27,BRNNewExpDate)<0,(AG27*AC29)+(1-AG27)*AC30))) -> 57.55086957 | AI27: =IF(OR(AD28="",AD29="",AD30=""),"",IF(BRNDateDiff(AF27,BRNNewExpDate)>0,(AG27*AD28)+(1-AG27)*AD29,IF(BRNDateDiff(AF27,BRNNewExpDate)=0,((8/20)*AD28+(11/20)*AD29+1/20*AD30),IF(BRNDateDiff(AF27,BRNNewExpDate)<0,(AG27*AD29)+(1-AG27)*AD30)))) ->  | AK27: =IF(BRNDateDiff(AF27,BRNNewExpDate)>0,IF(OR(Y28="",Y29=""),"",(AG27*Y28)+(1-AG27)*Y29),IF(BRNDateDiff(AF27,BRNNewExpDate)=0,IF(OR(Y28="",Y29="",Y30=""),"",(8/20*Y28)+11/20*Y29)+(1/20*Y30),IF(BRNDateDiff(AF27,BRNNewExpDate)<0,IF(OR(Y29="",Y30=""),"",(AG27*Y29)+(1-AG27)*Y30)))) -> 58.11021739 | AL27: May'17 | AM27: -4.815 | AN27: -5.042035573 | AO27: =RTD("esrtd",,"XRB 19!","Delivery") -> May'17 | AP27: =RTD("esrtd",,"XRB 19!","Symbol") -> XRB K7 | AQ27: =RTD("esrtd",,AP26 & ":" & SUBSTITUTE(AP27," ",""),"Market") -> -0.00995 | AR27: -0.0105 | AT27: 1.67525 | AU27: =RTD("esrtd",,"XRB 19!","Last") ->  | AV27: =RTD("esrtd",,"XRB 19!","Change") ->  | AW27: =RTD("esrtd",,"XRB 19!","Time") -> 42278.36919 | AX27: =RTD("esrtd",,"XRB 19!","PrevPrice") -> 1.6666 | AY27: =RTD("esrtd",,"XRB 19!","NewSettlement") ->  | BA27: =RTD("esrtd",,"XRB 19!","Expiration") -> 2017-04-28 | BB27: 1.6671 | BE27: 1.676 | BF27: 17.32381818 | BG27: 17.64092727 | BJ27: 12.28178261 | BK27: 12.46733043 | BN27: =RTD("esrtd",,"HO 19!","Delivery") -> May'17 | BO27: =RTD("esrtd",,"HO 19!","Symbol") -> HO K7 | BP27: =RTD("esrtd",,BO26 & ":" & SUBSTITUTE(BO27," ",""),"Market") -> -0.00255 | BQ27: -0.003 | BS27: 1.72335 | BT27: =RTD("esrtd",,"HO 19!","Last") ->  | BU27: =RTD("esrtd",,"HO 19!","Change") ->  | BV27: =RTD("esrtd",,"HO 19!","Time") -> 42278.36845 | BW27: =RTD("esrtd",,"HO 19!","PrevPrice") -> 1.7064 | BX27: =RTD("esrtd",,"HO 19!","NewSettlement") ->  | BZ27: =RTD("esrtd",,"HO 19!","Expiration") -> 2017-04-28 | CA27: 1.7124 | CD27: 1.7291 | CE27: 19.55401818 | CF27: 19.54352727 | CI27: 14.51198261 | CJ27: 14.36993043 | CM27: May'17 | CN27: -0.0481 | CO27: -0.0531 | CP27: =RTD("esrtd",,"GAS 20!-ICE","Delivery") -> May'17 | CQ27: =RTD("esrtd",,"GAS 20!-ICE","Symbol") -> GAS 7K-ICE | CR27: =RTD("esrtd",, SUBSTITUTE(CQ26,"-ICE","") & ":" & SUBSTITUTE(CQ27," ",""),"Market") -> -2.125 | CS27: -2.25 | CU27: 531.75 | CV27: =RTD("esrtd",,"GAS 20!-ICE","Last") ->  | CW27: =RTD("esrtd",,"GAS 20!-ICE","Change") ->  | CX27: =RTD("esrtd",,"GAS 20!-ICE","Time") -> 42278.36845 | CY27: =RTD("esrtd",,"GAS 20!-ICE","PrevPrice") -> 526.25 | CZ27: =RTD("esrtd",,"GAS 20!-ICE","NewSettlement") ->  | DB27: =RTD("esrtd",,"GAS 20!-ICE","Expiration") -> 2017-05-11 | DC27: 0.347826087 | DD27: 527.5543478 | DG27: 532.9728261 | DH27: 13.42975926 | DI27: 13.26179457 | DL27: May'17 | DM27: 0.02392526366 | DN27: 0.02576722248
B28: =RTD("esrtd",,"CL 20!","Delivery") -> Jun'17 | C28: =RTD("esrtd",,"CL 20!","Symbol") -> CL M7 | D28: =RTD("esrtd",,C27 & ":" & SUBSTITUTE(C28," ",""),"Market") -> -0.245 | E28: -0.26 | G28: 53.015 | H28: =RTD("esrtd",,"CL 20!","Last") -> 53.11 | I28: =RTD("esrtd",,"CL 20!","Change") -> 0.79 | J28: =RTD("esrtd",,"CL 20!","Time") -> 42278.36927 | K28: =RTD("esrtd",,"CL 20!","PrevPrice") -> 52.32 | L28: =RTD("esrtd",,"CL 20!","NewSettlement") ->  | N28: =RTD("esrtd",,"CL 20!","Expiration") -> 2017-05-22 | O28: 0.6363636364 | P28: 52.61363636 | S28: 53.28636364 | T28: =RTD("esrtd",,"BRN 20!-ICE","Delivery") -> Jun'17 | U28: =RTD("esrtd",,"BRN 20!-ICE","Symbol") -> BRN 7M-ICE | V28: =RTD("esrtd",, SUBSTITUTE(U27,"-ICE","") & ":" & SUBSTITUTE(U28," ",""),"Market") -> -0.27 | W28: -0.28 | Y28: 57.855 | Z28: =RTD("esrtd",,"BRN 20!-ICE","Last") -> 58.06 | AA28: =RTD("esrtd",,"BRN 20!-ICE","Change") -> 0.77 | AB28: =RTD("esrtd",,"BRN 20!-ICE","Time") -> 42278.36932 | AC28: =RTD("esrtd",,"BRN 20!-ICE","PrevPrice") -> 57.29 | AD28: =RTD("esrtd",,"BRN 20!-ICE","NewSettlement") ->  | AF28: =RTD("esrtd",,"BRN 20!-ICE","Expiration") -> 2017-04-28 | AG28: =IF(BRNDateDiff(AF28,BRNNewExpDate)>0,NetDaysRatio(AF29,ICEHolidays,-1),IF(BRNDateDiff(AF28,BRNNewExpDate)=0,"",IF(BRNDateDiff(AF28,BRNNewExpDate)<0,NetDaysRatio(AF30,ICEHolidays,-1)))) -> 0.9545454545 | AH28: =IF(BRNDateDiff(AF28,BRNNewExpDate)>0,(AG28*AC29)+(1-AG28)*AC30,IF(BRNDateDiff(AF28,BRNNewExpDate)=0,((8/20)*AC29+(11/20)*AC30+1/20*AC31),IF(BRNDateDiff(AF28,BRNNewExpDate)<0,(AG28*AC30)+(1-AG28)*AC31))) -> 57.80045455 | AI28: =IF(OR(AD29="",AD30="",AD31=""),"",IF(BRNDateDiff(AF28,BRNNewExpDate)>0,(AG28*AD29)+(1-AG28)*AD30,IF(BRNDateDiff(AF28,BRNNewExpDate)=0,((8/20)*AD29+(11/20)*AD30+1/20*AD31),IF(BRNDateDiff(AF28,BRNNewExpDate)<0,(AG28*AD30)+(1-AG28)*AD31)))) ->  | AK28: =IF(BRNDateDiff(AF28,BRNNewExpDate)>0,IF(OR(Y29="",Y30=""),"",(AG28*Y29)+(1-AG28)*Y30),IF(BRNDateDiff(AF28,BRNNewExpDate)=0,IF(OR(Y29="",Y30="",Y31=""),"",(8/20*Y29)+11/20*Y30)+(1/20*Y31),IF(BRNDateDiff(AF28,BRNNewExpDate)<0,IF(OR(Y30="",Y31=""),"",(AG28*Y30)+(1-AG28)*Y31)))) -> 58.34454545 | AL28: Jun'17 | AM28: -4.84 | AN28: -5.058181818 | AO28: =RTD("esrtd",,"XRB 20!","Delivery") -> Jun'17 | AP28: =RTD("esrtd",,"XRB 20!","Symbol") -> XRB M7 | AQ28: =RTD("esrtd",,AP27 & ":" & SUBSTITUTE(AP28," ",""),"Market") -> -0.00075 | AR28: -0.0005 | AT28: 1.676 | AU28: =RTD("esrtd",,"XRB 20!","Last") ->  | AV28: =RTD("esrtd",,"XRB 20!","Change") ->  | AW28: =RTD("esrtd",,"XRB 20!","Time") -> 42278.36931 | AX28: =RTD("esrtd",,"XRB 20!","PrevPrice") -> 1.6671 | AY28: =RTD("esrtd",,"XRB 20!","NewSettlement") ->  | BA28: =RTD("esrtd",,"XRB 20!","Expiration") -> 2017-05-31 | BB28: 1.6566 | BE28: 1.66535 | BF28: 16.65833636 | BG28: 16.96356364 | BJ28: 11.60015455 | BK28: 11.77674545 | BN28: =RTD("esrtd",,"HO 20!","Delivery") -> Jun'17 | BO28: =RTD("esrtd",,"HO 20!","Symbol") -> HO M7 | BP28: =RTD("esrtd",,BO27 & ":" & SUBSTITUTE(BO28," ",""),"Market") -> -0.00575 | BQ28: -0.006 | BS28: 1.7291 | BT28: =RTD("esrtd",,"HO 20!","Last") ->  | BU28: =RTD("esrtd",,"HO 20!","Change") ->  | BV28: =RTD("esrtd",,"HO 20!","Time") -> 42278.36931 | BW28: =RTD("esrtd",,"HO 20!","PrevPrice") -> 1.7124 | BX28: =RTD("esrtd",,"HO 20!","NewSettlement") ->  | BZ28: =RTD("esrtd",,"HO 20!","Expiration") -> 2017-05-31 | CA28: 1.7244 | CD28: 1.74115 | CE28: 19.84193636 | CF28: 19.81116364 | CI28: 14.78375455 | CJ28: 14.62434545 | CM28: Jun'17 | CN28: -0.0531 | CO28: -0.0758 | CP28: =RTD("esrtd",,"GAS 21!-ICE","Delivery") -> Jun'17 | CQ28: =RTD("esrtd",,"GAS 21!-ICE","Symbol") -> GAS 7M-ICE | CR28: =RTD("esrtd",, SUBSTITUTE(CQ27,"-ICE","") & ":" & SUBSTITUTE(CQ28," ",""),"Market") -> -1.875 | CS28: -2 | CU28: 533.625 | CV28: =RTD("esrtd",,"GAS 21!-ICE","Last") -> 533.25 | CW28: =RTD("esrtd",,"GAS 21!-ICE","Change") -> 5 | CX28: =RTD("esrtd",,"GAS 21!-ICE","Time") -> 42278.36931 | CY28: =RTD("esrtd",,"GAS 21!-ICE","PrevPrice") -> 528.25 | CZ28: =RTD("esrtd",,"GAS 21!-ICE","NewSettlement") ->  | DB28: =RTD("esrtd",,"GAS 21!-ICE","Expiration") -> 2017-06-12 | DC28: 0.3181818182 | DD28: 530.4659091 | DG28: 535.7556818 | DH28: 13.56896888 | DI28: 13.40302318 | DL28: Jun'17 | DM28: 0.02368293384 | DN28: 0.02892346814
B29: =RTD("esrtd",,"CL 21!","Delivery") -> Jul'17 | C29: =RTD("esrtd",,"CL 21!","Symbol") -> CL N7 | D29: =RTD("esrtd",,C28 & ":" & SUBSTITUTE(C29," ",""),"Market") -> -0.195 | E29: -0.21 | G29: 53.21 | H29: =RTD("esrtd",,"CL 21!","Last") ->  | I29: =RTD("esrtd",,"CL 21!","Change") ->  | J29: =RTD("esrtd",,"CL 21!","Time") -> 42278.36845 | K29: =RTD("esrtd",,"CL 21!","PrevPrice") -> 52.53 | L29: =RTD("esrtd",,"CL 21!","NewSettlement") ->  | N29: =RTD("esrtd",,"CL 21!","Expiration") -> 2017-06-20 | O29: 0.65 | P29: 52.851 | S29: 53.511 | T29: =RTD("esrtd",,"BRN 21!-ICE","Delivery") -> Jul'17 | U29: =RTD("esrtd",,"BRN 21!-ICE","Symbol") -> BRN 7N-ICE | V29: =RTD("esrtd",, SUBSTITUTE(U28,"-ICE","") & ":" & SUBSTITUTE(U29," ",""),"Market") -> -0.245 | W29: -0.25 | Y29: 58.1 | Z29: =RTD("esrtd",,"BRN 21!-ICE","Last") ->  | AA29: =RTD("esrtd",,"BRN 21!-ICE","Change") ->  | AB29: =RTD("esrtd",,"BRN 21!-ICE","Time") -> 42278.36926 | AC29: =RTD("esrtd",,"BRN 21!-ICE","PrevPrice") -> 57.54 | AD29: =RTD("esrtd",,"BRN 21!-ICE","NewSettlement") ->  | AF29: =RTD("esrtd",,"BRN 21!-ICE","Expiration") -> 2017-05-31 | AG29: =IF(BRNDateDiff(AF29,BRNNewExpDate)>0,NetDaysRatio(AF30,ICEHolidays,-1),IF(BRNDateDiff(AF29,BRNNewExpDate)=0,"",IF(BRNDateDiff(AF29,BRNNewExpDate)<0,NetDaysRatio(AF31,ICEHolidays,-1)))) -> 0.9523809524 | AH29: =IF(BRNDateDiff(AF29,BRNNewExpDate)>0,(AG29*AC30)+(1-AG29)*AC31,IF(BRNDateDiff(AF29,BRNNewExpDate)=0,((8/20)*AC30+(11/20)*AC31+1/20*AC32),IF(BRNDateDiff(AF29,BRNNewExpDate)<0,(AG29*AC31)+(1-AG29)*AC32))) -> 58.03047619 | AI29: =IF(OR(AD30="",AD31="",AD32=""),"",IF(BRNDateDiff(AF29,BRNNewExpDate)>0,(AG29*AD30)+(1-AG29)*AD31,IF(BRNDateDiff(AF29,BRNNewExpDate)=0,((8/20)*AD30+(11/20)*AD31+1/20*AD32),IF(BRNDateDiff(AF29,BRNNewExpDate)<0,(AG29*AD31)+(1-AG29)*AD32)))) ->  | AK29: =IF(BRNDateDiff(AF29,BRNNewExpDate)>0,IF(OR(Y30="",Y31=""),"",(AG29*Y30)+(1-AG29)*Y31),IF(BRNDateDiff(AF29,BRNNewExpDate)=0,IF(OR(Y30="",Y31="",Y32=""),"",(8/20*Y30)+11/20*Y31)+(1/20*Y32),IF(BRNDateDiff(AF29,BRNNewExpDate)<0,IF(OR(Y31="",Y32=""),"",(AG29*Y31)+(1-AG29)*Y32)))) -> 58.5547619 | AL29: Jul'17 | AM29: -4.89 | AN29: -5.043761905 | AO29: =RTD("esrtd",,"XRB 21!","Delivery") -> Jul'17 | AP29: =RTD("esrtd",,"XRB 21!","Symbol") -> XRB N7 | AQ29: =RTD("esrtd",,AP28 & ":" & SUBSTITUTE(AP29," ",""),"Market") -> 0.01065 | AR29: 0.0105 | AT29: 1.66535 | AU29: =RTD("esrtd",,"XRB 21!","Last") ->  | AV29: =RTD("esrtd",,"XRB 21!","Change") ->  | AW29: =RTD("esrtd",,"XRB 21!","Time") -> 42278.36883 | AX29: =RTD("esrtd",,"XRB 21!","PrevPrice") -> 1.6566 | AY29: =RTD("esrtd",,"XRB 21!","NewSettlement") ->  | BA29: =RTD("esrtd",,"XRB 21!","Expiration") -> 2017-06-30 | BB29: 1.6431 | BE29: 1.65325 | BF29: 15.9255 | BG29: 16.1592 | BJ29: 10.8817381 | BK29: 10.97972381 | BN29: =RTD("esrtd",,"HO 21!","Delivery") -> Jul'17 | BO29: =RTD("esrtd",,"HO 21!","Symbol") -> HO N7 | BP29: =RTD("esrtd",,BO28 & ":" & SUBSTITUTE(BO29," ",""),"Market") -> -0.01205 | BQ29: -0.012 | BS29: 1.74115 | BT29: =RTD("esrtd",,"HO 21!","Last") ->  | BU29: =RTD("esrtd",,"HO 21!","Change") ->  | BV29: =RTD("esrtd",,"HO 21!","Time") -> 42278.36845 | BW29: =RTD("esrtd",,"HO 21!","PrevPrice") -> 1.7244 | BX29: =RTD("esrtd",,"HO 21!","NewSettlement") ->  | BZ29: =RTD("esrtd",,"HO 21!","Expiration") -> 2017-06-30 | CA29: 1.7374 | CD29: 1.7499 | CE29: 19.9848 | CF29: 20.1198 | CI29: 14.9410381 | CJ29: 14.94032381 | CM29: Jul'17 | CN29: -0.0758 | CO29: -0.09665 | CP29: =RTD("esrtd",,"GAS 22!-ICE","Delivery") -> Jul'17 | CQ29: =RTD("esrtd",,"GAS 22!-ICE","Symbol") -> GAS 7N-ICE | CR29: =RTD("esrtd",, SUBSTITUTE(CQ28,"-ICE","") & ":" & SUBSTITUTE(CQ29," ",""),"Market") -> -3.125 | CS29: -3.25 | CU29: 536.75 | CV29: =RTD("esrtd",,"GAS 22!-ICE","Last") ->  | CW29: =RTD("esrtd",,"GAS 22!-ICE","Change") ->  | CX29: =RTD("esrtd",,"GAS 22!-ICE","Time") -> 42278.31921 | CY29: =RTD("esrtd",,"GAS 22!-ICE","PrevPrice") -> 531.5 | CZ29: =RTD("esrtd",,"GAS 22!-ICE","NewSettlement") ->  | DB29: =RTD("esrtd",,"GAS 22!-ICE","Expiration") -> 2017-07-12 | DC29: 0.3333333333 | DD29: 533.6666667 | DG29: 538.5 | DH29: 13.72711729 | DI29: 13.60263343 | DL29: Jul'17 | DM29: 0.02574571748 | DN29: 0.02890287632
B30: =RTD("esrtd",,"CL 22!","Delivery") -> Aug'17 | C30: =RTD("esrtd",,"CL 22!","Symbol") -> CL Q7 | D30: =RTD("esrtd",,C29 & ":" & SUBSTITUTE(C30," ",""),"Market") -> -0.21 | E30: -0.23 | G30: 53.42 | H30: =RTD("esrtd",,"CL 22!","Last") ->  | I30: =RTD("esrtd",,"CL 22!","Change") ->  | J30: =RTD("esrtd",,"CL 22!","Time") -> 42278.3481 | K30: =RTD("esrtd",,"CL 22!","PrevPrice") -> 52.76 | L30: =RTD("esrtd",,"CL 22!","NewSettlement") ->  | N30: =RTD("esrtd",,"CL 22!","Expiration") -> 2017-07-20 | O30: 0.6956521739 | P30: 53.09913043 | S30: 53.75608696 | T30: =RTD("esrtd",,"BRN 22!-ICE","Delivery") -> Aug'17 | U30: =RTD("esrtd",,"BRN 22!-ICE","Symbol") -> BRN 7Q-ICE | V30: =RTD("esrtd",, SUBSTITUTE(U29,"-ICE","") & ":" & SUBSTITUTE(U30," ",""),"Market") -> -0.235 | W30: -0.25 | Y30: 58.335 | Z30: =RTD("esrtd",,"BRN 22!-ICE","Last") ->  | AA30: =RTD("esrtd",,"BRN 22!-ICE","Change") ->  | AB30: =RTD("esrtd",,"BRN 22!-ICE","Time") -> 42278.36926 | AC30: =RTD("esrtd",,"BRN 22!-ICE","PrevPrice") -> 57.79 | AD30: =RTD("esrtd",,"BRN 22!-ICE","NewSettlement") ->  | AF30: =RTD("esrtd",,"BRN 22!-ICE","Expiration") -> 2017-06-30 | AG30: =IF(BRNDateDiff(AF30,BRNNewExpDate)>0,NetDaysRatio(AF31,ICEHolidays,-1),IF(BRNDateDiff(AF30,BRNNewExpDate)=0,"",IF(BRNDateDiff(AF30,BRNNewExpDate)<0,NetDaysRatio(AF32,ICEHolidays,-1)))) -> 0.9565217391 | AH30: =IF(BRNDateDiff(AF30,BRNNewExpDate)>0,(AG30*AC31)+(1-AG30)*AC32,IF(BRNDateDiff(AF30,BRNNewExpDate)=0,((8/20)*AC31+(11/20)*AC32+1/20*AC33),IF(BRNDateDiff(AF30,BRNNewExpDate)<0,(AG30*AC32)+(1-AG30)*AC33))) -> 58.24869565 | AI30: =IF(OR(AD31="",AD32="",AD33=""),"",IF(BRNDateDiff(AF30,BRNNewExpDate)>0,(AG30*AD31)+(1-AG30)*AD32,IF(BRNDateDiff(AF30,BRNNewExpDate)=0,((8/20)*AD31+(11/20)*AD32+1/20*AD33),IF(BRNDateDiff(AF30,BRNNewExpDate)<0,(AG30*AD32)+(1-AG30)*AD33)))) ->  | AK30: =IF(BRNDateDiff(AF30,BRNNewExpDate)>0,IF(OR(Y31="",Y32=""),"",(AG30*Y31)+(1-AG30)*Y32),IF(BRNDateDiff(AF30,BRNNewExpDate)=0,IF(OR(Y31="",Y32="",Y33=""),"",(8/20*Y31)+11/20*Y32)+(1/20*Y33),IF(BRNDateDiff(AF30,BRNNewExpDate)<0,IF(OR(Y32="",Y33=""),"",(AG30*Y32)+(1-AG30)*Y33)))) -> 58.75826087 | AL30: Aug'17 | AM30: -4.915 | AN30: -5.002173913 | AO30: =RTD("esrtd",,"XRB 22!","Delivery") -> Aug'17 | AP30: =RTD("esrtd",,"XRB 22!","Symbol") -> XRB Q7 | AQ30: =RTD("esrtd",,AP29 & ":" & SUBSTITUTE(AP30," ",""),"Market") -> 0.0121 | AR30: 0.0135 | AT30: 1.65325 | AU30: =RTD("esrtd",,"XRB 22!","Last") ->  | AV30: =RTD("esrtd",,"XRB 22!","Change") ->  | AW30: =RTD("esrtd",,"XRB 22!","Time") -> 42278.3517 | AX30: =RTD("esrtd",,"XRB 22!","PrevPrice") -> 1.6431 | AY30: =RTD("esrtd",,"XRB 22!","NewSettlement") ->  | BA30: =RTD("esrtd",,"XRB 22!","Expiration") -> 2017-07-31 | BB30: 1.6246 | BE30: 1.6355 | BF30: 14.93491304 | BG30: 15.13406957 | BJ30: 9.93273913 | BK30: 9.984504348 | BN30: =RTD("esrtd",,"HO 22!","Delivery") -> Aug'17 | BO30: =RTD("esrtd",,"HO 22!","Symbol") -> HO Q7 | BP30: =RTD("esrtd",,BO29 & ":" & SUBSTITUTE(BO30," ",""),"Market") -> -0.00875 | BQ30: -0.013 | BS30: 1.7499 | BT30: =RTD("esrtd",,"HO 22!","Last") ->  | BU30: =RTD("esrtd",,"HO 22!","Change") ->  | BV30: =RTD("esrtd",,"HO 22!","Time") -> 42278.36845 | BW30: =RTD("esrtd",,"HO 22!","PrevPrice") -> 1.7374 | BX30: =RTD("esrtd",,"HO 22!","NewSettlement") ->  | BZ30: =RTD("esrtd",,"HO 22!","Expiration") -> 2017-07-31 | CA30: 1.7509 | CD30: 1.76215 | CE30: 20.25421304 | CF30: 20.43866957 | CI30: 15.25203913 | CJ30: 15.28910435 | CM30: Aug'17 | CN30: -0.09665 | CO30: -0.12665 | CP30: =RTD("esrtd",,"GAS 23!-ICE","Delivery") -> Aug'17 | CQ30: =RTD("esrtd",,"GAS 23!-ICE","Symbol") -> GAS 7Q-ICE | CR30: =RTD("esrtd",, SUBSTITUTE(CQ29,"-ICE","") & ":" & SUBSTITUTE(CQ30," ",""),"Market") -> -2.625 | CS30: -3.25 | CU30: 539.375 | CV30: =RTD("esrtd",,"GAS 23!-ICE","Last") ->  | CW30: =RTD("esrtd",,"GAS 23!-ICE","Change") ->  | CX30: =RTD("esrtd",,"GAS 23!-ICE","Time") -> 42277.83333 | CY30: =RTD("esrtd",,"GAS 23!-ICE","PrevPrice") -> 534.75 | CZ30: =RTD("esrtd",,"GAS 23!-ICE","NewSettlement") ->  | DB30: =RTD("esrtd",,"GAS 23!-ICE","Expiration") -> 2017-08-10 | DC30: 0.3043478261 | DD30: 536.3152174 | DG30: 540.8532609 | DH30: 13.83949227 | DI30: 13.73992413 | DL30: Aug'17 | DM30: 0.02610645574 | DN30: 0.03363206817
B31: =RTD("esrtd",,"CL 23!","Delivery") -> Sep'17 | C31: =RTD("esrtd",,"CL 23!","Symbol") -> CL U7 | D31: =RTD("esrtd",,C30 & ":" & SUBSTITUTE(C31," ",""),"Market") ->  | E31: -0.26 | G31: 53.68 | H31: =RTD("esrtd",,"CL 23!","Last") ->  | I31: =RTD("esrtd",,"CL 23!","Change") ->  | J31: =RTD("esrtd",,"CL 23!","Time") -> 42278.3481 | K31: =RTD("esrtd",,"CL 23!","PrevPrice") -> 53.02 | L31: =RTD("esrtd",,"CL 23!","NewSettlement") ->  | N31: =RTD("esrtd",,"CL 23!","Expiration") -> 2017-08-22 | O31: 0.65 | P31: 53.3745 | S31: 54.01925 | T31: =RTD("esrtd",,"BRN 23!-ICE","Delivery") -> Sep'17 | U31: =RTD("esrtd",,"BRN 23!-ICE","Symbol") -> BRN 7U-ICE | V31: =RTD("esrtd",, SUBSTITUTE(U30,"-ICE","") & ":" & SUBSTITUTE(U31," ",""),"Market") -> -0.21 | W31: -0.23 | Y31: 58.545 | Z31: =RTD("esrtd",,"BRN 23!-ICE","Last") ->  | AA31: =RTD("esrtd",,"BRN 23!-ICE","Change") ->  | AB31: =RTD("esrtd",,"BRN 23!-ICE","Time") -> 42278.36845 | AC31: =RTD("esrtd",,"BRN 23!-ICE","PrevPrice") -> 58.02 | AD31: =RTD("esrtd",,"BRN 23!-ICE","NewSettlement") ->  | AF31: =RTD("esrtd",,"BRN 23!-ICE","Expiration") -> 2017-07-31 | AG31: =IF(BRNDateDiff(AF31,BRNNewExpDate)>0,NetDaysRatio(AF32,ICEHolidays,-1),IF(BRNDateDiff(AF31,BRNNewExpDate)=0,"",IF(BRNDateDiff(AF31,BRNNewExpDate)<0,NetDaysRatio(AF33,ICEHolidays,-1)))) -> 0.9523809524 | AH31: =IF(BRNDateDiff(AF31,BRNNewExpDate)>0,(AG31*AC32)+(1-AG31)*AC33,IF(BRNDateDiff(AF31,BRNNewExpDate)=0,((8/20)*AC32+(11/20)*AC33+1/20*AC34),IF(BRNDateDiff(AF31,BRNNewExpDate)<0,(AG31*AC33)+(1-AG31)*AC34))) -> 58.44952381 | AI31: =IF(OR(AD32="",AD33="",AD34=""),"",IF(BRNDateDiff(AF31,BRNNewExpDate)>0,(AG31*AD32)+(1-AG31)*AD33,IF(BRNDateDiff(AF31,BRNNewExpDate)=0,((8/20)*AD32+(11/20)*AD33+1/20*AD34),IF(BRNDateDiff(AF31,BRNNewExpDate)<0,(AG31*AD33)+(1-AG31)*AD34)))) ->  | AK31: =IF(BRNDateDiff(AF31,BRNNewExpDate)>0,IF(OR(Y32="",Y33=""),"",(AG31*Y32)+(1-AG31)*Y33),IF(BRNDateDiff(AF31,BRNNewExpDate)=0,IF(OR(Y32="",Y33="",Y34=""),"",(8/20*Y32)+11/20*Y33)+(1/20*Y34),IF(BRNDateDiff(AF31,BRNNewExpDate)<0,IF(OR(Y33="",Y34=""),"",(AG31*Y33)+(1-AG31)*Y34)))) -> 58.94952381 | AL31: Sep'17 | AM31: -4.865 | AN31: -4.93027381 | AO31: =RTD("esrtd",,"XRB 23!","Delivery") -> Sep'17 | AP31: =RTD("esrtd",,"XRB 23!","Symbol") -> XRB U7 | AQ31: =RTD("esrtd",,AP30 & ":" & SUBSTITUTE(AP31," ",""),"Market") -> 0.01775 | AR31: 0.0185 | AT31: 1.6355 | AU31: =RTD("esrtd",,"XRB 23!","Last") ->  | AV31: =RTD("esrtd",,"XRB 23!","Change") ->  | AW31: =RTD("esrtd",,"XRB 23!","Time") -> 42278.36916 | AX31: =RTD("esrtd",,"XRB 23!","PrevPrice") -> 1.6246 | AY31: =RTD("esrtd",,"XRB 23!","NewSettlement") ->  | BA31: =RTD("esrtd",,"XRB 23!","Expiration") -> 2017-08-31 | BB31: =AX32 -> 1.4901 | BC31: =AY32 ->  | BE31: =AT32 -> 1.5016 | BF31: 9.04795 | BG31: 9.2097 | BJ31: 4.11767619 | BK31: 4.13467619 | BN31: =RTD("esrtd",,"HO 23!","Delivery") -> Sep'17 | BO31: =RTD("esrtd",,"HO 23!","Symbol") -> HO U7 | BP31: =RTD("esrtd",,BO30 & ":" & SUBSTITUTE(BO31," ",""),"Market") -> -0.01225 | BQ31: -0.0135 | BS31: 1.76215 | BT31: =RTD("esrtd",,"HO 23!","Last") ->  | BU31: =RTD("esrtd",,"HO 23!","Change") ->  | BV31: =RTD("esrtd",,"HO 23!","Time") -> 42278.35551 | BW31: =RTD("esrtd",,"HO 23!","PrevPrice") -> 1.7509 | BX31: =RTD("esrtd",,"HO 23!","NewSettlement") ->  | BZ31: =RTD("esrtd",,"HO 23!","Expiration") -> 2017-08-31 | CA31: 1.7629 | CD31: 1.77345 | CE31: 20.46565 | CF31: 20.6673 | CI31: 15.53537619 | CJ31: 15.59227619 | CM31: Sep'17 | CN31: -0.12665 | CO31: -0.27185 | CP31: =RTD("esrtd",,"GAS 24!-ICE","Delivery") -> Sep'17 | CQ31: =RTD("esrtd",,"GAS 24!-ICE","Symbol") -> GAS 7U-ICE | CR31: =RTD("esrtd",, SUBSTITUTE(CQ30,"-ICE","") & ":" & SUBSTITUTE(CQ31," ",""),"Market") -> -2.125 | CS31: -2.25 | CU31: 541.5 | CV31: =RTD("esrtd",,"GAS 24!-ICE","Last") ->  | CW31: =RTD("esrtd",,"GAS 24!-ICE","Change") ->  | CX31: =RTD("esrtd",,"GAS 24!-ICE","Time") -> 42277.83333 | CY31: =RTD("esrtd",,"GAS 24!-ICE","PrevPrice") -> 537 | CZ31: =RTD("esrtd",,"GAS 24!-ICE","NewSettlement") ->  | DB31: =RTD("esrtd",,"GAS 24!-ICE","Expiration") -> 2017-09-12 | DC31: 0.3333333333 | DD31: 538.8333333 | DG31: 543.4166667 | DH31: 13.99231064 | DI31: 13.87709811 | DL31: Sep'17 | DM31: 0.03156514861 | DN31: 0.03673965591
B32: =RTD("esrtd",,"CL 24!","Delivery") -> Oct'17 | C32: =RTD("esrtd",,"CL 24!","Symbol") -> CL V7 | D32: =RTD("esrtd",,C31 & ":" & SUBSTITUTE(C32," ",""),"Market") -> -0.25 | E32: -0.26 | G32: 53.93 | H32: =RTD("esrtd",,"CL 24!","Last") ->  | I32: =RTD("esrtd",,"CL 24!","Change") ->  | J32: =RTD("esrtd",,"CL 24!","Time") -> 42277.63007 | K32: =RTD("esrtd",,"CL 24!","PrevPrice") -> 53.28 | L32: =RTD("esrtd",,"CL 24!","NewSettlement") ->  | N32: =RTD("esrtd",,"CL 24!","Expiration") -> 2017-09-20 | O32: 0.6818181818 | P32: 53.63272727 | S32: 54.26454545 | T32: =RTD("esrtd",,"BRN 24!-ICE","Delivery") -> Oct'17 | U32: =RTD("esrtd",,"BRN 24!-ICE","Symbol") -> BRN 7V-ICE | V32: =RTD("esrtd",, SUBSTITUTE(U31,"-ICE","") & ":" & SUBSTITUTE(U32," ",""),"Market") -> -0.205 | W32: -0.22 | Y32: 58.75 | Z32: =RTD("esrtd",,"BRN 24!-ICE","Last") ->  | AA32: =RTD("esrtd",,"BRN 24!-ICE","Change") ->  | AB32: =RTD("esrtd",,"BRN 24!-ICE","Time") -> 42278.36845 | AC32: =RTD("esrtd",,"BRN 24!-ICE","PrevPrice") -> 58.24 | AD32: =RTD("esrtd",,"BRN 24!-ICE","NewSettlement") ->  | AF32: =RTD("esrtd",,"BRN 24!-ICE","Expiration") -> 2017-08-31 | AG32: =IF(BRNDateDiff(AF32,BRNNewExpDate)>0,NetDaysRatio(AF33,ICEHolidays,-1),IF(BRNDateDiff(AF32,BRNNewExpDate)=0,"",IF(BRNDateDiff(AF32,BRNNewExpDate)<0,NetDaysRatio(AF34,ICEHolidays,-1)))) -> 0.9545454545 | AH32: =IF(BRNDateDiff(AF32,BRNNewExpDate)>0,(AG32*AC33)+(1-AG32)*AC34,IF(BRNDateDiff(AF32,BRNNewExpDate)=0,((8/20)*AC33+(11/20)*AC34+1/20*AC35),IF(BRNDateDiff(AF32,BRNNewExpDate)<0,(AG32*AC34)+(1-AG32)*AC35))) -> 58.65045455 | AI32: =IF(OR(AD33="",AD34="",AD35=""),"",IF(BRNDateDiff(AF32,BRNNewExpDate)>0,(AG32*AD33)+(1-AG32)*AD34,IF(BRNDateDiff(AF32,BRNNewExpDate)=0,((8/20)*AD33+(11/20)*AD34+1/20*AD35),IF(BRNDateDiff(AF32,BRNNewExpDate)<0,(AG32*AD34)+(1-AG32)*AD35)))) ->  | AK32: =IF(BRNDateDiff(AF32,BRNNewExpDate)>0,IF(OR(Y33="",Y34=""),"",(AG32*Y33)+(1-AG32)*Y34),IF(BRNDateDiff(AF32,BRNNewExpDate)=0,IF(OR(Y33="",Y34="",Y35=""),"",(8/20*Y33)+11/20*Y34)+(1/20*Y35),IF(BRNDateDiff(AF32,BRNNewExpDate)<0,IF(OR(Y34="",Y35=""),"",(AG32*Y34)+(1-AG32)*Y35)))) -> 59.15045455 | AL32: Oct'17 | AM32: -4.82 | AN32: -4.885909091 | AO32: =RTD("esrtd",,"XRB 24!","Delivery") -> Oct'17 | AP32: =RTD("esrtd",,"XRB 24!","Symbol") -> XRB V7 | AQ32: =RTD("esrtd",,AP31 & ":" & SUBSTITUTE(AP32," ",""),"Market") -> 0.1339 | AR32: 0.1345 | AT32: 1.5016 | AU32: =RTD("esrtd",,"XRB 24!","Last") ->  | AV32: =RTD("esrtd",,"XRB 24!","Change") ->  | AW32: =RTD("esrtd",,"XRB 24!","Time") -> 42277.63419 | AX32: =RTD("esrtd",,"XRB 24!","PrevPrice") -> 1.4901 | AY32: =RTD("esrtd",,"XRB 24!","NewSettlement") ->  | BA32: =RTD("esrtd",,"XRB 24!","Expiration") -> 2017-09-29 | BB32: 1.4676 | BE32: 1.4802 | BF32: 7.903854545 | BG32: 8.006472727 | BJ32: 3.017945455 | BK32: 2.988745455 | BN32: =RTD("esrtd",,"HO 24!","Delivery") -> Oct'17 | BO32: =RTD("esrtd",,"HO 24!","Symbol") -> HO V7 | BP32: =RTD("esrtd",,BO31 & ":" & SUBSTITUTE(BO32," ",""),"Market") -> -0.0113 | BQ32: -0.012 | BS32: 1.77345 | BT32: =RTD("esrtd",,"HO 24!","Last") ->  | BU32: =RTD("esrtd",,"HO 24!","Change") ->  | BV32: =RTD("esrtd",,"HO 24!","Time") -> 42278.35385 | BW32: =RTD("esrtd",,"HO 24!","PrevPrice") -> 1.7629 | BX32: =RTD("esrtd",,"HO 24!","NewSettlement") ->  | BZ32: =RTD("esrtd",,"HO 24!","Expiration") -> 2017-09-29 | CA32: 1.7714 | CD32: 1.78195 | CE32: 20.57735455 | CF32: 20.76607273 | CI32: 15.69144545 | CJ32: 15.74834545 | CM32: Oct'17 | CN32: -0.27185 | CO32: -0.30175 | CP32: =RTD("esrtd",,"GAS 25!-ICE","Delivery") -> Oct'17 | CQ32: =RTD("esrtd",,"GAS 25!-ICE","Symbol") -> GAS 7V-ICE | CR32: =RTD("esrtd",, SUBSTITUTE(CQ31,"-ICE","") & ":" & SUBSTITUTE(CQ32," ",""),"Market") -> -2.875 | CS32: -2.75 | CU32: 544.375 | CV32: =RTD("esrtd",,"GAS 25!-ICE","Last") ->  | CW32: =RTD("esrtd",,"GAS 25!-ICE","Change") ->  | CX32: =RTD("esrtd",,"GAS 25!-ICE","Time") -> 42278.31318 | CY32: =RTD("esrtd",,"GAS 25!-ICE","PrevPrice") -> 539.75 | CZ32: =RTD("esrtd",,"GAS 25!-ICE","NewSettlement") ->  | DB32: =RTD("esrtd",,"GAS 25!-ICE","Expiration") -> 2017-10-12 | DC32: 0.3636363636 | DD32: 540.5454545 | DG32: 545.4090909 | DH32: 14.0588194 | DI32: 13.90598231 | DL32: Oct'17 | DM32: 0.03367690956 | DN32: 0.03887204887
B33: =RTD("esrtd",,"CL 25!","Delivery") -> Nov'17 | C33: =RTD("esrtd",,"CL 25!","Symbol") -> CL X7 | D33: =RTD("esrtd",,C32 & ":" & SUBSTITUTE(C33," ",""),"Market") -> -0.255 | E33: -0.27 | G33: 54.185 | H33: =RTD("esrtd",,"CL 25!","Last") ->  | I33: =RTD("esrtd",,"CL 25!","Change") ->  | J33: =RTD("esrtd",,"CL 25!","Time") -> 42277.63007 | K33: =RTD("esrtd",,"CL 25!","PrevPrice") -> 53.55 | L33: =RTD("esrtd",,"CL 25!","NewSettlement") ->  | N33: =RTD("esrtd",,"CL 25!","Expiration") -> 2017-10-20 | O33: 0.6666666667 | P33: 53.85333333 | S33: 54.47666667 | T33: =RTD("esrtd",,"BRN 25!-ICE","Delivery") -> Nov'17 | U33: =RTD("esrtd",,"BRN 25!-ICE","Symbol") -> BRN 7X-ICE | V33: =RTD("esrtd",, SUBSTITUTE(U32,"-ICE","") & ":" & SUBSTITUTE(U33," ",""),"Market") -> -0.19 | W33: -0.2 | Y33: 58.94 | Z33: =RTD("esrtd",,"BRN 25!-ICE","Last") ->  | AA33: =RTD("esrtd",,"BRN 25!-ICE","Change") ->  | AB33: =RTD("esrtd",,"BRN 25!-ICE","Time") -> 42278.36916 | AC33: =RTD("esrtd",,"BRN 25!-ICE","PrevPrice") -> 58.44 | AD33: =RTD("esrtd",,"BRN 25!-ICE","NewSettlement") ->  | AF33: =RTD("esrtd",,"BRN 25!-ICE","Expiration") -> 2017-09-29 | AG33: =IF(BRNDateDiff(AF33,BRNNewExpDate)>0,NetDaysRatio(AF34,ICEHolidays,-1),IF(BRNDateDiff(AF33,BRNNewExpDate)=0,"",IF(BRNDateDiff(AF33,BRNNewExpDate)<0,NetDaysRatio(AF35,ICEHolidays,-1)))) -> 0.9545454545 | AH33: =IF(BRNDateDiff(AF33,BRNNewExpDate)>0,(AG33*AC34)+(1-AG33)*AC35,IF(BRNDateDiff(AF33,BRNNewExpDate)=0,((8/20)*AC34+(11/20)*AC35+1/20*AC36),IF(BRNDateDiff(AF33,BRNNewExpDate)<0,(AG33*AC35)+(1-AG33)*AC36))) -> 58.88045455 | AI33: =IF(OR(AD34="",AD35="",AD36=""),"",IF(BRNDateDiff(AF33,BRNNewExpDate)>0,(AG33*AD34)+(1-AG33)*AD35,IF(BRNDateDiff(AF33,BRNNewExpDate)=0,((8/20)*AD34+(11/20)*AD35+1/20*AD36),IF(BRNDateDiff(AF33,BRNNewExpDate)<0,(AG33*AD35)+(1-AG33)*AD36)))) ->  | AK33: =IF(BRNDateDiff(AF33,BRNNewExpDate)>0,IF(OR(Y34="",Y35=""),"",(AG33*Y34)+(1-AG33)*Y35),IF(BRNDateDiff(AF33,BRNNewExpDate)=0,IF(OR(Y34="",Y35="",Y36=""),"",(8/20*Y34)+11/20*Y35)+(1/20*Y36),IF(BRNDateDiff(AF33,BRNNewExpDate)<0,IF(OR(Y35="",Y36=""),"",(AG33*Y35)+(1-AG33)*Y36)))) -> 59.37954545 | AL33: Nov'17 | AM33: -4.755 | AN33: -4.902878788 | AO33: =RTD("esrtd",,"XRB 25!","Delivery") -> Nov'17 | AP33: =RTD("esrtd",,"XRB 25!","Symbol") -> XRB X7 | AQ33: =RTD("esrtd",,AP32 & ":" & SUBSTITUTE(AP33," ",""),"Market") -> 0.0214 | AR33: 0.0225 | AT33: 1.4802 | AU33: =RTD("esrtd",,"XRB 25!","Last") ->  | AV33: =RTD("esrtd",,"XRB 25!","Change") ->  | AW33: =RTD("esrtd",,"XRB 25!","Time") -> 42277.63419 | AX33: =RTD("esrtd",,"XRB 25!","PrevPrice") -> 1.4676 | AY33: =RTD("esrtd",,"XRB 25!","NewSettlement") ->  | BA33: =RTD("esrtd",,"XRB 25!","Expiration") -> 2017-10-31 | BB33: 1.4556 | BE33: 1.4693 | BF33: 7.233933333 | BG33: 7.281866667 | BJ33: 2.331054545 | BK33: 2.254745455 | BN33: =RTD("esrtd",,"HO 25!","Delivery") -> Nov'17 | BO33: =RTD("esrtd",,"HO 25!","Symbol") -> HO X7 | BP33: =RTD("esrtd",,BO32 & ":" & SUBSTITUTE(BO33," ",""),"Market") -> -0.0085 | BQ33: -0.0085 | BS33: 1.78195 | BT33: =RTD("esrtd",,"HO 25!","Last") ->  | BU33: =RTD("esrtd",,"HO 25!","Change") ->  | BV33: =RTD("esrtd",,"HO 25!","Time") -> 42278.36845 | BW33: =RTD("esrtd",,"HO 25!","PrevPrice") -> 1.7714 | BX33: =RTD("esrtd",,"HO 25!","NewSettlement") ->  | BZ33: =RTD("esrtd",,"HO 25!","Expiration") -> 2017-10-31 | CA33: 1.7789 | CD33: 1.78945 | CE33: 20.68023333 | CF33: 20.86046667 | CI33: 15.77735455 | CJ33: 15.83334545 | CM33: Nov'17 | CN33: -0.30175 | CO33: -0.32015 | CP33: =RTD("esrtd",,"GAS 26!-ICE","Delivery") -> Nov'17 | CQ33: =RTD("esrtd",,"GAS 26!-ICE","Symbol") -> GAS 7X-ICE | CR33: =RTD("esrtd",, SUBSTITUTE(CQ32,"-ICE","") & ":" & SUBSTITUTE(CQ33," ",""),"Market") -> -1.625 | CS33: -1.25 | CU33: 546 | CV33: =RTD("esrtd",,"GAS 26!-ICE","Last") ->  | CW33: =RTD("esrtd",,"GAS 26!-ICE","Change") ->  | CX33: =RTD("esrtd",,"GAS 26!-ICE","Time") -> 42277.83333 | CY33: =RTD("esrtd",,"GAS 26!-ICE","PrevPrice") -> 541 | CZ33: =RTD("esrtd",,"GAS 26!-ICE","NewSettlement") ->  | DB33: =RTD("esrtd",,"GAS 26!-ICE","Expiration") -> 2017-11-10 | DC33: 0.3181818182 | DD33: 541.8522727 | DG33: 546.8522727 | DH33: 14.02344417 | DI33: 13.85139414 | DL33: Nov'17 | DM33: 0.03698355705 | DN33: 0.04175977077
B34: =RTD("esrtd",,"CL 26!","Delivery") -> Dec'17 | C34: =RTD("esrtd",,"CL 26!","Symbol") -> CL Z7 | D34: =RTD("esrtd",,C33 & ":" & SUBSTITUTE(C34," ",""),"Market") -> -0.25 | E34: -0.26 | G34: 54.435 | H34: =RTD("esrtd",,"CL 26!","Last") -> 54.42 | I34: =RTD("esrtd",,"CL 26!","Change") -> 0.61 | J34: =RTD("esrtd",,"CL 26!","Time") -> 42278.36927 | K34: =RTD("esrtd",,"CL 26!","PrevPrice") -> 53.81 | L34: =RTD("esrtd",,"CL 26!","NewSettlement") ->  | N34: =RTD("esrtd",,"CL 26!","Expiration") -> 2017-11-20 | O34: 0.65 | P34: 53.9925 | S34: 54.609 | T34: =RTD("esrtd",,"BRN 26!-ICE","Delivery") -> Dec'17 | U34: =RTD("esrtd",,"BRN 26!-ICE","Symbol") -> BRN 7Z-ICE | V34: =RTD("esrtd",, SUBSTITUTE(U33,"-ICE","") & ":" & SUBSTITUTE(U34," ",""),"Market") -> -0.2 | W34: -0.2 | Y34: 59.14 | Z34: =RTD("esrtd",,"BRN 26!-ICE","Last") -> 59.11 | AA34: =RTD("esrtd",,"BRN 26!-ICE","Change") -> 0.47 | AB34: =RTD("esrtd",,"BRN 26!-ICE","Time") -> 42278.36932 | AC34: =RTD("esrtd",,"BRN 26!-ICE","PrevPrice") -> 58.64 | AD34: =RTD("esrtd",,"BRN 26!-ICE","NewSettlement") ->  | AF34: =RTD("esrtd",,"BRN 26!-ICE","Expiration") -> 2017-10-31 | AG34: =IF(BRNDateDiff(AF34,BRNNewExpDate)>0,NetDaysRatio(AF35,ICEHolidays,-1),IF(BRNDateDiff(AF34,BRNNewExpDate)=0,"",IF(BRNDateDiff(AF34,BRNNewExpDate)<0,NetDaysRatio(AF36,ICEHolidays,-1)))) -> 0.9 | AH34: =IF(BRNDateDiff(AF34,BRNNewExpDate)>0,(AG34*AC35)+(1-AG34)*AC36,IF(BRNDateDiff(AF34,BRNNewExpDate)=0,((8/20)*AC35+(11/20)*AC36+1/20*AC37),IF(BRNDateDiff(AF34,BRNNewExpDate)<0,(AG34*AC36)+(1-AG34)*AC37))) -> 59.12 | AI34: =IF(OR(AD35="",AD36="",AD37=""),"",IF(BRNDateDiff(AF34,BRNNewExpDate)>0,(AG34*AD35)+(1-AG34)*AD36,IF(BRNDateDiff(AF34,BRNNewExpDate)=0,((8/20)*AD35+(11/20)*AD36+1/20*AD37),IF(BRNDateDiff(AF34,BRNNewExpDate)<0,(AG34*AD36)+(1-AG34)*AD37)))) ->  | AK34: =IF(BRNDateDiff(AF34,BRNNewExpDate)>0,IF(OR(Y35="",Y36=""),"",(AG34*Y35)+(1-AG34)*Y36),IF(BRNDateDiff(AF34,BRNNewExpDate)=0,IF(OR(Y35="",Y36="",Y37=""),"",(8/20*Y35)+11/20*Y36)+(1/20*Y37),IF(BRNDateDiff(AF34,BRNNewExpDate)<0,IF(OR(Y36="",Y37=""),"",(AG34*Y36)+(1-AG34)*Y37)))) -> 59.6005 | AL34: Dec'17 | AM34: -4.705 | AN34: -4.9915 | AO34: =RTD("esrtd",,"XRB 26!","Delivery") -> Dec'17 | AP34: =RTD("esrtd",,"XRB 26!","Symbol") -> XRB Z7 | AQ34: =RTD("esrtd",,AP33 & ":" & SUBSTITUTE(AP34," ",""),"Market") -> 0.0109 | AR34: 0.012 | AT34: 1.4693 | AU34: =RTD("esrtd",,"XRB 26!","Last") ->  | AV34: =RTD("esrtd",,"XRB 26!","Change") ->  | AW34: =RTD("esrtd",,"XRB 26!","Time") -> 42278.36931 | AX34: =RTD("esrtd",,"XRB 26!","PrevPrice") -> 1.4556 | AY34: =RTD("esrtd",,"XRB 26!","NewSettlement") ->  | BA34: =RTD("esrtd",,"XRB 26!","Expiration") -> 2017-11-30 | BB34: 1.4636 | BE34: 1.4773 | BF34: 7.4376 | BG34: 7.4787 | BJ34: 2.4461 | BK34: 2.3512 | BN34: =RTD("esrtd",,"HO 26!","Delivery") -> Dec'17 | BO34: =RTD("esrtd",,"HO 26!","Symbol") -> HO Z7 | BP34: =RTD("esrtd",,BO33 & ":" & SUBSTITUTE(BO34," ",""),"Market") -> -0.0075 | BQ34: -0.0075 | BS34: 1.78945 | BT34: =RTD("esrtd",,"HO 26!","Last") ->  | BU34: =RTD("esrtd",,"HO 26!","Change") ->  | BV34: =RTD("esrtd",,"HO 26!","Time") -> 42278.36931 | BW34: =RTD("esrtd",,"HO 26!","PrevPrice") -> 1.7789 | BX34: =RTD("esrtd",,"HO 26!","NewSettlement") ->  | BZ34: =RTD("esrtd",,"HO 26!","Expiration") -> 2017-11-30 | CA34: 1.7894 | CD34: 1.79775 | CE34: 20.8965 | CF34: 21.1623 | CI34: 15.905 | CJ34: 16.0348 | CM34: Dec'17 | CN34: -0.32015 | CO34: -0.32045 | CP34: =RTD("esrtd",,"GAS 27!-ICE","Delivery") -> Dec'17 | CQ34: =RTD("esrtd",,"GAS 27!-ICE","Symbol") -> GAS 7Z-ICE | CR34: =RTD("esrtd",, SUBSTITUTE(CQ33,"-ICE","") & ":" & SUBSTITUTE(CQ34," ",""),"Market") -> -1.25 | CS34: -1.25 | CU34: 547.25 | CV34: =RTD("esrtd",,"GAS 27!-ICE","Last") -> 546.25 | CW34: =RTD("esrtd",,"GAS 27!-ICE","Change") -> 4 | CX34: =RTD("esrtd",,"GAS 27!-ICE","Time") -> 42278.36931 | CY34: =RTD("esrtd",,"GAS 27!-ICE","PrevPrice") -> 542.25 | CZ34: =RTD("esrtd",,"GAS 27!-ICE","NewSettlement") ->  | DB34: =RTD("esrtd",,"GAS 27!-ICE","Expiration") -> 2017-12-12 | DC34: 0.35 | DD34: 544.3625 | DG34: 549.2 | DH34: 14.11762081 | DI34: 13.94879195 | DL34: Dec'17 | DM34: 0.0404886705 | DN34: 0.04255664749
B35: =RTD("esrtd",,"CL 27!","Delivery") -> Jan'18 | C35: =RTD("esrtd",,"CL 27!","Symbol") -> CL F18 | D35: =RTD("esrtd",,C34 & ":" & SUBSTITUTE(C35," ",""),"Market") -> -0.125 | E35: -0.13 | G35: 54.56 | H35: =RTD("esrtd",,"CL 27!","Last") ->  | I35: =RTD("esrtd",,"CL 27!","Change") ->  | J35: =RTD("esrtd",,"CL 27!","Time") -> 42277.63007 | K35: =RTD("esrtd",,"CL 27!","PrevPrice") -> 53.94 | L35: =RTD("esrtd",,"CL 27!","NewSettlement") ->  | N35: =RTD("esrtd",,"CL 27!","Expiration") -> 2017-12-19 | O35: 0.6666666667 | P35: 54.14666667 | S35: 54.75333333 | T35: =RTD("esrtd",,"BRN 27!-ICE","Delivery") -> Jan'18 | U35: =RTD("esrtd",,"BRN 27!-ICE","Symbol") -> BRN 18F-ICE | V35: =RTD("esrtd",, SUBSTITUTE(U34,"-ICE","") & ":" & SUBSTITUTE(U35," ",""),"Market") -> -0.23 | W35: -0.23 | Y35: 59.37 | Z35: =RTD("esrtd",,"BRN 27!-ICE","Last") ->  | AA35: =RTD("esrtd",,"BRN 27!-ICE","Change") ->  | AB35: =RTD("esrtd",,"BRN 27!-ICE","Time") -> 42277.83333 | AC35: =RTD("esrtd",,"BRN 27!-ICE","PrevPrice") -> 58.87 | AD35: =RTD("esrtd",,"BRN 27!-ICE","NewSettlement") ->  | AF35: =RTD("esrtd",,"BRN 27!-ICE","Expiration") -> 2017-11-30 | AG35: =IF(BRNDateDiff(AF35,BRNNewExpDate)>0,NetDaysRatio(AF36,ICEHolidays,-1),IF(BRNDateDiff(AF35,BRNNewExpDate)=0,"",IF(BRNDateDiff(AF35,BRNNewExpDate)<0,NetDaysRatio(AF37,ICEHolidays,-1)))) -> 0.9545454545 | AH35: =IF(BRNDateDiff(AF35,BRNNewExpDate)>0,(AG35*AC36)+(1-AG35)*AC37,IF(BRNDateDiff(AF35,BRNNewExpDate)=0,((8/20)*AC36+(11/20)*AC37+1/20*AC38),IF(BRNDateDiff(AF35,BRNNewExpDate)<0,(AG35*AC37)+(1-AG35)*AC38))) -> 59.31 | AI35: =IF(OR(AD36="",AD37="",AD38=""),"",IF(BRNDateDiff(AF35,BRNNewExpDate)>0,(AG35*AD36)+(1-AG35)*AD37,IF(BRNDateDiff(AF35,BRNNewExpDate)=0,((8/20)*AD36+(11/20)*AD37+1/20*AD38),IF(BRNDateDiff(AF35,BRNNewExpDate)<0,(AG35*AD37)+(1-AG35)*AD38)))) ->  | AK35: =IF(BRNDateDiff(AF35,BRNNewExpDate)>0,IF(OR(Y36="",Y37=""),"",(AG35*Y36)+(1-AG35)*Y37),IF(BRNDateDiff(AF35,BRNNewExpDate)=0,IF(OR(Y36="",Y37="",Y38=""),"",(8/20*Y36)+11/20*Y37)+(1/20*Y38),IF(BRNDateDiff(AF35,BRNNewExpDate)<0,IF(OR(Y37="",Y38=""),"",(AG35*Y37)+(1-AG35)*Y38)))) -> 59.79477273 | AL35: Jan'18 | AM35: -4.81 | AN35: -5.041439394 | AO35: =RTD("esrtd",,"XRB 27!","Delivery") -> Jan'18 | AP35: =RTD("esrtd",,"XRB 27!","Symbol") -> XRB F18 | AQ35: =RTD("esrtd",,AP34 & ":" & SUBSTITUTE(AP35," ",""),"Market") -> -0.008 | AR35: -0.008 | AT35: 1.4773 | AU35: =RTD("esrtd",,"XRB 27!","Last") ->  | AV35: =RTD("esrtd",,"XRB 27!","Change") ->  | AW35: =RTD("esrtd",,"XRB 27!","Time") -> 42277.63419 | AX35: =RTD("esrtd",,"XRB 27!","PrevPrice") -> 1.4636 | AY35: =RTD("esrtd",,"XRB 27!","NewSettlement") ->  | BA35: =RTD("esrtd",,"XRB 27!","Expiration") -> 2017-12-29 | BB35: 1.4686 | BE35: 1.4823 | BF35: 7.503266667 | BG35: 7.534533333 | BJ35: 2.461827273 | BK35: 2.3712 | BN35: =RTD("esrtd",,"HO 27!","Delivery") -> Jan'18 | BO35: =RTD("esrtd",,"HO 27!","Symbol") -> HO F18 | BP35: =RTD("esrtd",,BO34 & ":" & SUBSTITUTE(BO35," ",""),"Market") -> -0.0083 | BQ35: -0.0105 | BS35: 1.79775 | BT35: =RTD("esrtd",,"HO 27!","Last") ->  | BU35: =RTD("esrtd",,"HO 27!","Change") ->  | BV35: =RTD("esrtd",,"HO 27!","Time") -> 42277.6228 | BW35: =RTD("esrtd",,"HO 27!","PrevPrice") -> 1.7894 | BX35: =RTD("esrtd",,"HO 27!","NewSettlement") ->  | BZ35: =RTD("esrtd",,"HO 27!","Expiration") -> 2017-12-29 | CA35: 1.7944 | CD35: 1.80135 | CE35: 20.90336667 | CF35: 21.21813333 | CI35: 15.86192727 | CJ35: 16.0548 | CM35: Jan'18 | CN35: -0.32045 | CO35: -0.31905 | CP35: =RTD("esrtd",,"GAS 28!-ICE","Delivery") -> Jan'18 | CQ35: =RTD("esrtd",,"GAS 28!-ICE","Symbol") -> GAS 18F-ICE | CR35: =RTD("esrtd",, SUBSTITUTE(CQ34,"-ICE","") & ":" & SUBSTITUTE(CQ35," ",""),"Market") -> -3 | CS35: -3.25 | CU35: 550.25 | CV35: =RTD("esrtd",,"GAS 28!-ICE","Last") ->  | CW35: =RTD("esrtd",,"GAS 28!-ICE","Change") ->  | CX35: =RTD("esrtd",,"GAS 28!-ICE","Time") -> 42277.83333 | CY35: =RTD("esrtd",,"GAS 28!-ICE","PrevPrice") -> 545.5 | CZ35: =RTD("esrtd",,"GAS 28!-ICE","NewSettlement") ->  | DB35: =RTD("esrtd",,"GAS 28!-ICE","Expiration") -> 2018-01-11 | DC35: 0.3181818182 | DD35: 546.6931818 | DG35: 551.4431818 | DH35: 14.22444631 | DI35: 14.07163514 | DL35: Jan'18 | DM35: 0.03920094279 | DN35: 0.038987642
B36: =RTD("esrtd",,"CL 28!","Delivery") -> Feb'18 | C36: =RTD("esrtd",,"CL 28!","Symbol") -> CL G18 | D36: =RTD("esrtd",,C35 & ":" & SUBSTITUTE(C36," ",""),"Market") -> -0.14 | E36: -0.15 | G36: 54.7 | H36: =RTD("esrtd",,"CL 28!","Last") ->  | I36: =RTD("esrtd",,"CL 28!","Change") ->  | J36: =RTD("esrtd",,"CL 28!","Time") -> 42277.63007 | K36: =RTD("esrtd",,"CL 28!","PrevPrice") -> 54.09 | L36: =RTD("esrtd",,"CL 28!","NewSettlement") ->  | N36: =RTD("esrtd",,"CL 28!","Expiration") -> 2018-01-22 | O36: 0.6842105263 | P36: 54.32315789 | S36: 54.91842105 | T36: =RTD("esrtd",,"BRN 28!-ICE","Delivery") -> Feb'18 | U36: =RTD("esrtd",,"BRN 28!-ICE","Symbol") -> BRN 18G-ICE | V36: =RTD("esrtd",, SUBSTITUTE(U35,"-ICE","") & ":" & SUBSTITUTE(U36," ",""),"Market") -> -0.21 | W36: -0.23 | Y36: 59.58 | Z36: =RTD("esrtd",,"BRN 28!-ICE","Last") ->  | AA36: =RTD("esrtd",,"BRN 28!-ICE","Change") ->  | AB36: =RTD("esrtd",,"BRN 28!-ICE","Time") -> 42278.35593 | AC36: =RTD("esrtd",,"BRN 28!-ICE","PrevPrice") -> 59.1 | AD36: =RTD("esrtd",,"BRN 28!-ICE","NewSettlement") ->  | AF36: =RTD("esrtd",,"BRN 28!-ICE","Expiration") -> 2017-12-28 | AG36: =IF(BRNDateDiff(AF36,BRNNewExpDate)>0,NetDaysRatio(AF37,ICEHolidays,-1),IF(BRNDateDiff(AF36,BRNNewExpDate)=0,"",IF(BRNDateDiff(AF36,BRNNewExpDate)<0,NetDaysRatio(AF38,ICEHolidays,-1)))) -> 0.95 | AH36: =IF(BRNDateDiff(AF36,BRNNewExpDate)>0,(AG36*AC37)+(1-AG36)*AC38,IF(BRNDateDiff(AF36,BRNNewExpDate)=0,((8/20)*AC37+(11/20)*AC38+1/20*AC39),IF(BRNDateDiff(AF36,BRNNewExpDate)<0,(AG36*AC38)+(1-AG36)*AC39))) -> 59.531 | AI36: =IF(OR(AD37="",AD38="",AD39=""),"",IF(BRNDateDiff(AF36,BRNNewExpDate)>0,(AG36*AD37)+(1-AG36)*AD38,IF(BRNDateDiff(AF36,BRNNewExpDate)=0,((8/20)*AD37+(11/20)*AD38+1/20*AD39),IF(BRNDateDiff(AF36,BRNNewExpDate)<0,(AG36*AD38)+(1-AG36)*AD39)))) ->  | AK36: =IF(BRNDateDiff(AF36,BRNNewExpDate)>0,IF(OR(Y37="",Y38=""),"",(AG36*Y37)+(1-AG36)*Y38),IF(BRNDateDiff(AF36,BRNNewExpDate)=0,IF(OR(Y37="",Y38="",Y39=""),"",(8/20*Y37)+11/20*Y38)+(1/20*Y39),IF(BRNDateDiff(AF36,BRNNewExpDate)<0,IF(OR(Y38="",Y39=""),"",(AG36*Y38)+(1-AG36)*Y39)))) -> 60.0095 | AL36: Feb'18 | AM36: -4.88 | AN36: -5.091078947 | AO36: =RTD("esrtd",,"XRB 28!","Delivery") -> Feb'18 | AP36: =RTD("esrtd",,"XRB 28!","Symbol") -> XRB G18 | AQ36: =RTD("esrtd",,AP35 & ":" & SUBSTITUTE(AP36," ",""),"Market") -> -0.005 | AR36: -0.005 | AT36: 1.4823 | AU36: =RTD("esrtd",,"XRB 28!","Last") ->  | AV36: =RTD("esrtd",,"XRB 28!","Change") ->  | AW36: =RTD("esrtd",,"XRB 28!","Time") -> 42277.63419 | AX36: =RTD("esrtd",,"XRB 28!","PrevPrice") -> 1.4686 | AY36: =RTD("esrtd",,"XRB 28!","NewSettlement") ->  | BA36: =RTD("esrtd",,"XRB 28!","Expiration") -> 2018-01-31 | BB36: 1.4874 | BE36: 1.5011 | BF36: 8.127778947 | BG36: 8.147642105 | BJ36: 3.0367 | BK36: 2.9398 | BN36: =RTD("esrtd",,"HO 28!","Delivery") -> Feb'18 | BO36: =RTD("esrtd",,"HO 28!","Symbol") -> HO G18 | BP36: =RTD("esrtd",,BO35 & ":" & SUBSTITUTE(BO36," ",""),"Market") -> -0.0036 | BQ36: -0.005 | BS36: 1.80135 | BT36: =RTD("esrtd",,"HO 28!","Last") ->  | BU36: =RTD("esrtd",,"HO 28!","Change") ->  | BV36: =RTD("esrtd",,"HO 28!","Time") -> 42277.6228 | BW36: =RTD("esrtd",,"HO 28!","PrevPrice") -> 1.7944 | BX36: =RTD("esrtd",,"HO 28!","NewSettlement") ->  | BZ36: =RTD("esrtd",,"HO 28!","Expiration") -> 2018-01-31 | CA36: 1.7929 | CD36: 1.79935 | CE36: 20.65427895 | CF36: 20.97864211 | CI36: 15.5632 | CJ36: 15.7708 | CM36: Feb'18 | CN36: -0.31905 | CO36: -0.29825 | CP36: =RTD("esrtd",,"GAS 29!-ICE","Delivery") -> Feb'18 | CQ36: =RTD("esrtd",,"GAS 29!-ICE","Symbol") -> GAS 18G-ICE | CR36: =RTD("esrtd",, SUBSTITUTE(CQ35,"-ICE","") & ":" & SUBSTITUTE(CQ36," ",""),"Market") -> -1.75 | CS36: -1.75 | CU36: 552 | CV36: =RTD("esrtd",,"GAS 29!-ICE","Last") ->  | CW36: =RTD("esrtd",,"GAS 29!-ICE","Change") ->  | CX36: =RTD("esrtd",,"GAS 29!-ICE","Time") -> 42277.83333 | CY36: =RTD("esrtd",,"GAS 29!-ICE","PrevPrice") -> 547.25 | CZ36: =RTD("esrtd",,"GAS 29!-ICE","NewSettlement") ->  | DB36: =RTD("esrtd",,"GAS 29!-ICE","Expiration") -> 2018-02-12 | DC36: 0.35 | DD36: 548.3875 | DG36: 553.1375 | DH36: 14.2371443 | DI36: 14.0780604 | DL36: Feb'18 | DM36: 0.03720810163 | DN36: 0.03157275487
B37: =RTD("esrtd",,"CL 29!","Delivery") -> Mar'18 | C37: =RTD("esrtd",,"CL 29!","Symbol") -> CL H18 | D37: =RTD("esrtd",,C36 & ":" & SUBSTITUTE(C37," ",""),"Market") -> -0.16 | E37: -0.17 | G37: 54.86 | H37: =RTD("esrtd",,"CL 29!","Last") ->  | I37: =RTD("esrtd",,"CL 29!","Change") ->  | J37: =RTD("esrtd",,"CL 29!","Time") -> 42277.63007 | K37: =RTD("esrtd",,"CL 29!","PrevPrice") -> 54.26 | L37: =RTD("esrtd",,"CL 29!","NewSettlement") ->  | N37: =RTD("esrtd",,"CL 29!","Expiration") -> 2018-02-20 | O37: 0.6666666667 | P37: 54.53 | S37: 55.12 | T37: =RTD("esrtd",,"BRN 29!-ICE","Delivery") -> Mar'18 | U37: =RTD("esrtd",,"BRN 29!-ICE","Symbol") -> BRN 18H-ICE | V37: =RTD("esrtd",, SUBSTITUTE(U36,"-ICE","") & ":" & SUBSTITUTE(U37," ",""),"Market") -> -0.205 | W37: -0.2 | Y37: 59.785 | Z37: =RTD("esrtd",,"BRN 29!-ICE","Last") ->  | AA37: =RTD("esrtd",,"BRN 29!-ICE","Change") ->  | AB37: =RTD("esrtd",,"BRN 29!-ICE","Time") -> 42278.35593 | AC37: =RTD("esrtd",,"BRN 29!-ICE","PrevPrice") -> 59.3 | AD37: =RTD("esrtd",,"BRN 29!-ICE","NewSettlement") ->  | AF37: =RTD("esrtd",,"BRN 29!-ICE","Expiration") -> 2018-01-31 | AG37: =IF(BRNDateDiff(AF37,BRNNewExpDate)>0,NetDaysRatio(AF38,ICEHolidays,-1),IF(BRNDateDiff(AF37,BRNNewExpDate)=0,"",IF(BRNDateDiff(AF37,BRNNewExpDate)<0,NetDaysRatio(AF39,ICEHolidays,-1)))) -> 0.9523809524 | AH37: =IF(BRNDateDiff(AF37,BRNNewExpDate)>0,(AG37*AC38)+(1-AG37)*AC39,IF(BRNDateDiff(AF37,BRNNewExpDate)=0,((8/20)*AC38+(11/20)*AC39+1/20*AC40),IF(BRNDateDiff(AF37,BRNNewExpDate)<0,(AG37*AC39)+(1-AG37)*AC40))) -> 59.74952381 | AI37: =IF(OR(AD38="",AD39="",AD40=""),"",IF(BRNDateDiff(AF37,BRNNewExpDate)>0,(AG37*AD38)+(1-AG37)*AD39,IF(BRNDateDiff(AF37,BRNNewExpDate)=0,((8/20)*AD38+(11/20)*AD39+1/20*AD40),IF(BRNDateDiff(AF37,BRNNewExpDate)<0,(AG37*AD39)+(1-AG37)*AD40)))) ->  | AK37: =IF(BRNDateDiff(AF37,BRNNewExpDate)>0,IF(OR(Y38="",Y39=""),"",(AG37*Y38)+(1-AG37)*Y39),IF(BRNDateDiff(AF37,BRNNewExpDate)=0,IF(OR(Y38="",Y39="",Y40=""),"",(8/20*Y38)+11/20*Y39)+(1/20*Y40),IF(BRNDateDiff(AF37,BRNNewExpDate)<0,IF(OR(Y39="",Y40=""),"",(AG37*Y39)+(1-AG37)*Y40)))) -> 60.19809524 | AL37: Mar'18 | AM37: -4.925 | AN37: -5.078095238 | AO37: =RTD("esrtd",,"XRB 29!","Delivery") -> Mar'18 | AP37: =RTD("esrtd",,"XRB 29!","Symbol") -> XRB H18 | AQ37: =RTD("esrtd",,AP36 & ":" & SUBSTITUTE(AP37," ",""),"Market") -> -0.0188 | AR37: -0.0188 | AT37: 1.5011 | AU37: =RTD("esrtd",,"XRB 29!","Last") ->  | AV37: =RTD("esrtd",,"XRB 29!","Change") ->  | AW37: =RTD("esrtd",,"XRB 29!","Time") -> 42277.63419 | AX37: =RTD("esrtd",,"XRB 29!","PrevPrice") -> 1.4874 | AY37: =RTD("esrtd",,"XRB 29!","NewSettlement") ->  | BA37: =RTD("esrtd",,"XRB 29!","Expiration") -> 2018-02-28 | BB37: 1.6932 | BE37: 1.7155 | BF37: 16.931 | BG37: 16.5844 | BJ37: 11.85290476 | BK37: 11.36487619 | BN37: =RTD("esrtd",,"HO 29!","Delivery") -> Mar'18 | BO37: =RTD("esrtd",,"HO 29!","Symbol") -> HO H18 | BP37: =RTD("esrtd",,BO36 & ":" & SUBSTITUTE(BO37," ",""),"Market") -> 0.002 | BQ37: 0.0015 | BS37: 1.79935 | BT37: =RTD("esrtd",,"HO 29!","Last") ->  | BU37: =RTD("esrtd",,"HO 29!","Change") ->  | BV37: =RTD("esrtd",,"HO 29!","Time") -> 42277.6228 | BW37: =RTD("esrtd",,"HO 29!","PrevPrice") -> 1.7929 | BX37: =RTD("esrtd",,"HO 29!","NewSettlement") ->  | BZ37: =RTD("esrtd",,"HO 29!","Expiration") -> 2018-02-28 | CA37: 1.7884 | CD37: 1.79485 | CE37: 20.2637 | CF37: 20.5828 | CI37: 15.18560476 | CJ37: 15.36327619 | CM37: Mar'18 | CN37: -0.29825 | CO37: -0.07935 | CP37: =RTD("esrtd",,"GAS 30!-ICE","Delivery") -> Mar'18 | CQ37: =RTD("esrtd",,"GAS 30!-ICE","Symbol") -> GAS 18H-ICE | CR37: =RTD("esrtd",, SUBSTITUTE(CQ36,"-ICE","") & ":" & SUBSTITUTE(CQ37," ",""),"Market") -> -1.75 | CS37: -1.75 | CU37: 553.75 | CV37: =RTD("esrtd",,"GAS 30!-ICE","Last") ->  | CW37: =RTD("esrtd",,"GAS 30!-ICE","Change") ->  | CX37: =RTD("esrtd",,"GAS 30!-ICE","Time") -> 42277.83333 | CY37: =RTD("esrtd",,"GAS 30!-ICE","PrevPrice") -> 549 | CZ37: =RTD("esrtd",,"GAS 30!-ICE","NewSettlement") ->  | DB37: =RTD("esrtd",,"GAS 30!-ICE","Expiration") -> 2018-03-12 | DC37: 0.3333333333 | DD37: 550.1666667 | DG37: 554.9166667 | DH37: 14.28736337 | DI37: 14.09835091 | DL37: Mar'18 | DM37: 0.02961526047 | DN37: 0.02138669969
B38: =RTD("esrtd",,"CL 30!","Delivery") -> Apr'18 | C38: =RTD("esrtd",,"CL 30!","Symbol") -> CL J18 | D38: =RTD("esrtd",,C37 & ":" & SUBSTITUTE(C38," ",""),"Market") -> -0.185 | E38: -0.2 | G38: 55.045 | H38: =RTD("esrtd",,"CL 30!","Last") ->  | I38: =RTD("esrtd",,"CL 30!","Change") ->  | J38: =RTD("esrtd",,"CL 30!","Time") -> 42277.63007 | K38: =RTD("esrtd",,"CL 30!","PrevPrice") -> 54.46 | L38: =RTD("esrtd",,"CL 30!","NewSettlement") ->  | N38: =RTD("esrtd",,"CL 30!","Expiration") -> 2018-03-20 | O38: 0.7142857143 | P38: 54.73571429 | S38: 55.34 | T38: =RTD("esrtd",,"BRN 30!-ICE","Delivery") -> Apr'18 | U38: =RTD("esrtd",,"BRN 30!-ICE","Symbol") -> BRN 18J-ICE | V38: =RTD("esrtd",, SUBSTITUTE(U37,"-ICE","") & ":" & SUBSTITUTE(U38," ",""),"Market") -> -0.215 | W38: -0.22 | Y38: 60 | Z38: =RTD("esrtd",,"BRN 30!-ICE","Last") ->  | AA38: =RTD("esrtd",,"BRN 30!-ICE","Change") ->  | AB38: =RTD("esrtd",,"BRN 30!-ICE","Time") -> 42277.83333 | AC38: =RTD("esrtd",,"BRN 30!-ICE","PrevPrice") -> 59.52 | AD38: =RTD("esrtd",,"BRN 30!-ICE","NewSettlement") ->  | AF38: =RTD("esrtd",,"BRN 30!-ICE","Expiration") -> 2018-02-28 | AG38: =IF(BRNDateDiff(AF38,BRNNewExpDate)>0,NetDaysRatio(AF39,ICEHolidays,-1),IF(BRNDateDiff(AF38,BRNNewExpDate)=0,"",IF(BRNDateDiff(AF38,BRNNewExpDate)<0,NetDaysRatio(AF40,ICEHolidays,-1)))) -> 0.9523809524 | AH38: =IF(BRNDateDiff(AF38,BRNNewExpDate)>0,(AG38*AC39)+(1-AG38)*AC40,IF(BRNDateDiff(AF38,BRNNewExpDate)=0,((8/20)*AC39+(11/20)*AC40+1/20*AC41),IF(BRNDateDiff(AF38,BRNNewExpDate)<0,(AG38*AC40)+(1-AG38)*AC41))) -> 59.94666667 | AI38: =IF(OR(AD39="",AD40="",AD41=""),"",IF(BRNDateDiff(AF38,BRNNewExpDate)>0,(AG38*AD39)+(1-AG38)*AD40,IF(BRNDateDiff(AF38,BRNNewExpDate)=0,((8/20)*AD39+(11/20)*AD40+1/20*AD41),IF(BRNDateDiff(AF38,BRNNewExpDate)<0,(AG38*AD40)+(1-AG38)*AD41)))) ->  | AK38: =IF(BRNDateDiff(AF38,BRNNewExpDate)>0,IF(OR(Y39="",Y40=""),"",(AG38*Y39)+(1-AG38)*Y40),IF(BRNDateDiff(AF38,BRNNewExpDate)=0,IF(OR(Y39="",Y40="",Y41=""),"",(8/20*Y39)+11/20*Y40)+(1/20*Y41),IF(BRNDateDiff(AF38,BRNNewExpDate)<0,IF(OR(Y40="",Y41=""),"",(AG38*Y40)+(1-AG38)*Y41)))) -> 60.36666667 | AL38: Apr'18 | AM38: -4.955 | AN38: -5.026666667 | AO38: =RTD("esrtd",,"XRB 30!","Delivery") -> Apr'18 | AP38: =RTD("esrtd",,"XRB 30!","Symbol") -> XRB J18 | AQ38: =RTD("esrtd",,AP37 & ":" & SUBSTITUTE(AP38," ",""),"Market") -> -0.2144 | AR38: -0.2058 | AT38: 1.7155 | AU38: =RTD("esrtd",,"XRB 30!","Last") ->  | AV38: =RTD("esrtd",,"XRB 30!","Change") ->  | AW38: =RTD("esrtd",,"XRB 30!","Time") -> 42277.63419 | AX38: =RTD("esrtd",,"XRB 30!","PrevPrice") -> 1.6932 | AY38: =RTD("esrtd",,"XRB 30!","NewSettlement") ->  | BA38: =RTD("esrtd",,"XRB 30!","Expiration") -> 2018-03-29 | BB38: 1.6922 | BE38: 1.7145 | BF38: 16.669 | BG38: 16.33668571 | BJ38: 11.64233333 | BK38: 11.12573333 | BN38: =RTD("esrtd",,"HO 30!","Delivery") -> Apr'18 | BO38: =RTD("esrtd",,"HO 30!","Symbol") -> HO J18 | BP38: =RTD("esrtd",,BO37 & ":" & SUBSTITUTE(BO38," ",""),"Market") -> 0.0045 | BQ38: 0.0045 | BS38: 1.79485 | BT38: =RTD("esrtd",,"HO 30!","Last") ->  | BU38: =RTD("esrtd",,"HO 30!","Change") ->  | BV38: =RTD("esrtd",,"HO 30!","Time") -> 42277.6228 | BW38: =RTD("esrtd",,"HO 30!","PrevPrice") -> 1.7884 | BX38: =RTD("esrtd",,"HO 30!","NewSettlement") ->  | BZ38: =RTD("esrtd",,"HO 30!","Expiration") -> 2018-03-29 | CA38: 1.7919 | CD38: 1.79835 | CE38: 20.1907 | CF38: 20.52408571 | CI38: 15.16403333 | CJ38: 15.31313333 | CM38: Apr'18 | CN38: -0.07935 | CO38: -0.08385 | CP38: =RTD("esrtd",,"GAS 31!-ICE","Delivery") -> Apr'18 | CQ38: =RTD("esrtd",,"GAS 31!-ICE","Symbol") -> GAS 18J-ICE | CR38: =RTD("esrtd",, SUBSTITUTE(CQ37,"-ICE","") & ":" & SUBSTITUTE(CQ38," ",""),"Market") -> -1.75 | CS38: -1.75 | CU38: 555.5 | CV38: =RTD("esrtd",,"GAS 31!-ICE","Last") ->  | CW38: =RTD("esrtd",,"GAS 31!-ICE","Change") ->  | CX38: =RTD("esrtd",,"GAS 31!-ICE","Time") -> 42277.83333 | CY38: =RTD("esrtd",,"GAS 31!-ICE","PrevPrice") -> 550.75 | CZ38: =RTD("esrtd",,"GAS 31!-ICE","NewSettlement") ->  | DB38: =RTD("esrtd",,"GAS 31!-ICE","Expiration") -> 2018-04-12 | DC38: 0.380952381 | DD38: 551.8333333 | DG38: 556.5833333 | DH38: 14.34250559 | DI38: 14.1249217 | DL38: Apr'18 | DM38: 0.0195224193 | DN38: 0.0195601843
B39: =RTD("esrtd",,"CL 31!","Delivery") -> May'18 | C39: =RTD("esrtd",,"CL 31!","Symbol") -> CL K18 | D39: =RTD("esrtd",,C38 & ":" & SUBSTITUTE(C39," ",""),"Market") -> -0.225 | E39: -0.21 | G39: 55.27 | H39: =RTD("esrtd",,"CL 31!","Last") ->  | I39: =RTD("esrtd",,"CL 31!","Change") ->  | J39: =RTD("esrtd",,"CL 31!","Time") -> 42277.63007 | K39: =RTD("esrtd",,"CL 31!","PrevPrice") -> 54.67 | L39: =RTD("esrtd",,"CL 31!","NewSettlement") ->  | N39: =RTD("esrtd",,"CL 31!","Expiration") -> 2018-04-20 | O39: 0.7272727273 | P39: 54.94090909 | S39: 55.55590909 | T39: =RTD("esrtd",,"BRN 31!-ICE","Delivery") -> May'18 | U39: =RTD("esrtd",,"BRN 31!-ICE","Symbol") -> BRN 18K-ICE | V39: =RTD("esrtd",, SUBSTITUTE(U38,"-ICE","") & ":" & SUBSTITUTE(U39," ",""),"Market") -> -0.19 | W39: -0.22 | Y39: 60.19 | Z39: =RTD("esrtd",,"BRN 31!-ICE","Last") ->  | AA39: =RTD("esrtd",,"BRN 31!-ICE","Change") ->  | AB39: =RTD("esrtd",,"BRN 31!-ICE","Time") -> 42277.83333 | AC39: =RTD("esrtd",,"BRN 31!-ICE","PrevPrice") -> 59.74 | AD39: =RTD("esrtd",,"BRN 31!-ICE","NewSettlement") ->  | AF39: =RTD("esrtd",,"BRN 31!-ICE","Expiration") -> 2018-03-29 | AG39: =IF(BRNDateDiff(AF39,BRNNewExpDate)>0,NetDaysRatio(AF40,ICEHolidays,-1),IF(BRNDateDiff(AF39,BRNNewExpDate)=0,"",IF(BRNDateDiff(AF39,BRNNewExpDate)<0,NetDaysRatio(AF41,ICEHolidays,-1)))) -> 0.9565217391 | AH39: =IF(BRNDateDiff(AF39,BRNNewExpDate)>0,(AG39*AC40)+(1-AG39)*AC41,IF(BRNDateDiff(AF39,BRNNewExpDate)=0,((8/20)*AC40+(11/20)*AC41+1/20*AC42),IF(BRNDateDiff(AF39,BRNNewExpDate)<0,(AG39*AC41)+(1-AG39)*AC42))) -> 60.08608696 | AI39: =IF(OR(AD40="",AD41="",AD42=""),"",IF(BRNDateDiff(AF39,BRNNewExpDate)>0,(AG39*AD40)+(1-AG39)*AD41,IF(BRNDateDiff(AF39,BRNNewExpDate)=0,((8/20)*AD40+(11/20)*AD41+1/20*AD42),IF(BRNDateDiff(AF39,BRNNewExpDate)<0,(AG39*AD41)+(1-AG39)*AD42)))) ->  | AK39: =IF(BRNDateDiff(AF39,BRNNewExpDate)>0,IF(OR(Y40="",Y41=""),"",(AG39*Y40)+(1-AG39)*Y41),IF(BRNDateDiff(AF39,BRNNewExpDate)=0,IF(OR(Y40="",Y41="",Y42=""),"",(8/20*Y40)+11/20*Y41)+(1/20*Y42),IF(BRNDateDiff(AF39,BRNNewExpDate)<0,IF(OR(Y41="",Y42=""),"",(AG39*Y41)+(1-AG39)*Y42)))) -> 60.50608696 | AL39: May'18 | AM39: -4.92 | AN39: -4.950177866 | AO39: =RTD("esrtd",,"XRB 31!","Delivery") -> May'18 | AP39: =RTD("esrtd",,"XRB 31!","Symbol") -> XRB K18 | AQ39: =RTD("esrtd",,AP38 & ":" & SUBSTITUTE(AP39," ",""),"Market") -> 0.001 | AR39: 0.001 | AT39: 1.7145 | AU39: =RTD("esrtd",,"XRB 31!","Last") ->  | AV39: =RTD("esrtd",,"XRB 31!","Change") ->  | AW39: =RTD("esrtd",,"XRB 31!","Time") -> 42277.63419 | AX39: =RTD("esrtd",,"XRB 31!","PrevPrice") -> 1.6922 | AY39: =RTD("esrtd",,"XRB 31!","NewSettlement") ->  | BA39: =RTD("esrtd",,"XRB 31!","Expiration") -> 2018-04-30 | BB39: 1.6834 | BE39: 1.7057 | BF39: 16.08349091 | BG39: 15.76189091 | BJ39: 11.13331304 | BK39: 10.61671304 | BN39: =RTD("esrtd",,"HO 31!","Delivery") -> May'18 | BO39: =RTD("esrtd",,"HO 31!","Symbol") -> HO K18 | BP39: =RTD("esrtd",,BO38 & ":" & SUBSTITUTE(BO39," ",""),"Market") -> -0.0035 | BQ39: -0.0035 | BS39: 1.79835 | BT39: =RTD("esrtd",,"HO 31!","Last") ->  | BU39: =RTD("esrtd",,"HO 31!","Change") ->  | BV39: =RTD("esrtd",,"HO 31!","Time") -> 42277.6228 | BW39: =RTD("esrtd",,"HO 31!","PrevPrice") -> 1.7919 | BX39: =RTD("esrtd",,"HO 31!","NewSettlement") ->  | BZ39: =RTD("esrtd",,"HO 31!","Expiration") -> 2018-04-30 | CA39: 1.7984 | CD39: 1.80485 | CE39: 20.24779091 | CF39: 20.59189091 | CI39: 15.29761304 | CJ39: 15.44671304 | CM39: May'18 | CN39: -0.08385 | CO39: -0.09915 | CP39: =RTD("esrtd",,"GAS 32!-ICE","Delivery") -> May'18 | CQ39: =RTD("esrtd",,"GAS 32!-ICE","Symbol") -> GAS 18K-ICE | CR39: =RTD("esrtd",, SUBSTITUTE(CQ38,"-ICE","") & ":" & SUBSTITUTE(CQ39," ",""),"Market") -> -1.75 | CS39: -1.75 | CU39: 557.25 | CV39: =RTD("esrtd",,"GAS 32!-ICE","Last") ->  | CW39: =RTD("esrtd",,"GAS 32!-ICE","Change") ->  | CX39: =RTD("esrtd",,"GAS 32!-ICE","Time") -> 42277.83333 | CY39: =RTD("esrtd",,"GAS 32!-ICE","PrevPrice") -> 552.5 | CZ39: =RTD("esrtd",,"GAS 32!-ICE","NewSettlement") ->  | DB39: =RTD("esrtd",,"GAS 32!-ICE","Expiration") -> 2018-05-10 | DC39: 0.3043478261 | DD39: 553.5434783 | DG39: 558.2934783 | DH39: 14.43263496 | DI39: 14.21505107 | DL39: May'18 | DM39: 0.01742957814 | DN39: 0.02059471633
B40: =RTD("esrtd",,"CL 32!","Delivery") -> Jun'18 | C40: =RTD("esrtd",,"CL 32!","Symbol") -> CL M18 | D40: =RTD("esrtd",,C39 & ":" & SUBSTITUTE(C40," ",""),"Market") -> -0.245 | E40: -0.23 | G40: 55.515 | H40: =RTD("esrtd",,"CL 32!","Last") ->  | I40: =RTD("esrtd",,"CL 32!","Change") ->  | J40: =RTD("esrtd",,"CL 32!","Time") -> 42278.36927 | K40: =RTD("esrtd",,"CL 32!","PrevPrice") -> 54.9 | L40: =RTD("esrtd",,"CL 32!","NewSettlement") ->  | N40: =RTD("esrtd",,"CL 32!","Expiration") -> 2018-05-22 | O40: 0.6666666667 | P40: 55.11 | S40: 55.725 | T40: =RTD("esrtd",,"BRN 32!-ICE","Delivery") -> Jun'18 | U40: =RTD("esrtd",,"BRN 32!-ICE","Symbol") -> BRN 18M-ICE | V40: =RTD("esrtd",, SUBSTITUTE(U39,"-ICE","") & ":" & SUBSTITUTE(U40," ",""),"Market") -> -0.17 | W40: -0.2 | Y40: 60.36 | Z40: =RTD("esrtd",,"BRN 32!-ICE","Last") ->  | AA40: =RTD("esrtd",,"BRN 32!-ICE","Change") ->  | AB40: =RTD("esrtd",,"BRN 32!-ICE","Time") -> 42278.36932 | AC40: =RTD("esrtd",,"BRN 32!-ICE","PrevPrice") -> 59.94 | AD40: =RTD("esrtd",,"BRN 32!-ICE","NewSettlement") ->  | AF40: =RTD("esrtd",,"BRN 32!-ICE","Expiration") -> 2018-04-30 | AG40: =IF(BRNDateDiff(AF40,BRNNewExpDate)>0,NetDaysRatio(AF41,ICEHolidays,-1),IF(BRNDateDiff(AF40,BRNNewExpDate)=0,"",IF(BRNDateDiff(AF40,BRNNewExpDate)<0,NetDaysRatio(AF42,ICEHolidays,-1)))) -> 0.9523809524 | AH40: =IF(BRNDateDiff(AF40,BRNNewExpDate)>0,(AG40*AC41)+(1-AG40)*AC42,IF(BRNDateDiff(AF40,BRNNewExpDate)=0,((8/20)*AC41+(11/20)*AC42+1/20*AC43),IF(BRNDateDiff(AF40,BRNNewExpDate)<0,(AG40*AC42)+(1-AG40)*AC43))) -> 60.22666667 | AI40: =IF(OR(AD41="",AD42="",AD43=""),"",IF(BRNDateDiff(AF40,BRNNewExpDate)>0,(AG40*AD41)+(1-AG40)*AD42,IF(BRNDateDiff(AF40,BRNNewExpDate)=0,((8/20)*AD41+(11/20)*AD42+1/20*AD43),IF(BRNDateDiff(AF40,BRNNewExpDate)<0,(AG40*AD42)+(1-AG40)*AD43)))) ->  | AK40: =IF(BRNDateDiff(AF40,BRNNewExpDate)>0,IF(OR(Y41="",Y42=""),"",(AG40*Y41)+(1-AG40)*Y42),IF(BRNDateDiff(AF40,BRNNewExpDate)=0,IF(OR(Y41="",Y42="",Y43=""),"",(8/20*Y41)+11/20*Y42)+(1/20*Y43),IF(BRNDateDiff(AF40,BRNNewExpDate)<0,IF(OR(Y42="",Y43=""),"",(AG40*Y42)+(1-AG40)*Y43)))) -> 60.64666667 | AL40: Jun'18 | AM40: -4.845 | AN40: -4.921666667 | AO40: =RTD("esrtd",,"XRB 32!","Delivery") -> Jun'18 | AP40: =RTD("esrtd",,"XRB 32!","Symbol") -> XRB M18 | AQ40: =RTD("esrtd",,AP39 & ":" & SUBSTITUTE(AP40," ",""),"Market") -> 0.0088 | AR40: 0.0088 | AT40: 1.7057 | AU40: =RTD("esrtd",,"XRB 32!","Last") ->  | AV40: =RTD("esrtd",,"XRB 32!","Change") ->  | AW40: =RTD("esrtd",,"XRB 32!","Time") -> 42277.63419 | AX40: =RTD("esrtd",,"XRB 32!","PrevPrice") -> 1.6834 | AY40: =RTD("esrtd",,"XRB 32!","NewSettlement") ->  | BA40: =RTD("esrtd",,"XRB 32!","Expiration") -> 2018-05-31 | BB40: 1.6746 | BE40: 1.6969 | BF40: 15.5448 | BG40: 15.2232 | BJ40: 10.62313333 | BK40: 10.10653333 | BN40: =RTD("esrtd",,"HO 32!","Delivery") -> Jun'18 | BO40: =RTD("esrtd",,"HO 32!","Symbol") -> HO M18 | BP40: =RTD("esrtd",,BO39 & ":" & SUBSTITUTE(BO40," ",""),"Market") -> -0.0065 | BQ40: -0.0065 | BS40: 1.80485 | BT40: =RTD("esrtd",,"HO 32!","Last") ->  | BU40: =RTD("esrtd",,"HO 32!","Change") ->  | BV40: =RTD("esrtd",,"HO 32!","Time") -> 42278.36931 | BW40: =RTD("esrtd",,"HO 32!","PrevPrice") -> 1.7984 | BX40: =RTD("esrtd",,"HO 32!","NewSettlement") ->  | BZ40: =RTD("esrtd",,"HO 32!","Expiration") -> 2018-05-31 | CA40: 1.8034 | CD40: 1.80985 | CE40: 20.2887 | CF40: 20.6328 | CI40: 15.36703333 | CJ40: 15.51613333 | CM40: Jun'18 | CN40: -0.09915 | CO40: -0.11295 | CP40: =RTD("esrtd",,"GAS 33!-ICE","Delivery") -> Jun'18 | CQ40: =RTD("esrtd",,"GAS 33!-ICE","Symbol") -> GAS 18M-ICE | CR40: =RTD("esrtd",, SUBSTITUTE(CQ39,"-ICE","") & ":" & SUBSTITUTE(CQ40," ",""),"Market") -> -1.5 | CS40: -1.5 | CU40: 558.75 | CV40: =RTD("esrtd",,"GAS 33!-ICE","Last") ->  | CW40: =RTD("esrtd",,"GAS 33!-ICE","Change") ->  | CX40: =RTD("esrtd",,"GAS 33!-ICE","Time") -> 42278.36931 | CY40: =RTD("esrtd",,"GAS 33!-ICE","PrevPrice") -> 554 | CZ40: =RTD("esrtd",,"GAS 33!-ICE","NewSettlement") ->  | DB40: =RTD("esrtd",,"GAS 33!-ICE","Expiration") -> 2018-06-12 | DC40: 0.3333333333 | DD40: 554.8333333 | DG40: 559.5833333 | DH40: 14.46519016 | DI40: 14.24760626 | DL40: Jun'18 | DM40: 0.01913571429 | DN40: 0.02147245659
B41: =RTD("esrtd",,"CL 33!","Delivery") -> Jul'18 | C41: =RTD("esrtd",,"CL 33!","Symbol") -> CL N18 | D41: =RTD("esrtd",,C40 & ":" & SUBSTITUTE(C41," ",""),"Market") -> -0.15 | E41: -0.15 | G41: 55.665 | H41: =RTD("esrtd",,"CL 33!","Last") ->  | I41: =RTD("esrtd",,"CL 33!","Change") ->  | J41: =RTD("esrtd",,"CL 33!","Time") -> 42277.63007 | K41: =RTD("esrtd",,"CL 33!","PrevPrice") -> 55.05 | L41: =RTD("esrtd",,"CL 33!","NewSettlement") ->  | N41: =RTD("esrtd",,"CL 33!","Expiration") -> 2018-06-20 | O41: 0.6666666667 | P41: 55.29 | S41: 55.905 | T41: =RTD("esrtd",,"BRN 33!-ICE","Delivery") -> Jul'18 | U41: =RTD("esrtd",,"BRN 33!-ICE","Symbol") -> BRN 18N-ICE | V41: =RTD("esrtd",, SUBSTITUTE(U40,"-ICE","") & ":" & SUBSTITUTE(U41," ",""),"Market") -> -0.14 | W41: -0.14 | Y41: 60.5 | Z41: =RTD("esrtd",,"BRN 33!-ICE","Last") ->  | AA41: =RTD("esrtd",,"BRN 33!-ICE","Change") ->  | AB41: =RTD("esrtd",,"BRN 33!-ICE","Time") -> 42277.83333 | AC41: =RTD("esrtd",,"BRN 33!-ICE","PrevPrice") -> 60.08 | AD41: =RTD("esrtd",,"BRN 33!-ICE","NewSettlement") ->  | AF41: =RTD("esrtd",,"BRN 33!-ICE","Expiration") -> 2018-05-31 | AG41: =IF(BRNDateDiff(AF41,BRNNewExpDate)>0,NetDaysRatio(AF42,ICEHolidays,-1),IF(BRNDateDiff(AF41,BRNNewExpDate)=0,"",IF(BRNDateDiff(AF41,BRNNewExpDate)<0,NetDaysRatio(AF43,ICEHolidays,-1)))) -> 0.9545454545 | AH41: =IF(BRNDateDiff(AF41,BRNNewExpDate)>0,(AG41*AC42)+(1-AG41)*AC43,IF(BRNDateDiff(AF41,BRNNewExpDate)=0,((8/20)*AC42+(11/20)*AC43+1/20*AC44),IF(BRNDateDiff(AF41,BRNNewExpDate)<0,(AG41*AC43)+(1-AG41)*AC44))) -> 60.36590909 | AI41: =IF(OR(AD42="",AD43="",AD44=""),"",IF(BRNDateDiff(AF41,BRNNewExpDate)>0,(AG41*AD42)+(1-AG41)*AD43,IF(BRNDateDiff(AF41,BRNNewExpDate)=0,((8/20)*AD42+(11/20)*AD43+1/20*AD44),IF(BRNDateDiff(AF41,BRNNewExpDate)<0,(AG41*AD43)+(1-AG41)*AD44)))) ->  | AK41: =IF(BRNDateDiff(AF41,BRNNewExpDate)>0,IF(OR(Y42="",Y43=""),"",(AG41*Y42)+(1-AG41)*Y43),IF(BRNDateDiff(AF41,BRNNewExpDate)=0,IF(OR(Y42="",Y43="",Y44=""),"",(8/20*Y42)+11/20*Y43)+(1/20*Y44),IF(BRNDateDiff(AF41,BRNNewExpDate)<0,IF(OR(Y43="",Y44=""),"",(AG41*Y43)+(1-AG41)*Y44)))) -> 60.78590909 | AL41: Jul'18 | AM41: -4.835 | AN41: -4.880909091 | AO41: =RTD("esrtd",,"XRB 33!","Delivery") -> Jul'18 | AP41: =RTD("esrtd",,"XRB 33!","Symbol") -> XRB N18 | AQ41: =RTD("esrtd",,AP40 & ":" & SUBSTITUTE(AP41," ",""),"Market") -> 0.0088 | AR41: 0.0088 | AT41: 1.6969 | AU41: =RTD("esrtd",,"XRB 33!","Last") ->  | AV41: =RTD("esrtd",,"XRB 33!","Change") ->  | AW41: =RTD("esrtd",,"XRB 33!","Time") -> 42277.63419 | AX41: =RTD("esrtd",,"XRB 33!","PrevPrice") -> 1.6746 | AY41: =RTD("esrtd",,"XRB 33!","NewSettlement") ->  | BA41: =RTD("esrtd",,"XRB 33!","Expiration") -> 2018-06-29 | BB41: 1.6596 | BE41: 1.6819 | BF41: 14.7348 | BG41: 14.4132 | BJ41: 9.853890909 | BK41: 9.337290909 | BN41: =RTD("esrtd",,"HO 33!","Delivery") -> Jul'18 | BO41: =RTD("esrtd",,"HO 33!","Symbol") -> HO N18 | BP41: =RTD("esrtd",,BO40 & ":" & SUBSTITUTE(BO41," ",""),"Market") -> -0.005 | BQ41: -0.005 | BS41: 1.80985 | BT41: =RTD("esrtd",,"HO 33!","Last") ->  | BU41: =RTD("esrtd",,"HO 33!","Change") ->  | BV41: =RTD("esrtd",,"HO 33!","Time") -> 42277.6228 | BW41: =RTD("esrtd",,"HO 33!","PrevPrice") -> 1.8034 | BX41: =RTD("esrtd",,"HO 33!","NewSettlement") ->  | BZ41: =RTD("esrtd",,"HO 33!","Expiration") -> 2018-06-29 | CA41: 1.8104 | CD41: 1.81685 | CE41: 20.4027 | CF41: 20.7468 | CI41: 15.52179091 | CJ41: 15.67089091 | CM41: Jul'18 | CN41: -0.11295 | CO41: -0.13495 | CP41: =RTD("esrtd",,"GAS 34!-ICE","Delivery") -> Jul'18 | CQ41: =RTD("esrtd",,"GAS 34!-ICE","Symbol") -> GAS 18N-ICE | CR41: =RTD("esrtd",, SUBSTITUTE(CQ40,"-ICE","") & ":" & SUBSTITUTE(CQ41," ",""),"Market") -> -1.25 | CS41: -1.25 | CU41: 560 | CV41: =RTD("esrtd",,"GAS 34!-ICE","Last") ->  | CW41: =RTD("esrtd",,"GAS 34!-ICE","Change") ->  | CX41: =RTD("esrtd",,"GAS 34!-ICE","Time") -> 42277.83333 | CY41: =RTD("esrtd",,"GAS 34!-ICE","PrevPrice") -> 555.25 | CZ41: =RTD("esrtd",,"GAS 34!-ICE","NewSettlement") ->  | DB41: =RTD("esrtd",,"GAS 34!-ICE","Expiration") -> 2018-07-12 | DC41: 0.3636363636 | DD41: 556.0454545 | DG41: 560.7954545 | DH41: 14.48864857 | DI41: 14.27106467 | DJ41: =IFERROR(IF(DE41="","",IF(BRNEXPDATE<GASEXPDATE,(DE41/7.45)-AI42,(DE41/7.45)-AI41)),"") ->  | DL41: Jul'18 | DM41: 0.02014082774 | DN41: 0.02459862721
B42: =RTD("esrtd",,"CL 34!","Delivery") -> Aug'18 | C42: =RTD("esrtd",,"CL 34!","Symbol") -> CL Q18 | D42: =RTD("esrtd",,C41 & ":" & SUBSTITUTE(C42," ",""),"Market") -> -0.18 | E42: -0.18 | G42: 55.845 | H42: =RTD("esrtd",,"CL 34!","Last") ->  | I42: =RTD("esrtd",,"CL 34!","Change") ->  | J42: =RTD("esrtd",,"CL 34!","Time") -> 42277.63007 | K42: =RTD("esrtd",,"CL 34!","PrevPrice") -> 55.23 | L42: =RTD("esrtd",,"CL 34!","NewSettlement") ->  | N42: =RTD("esrtd",,"CL 34!","Expiration") -> 2018-07-20 | O42: 0.652173913 | P42: 55.47956522 | S42: 56.09456522 | T42: =RTD("esrtd",,"BRN 34!-ICE","Delivery") -> Aug'18 | U42: =RTD("esrtd",,"BRN 34!-ICE","Symbol") -> BRN 18Q-ICE | V42: =RTD("esrtd",, SUBSTITUTE(U41,"-ICE","") & ":" & SUBSTITUTE(U42," ",""),"Market") -> -0.14 | W42: -0.14 | Y42: 60.64 | Z42: =RTD("esrtd",,"BRN 34!-ICE","Last") ->  | AA42: =RTD("esrtd",,"BRN 34!-ICE","Change") ->  | AB42: =RTD("esrtd",,"BRN 34!-ICE","Time") -> 42277.83333 | AC42: =RTD("esrtd",,"BRN 34!-ICE","PrevPrice") -> 60.22 | AD42: =RTD("esrtd",,"BRN 34!-ICE","NewSettlement") ->  | AF42: =RTD("esrtd",,"BRN 34!-ICE","Expiration") -> 2018-06-29 | AG42: =IF(BRNDateDiff(AF42,BRNNewExpDate)>0,NetDaysRatio(AF43,ICEHolidays,-1),IF(BRNDateDiff(AF42,BRNNewExpDate)=0,"",IF(BRNDateDiff(AF42,BRNNewExpDate)<0,NetDaysRatio(AF44,ICEHolidays,-1)))) -> 0.9565217391 | AH42: =IF(BRNDateDiff(AF42,BRNNewExpDate)>0,(AG42*AC43)+(1-AG42)*AC44,IF(BRNDateDiff(AF42,BRNNewExpDate)=0,((8/20)*AC43+(11/20)*AC44+1/20*AC45),IF(BRNDateDiff(AF42,BRNNewExpDate)<0,(AG42*AC44)+(1-AG42)*AC45))) -> 60.49565217 | AI42: =IF(OR(AD43="",AD44="",AD45=""),"",IF(BRNDateDiff(AF42,BRNNewExpDate)>0,(AG42*AD43)+(1-AG42)*AD44,IF(BRNDateDiff(AF42,BRNNewExpDate)=0,((8/20)*AD43+(11/20)*AD44+1/20*AD45),IF(BRNDateDiff(AF42,BRNNewExpDate)<0,(AG42*AD44)+(1-AG42)*AD45)))) ->  | AK42: =IF(BRNDateDiff(AF42,BRNNewExpDate)>0,IF(OR(Y43="",Y44=""),"",(AG42*Y43)+(1-AG42)*Y44),IF(BRNDateDiff(AF42,BRNNewExpDate)=0,IF(OR(Y43="",Y44="",Y45=""),"",(8/20*Y43)+11/20*Y44)+(1/20*Y45),IF(BRNDateDiff(AF42,BRNNewExpDate)<0,IF(OR(Y44="",Y45=""),"",(AG42*Y44)+(1-AG42)*Y45)))) -> 60.91565217 | AL42: Aug'18 | AM42: -4.795 | AN42: -4.821086957 | AO42: =RTD("esrtd",,"XRB 34!","Delivery") -> Aug'18 | AP42: =RTD("esrtd",,"XRB 34!","Symbol") -> XRB Q18 | AQ42: =RTD("esrtd",,AP41 & ":" & SUBSTITUTE(AP42," ",""),"Market") -> 0.015 | AR42: 0.015 | AT42: 1.6819 | AU42: =RTD("esrtd",,"XRB 34!","Last") ->  | AV42: =RTD("esrtd",,"XRB 34!","Change") ->  | AW42: =RTD("esrtd",,"XRB 34!","Time") -> 42277.63419 | AX42: =RTD("esrtd",,"XRB 34!","PrevPrice") -> 1.6596 | AY42: =RTD("esrtd",,"XRB 34!","NewSettlement") ->  | BA42: =RTD("esrtd",,"XRB 34!","Expiration") -> 2018-07-31 | BB42: 1.6488 | BE42: 1.6711 | BF42: 14.09163478 | BG42: 13.77003478 | BJ42: 9.270547826 | BK42: 8.753947826 | BN42: =RTD("esrtd",,"HO 34!","Delivery") -> Aug'18 | BO42: =RTD("esrtd",,"HO 34!","Symbol") -> HO Q18 | BP42: =RTD("esrtd",,BO41 & ":" & SUBSTITUTE(BO42," ",""),"Market") -> -0.007 | BQ42: -0.007 | BS42: 1.81685 | BT42: =RTD("esrtd",,"HO 34!","Last") ->  | BU42: =RTD("esrtd",,"HO 34!","Change") ->  | BV42: =RTD("esrtd",,"HO 34!","Time") -> 42277.6228 | BW42: =RTD("esrtd",,"HO 34!","PrevPrice") -> 1.8104 | BX42: =RTD("esrtd",,"HO 34!","NewSettlement") ->  | BZ42: =RTD("esrtd",,"HO 34!","Expiration") -> 2018-07-31 | CA42: 1.8184 | CD42: 1.82485 | CE42: 20.54913478 | CF42: 20.89323478 | CI42: 15.72804783 | CJ42: 15.87714783 | CM42: Aug'18 | CN42: -0.13495 | CO42: -0.15375 | CP42: =RTD("esrtd",,"GAS 35!-ICE","Delivery") -> Aug'18 | CQ42: =RTD("esrtd",,"GAS 35!-ICE","Symbol") -> GAS 18Q-ICE | CR42: =RTD("esrtd",, SUBSTITUTE(CQ41,"-ICE","") & ":" & SUBSTITUTE(CQ42," ",""),"Market") -> -1.25 | CS42: -1.25 | CU42: 561.25 | CV42: =RTD("esrtd",,"GAS 35!-ICE","Last") ->  | CW42: =RTD("esrtd",,"GAS 35!-ICE","Change") ->  | CX42: =RTD("esrtd",,"GAS 35!-ICE","Time") -> 42277.83333 | CY42: =RTD("esrtd",,"GAS 35!-ICE","PrevPrice") -> 556.5 | CZ42: =RTD("esrtd",,"GAS 35!-ICE","NewSettlement") ->  | DB42: =RTD("esrtd",,"GAS 35!-ICE","Expiration") -> 2018-08-10 | DC42: 0.3043478261 | DD42: 557.3695652 | DG42: 562.1195652 | DH42: 14.53663846 | DI42: 14.31905457 | DL42: Aug'18 | DM42: 0.0231459412 | DN42: 0.02836688969
B43: =RTD("esrtd",,"CL 35!","Delivery") -> Sep'18 | C43: =RTD("esrtd",,"CL 35!","Symbol") -> CL U18 | D43: =RTD("esrtd",,C42 & ":" & SUBSTITUTE(C43," ",""),"Market") -> -0.18 | E43: -0.18 | G43: 56.025 | H43: =RTD("esrtd",,"CL 35!","Last") ->  | I43: =RTD("esrtd",,"CL 35!","Change") ->  | J43: =RTD("esrtd",,"CL 35!","Time") -> 42277.63007 | K43: =RTD("esrtd",,"CL 35!","PrevPrice") -> 55.41 | L43: =RTD("esrtd",,"CL 35!","NewSettlement") ->  | N43: =RTD("esrtd",,"CL 35!","Expiration") -> 2018-08-21 | O43: 0.6842105263 | P43: 55.67315789 | S43: 56.28815789 | T43: =RTD("esrtd",,"BRN 35!-ICE","Delivery") -> Sep'18 | U43: =RTD("esrtd",,"BRN 35!-ICE","Symbol") -> BRN 18U-ICE | V43: =RTD("esrtd",, SUBSTITUTE(U42,"-ICE","") & ":" & SUBSTITUTE(U43," ",""),"Market") -> -0.14 | W43: -0.14 | Y43: 60.78 | Z43: =RTD("esrtd",,"BRN 35!-ICE","Last") ->  | AA43: =RTD("esrtd",,"BRN 35!-ICE","Change") ->  | AB43: =RTD("esrtd",,"BRN 35!-ICE","Time") -> 42277.83333 | AC43: =RTD("esrtd",,"BRN 35!-ICE","PrevPrice") -> 60.36 | AD43: =RTD("esrtd",,"BRN 35!-ICE","NewSettlement") ->  | AF43: =RTD("esrtd",,"BRN 35!-ICE","Expiration") -> 2018-07-31 | AG43: =IF(BRNDateDiff(AF43,BRNNewExpDate)>0,NetDaysRatio(AF44,ICEHolidays,-1),IF(BRNDateDiff(AF43,BRNNewExpDate)=0,"",IF(BRNDateDiff(AF43,BRNNewExpDate)<0,NetDaysRatio(AF45,ICEHolidays,-1)))) -> 0.95 | AH43: =IF(BRNDateDiff(AF43,BRNNewExpDate)>0,(AG43*AC44)+(1-AG43)*AC45,IF(BRNDateDiff(AF43,BRNNewExpDate)=0,((8/20)*AC44+(11/20)*AC45+1/20*AC46),IF(BRNDateDiff(AF43,BRNNewExpDate)<0,(AG43*AC45)+(1-AG43)*AC46))) -> 60.6265 | AI43: =IF(OR(AD44="",AD45="",AD46=""),"",IF(BRNDateDiff(AF43,BRNNewExpDate)>0,(AG43*AD44)+(1-AG43)*AD45,IF(BRNDateDiff(AF43,BRNNewExpDate)=0,((8/20)*AD44+(11/20)*AD45+1/20*AD46),IF(BRNDateDiff(AF43,BRNNewExpDate)<0,(AG43*AD45)+(1-AG43)*AD46)))) ->  | AK43: =IF(BRNDateDiff(AF43,BRNNewExpDate)>0,IF(OR(Y44="",Y45=""),"",(AG43*Y44)+(1-AG43)*Y45),IF(BRNDateDiff(AF43,BRNNewExpDate)=0,IF(OR(Y44="",Y45="",Y46=""),"",(8/20*Y44)+11/20*Y45)+(1/20*Y46),IF(BRNDateDiff(AF43,BRNNewExpDate)<0,IF(OR(Y45="",Y46=""),"",(AG43*Y45)+(1-AG43)*Y46)))) -> 61.0465 | AL43: Sep'18 | AM43: -4.755 | AN43: -4.758342105 | AO43: =RTD("esrtd",,"XRB 35!","Delivery") -> Sep'18 | AP43: =RTD("esrtd",,"XRB 35!","Symbol") -> XRB U18 | AQ43: =RTD("esrtd",,AP42 & ":" & SUBSTITUTE(AP43," ",""),"Market") -> 0.0108 | AR43: 0.0108 | AT43: 1.6711 | AU43: =RTD("esrtd",,"XRB 35!","Last") ->  | AV43: =RTD("esrtd",,"XRB 35!","Change") ->  | AW43: =RTD("esrtd",,"XRB 35!","Time") -> 42277.63419 | AX43: =RTD("esrtd",,"XRB 35!","PrevPrice") -> 1.6488 | AY43: =RTD("esrtd",,"XRB 35!","NewSettlement") ->  | BA43: =RTD("esrtd",,"XRB 35!","Expiration") -> 2018-08-31 | BB43: 1.56 | BE43: 1.5823 | BF43: 10.16844211 | BG43: 9.846842105 | BJ43: 5.4101 | BK43: 4.8935 | BN43: =RTD("esrtd",,"HO 35!","Delivery") -> Sep'18 | BO43: =RTD("esrtd",,"HO 35!","Symbol") -> HO U18 | BP43: =RTD("esrtd",,BO42 & ":" & SUBSTITUTE(BO43," ",""),"Market") -> -0.008 | BQ43: -0.008 | BS43: 1.82485 | BT43: =RTD("esrtd",,"HO 35!","Last") ->  | BU43: =RTD("esrtd",,"HO 35!","Change") ->  | BV43: =RTD("esrtd",,"HO 35!","Time") -> 42277.6228 | BW43: =RTD("esrtd",,"HO 35!","PrevPrice") -> 1.8184 | BX43: =RTD("esrtd",,"HO 35!","NewSettlement") ->  | BZ43: =RTD("esrtd",,"HO 35!","Expiration") -> 2018-08-31 | CA43: 1.8264 | CD43: 1.83285 | CE43: 20.69154211 | CF43: 21.03564211 | CI43: 15.9332 | CJ43: 16.0823 | CM43: Sep'18 | CN43: -0.15375 | CO43: -0.25055 | CP43: =RTD("esrtd",,"GAS 36!-ICE","Delivery") -> Sep'18 | CQ43: =RTD("esrtd",,"GAS 36!-ICE","Symbol") -> GAS 18U-ICE | CR43: =RTD("esrtd",, SUBSTITUTE(CQ42,"-ICE","") & ":" & SUBSTITUTE(CQ43," ",""),"Market") -> -1.25 | CS43: -1.25 | CU43: 562.5 | CV43: =RTD("esrtd",,"GAS 36!-ICE","Last") ->  | CW43: =RTD("esrtd",,"GAS 36!-ICE","Change") ->  | CX43: =RTD("esrtd",,"GAS 36!-ICE","Time") -> 42277.83333 | CY43: =RTD("esrtd",,"GAS 36!-ICE","PrevPrice") -> 557.75 | CZ43: =RTD("esrtd",,"GAS 36!-ICE","NewSettlement") ->  | DB43: =RTD("esrtd",,"GAS 36!-ICE","Expiration") -> 2018-09-12 | DC43: 0.35 | DD43: 558.5625 | DG43: 563.3125 | DH43: 14.56591611 | DI43: 14.34833221 | DL43: Sep'18 | DM43: 0.02715105465
B44: =RTD("esrtd",,"CL 36!","Delivery") -> Oct'18 | C44: =RTD("esrtd",,"CL 36!","Symbol") -> CL V18 | D44: =RTD("esrtd",,C43 & ":" & SUBSTITUTE(C44," ",""),"Market") -> -0.2 | E44: -0.2 | G44: 56.225 | H44: =RTD("esrtd",,"CL 36!","Last") ->  | I44: =RTD("esrtd",,"CL 36!","Change") ->  | J44: =RTD("esrtd",,"CL 36!","Time") -> 42277.63007 | K44: =RTD("esrtd",,"CL 36!","PrevPrice") -> 55.61 | L44: =RTD("esrtd",,"CL 36!","NewSettlement") ->  | N44: =RTD("esrtd",,"CL 36!","Expiration") -> 2018-09-20 | O44: 0.6956521739 | P44: 55.87391304 | S44: 56.45543478 | T44: =RTD("esrtd",,"BRN 36!-ICE","Delivery") -> Oct'18 | U44: =RTD("esrtd",,"BRN 36!-ICE","Symbol") -> BRN 18V-ICE | V44: =RTD("esrtd",, SUBSTITUTE(U43,"-ICE","") & ":" & SUBSTITUTE(U44," ",""),"Market") -> -0.13 | W44: -0.13 | Y44: 60.91 | Z44: =RTD("esrtd",,"BRN 36!-ICE","Last") ->  | AA44: =RTD("esrtd",,"BRN 36!-ICE","Change") ->  | AB44: =RTD("esrtd",,"BRN 36!-ICE","Time") -> 42277.83333 | AC44: =RTD("esrtd",,"BRN 36!-ICE","PrevPrice") -> 60.49 | AD44: =RTD("esrtd",,"BRN 36!-ICE","NewSettlement") ->  | AF44: =RTD("esrtd",,"BRN 36!-ICE","Expiration") -> 2018-08-31 | AG44: =IF(BRNDateDiff(AF44,BRNNewExpDate)>0,NetDaysRatio(AF45,ICEHolidays,-1),IF(BRNDateDiff(AF44,BRNNewExpDate)=0,"",IF(BRNDateDiff(AF44,BRNNewExpDate)<0,NetDaysRatio(AF46,ICEHolidays,-1)))) -> 0.9565217391 | AH44: =IF(BRNDateDiff(AF44,BRNNewExpDate)>0,(AG44*AC45)+(1-AG44)*AC46,IF(BRNDateDiff(AF44,BRNNewExpDate)=0,((8/20)*AC45+(11/20)*AC46+1/20*AC47),IF(BRNDateDiff(AF44,BRNNewExpDate)<0,(AG44*AC46)+(1-AG44)*AC47))) -> 60.75652174 | AI44: =IF(OR(AD45="",AD46="",AD47=""),"",IF(BRNDateDiff(AF44,BRNNewExpDate)>0,(AG44*AD45)+(1-AG44)*AD46,IF(BRNDateDiff(AF44,BRNNewExpDate)=0,((8/20)*AD45+(11/20)*AD46+1/20*AD47),IF(BRNDateDiff(AF44,BRNNewExpDate)<0,(AG44*AD46)+(1-AG44)*AD47)))) ->  | AK44: =IF(BRNDateDiff(AF44,BRNNewExpDate)>0,IF(OR(Y45="",Y46=""),"",(AG44*Y45)+(1-AG44)*Y46),IF(BRNDateDiff(AF44,BRNNewExpDate)=0,IF(OR(Y45="",Y46="",Y47=""),"",(8/20*Y45)+11/20*Y46)+(1/20*Y47),IF(BRNDateDiff(AF44,BRNNewExpDate)<0,IF(OR(Y46="",Y47=""),"",(AG44*Y46)+(1-AG44)*Y47)))) -> 61.17652174 | AL44: Oct'18 | AM44: -4.685 | AN44: -4.721086957 | AO44: =RTD("esrtd",,"XRB 36!","Delivery") -> Oct'18 | AP44: =RTD("esrtd",,"XRB 36!","Symbol") -> XRB V18 | AQ44: =RTD("esrtd",,AP43 & ":" & SUBSTITUTE(AP44," ",""),"Market") -> 0.0888 | AR44: 0.0888 | AT44: 1.5823 | AU44: =RTD("esrtd",,"XRB 36!","Last") ->  | AV44: =RTD("esrtd",,"XRB 36!","Change") ->  | AW44: =RTD("esrtd",,"XRB 36!","Time") -> 42277.63419 | AX44: =RTD("esrtd",,"XRB 36!","PrevPrice") -> 1.56 | AY44: =RTD("esrtd",,"XRB 36!","NewSettlement") ->  | BA44: =RTD("esrtd",,"XRB 36!","Expiration") -> 2018-09-28 | BJ44: =IF(BE44="","",IF(DATEVALUE(BRNEXPDATE)<DATEVALUE(XRBEXPDATE),(BE44*42)-AK44,(BE44*42)-AK43)) ->  | BN44: =RTD("esrtd",,"HO 36!","Delivery") -> Oct'18 | BO44: =RTD("esrtd",,"HO 36!","Symbol") -> HO V18 | BP44: =RTD("esrtd",,BO43 & ":" & SUBSTITUTE(BO44," ",""),"Market") -> -0.008 | BQ44: -0.008 | BS44: 1.83285 | BT44: =RTD("esrtd",,"HO 36!","Last") ->  | BU44: =RTD("esrtd",,"HO 36!","Change") ->  | BV44: =RTD("esrtd",,"HO 36!","Time") -> 42277.6228 | BW44: =RTD("esrtd",,"HO 36!","PrevPrice") -> 1.8264 | BX44: =RTD("esrtd",,"HO 36!","NewSettlement") ->  | BZ44: =RTD("esrtd",,"HO 36!","Expiration") -> 2018-09-28 | CI44: =IF(CD44="","",IF(DATEVALUE(BRNEXPDATE)<DATEVALUE(HOEXPDATE),(CD44*42)-AK44,(CD44*42)-AK43)) ->  | CM44: Oct'18 | CP44: =RTD("esrtd",,"GAS 37!-ICE","Delivery") -> Oct'18 | CQ44: =RTD("esrtd",,"GAS 37!-ICE","Symbol") -> GAS 18V-ICE | CR44: =RTD("esrtd",, SUBSTITUTE(CQ43,"-ICE","") & ":" & SUBSTITUTE(CQ44," ",""),"Market") -> -1.25 | CS44: =CY43-CY44 -> -1.25 | CU44: 563.75 | CV44: =RTD("esrtd",,"GAS 37!-ICE","Last") ->  | CW44: =RTD("esrtd",,"GAS 37!-ICE","Change") ->  | CX44: =RTD("esrtd",,"GAS 37!-ICE","Time") -> 42277.83333 | CY44: =RTD("esrtd",,"GAS 37!-ICE","PrevPrice") -> 559 | CZ44: =RTD("esrtd",,"GAS 37!-ICE","NewSettlement") ->  | DB44: =RTD("esrtd",,"GAS 37!-ICE","Expiration") -> 2018-10-11 | DC44: 0.347826087 | DD44: 559.8152174 | DE44: =IF(OR(CZ44="",CZ45=""),"",IF(DC44<1,(DC44*CZ44)+(1-DC44)*CZ45,"")) ->  | DF44: =IF(AND(DD44<>"",DE44<>""),DE44-DD44,"") ->  | DG44: =IF(CU45="","",IF(DC44<1,(DC44*CU44)+(1-DC44)*CU45,"")) -> 564.5652174 | DH44: 14.60404435 | DI44: 14.38646046 | DK44: =IF(AND(DI44<>"",DJ44<>""),DJ44-DI44,"") -> 
B45: =RTD("esrtd",,"CL 37!","Delivery") -> Nov'18 | C45: =RTD("esrtd",,"CL 37!","Symbol") -> CL X18 | D45: =RTD("esrtd",,C44 & ":" & SUBSTITUTE(C45," ",""),"Market") -> -0.2 | E45: -0.2 | G45: 56.425 | H45: =RTD("esrtd",,"CL 37!","Last") ->  | I45: =RTD("esrtd",,"CL 37!","Change") ->  | J45: =RTD("esrtd",,"CL 37!","Time") -> 42277.63007 | K45: =RTD("esrtd",,"CL 37!","PrevPrice") -> 55.81 | L45: =RTD("esrtd",,"CL 37!","NewSettlement") ->  | N45: =RTD("esrtd",,"CL 37!","Expiration") -> 2018-10-22 | O45: 0.619047619 | P45: 56.05428571 | S45: 56.55928571 | T45: =RTD("esrtd",,"BRN 37!-ICE","Delivery") -> Nov'18 | U45: =RTD("esrtd",,"BRN 37!-ICE","Symbol") -> BRN 18X-ICE | V45: =RTD("esrtd",, SUBSTITUTE(U44,"-ICE","") & ":" & SUBSTITUTE(U45," ",""),"Market") -> -0.13 | W45: -0.13 | Y45: 61.04 | Z45: =RTD("esrtd",,"BRN 37!-ICE","Last") ->  | AA45: =RTD("esrtd",,"BRN 37!-ICE","Change") ->  | AB45: =RTD("esrtd",,"BRN 37!-ICE","Time") -> 42277.83333 | AC45: =RTD("esrtd",,"BRN 37!-ICE","PrevPrice") -> 60.62 | AD45: =RTD("esrtd",,"BRN 37!-ICE","NewSettlement") ->  | AF45: =RTD("esrtd",,"BRN 37!-ICE","Expiration") -> 2018-09-28 | AG45: =IF(BRNDateDiff(AF45,BRNNewExpDate)>0,NetDaysRatio(AF46,ICEHolidays,-1),IF(BRNDateDiff(AF45,BRNNewExpDate)=0,"",IF(BRNDateDiff(AF45,BRNNewExpDate)<0,NetDaysRatio(AF47,ICEHolidays,-1)))) -> 0.9545454545 | AH45: =IF(BRNDateDiff(AF45,BRNNewExpDate)>0,(AG45*AC46)+(1-AG45)*AC47,IF(BRNDateDiff(AF45,BRNNewExpDate)=0,((8/20)*AC46+(11/20)*AC47+1/20*AC48),IF(BRNDateDiff(AF45,BRNNewExpDate)<0,(AG45*AC47)+(1-AG45)*AC48))) -> 60.90636364 | AI45: =IF(OR(AD46="",AD47="",AD48=""),"",IF(BRNDateDiff(AF45,BRNNewExpDate)>0,(AG45*AD46)+(1-AG45)*AD47,IF(BRNDateDiff(AF45,BRNNewExpDate)=0,((8/20)*AD46+(11/20)*AD47+1/20*AD48),IF(BRNDateDiff(AF45,BRNNewExpDate)<0,(AG45*AD47)+(1-AG45)*AD48)))) ->  | AK45: =IF(BRNDateDiff(AF45,BRNNewExpDate)>0,IF(OR(Y46="",Y47=""),"",(AG45*Y46)+(1-AG45)*Y47),IF(BRNDateDiff(AF45,BRNNewExpDate)=0,IF(OR(Y46="",Y47="",Y48=""),"",(8/20*Y46)+11/20*Y47)+(1/20*Y48),IF(BRNDateDiff(AF45,BRNNewExpDate)<0,IF(OR(Y47="",Y48=""),"",(AG45*Y47)+(1-AG45)*Y48)))) -> 61.32636364 | AL45: Nov'18 | AM45: -4.615 | AN45: -4.767077922 | BJ45: =IF(BE45="","",IF(DATEVALUE(BRNEXPDATE)<DATEVALUE(XRBEXPDATE),(BE45*42)-AK46,(BE45*42)-AK45)) ->  | CP45: =RTD("esrtd",,"GAS 38!-ICE","Delivery") -> Nov'18 | CQ45: =RTD("esrtd",,"GAS 38!-ICE","Symbol") -> GAS 18X-ICE | CR45: =RTD("esrtd",, SUBSTITUTE(CQ44,"-ICE","") & ":" & SUBSTITUTE(CQ45," ",""),"Market") -> -1.25 | CS45: =CY44-CY45 -> -1.25 | CU45: 565 | CV45: =RTD("esrtd",,"GAS 38!-ICE","Last") ->  | CW45: =RTD("esrtd",,"GAS 38!-ICE","Change") ->  | CX45: =RTD("esrtd",,"GAS 38!-ICE","Time") -> 42277.83333 | CY45: =RTD("esrtd",,"GAS 38!-ICE","PrevPrice") -> 560.25 | CZ45: =RTD("esrtd",,"GAS 38!-ICE","NewSettlement") ->  | DB45: =RTD("esrtd",,"GAS 38!-ICE","Expiration") -> 2018-11-12 | DC45: =NetDaysRatio(DB45,ICEHolidays,-1) -> 0.3181818182 | DD45: =IF(OR(CY45="",CY46=""),"",IF(DC45<1,(DC45*CY45)+(1-DC45)*CY46,"")) -> 561.1022727 | DE45: =IF(OR(CZ45="",CZ46=""),"",IF(DC45<1,(DC45*CZ45)+(1-DC45)*CZ46,"")) ->  | DG45: 565.8522727 | DH45: 14.62696156 | DI45: 14.40937767
B46: =RTD("esrtd",,"CL 38!","Delivery") -> Dec'18 | C46: =RTD("esrtd",,"CL 38!","Symbol") -> CL Z18 | D46: =RTD("esrtd",,C45 & ":" & SUBSTITUTE(C46," ",""),"Market") -> -0.1 | E46: -0.21 | G46: 56.525 | H46: =RTD("esrtd",,"CL 38!","Last") ->  | I46: =RTD("esrtd",,"CL 38!","Change") ->  | J46: =RTD("esrtd",,"CL 38!","Time") -> 42278.36927 | K46: =RTD("esrtd",,"CL 38!","PrevPrice") -> 56.02 | L46: =RTD("esrtd",,"CL 38!","NewSettlement") ->  | N46: =RTD("esrtd",,"CL 38!","Expiration") -> 2018-11-19 | O46: 0.65 | P46: 56.1485 | S46: 56.6535 | T46: =RTD("esrtd",,"BRN 38!-ICE","Delivery") -> Dec'18 | U46: =RTD("esrtd",,"BRN 38!-ICE","Symbol") -> BRN 18Z-ICE | V46: =RTD("esrtd",, SUBSTITUTE(U45,"-ICE","") & ":" & SUBSTITUTE(U46," ",""),"Market") -> -0.13 | W46: -0.13 | Y46: 61.17 | Z46: =RTD("esrtd",,"BRN 38!-ICE","Last") ->  | AA46: =RTD("esrtd",,"BRN 38!-ICE","Change") ->  | AB46: =RTD("esrtd",,"BRN 38!-ICE","Time") -> 42278.36932 | AC46: =RTD("esrtd",,"BRN 38!-ICE","PrevPrice") -> 60.75 | AD46: =RTD("esrtd",,"BRN 38!-ICE","NewSettlement") ->  | AF46: =RTD("esrtd",,"BRN 38!-ICE","Expiration") -> 2018-10-31 | AG46: =IF(BRNDateDiff(AF46,BRNNewExpDate)>0,NetDaysRatio(AF47,ICEHolidays,-1),IF(BRNDateDiff(AF46,BRNNewExpDate)=0,"",IF(BRNDateDiff(AF46,BRNNewExpDate)<0,NetDaysRatio(AF48,ICEHolidays,-1)))) -> 0.9 | AH46: =IF(BRNDateDiff(AF46,BRNNewExpDate)>0,(AG46*AC47)+(1-AG46)*AC48,IF(BRNDateDiff(AF46,BRNNewExpDate)=0,((8/20)*AC47+(11/20)*AC48+1/20*AC49),IF(BRNDateDiff(AF46,BRNNewExpDate)<0,(AG46*AC48)+(1-AG46)*AC49))) -> 61.054 | AI46: =IF(OR(AD47="",AD48="",AD49=""),"",IF(BRNDateDiff(AF46,BRNNewExpDate)>0,(AG46*AD47)+(1-AG46)*AD48,IF(BRNDateDiff(AF46,BRNNewExpDate)=0,((8/20)*AD47+(11/20)*AD48+1/20*AD49),IF(BRNDateDiff(AF46,BRNNewExpDate)<0,(AG46*AD48)+(1-AG46)*AD49)))) ->  | AK46: =IF(BRNDateDiff(AF46,BRNNewExpDate)>0,IF(OR(Y47="",Y48=""),"",(AG46*Y47)+(1-AG46)*Y48),IF(BRNDateDiff(AF46,BRNNewExpDate)=0,IF(OR(Y47="",Y48="",Y49=""),"",(8/20*Y47)+11/20*Y48)+(1/20*Y49),IF(BRNDateDiff(AF46,BRNNewExpDate)<0,IF(OR(Y48="",Y49=""),"",(AG46*Y48)+(1-AG46)*Y49)))) -> 61.474 | AL46: Dec'18 | AM46: -4.645 | AN46: -4.8205 | CP46: =RTD("esrtd",,"GAS 39!-ICE","Delivery") -> Dec'18 | CQ46: =RTD("esrtd",,"GAS 39!-ICE","Symbol") -> GAS 18Z-ICE | CR46: =RTD("esrtd",, SUBSTITUTE(CQ45,"-ICE","") & ":" & SUBSTITUTE(CQ46," ",""),"Market") -> -1.25 | CS46: -1.25 | CU46: 566.25 | CV46: =RTD("esrtd",,"GAS 39!-ICE","Last") ->  | CW46: =RTD("esrtd",,"GAS 39!-ICE","Change") ->  | CX46: =RTD("esrtd",,"GAS 39!-ICE","Time") -> 42278.36928 | CY46: =RTD("esrtd",,"GAS 39!-ICE","PrevPrice") -> 561.5 | CZ46: =RTD("esrtd",,"GAS 39!-ICE","NewSettlement") ->  | DB46: =RTD("esrtd",,"GAS 39!-ICE","Expiration") -> 2018-12-12 | DC46: 0.35 | DD46: 562.475 | DG46: 567.225 | DH46: 14.66358389 | DI46: 14.446
B47: =RTD("esrtd",,"CL 39!","Delivery") -> Jan'19 | C47: =RTD("esrtd",,"CL 39!","Symbol") -> CL F19 | D47: =RTD("esrtd",,C46 & ":" & SUBSTITUTE(C47," ",""),"Market") -> -0.09 | E47: -0.09 | G47: 56.615 | H47: =RTD("esrtd",,"CL 39!","Last") ->  | I47: =RTD("esrtd",,"CL 39!","Change") ->  | J47: =RTD("esrtd",,"CL 39!","Time") -> 42277.63007 | K47: =RTD("esrtd",,"CL 39!","PrevPrice") -> 56.11 | L47: =RTD("esrtd",,"CL 39!","NewSettlement") ->  | N47: =RTD("esrtd",,"CL 39!","Expiration") -> 2018-12-19 | O47: 0.6666666667 | P47: 56.26 | S47: 56.765 | T47: =RTD("esrtd",,"BRN 39!-ICE","Delivery") -> Jan'19 | U47: =RTD("esrtd",,"BRN 39!-ICE","Symbol") -> BRN 19F-ICE | V47: =RTD("esrtd",, SUBSTITUTE(U46,"-ICE","") & ":" & SUBSTITUTE(U47," ",""),"Market") -> -0.15 | W47: -0.15 | Y47: 61.32 | Z47: =RTD("esrtd",,"BRN 39!-ICE","Last") ->  | AA47: =RTD("esrtd",,"BRN 39!-ICE","Change") ->  | AB47: =RTD("esrtd",,"BRN 39!-ICE","Time") -> 42277.83333 | AC47: =RTD("esrtd",,"BRN 39!-ICE","PrevPrice") -> 60.9 | AD47: =RTD("esrtd",,"BRN 39!-ICE","NewSettlement") ->  | AF47: =RTD("esrtd",,"BRN 39!-ICE","Expiration") -> 2018-11-30 | AG47: =IF(BRNDateDiff(AF47,BRNNewExpDate)>0,NetDaysRatio(AF48,ICEHolidays,-1),IF(BRNDateDiff(AF47,BRNNewExpDate)=0,"",IF(BRNDateDiff(AF47,BRNNewExpDate)<0,NetDaysRatio(AF49,ICEHolidays,-1)))) -> 0.9545454545 | AH47: =IF(BRNDateDiff(AF47,BRNNewExpDate)>0,(AG47*AC48)+(1-AG47)*AC49,IF(BRNDateDiff(AF47,BRNNewExpDate)=0,((8/20)*AC48+(11/20)*AC49+1/20*AC50),IF(BRNDateDiff(AF47,BRNNewExpDate)<0,(AG47*AC49)+(1-AG47)*AC50))) -> 61.18636364 | AI47: =IF(OR(AD48="",AD49="",AD50=""),"",IF(BRNDateDiff(AF47,BRNNewExpDate)>0,(AG47*AD48)+(1-AG47)*AD49,IF(BRNDateDiff(AF47,BRNNewExpDate)=0,((8/20)*AD48+(11/20)*AD49+1/20*AD50),IF(BRNDateDiff(AF47,BRNNewExpDate)<0,(AG47*AD49)+(1-AG47)*AD50)))) ->  | AK47: =IF(BRNDateDiff(AF47,BRNNewExpDate)>0,IF(OR(Y48="",Y49=""),"",(AG47*Y48)+(1-AG47)*Y49),IF(BRNDateDiff(AF47,BRNNewExpDate)=0,IF(OR(Y48="",Y49="",Y50=""),"",(8/20*Y48)+11/20*Y49)+(1/20*Y50),IF(BRNDateDiff(AF47,BRNNewExpDate)<0,IF(OR(Y49="",Y50=""),"",(AG47*Y49)+(1-AG47)*Y50)))) -> 61.60636364 | AL47: Jan'19 | AM47: -4.705 | AN47: -4.841363636 | CP47: =RTD("esrtd",,"GAS 40!-ICE","Delivery") -> Jan'19 | CQ47: =RTD("esrtd",,"GAS 40!-ICE","Symbol") -> GAS 19F-ICE | CR47: =RTD("esrtd",, SUBSTITUTE(CQ46,"-ICE","") & ":" & SUBSTITUTE(CQ47," ",""),"Market") -> -1.5 | CS47: -1.5 | CU47: 567.75 | CV47: =RTD("esrtd",,"GAS 40!-ICE","Last") ->  | CW47: =RTD("esrtd",,"GAS 40!-ICE","Change") ->  | CX47: =RTD("esrtd",,"GAS 40!-ICE","Time") -> 42277.83333 | CY47: =RTD("esrtd",,"GAS 40!-ICE","PrevPrice") -> 563 | CZ47: =RTD("esrtd",,"GAS 40!-ICE","NewSettlement") ->  | DB47: =RTD("esrtd",,"GAS 40!-ICE","Expiration") -> 2019-01-10 | DC47: 0.2727272727 | DD47: 564.0909091 | DG47: 568.8409091 | DH47: 14.74812081 | DI47: 14.53053691
B48: =RTD("esrtd",,"CL 40!","Delivery") -> Feb'19 | C48: =RTD("esrtd",,"CL 40!","Symbol") -> CL G19 | D48: =RTD("esrtd",,C47 & ":" & SUBSTITUTE(C48," ",""),"Market") -> -0.11 | E48: -0.11 | G48: 56.725 | H48: =RTD("esrtd",,"CL 40!","Last") ->  | I48: =RTD("esrtd",,"CL 40!","Change") ->  | J48: =RTD("esrtd",,"CL 40!","Time") -> 42277.63007 | K48: =RTD("esrtd",,"CL 40!","PrevPrice") -> 56.22 | L48: =RTD("esrtd",,"CL 40!","NewSettlement") ->  | N48: =RTD("esrtd",,"CL 40!","Expiration") -> 2019-01-22 | O48: 0.6842105263 | P48: 56.38421053 | S48: 56.88921053 | T48: =RTD("esrtd",,"BRN 40!-ICE","Delivery") -> Feb'19 | U48: =RTD("esrtd",,"BRN 40!-ICE","Symbol") -> BRN 19G-ICE | V48: =RTD("esrtd",, SUBSTITUTE(U47,"-ICE","") & ":" & SUBSTITUTE(U48," ",""),"Market") -> -0.14 | W48: -0.14 | Y48: 61.46 | Z48: =RTD("esrtd",,"BRN 40!-ICE","Last") ->  | AA48: =RTD("esrtd",,"BRN 40!-ICE","Change") ->  | AB48: =RTD("esrtd",,"BRN 40!-ICE","Time") -> 42277.83333 | AC48: =RTD("esrtd",,"BRN 40!-ICE","PrevPrice") -> 61.04 | AD48: =RTD("esrtd",,"BRN 40!-ICE","NewSettlement") ->  | AF48: =RTD("esrtd",,"BRN 40!-ICE","Expiration") -> 2018-12-28 | AG48: =IF(BRNDateDiff(AF48,BRNNewExpDate)>0,NetDaysRatio(AF49,ICEHolidays,-1),IF(BRNDateDiff(AF48,BRNNewExpDate)=0,"",IF(BRNDateDiff(AF48,BRNNewExpDate)<0,NetDaysRatio(AF50,ICEHolidays,-1)))) -> 0.95 | AH48: =IF(BRNDateDiff(AF48,BRNNewExpDate)>0,(AG48*AC49)+(1-AG48)*AC50,IF(BRNDateDiff(AF48,BRNNewExpDate)=0,((8/20)*AC49+(11/20)*AC50+1/20*AC51),IF(BRNDateDiff(AF48,BRNNewExpDate)<0,(AG48*AC50)+(1-AG48)*AC51))) -> 61.327 | AI48: =IF(OR(AD49="",AD50="",AD51=""),"",IF(BRNDateDiff(AF48,BRNNewExpDate)>0,(AG48*AD49)+(1-AG48)*AD50,IF(BRNDateDiff(AF48,BRNNewExpDate)=0,((8/20)*AD49+(11/20)*AD50+1/20*AD51),IF(BRNDateDiff(AF48,BRNNewExpDate)<0,(AG48*AD50)+(1-AG48)*AD51)))) ->  | AK48: =IF(BRNDateDiff(AF48,BRNNewExpDate)>0,IF(OR(Y49="",Y50=""),"",(AG48*Y49)+(1-AG48)*Y50),IF(BRNDateDiff(AF48,BRNNewExpDate)=0,IF(OR(Y49="",Y50="",Y51=""),"",(8/20*Y49)+11/20*Y50)+(1/20*Y51),IF(BRNDateDiff(AF48,BRNNewExpDate)<0,IF(OR(Y50="",Y51=""),"",(AG48*Y50)+(1-AG48)*Y51)))) -> 61.747 | AL48: Feb'19 | AM48: -4.735 | AN48: -4.857789474 | CP48: =RTD("esrtd",,"GAS 41!-ICE","Delivery") -> Feb'19 | CQ48: =RTD("esrtd",,"GAS 41!-ICE","Symbol") -> GAS 19G-ICE | CR48: =RTD("esrtd",, SUBSTITUTE(CQ47,"-ICE","") & ":" & SUBSTITUTE(CQ48," ",""),"Market") -> -1.5 | CS48: -1.5 | CU48: 569.25 | CV48: =RTD("esrtd",,"GAS 41!-ICE","Last") ->  | CW48: =RTD("esrtd",,"GAS 41!-ICE","Change") ->  | CX48: =RTD("esrtd",,"GAS 41!-ICE","Time") -> 42277.83333 | CY48: =RTD("esrtd",,"GAS 41!-ICE","PrevPrice") -> 564.5 | CZ48: =RTD("esrtd",,"GAS 41!-ICE","NewSettlement") ->  | DB48: =RTD("esrtd",,"GAS 41!-ICE","Expiration") -> 2019-02-12 | DC48: 0.35 | DD48: 565.475 | DG48: 570.225 | DH48: 14.79326846 | DI48: 14.57568456
B49: =RTD("esrtd",,"CL 41!","Delivery") -> Mar'19 | C49: =RTD("esrtd",,"CL 41!","Symbol") -> CL H19 | D49: =RTD("esrtd",,C48 & ":" & SUBSTITUTE(C49," ",""),"Market") -> -0.12 | E49: -0.12 | G49: 56.845 | H49: =RTD("esrtd",,"CL 41!","Last") ->  | I49: =RTD("esrtd",,"CL 41!","Change") ->  | J49: =RTD("esrtd",,"CL 41!","Time") -> 42277.63007 | K49: =RTD("esrtd",,"CL 41!","PrevPrice") -> 56.34 | L49: =RTD("esrtd",,"CL 41!","NewSettlement") ->  | N49: =RTD("esrtd",,"CL 41!","Expiration") -> 2019-02-20 | O49: 0.6666666667 | P49: 56.53 | S49: 57.035 | T49: =RTD("esrtd",,"BRN 41!-ICE","Delivery") -> Mar'19 | U49: =RTD("esrtd",,"BRN 41!-ICE","Symbol") -> BRN 19H-ICE | V49: =RTD("esrtd",, SUBSTITUTE(U48,"-ICE","") & ":" & SUBSTITUTE(U49," ",""),"Market") -> -0.14 | W49: -0.14 | Y49: 61.6 | Z49: =RTD("esrtd",,"BRN 41!-ICE","Last") ->  | AA49: =RTD("esrtd",,"BRN 41!-ICE","Change") ->  | AB49: =RTD("esrtd",,"BRN 41!-ICE","Time") -> 42277.83333 | AC49: =RTD("esrtd",,"BRN 41!-ICE","PrevPrice") -> 61.18 | AD49: =RTD("esrtd",,"BRN 41!-ICE","NewSettlement") ->  | AF49: =RTD("esrtd",,"BRN 41!-ICE","Expiration") -> 2019-01-31 | AG49: =IF(BRNDateDiff(AF49,BRNNewExpDate)>0,NetDaysRatio(AF50,ICEHolidays,-1),IF(BRNDateDiff(AF49,BRNNewExpDate)=0,"",IF(BRNDateDiff(AF49,BRNNewExpDate)<0,NetDaysRatio(AF51,ICEHolidays,-1)))) -> 0.9523809524 | AH49: =IF(BRNDateDiff(AF49,BRNNewExpDate)>0,(AG49*AC50)+(1-AG49)*AC51,IF(BRNDateDiff(AF49,BRNNewExpDate)=0,((8/20)*AC50+(11/20)*AC51+1/20*AC52),IF(BRNDateDiff(AF49,BRNNewExpDate)<0,(AG49*AC51)+(1-AG49)*AC52))) -> 61.46666667 | AI49: =IF(OR(AD50="",AD51="",AD52=""),"",IF(BRNDateDiff(AF49,BRNNewExpDate)>0,(AG49*AD50)+(1-AG49)*AD51,IF(BRNDateDiff(AF49,BRNNewExpDate)=0,((8/20)*AD50+(11/20)*AD51+1/20*AD52),IF(BRNDateDiff(AF49,BRNNewExpDate)<0,(AG49*AD51)+(1-AG49)*AD52)))) ->  | AK49: =IF(BRNDateDiff(AF49,BRNNewExpDate)>0,IF(OR(Y50="",Y51=""),"",(AG49*Y50)+(1-AG49)*Y51),IF(BRNDateDiff(AF49,BRNNewExpDate)=0,IF(OR(Y50="",Y51="",Y52=""),"",(8/20*Y50)+11/20*Y51)+(1/20*Y52),IF(BRNDateDiff(AF49,BRNNewExpDate)<0,IF(OR(Y51="",Y52=""),"",(AG49*Y51)+(1-AG49)*Y52)))) -> 61.88666667 | AL49: Mar'19 | AM49: -4.755 | AN49: -4.851666667 | CP49: =RTD("esrtd",,"GAS 42!-ICE","Delivery") -> Mar'19 | CQ49: =RTD("esrtd",,"GAS 42!-ICE","Symbol") -> GAS 19H-ICE | CR49: =RTD("esrtd",, SUBSTITUTE(CQ48,"-ICE","") & ":" & SUBSTITUTE(CQ49," ",""),"Market") -> -1.5 | CS49: -1.5 | CU49: 570.75 | CV49: =RTD("esrtd",,"GAS 42!-ICE","Last") ->  | CW49: =RTD("esrtd",,"GAS 42!-ICE","Change") ->  | CX49: =RTD("esrtd",,"GAS 42!-ICE","Time") -> 42277.83333 | CY49: =RTD("esrtd",,"GAS 42!-ICE","PrevPrice") -> 566 | CZ49: =RTD("esrtd",,"GAS 42!-ICE","NewSettlement") ->  | DB49: =RTD("esrtd",,"GAS 42!-ICE","Expiration") -> 2019-03-12T01:00:00 | DC49: 0.3333333333 | DD49: 567 | DG49: 571.75 | DH49: 14.85829978 | DI49: 14.64071588
B50: =RTD("esrtd",,"CL 42!","Delivery") -> Apr'19 | C50: =RTD("esrtd",,"CL 42!","Symbol") -> CL J19 | D50: =RTD("esrtd",,C49 & ":" & SUBSTITUTE(C50," ",""),"Market") -> -0.14 | E50: =K49-K50 -> -0.14 | G50: 56.985 | H50: =RTD("esrtd",,"CL 42!","Last") ->  | I50: =RTD("esrtd",,"CL 42!","Change") ->  | J50: =RTD("esrtd",,"CL 42!","Time") -> 42277.63007 | K50: =RTD("esrtd",,"CL 42!","PrevPrice") -> 56.48 | L50: =RTD("esrtd",,"CL 42!","NewSettlement") ->  | N50: =RTD("esrtd",,"CL 42!","Expiration") -> 2019-03-20 | O50: 0.7142857143 | P50: 56.67857143 | S50: 57.18357143 | T50: =RTD("esrtd",,"BRN 42!-ICE","Delivery") -> Apr'19 | U50: =RTD("esrtd",,"BRN 42!-ICE","Symbol") -> BRN 19J-ICE | V50: =RTD("esrtd",, SUBSTITUTE(U49,"-ICE","") & ":" & SUBSTITUTE(U50," ",""),"Market") -> -0.14 | W50: =AC49-AC50 -> -0.14 | Y50: =IF(Y49="","",IF(X50<>"",Y49-X50,IF(V50<>"",Y49-V50,Y49-W50))) -> 61.74 | Z50: =RTD("esrtd",,"BRN 42!-ICE","Last") ->  | AA50: =RTD("esrtd",,"BRN 42!-ICE","Change") ->  | AB50: =RTD("esrtd",,"BRN 42!-ICE","Time") -> 42277.83333 | AC50: =RTD("esrtd",,"BRN 42!-ICE","PrevPrice") -> 61.32 | AD50: =RTD("esrtd",,"BRN 42!-ICE","NewSettlement") ->  | AF50: =RTD("esrtd",,"BRN 42!-ICE","Expiration") -> 2019-02-28 | AG50: =IF(BRNDateDiff(AF50,BRNNewExpDate)>0,NetDaysRatio(AF51,ICEHolidays,-1),IF(BRNDateDiff(AF50,BRNNewExpDate)=0,"",IF(BRNDateDiff(AF50,BRNNewExpDate)<0,NetDaysRatio(AF52,ICEHolidays,-1)))) -> 0.9523809524 | AH50: =IF(BRNDateDiff(AF50,BRNNewExpDate)>0,(AG50*AC51)+(1-AG50)*AC52,IF(BRNDateDiff(AF50,BRNNewExpDate)=0,((8/20)*AC51+(11/20)*AC52+1/20*AC53),IF(BRNDateDiff(AF50,BRNNewExpDate)<0,(AG50*AC52)+(1-AG50)*AC53))) -> 61.60333333 | AI50: =IF(OR(AD51="",AD52="",AD53=""),"",IF(BRNDateDiff(AF50,BRNNewExpDate)>0,(AG50*AD51)+(1-AG50)*AD52,IF(BRNDateDiff(AF50,BRNNewExpDate)=0,((8/20)*AD51+(11/20)*AD52+1/20*AD53),IF(BRNDateDiff(AF50,BRNNewExpDate)<0,(AG50*AD52)+(1-AG50)*AD53)))) ->  | AK50: =IF(BRNDateDiff(AF50,BRNNewExpDate)>0,IF(OR(Y51="",Y52=""),"",(AG50*Y51)+(1-AG50)*Y52),IF(BRNDateDiff(AF50,BRNNewExpDate)=0,IF(OR(Y51="",Y52="",Y53=""),"",(8/20*Y51)+11/20*Y52)+(1/20*Y53),IF(BRNDateDiff(AF50,BRNNewExpDate)<0,IF(OR(Y52="",Y53=""),"",(AG50*Y52)+(1-AG50)*Y53)))) -> 62.02333333 | AL50: Apr'19 | AM50: -4.755 | AN50: -4.839761905 | CP50: =RTD("esrtd",,"GAS 43!-ICE","Delivery") -> Apr'19 | CQ50: =RTD("esrtd",,"GAS 43!-ICE","Symbol") -> GAS 19J-ICE | CR50: =RTD("esrtd",, SUBSTITUTE(CQ49,"-ICE","") & ":" & SUBSTITUTE(CQ50," ",""),"Market") -> -1.5 | CS50: -1.5 | CU50: 572.25 | CV50: =RTD("esrtd",,"GAS 43!-ICE","Last") ->  | CW50: =RTD("esrtd",,"GAS 43!-ICE","Change") ->  | CX50: =RTD("esrtd",,"GAS 43!-ICE","Time") -> 42277.83333 | CY50: =RTD("esrtd",,"GAS 43!-ICE","PrevPrice") -> 567.5 | CZ50: =RTD("esrtd",,"GAS 43!-ICE","NewSettlement") ->  | DB50: =RTD("esrtd",,"GAS 43!-ICE","Expiration") -> 2019-04-11 | DC50: 0.380952381 | DD50: 568.2738095 | DG50: 573.0238095 | DH50: 14.89261425 | DI50: 14.67503036
B51: =RTD("esrtd",,"CL 43!","Delivery") -> May'19 | C51: =RTD("esrtd",,"CL 43!","Symbol") -> CL K19 | D51: =RTD("esrtd",,C50 & ":" & SUBSTITUTE(C51," ",""),"Market") -> -0.15 | E51: -0.15 | G51: 57.135 | H51: =RTD("esrtd",,"CL 43!","Last") ->  | I51: =RTD("esrtd",,"CL 43!","Change") ->  | J51: =RTD("esrtd",,"CL 43!","Time") -> 42277.63007 | K51: =RTD("esrtd",,"CL 43!","PrevPrice") -> 56.63 | L51: =RTD("esrtd",,"CL 43!","NewSettlement") ->  | N51: =RTD("esrtd",,"CL 43!","Expiration") -> 2019-04-22 | O51: 0.6818181818 | P51: 56.81909091 | S51: 57.32409091 | T51: =RTD("esrtd",,"BRN 43!-ICE","Delivery") -> May'19 | U51: =RTD("esrtd",,"BRN 43!-ICE","Symbol") -> BRN 19K-ICE | V51: =RTD("esrtd",, SUBSTITUTE(U50,"-ICE","") & ":" & SUBSTITUTE(U51," ",""),"Market") -> -0.14 | W51: -0.14 | Y51: 61.88 | Z51: =RTD("esrtd",,"BRN 43!-ICE","Last") ->  | AA51: =RTD("esrtd",,"BRN 43!-ICE","Change") ->  | AB51: =RTD("esrtd",,"BRN 43!-ICE","Time") -> 42277.83333 | AC51: =RTD("esrtd",,"BRN 43!-ICE","PrevPrice") -> 61.46 | AD51: =RTD("esrtd",,"BRN 43!-ICE","NewSettlement") ->  | AF51: =RTD("esrtd",,"BRN 43!-ICE","Expiration") -> 2019-03-29 | AG51: =IF(BRNDateDiff(AF51,BRNNewExpDate)>0,NetDaysRatio(AF52,ICEHolidays,-1),IF(BRNDateDiff(AF51,BRNNewExpDate)=0,"",IF(BRNDateDiff(AF51,BRNNewExpDate)<0,NetDaysRatio(AF53,ICEHolidays,-1)))) -> 0.9565217391 | AH51: =IF(BRNDateDiff(AF51,BRNNewExpDate)>0,(AG51*AC52)+(1-AG51)*AC53,IF(BRNDateDiff(AF51,BRNNewExpDate)=0,((8/20)*AC52+(11/20)*AC53+1/20*AC54),IF(BRNDateDiff(AF51,BRNNewExpDate)<0,(AG51*AC53)+(1-AG51)*AC54))) -> 61.67304348 | AI51: =IF(OR(AD52="",AD53="",AD54=""),"",IF(BRNDateDiff(AF51,BRNNewExpDate)>0,(AG51*AD52)+(1-AG51)*AD53,IF(BRNDateDiff(AF51,BRNNewExpDate)=0,((8/20)*AD52+(11/20)*AD53+1/20*AD54),IF(BRNDateDiff(AF51,BRNNewExpDate)<0,(AG51*AD53)+(1-AG51)*AD54)))) ->  | AK51: =IF(BRNDateDiff(AF51,BRNNewExpDate)>0,IF(OR(Y52="",Y53=""),"",(AG51*Y52)+(1-AG51)*Y53),IF(BRNDateDiff(AF51,BRNNewExpDate)=0,IF(OR(Y52="",Y53="",Y54=""),"",(8/20*Y52)+11/20*Y53)+(1/20*Y54),IF(BRNDateDiff(AF51,BRNNewExpDate)<0,IF(OR(Y53="",Y54=""),"",(AG51*Y53)+(1-AG51)*Y54)))) -> 62.09304348 | AL51: May'19 | AM51: -4.745 | AN51: -4.768952569 | CP51: =RTD("esrtd",,"GAS 44!-ICE","Delivery") -> May'19 | CQ51: =RTD("esrtd",,"GAS 44!-ICE","Symbol") -> GAS 19K-ICE | CR51: =RTD("esrtd",, SUBSTITUTE(CQ50,"-ICE","") & ":" & SUBSTITUTE(CQ51," ",""),"Market") -> -1.25 | CS51: -1.25 | CU51: 573.5 | CV51: =RTD("esrtd",,"GAS 44!-ICE","Last") ->  | CW51: =RTD("esrtd",,"GAS 44!-ICE","Change") ->  | CX51: =RTD("esrtd",,"GAS 44!-ICE","Time") -> 42277.83333 | CY51: =RTD("esrtd",,"GAS 44!-ICE","PrevPrice") -> 568.75 | CZ51: =RTD("esrtd",,"GAS 44!-ICE","NewSettlement") ->  | DB51: =RTD("esrtd",,"GAS 44!-ICE","Expiration") -> 2019-05-10 | DC51: 0.3043478261 | DD51: 569.6195652 | DG51: 574.3695652 | DH51: 15.00354246 | DI51: 14.78595856
B52: =RTD("esrtd",,"CL 44!","Delivery") -> Jun'19 | C52: =RTD("esrtd",,"CL 44!","Symbol") -> CL M19 | D52: =RTD("esrtd",,C51 & ":" & SUBSTITUTE(C52," ",""),"Market") -> -0.17 | E52: -0.17 | G52: 57.305 | H52: =RTD("esrtd",,"CL 44!","Last") ->  | I52: =RTD("esrtd",,"CL 44!","Change") ->  | J52: =RTD("esrtd",,"CL 44!","Time") -> 42277.63007 | K52: =RTD("esrtd",,"CL 44!","PrevPrice") -> 56.8 | L52: =RTD("esrtd",,"CL 44!","NewSettlement") ->  | N52: =RTD("esrtd",,"CL 44!","Expiration") -> 2019-05-21 | O52: 0.7 | P52: 56.89 | S52: 57.395 | T52: =RTD("esrtd",,"BRN 44!-ICE","Delivery") -> Jun'19 | U52: =RTD("esrtd",,"BRN 44!-ICE","Symbol") -> BRN 19M-ICE | V52: =RTD("esrtd",, SUBSTITUTE(U51,"-ICE","") & ":" & SUBSTITUTE(U52," ",""),"Market") -> -0.14 | W52: -0.14 | Y52: 62.02 | Z52: =RTD("esrtd",,"BRN 44!-ICE","Last") ->  | AA52: =RTD("esrtd",,"BRN 44!-ICE","Change") ->  | AB52: =RTD("esrtd",,"BRN 44!-ICE","Time") -> 42278.36932 | AC52: =RTD("esrtd",,"BRN 44!-ICE","PrevPrice") -> 61.6 | AD52: =RTD("esrtd",,"BRN 44!-ICE","NewSettlement") ->  | AF52: =RTD("esrtd",,"BRN 44!-ICE","Expiration") -> 2019-04-30 | AG52: =IF(BRNDateDiff(AF52,BRNNewExpDate)>0,NetDaysRatio(AF53,ICEHolidays,-1),IF(BRNDateDiff(AF52,BRNNewExpDate)=0,"",IF(BRNDateDiff(AF52,BRNNewExpDate)<0,NetDaysRatio(AF54,ICEHolidays,-1)))) -> 0.95 | AH52: =IF(BRNDateDiff(AF52,BRNNewExpDate)>0,(AG52*AC53)+(1-AG52)*AC54,IF(BRNDateDiff(AF52,BRNNewExpDate)=0,((8/20)*AC53+(11/20)*AC54+1/20*AC55),IF(BRNDateDiff(AF52,BRNNewExpDate)<0,(AG52*AC54)+(1-AG52)*AC55))) -> 61.7435 | AI52: =IF(OR(AD53="",AD54="",AD55=""),"",IF(BRNDateDiff(AF52,BRNNewExpDate)>0,(AG52*AD53)+(1-AG52)*AD54,IF(BRNDateDiff(AF52,BRNNewExpDate)=0,((8/20)*AD53+(11/20)*AD54+1/20*AD55),IF(BRNDateDiff(AF52,BRNNewExpDate)<0,(AG52*AD54)+(1-AG52)*AD55)))) ->  | AK52: =IF(BRNDateDiff(AF52,BRNNewExpDate)>0,IF(OR(Y53="",Y54=""),"",(AG52*Y53)+(1-AG52)*Y54),IF(BRNDateDiff(AF52,BRNNewExpDate)=0,IF(OR(Y53="",Y54="",Y55=""),"",(8/20*Y53)+11/20*Y54)+(1/20*Y55),IF(BRNDateDiff(AF52,BRNNewExpDate)<0,IF(OR(Y54="",Y55=""),"",(AG52*Y54)+(1-AG52)*Y55)))) -> 62.1635 | AL52: Jun'19 | AM52: -4.715 | AN52: -4.7685 | CP52: =RTD("esrtd",,"GAS 45!-ICE","Delivery") -> Jun'19 | CQ52: =RTD("esrtd",,"GAS 45!-ICE","Symbol") -> GAS 19M-ICE | CR52: =RTD("esrtd",, SUBSTITUTE(CQ51,"-ICE","") & ":" & SUBSTITUTE(CQ52," ",""),"Market") -> -1.25 | CS52: -1.25 | CU52: 574.75 | CV52: =RTD("esrtd",,"GAS 45!-ICE","Last") ->  | CW52: =RTD("esrtd",,"GAS 45!-ICE","Change") ->  | CX52: =RTD("esrtd",,"GAS 45!-ICE","Time") -> 42277.83333 | CY52: =RTD("esrtd",,"GAS 45!-ICE","PrevPrice") -> 570 | CZ52: =RTD("esrtd",,"GAS 45!-ICE","NewSettlement") ->  | DB52: =RTD("esrtd",,"GAS 45!-ICE","Expiration") -> 2019-06-12 | DC52: 0.35 | DD52: 570.975 | DG52: 575.725 | DH52: 15.11502349 | DI52: 14.8974396
B53: =RTD("esrtd",,"CL 45!","Delivery") -> Jul'19 | C53: =RTD("esrtd",,"CL 45!","Symbol") -> CL N19 | D53: =RTD("esrtd",,C52 & ":" & SUBSTITUTE(C53," ",""),"Market") -> -0.06 | E53: -0.06 | G53: 57.365 | H53: =RTD("esrtd",,"CL 45!","Last") ->  | I53: =RTD("esrtd",,"CL 45!","Change") ->  | J53: =RTD("esrtd",,"CL 45!","Time") -> 42277.63007 | K53: =RTD("esrtd",,"CL 45!","PrevPrice") -> 56.86 | L53: =RTD("esrtd",,"CL 45!","NewSettlement") ->  | N53: =RTD("esrtd",,"CL 45!","Expiration") -> 2019-06-20 | O53: 0.6818181818 | P53: 56.99818182 | S53: 57.50318182 | T53: =RTD("esrtd",,"BRN 45!-ICE","Delivery") -> Jul'19 | U53: =RTD("esrtd",,"BRN 45!-ICE","Symbol") -> BRN 19N-ICE | V53: =RTD("esrtd",, SUBSTITUTE(U52,"-ICE","") & ":" & SUBSTITUTE(U53," ",""),"Market") -> -0.07 | W53: -0.07 | Y53: 62.09 | Z53: =RTD("esrtd",,"BRN 45!-ICE","Last") ->  | AA53: =RTD("esrtd",,"BRN 45!-ICE","Change") ->  | AB53: =RTD("esrtd",,"BRN 45!-ICE","Time") -> 42277.83333 | AC53: =RTD("esrtd",,"BRN 45!-ICE","PrevPrice") -> 61.67 | AD53: =RTD("esrtd",,"BRN 45!-ICE","NewSettlement") ->  | AF53: =RTD("esrtd",,"BRN 45!-ICE","Expiration") -> 2019-05-31 | AG53: =IF(BRNDateDiff(AF53,BRNNewExpDate)>0,NetDaysRatio(AF54,ICEHolidays,-1),IF(BRNDateDiff(AF53,BRNNewExpDate)=0,"",IF(BRNDateDiff(AF53,BRNNewExpDate)<0,NetDaysRatio(AF55,ICEHolidays,-1)))) -> 0.9565217391 | AH53: =IF(BRNDateDiff(AF53,BRNNewExpDate)>0,(AG53*AC54)+(1-AG53)*AC55,IF(BRNDateDiff(AF53,BRNNewExpDate)=0,((8/20)*AC54+(11/20)*AC55+1/20*AC56),IF(BRNDateDiff(AF53,BRNNewExpDate)<0,(AG53*AC55)+(1-AG53)*AC56))) -> 61.81304348 | AI53: =IF(OR(AD54="",AD55="",AD56=""),"",IF(BRNDateDiff(AF53,BRNNewExpDate)>0,(AG53*AD54)+(1-AG53)*AD55,IF(BRNDateDiff(AF53,BRNNewExpDate)=0,((8/20)*AD54+(11/20)*AD55+1/20*AD56),IF(BRNDateDiff(AF53,BRNNewExpDate)<0,(AG53*AD55)+(1-AG53)*AD56)))) ->  | AK53: =IF(BRNDateDiff(AF53,BRNNewExpDate)>0,IF(OR(Y54="",Y55=""),"",(AG53*Y54)+(1-AG53)*Y55),IF(BRNDateDiff(AF53,BRNNewExpDate)=0,IF(OR(Y54="",Y55="",Y56=""),"",(8/20*Y54)+11/20*Y55)+(1/20*Y56),IF(BRNDateDiff(AF53,BRNNewExpDate)<0,IF(OR(Y55="",Y56=""),"",(AG53*Y55)+(1-AG53)*Y56)))) -> 62.23304348 | AL53: Jul'19 | AM53: -4.725 | AN53: -4.72986166 | CP53: =RTD("esrtd",,"GAS 46!-ICE","Delivery") -> Jul'19 | CQ53: =RTD("esrtd",,"GAS 46!-ICE","Symbol") -> GAS 19N-ICE | CR53: =RTD("esrtd",, SUBSTITUTE(CQ52,"-ICE","") & ":" & SUBSTITUTE(CQ53," ",""),"Market") -> -1.5 | CS53: -1.5 | CU53: 576.25 | CV53: =RTD("esrtd",,"GAS 46!-ICE","Last") ->  | CW53: =RTD("esrtd",,"GAS 46!-ICE","Change") ->  | CX53: =RTD("esrtd",,"GAS 46!-ICE","Time") -> 42277.83333 | CY53: =RTD("esrtd",,"GAS 46!-ICE","PrevPrice") -> 571.5 | CZ53: =RTD("esrtd",,"GAS 46!-ICE","NewSettlement") ->  | DB53: =RTD("esrtd",,"GAS 46!-ICE","Expiration") -> 2019-07-11 | DC53: 0.347826087 | DD53: 572.4782609 | DG53: 577.2282609 | DH53: 15.24725999 | DI53: 15.0296761
B54: =RTD("esrtd",,"CL 46!","Delivery") -> Aug'19 | C54: =RTD("esrtd",,"CL 46!","Symbol") -> CL Q19 | D54: =RTD("esrtd",,C53 & ":" & SUBSTITUTE(C54," ",""),"Market") -> -0.1 | E54: -0.1 | G54: 57.465 | H54: =RTD("esrtd",,"CL 46!","Last") ->  | I54: =RTD("esrtd",,"CL 46!","Change") ->  | J54: =RTD("esrtd",,"CL 46!","Time") -> 42277.63007 | K54: =RTD("esrtd",,"CL 46!","PrevPrice") -> 56.96 | L54: =RTD("esrtd",,"CL 46!","NewSettlement") ->  | N54: =RTD("esrtd",,"CL 46!","Expiration") -> 2019-07-22 | O54: 0.6363636364 | P54: 57.13090909 | S54: 57.63590909 | T54: =RTD("esrtd",,"BRN 46!-ICE","Delivery") -> Aug'19 | U54: =RTD("esrtd",,"BRN 46!-ICE","Symbol") -> BRN 19Q-ICE | V54: =RTD("esrtd",, SUBSTITUTE(U53,"-ICE","") & ":" & SUBSTITUTE(U54," ",""),"Market") -> -0.07 | W54: -0.07 | Y54: 62.16 | Z54: =RTD("esrtd",,"BRN 46!-ICE","Last") ->  | AA54: =RTD("esrtd",,"BRN 46!-ICE","Change") ->  | AB54: =RTD("esrtd",,"BRN 46!-ICE","Time") -> 42277.83333 | AC54: =RTD("esrtd",,"BRN 46!-ICE","PrevPrice") -> 61.74 | AD54: =RTD("esrtd",,"BRN 46!-ICE","NewSettlement") ->  | AF54: =RTD("esrtd",,"BRN 46!-ICE","Expiration") -> 2019-06-28 | AG54: =IF(BRNDateDiff(AF54,BRNNewExpDate)>0,NetDaysRatio(AF55,ICEHolidays,-1),IF(BRNDateDiff(AF54,BRNNewExpDate)=0,"",IF(BRNDateDiff(AF54,BRNNewExpDate)<0,NetDaysRatio(AF56,ICEHolidays,-1)))) -> 0.9545454545 | AH54: =IF(BRNDateDiff(AF54,BRNNewExpDate)>0,(AG54*AC55)+(1-AG54)*AC56,IF(BRNDateDiff(AF54,BRNNewExpDate)=0,((8/20)*AC55+(11/20)*AC56+1/20*AC57),IF(BRNDateDiff(AF54,BRNNewExpDate)<0,(AG54*AC56)+(1-AG54)*AC57))) -> 61.88272727 | AI54: =IF(OR(AD55="",AD56="",AD57=""),"",IF(BRNDateDiff(AF54,BRNNewExpDate)>0,(AG54*AD55)+(1-AG54)*AD56,IF(BRNDateDiff(AF54,BRNNewExpDate)=0,((8/20)*AD55+(11/20)*AD56+1/20*AD57),IF(BRNDateDiff(AF54,BRNNewExpDate)<0,(AG54*AD56)+(1-AG54)*AD57)))) ->  | AK54: =IF(BRNDateDiff(AF54,BRNNewExpDate)>0,IF(OR(Y55="",Y56=""),"",(AG54*Y55)+(1-AG54)*Y56),IF(BRNDateDiff(AF54,BRNNewExpDate)=0,IF(OR(Y55="",Y56="",Y57=""),"",(8/20*Y55)+11/20*Y56)+(1/20*Y57),IF(BRNDateDiff(AF54,BRNNewExpDate)<0,IF(OR(Y56="",Y57=""),"",(AG54*Y56)+(1-AG54)*Y57)))) -> 62.30272727 | AL54: Aug'19 | AM54: -4.695 | AN54: -4.666818182 | CP54: =RTD("esrtd",,"GAS 47!-ICE","Delivery") -> Aug'19 | CQ54: =RTD("esrtd",,"GAS 47!-ICE","Symbol") -> GAS 19Q-ICE | CR54: =RTD("esrtd",, SUBSTITUTE(CQ53,"-ICE","") & ":" & SUBSTITUTE(CQ54," ",""),"Market") -> -1.5 | CS54: -1.5 | CU54: 577.75 | CV54: =RTD("esrtd",,"GAS 47!-ICE","Last") ->  | CW54: =RTD("esrtd",,"GAS 47!-ICE","Change") ->  | CX54: =RTD("esrtd",,"GAS 47!-ICE","Time") -> 42277.83333 | CY54: =RTD("esrtd",,"GAS 47!-ICE","PrevPrice") -> 573 | CZ54: =RTD("esrtd",,"GAS 47!-ICE","NewSettlement") ->  | DB54: =RTD("esrtd",,"GAS 47!-ICE","Expiration") -> 2019-08-12 | DC54: 0.3181818182 | DD54: 574.0227273 | DG54: 578.7727273 | DH54: 15.38488713 | DI54: 15.16730323
B55: =RTD("esrtd",,"CL 47!","Delivery") -> Sep'19 | C55: =RTD("esrtd",,"CL 47!","Symbol") -> CL U19 | D55: =RTD("esrtd",,C54 & ":" & SUBSTITUTE(C55," ",""),"Market") -> -0.12 | E55: -0.12 | G55: 57.585 | H55: =RTD("esrtd",,"CL 47!","Last") ->  | I55: =RTD("esrtd",,"CL 47!","Change") ->  | J55: =RTD("esrtd",,"CL 47!","Time") -> 42277.63007 | K55: =RTD("esrtd",,"CL 47!","PrevPrice") -> 57.08 | L55: =RTD("esrtd",,"CL 47!","NewSettlement") ->  | N55: =RTD("esrtd",,"CL 47!","Expiration") -> 2019-08-20 | O55: 0.7 | P55: 57.271 | S55: 57.776 | T55: =RTD("esrtd",,"BRN 47!-ICE","Delivery") -> Sep'19 | U55: =RTD("esrtd",,"BRN 47!-ICE","Symbol") -> BRN 19U-ICE | V55: =RTD("esrtd",, SUBSTITUTE(U54,"-ICE","") & ":" & SUBSTITUTE(U55," ",""),"Market") -> -0.07 | W55: -0.07 | Y55: 62.23 | Z55: =RTD("esrtd",,"BRN 47!-ICE","Last") ->  | AA55: =RTD("esrtd",,"BRN 47!-ICE","Change") ->  | AB55: =RTD("esrtd",,"BRN 47!-ICE","Time") -> 42277.83333 | AC55: =RTD("esrtd",,"BRN 47!-ICE","PrevPrice") -> 61.81 | AD55: =RTD("esrtd",,"BRN 47!-ICE","NewSettlement") ->  | AF55: =RTD("esrtd",,"BRN 47!-ICE","Expiration") -> 2019-07-31 | AG55: =IF(BRNDateDiff(AF55,BRNNewExpDate)>0,NetDaysRatio(AF56,ICEHolidays,-1),IF(BRNDateDiff(AF55,BRNNewExpDate)=0,"",IF(BRNDateDiff(AF55,BRNNewExpDate)<0,NetDaysRatio(AF57,ICEHolidays,-1)))) -> 0.9523809524 | AH55: =IF(BRNDateDiff(AF55,BRNNewExpDate)>0,(AG55*AC56)+(1-AG55)*AC57,IF(BRNDateDiff(AF55,BRNNewExpDate)=0,((8/20)*AC56+(11/20)*AC57+1/20*AC58),IF(BRNDateDiff(AF55,BRNNewExpDate)<0,(AG55*AC57)+(1-AG55)*AC58))) -> 61.94285714 | AI55: =IF(OR(AD56="",AD57="",AD58=""),"",IF(BRNDateDiff(AF55,BRNNewExpDate)>0,(AG55*AD56)+(1-AG55)*AD57,IF(BRNDateDiff(AF55,BRNNewExpDate)=0,((8/20)*AD56+(11/20)*AD57+1/20*AD58),IF(BRNDateDiff(AF55,BRNNewExpDate)<0,(AG55*AD57)+(1-AG55)*AD58)))) ->  | AK55: =IF(BRNDateDiff(AF55,BRNNewExpDate)>0,IF(OR(Y56="",Y57=""),"",(AG55*Y56)+(1-AG55)*Y57),IF(BRNDateDiff(AF55,BRNNewExpDate)=0,IF(OR(Y56="",Y57="",Y58=""),"",(8/20*Y56)+11/20*Y57)+(1/20*Y58),IF(BRNDateDiff(AF55,BRNNewExpDate)<0,IF(OR(Y57="",Y58=""),"",(AG55*Y57)+(1-AG55)*Y58)))) -> 62.36285714 | AL55: Sep'19 | AM55: -4.645 | AN55: -4.586857143 | CP55: =RTD("esrtd",,"GAS 48!-ICE","Delivery") -> Sep'19 | CQ55: =RTD("esrtd",,"GAS 48!-ICE","Symbol") -> GAS 19U-ICE | CR55: =RTD("esrtd",, SUBSTITUTE(CQ54,"-ICE","") & ":" & SUBSTITUTE(CQ55," ",""),"Market") -> -1.5 | CS55: -1.5 | CU55: 579.25 | CV55: =RTD("esrtd",,"GAS 48!-ICE","Last") ->  | CW55: =RTD("esrtd",,"GAS 48!-ICE","Change") ->  | CX55: =RTD("esrtd",,"GAS 48!-ICE","Time") -> 42277.83333 | CY55: =RTD("esrtd",,"GAS 48!-ICE","PrevPrice") -> 574.5 | CZ55: =RTD("esrtd",,"GAS 48!-ICE","NewSettlement") ->  | DB55: =RTD("esrtd",,"GAS 48!-ICE","Expiration") -> 2019-09-12 | DC55: 0.380952381 | DD55: 575.4285714 | DG55: 580.1785714 | DH55: 15.51346117 | DI55: 15.29587728
B56: =RTD("esrtd",,"CL 48!","Delivery") -> Oct'19 | C56: =RTD("esrtd",,"CL 48!","Symbol") -> CL V19 | D56: =RTD("esrtd",,C55 & ":" & SUBSTITUTE(C56," ",""),"Market") -> -0.14 | E56: -0.14 | G56: 57.725 | H56: =RTD("esrtd",,"CL 48!","Last") ->  | I56: =RTD("esrtd",,"CL 48!","Change") ->  | J56: =RTD("esrtd",,"CL 48!","Time") -> 42277.63007 | K56: =RTD("esrtd",,"CL 48!","PrevPrice") -> 57.22 | L56: =RTD("esrtd",,"CL 48!","NewSettlement") ->  | N56: =RTD("esrtd",,"CL 48!","Expiration") -> 2019-09-20 | O56: 0.6956521739 | P56: 57.45086957 | S56: 57.95586957 | T56: =RTD("esrtd",,"BRN 48!-ICE","Delivery") -> Oct'19 | U56: =RTD("esrtd",,"BRN 48!-ICE","Symbol") -> BRN 19V-ICE | V56: =RTD("esrtd",, SUBSTITUTE(U55,"-ICE","") & ":" & SUBSTITUTE(U56," ",""),"Market") -> -0.07 | W56: -0.07 | Y56: 62.3 | Z56: =RTD("esrtd",,"BRN 48!-ICE","Last") ->  | AA56: =RTD("esrtd",,"BRN 48!-ICE","Change") ->  | AB56: =RTD("esrtd",,"BRN 48!-ICE","Time") -> 42277.83333 | AC56: =RTD("esrtd",,"BRN 48!-ICE","PrevPrice") -> 61.88 | AD56: =RTD("esrtd",,"BRN 48!-ICE","NewSettlement") ->  | AF56: =RTD("esrtd",,"BRN 48!-ICE","Expiration") -> 2019-08-30 | AG56: =IF(BRNDateDiff(AF56,BRNNewExpDate)>0,NetDaysRatio(AF57,ICEHolidays,-1),IF(BRNDateDiff(AF56,BRNNewExpDate)=0,"",IF(BRNDateDiff(AF56,BRNNewExpDate)<0,NetDaysRatio(AF58,ICEHolidays,-1)))) -> 0.9565217391 | AH56: =IF(BRNDateDiff(AF56,BRNNewExpDate)>0,(AG56*AC57)+(1-AG56)*AC58,IF(BRNDateDiff(AF56,BRNNewExpDate)=0,((8/20)*AC57+(11/20)*AC58+1/20*AC59),IF(BRNDateDiff(AF56,BRNNewExpDate)<0,(AG56*AC58)+(1-AG56)*AC59))) -> 62.00304348 | AI56: =IF(OR(AD57="",AD58="",AD59=""),"",IF(BRNDateDiff(AF56,BRNNewExpDate)>0,(AG56*AD57)+(1-AG56)*AD58,IF(BRNDateDiff(AF56,BRNNewExpDate)=0,((8/20)*AD57+(11/20)*AD58+1/20*AD59),IF(BRNDateDiff(AF56,BRNNewExpDate)<0,(AG56*AD58)+(1-AG56)*AD59)))) ->  | AK56: =IF(BRNDateDiff(AF56,BRNNewExpDate)>0,IF(OR(Y57="",Y58=""),"",(AG56*Y57)+(1-AG56)*Y58),IF(BRNDateDiff(AF56,BRNNewExpDate)=0,IF(OR(Y57="",Y58="",Y59=""),"",(8/20*Y57)+11/20*Y58)+(1/20*Y59),IF(BRNDateDiff(AF56,BRNNewExpDate)<0,IF(OR(Y58="",Y59=""),"",(AG56*Y58)+(1-AG56)*Y59)))) -> 62.42304348 | AL56: Oct'19 | AM56: -4.575 | AN56: -4.467173913 | CP56: =RTD("esrtd",,"GAS 49!-ICE","Delivery") -> Oct'19 | CQ56: =RTD("esrtd",,"GAS 49!-ICE","Symbol") -> GAS 19V-ICE | CR56: =RTD("esrtd",, SUBSTITUTE(CQ55,"-ICE","") & ":" & SUBSTITUTE(CQ56," ",""),"Market") -> -1.5 | CS56: -1.5 | CU56: 580.75 | CV56: =RTD("esrtd",,"GAS 49!-ICE","Last") ->  | CW56: =RTD("esrtd",,"GAS 49!-ICE","Change") ->  | CX56: =RTD("esrtd",,"GAS 49!-ICE","Time") -> 42277.83333 | CY56: =RTD("esrtd",,"GAS 49!-ICE","PrevPrice") -> 576 | CZ56: =RTD("esrtd",,"GAS 49!-ICE","NewSettlement") ->  | DB56: =RTD("esrtd",,"GAS 49!-ICE","Expiration") -> 2019-10-10 | DC56: 0.3043478261 | DD56: 576.8695652 | DG56: 581.6195652 | DH56: 15.64669682 | DI56: 15.42911293
B57: =RTD("esrtd",,"CL 49!","Delivery") -> Nov'19 | C57: =RTD("esrtd",,"CL 49!","Symbol") -> CL X19 | D57: =RTD("esrtd",,C56 & ":" & SUBSTITUTE(C57," ",""),"Market") -> -0.17 | E57: -0.17 | G57: 57.895 | H57: =RTD("esrtd",,"CL 49!","Last") ->  | I57: =RTD("esrtd",,"CL 49!","Change") ->  | J57: =RTD("esrtd",,"CL 49!","Time") -> 42277.63007 | K57: =RTD("esrtd",,"CL 49!","PrevPrice") -> 57.39 | L57: =RTD("esrtd",,"CL 49!","NewSettlement") ->  | N57: =RTD("esrtd",,"CL 49!","Expiration") -> 2019-10-22 | O57: 0.7 | P57: 57.608 | S57: 58.113 | T57: =RTD("esrtd",,"BRN 49!-ICE","Delivery") -> Nov'19 | U57: =RTD("esrtd",,"BRN 49!-ICE","Symbol") -> BRN 19X-ICE | V57: =RTD("esrtd",, SUBSTITUTE(U56,"-ICE","") & ":" & SUBSTITUTE(U57," ",""),"Market") -> -0.06 | W57: -0.06 | Y57: 62.36 | Z57: =RTD("esrtd",,"BRN 49!-ICE","Last") ->  | AA57: =RTD("esrtd",,"BRN 49!-ICE","Change") ->  | AB57: =RTD("esrtd",,"BRN 49!-ICE","Time") -> 42277.83333 | AC57: =RTD("esrtd",,"BRN 49!-ICE","PrevPrice") -> 61.94 | AD57: =RTD("esrtd",,"BRN 49!-ICE","NewSettlement") ->  | AF57: =RTD("esrtd",,"BRN 49!-ICE","Expiration") -> 2019-09-30 | AG57: =IF(BRNDateDiff(AF57,BRNNewExpDate)>0,NetDaysRatio(AF58,ICEHolidays,-1),IF(BRNDateDiff(AF57,BRNNewExpDate)=0,"",IF(BRNDateDiff(AF57,BRNNewExpDate)<0,NetDaysRatio(AF59,ICEHolidays,-1)))) -> 0.9523809524 | AH57: =IF(BRNDateDiff(AF57,BRNNewExpDate)>0,(AG57*AC58)+(1-AG57)*AC59,IF(BRNDateDiff(AF57,BRNNewExpDate)=0,((8/20)*AC58+(11/20)*AC59+1/20*AC60),IF(BRNDateDiff(AF57,BRNNewExpDate)<0,(AG57*AC59)+(1-AG57)*AC60))) -> 62.07333333 | AI57: =IF(OR(AD58="",AD59="",AD60=""),"",IF(BRNDateDiff(AF57,BRNNewExpDate)>0,(AG57*AD58)+(1-AG57)*AD59,IF(BRNDateDiff(AF57,BRNNewExpDate)=0,((8/20)*AD58+(11/20)*AD59+1/20*AD60),IF(BRNDateDiff(AF57,BRNNewExpDate)<0,(AG57*AD59)+(1-AG57)*AD60)))) ->  | AK57: =IF(BRNDateDiff(AF57,BRNNewExpDate)>0,IF(OR(Y58="",Y59=""),"",(AG57*Y58)+(1-AG57)*Y59),IF(BRNDateDiff(AF57,BRNNewExpDate)=0,IF(OR(Y58="",Y59="",Y60=""),"",(8/20*Y58)+11/20*Y59)+(1/20*Y60),IF(BRNDateDiff(AF57,BRNNewExpDate)<0,IF(OR(Y59="",Y60=""),"",(AG57*Y59)+(1-AG57)*Y60)))) -> 62.49333333 | AL57: Nov'19 | AM57: -4.465 | AN57: -4.380333333 | CP57: =RTD("esrtd",,"GAS 50!-ICE","Delivery") -> Nov'19 | CQ57: =RTD("esrtd",,"GAS 50!-ICE","Symbol") -> GAS 19X-ICE | CR57: =RTD("esrtd",, SUBSTITUTE(CQ56,"-ICE","") & ":" & SUBSTITUTE(CQ57," ",""),"Market") -> -1.25 | CS57: -1.25 | CU57: 582 | CV57: =RTD("esrtd",,"GAS 50!-ICE","Last") ->  | CW57: =RTD("esrtd",,"GAS 50!-ICE","Change") ->  | CX57: =RTD("esrtd",,"GAS 50!-ICE","Time") -> 42277.83333 | CY57: =RTD("esrtd",,"GAS 50!-ICE","PrevPrice") -> 577.25 | CZ57: =RTD("esrtd",,"GAS 50!-ICE","NewSettlement") ->  | DB57: =RTD("esrtd",,"GAS 50!-ICE","Expiration") -> 2019-11-12 | DC57: 0.3333333333 | DD57: 578.0833333 | DG57: 582.8333333 | DH57: 15.73932886 | DI57: 15.52174497
B58: =RTD("esrtd",,"CL 50!","Delivery") -> Dec'19 | C58: =RTD("esrtd",,"CL 50!","Symbol") -> CL Z19 | D58: =RTD("esrtd",,C57 & ":" & SUBSTITUTE(C58," ",""),"Market") -> -0.2 | E58: -0.2 | G58: 58.095 | H58: =RTD("esrtd",,"CL 50!","Last") ->  | I58: =RTD("esrtd",,"CL 50!","Change") ->  | J58: =RTD("esrtd",,"CL 50!","Time") -> 42278.36897 | K58: =RTD("esrtd",,"CL 50!","PrevPrice") -> 57.59 | L58: =RTD("esrtd",,"CL 50!","NewSettlement") ->  | N58: =RTD("esrtd",,"CL 50!","Expiration") -> 2019-11-20 | O58: 0.6666666667 | P58: 57.67333333 | S58: 58.17833333 | T58: =RTD("esrtd",,"BRN 50!-ICE","Delivery") -> Dec'19 | U58: =RTD("esrtd",,"BRN 50!-ICE","Symbol") -> BRN 19Z-ICE | V58: =RTD("esrtd",, SUBSTITUTE(U57,"-ICE","") & ":" & SUBSTITUTE(U58," ",""),"Market") -> -0.06 | W58: -0.06 | Y58: 62.42 | Z58: =RTD("esrtd",,"BRN 50!-ICE","Last") ->  | AA58: =RTD("esrtd",,"BRN 50!-ICE","Change") ->  | AB58: =RTD("esrtd",,"BRN 50!-ICE","Time") -> 42278.36932 | AC58: =RTD("esrtd",,"BRN 50!-ICE","PrevPrice") -> 62 | AD58: =RTD("esrtd",,"BRN 50!-ICE","NewSettlement") ->  | AF58: =RTD("esrtd",,"BRN 50!-ICE","Expiration") -> 2019-10-31 | AG58: =IF(BRNDateDiff(AF58,BRNNewExpDate)>0,NetDaysRatio(AF59,ICEHolidays,-1),IF(BRNDateDiff(AF58,BRNNewExpDate)=0,"",IF(BRNDateDiff(AF58,BRNNewExpDate)<0,NetDaysRatio(AF60,ICEHolidays,-1)))) -> 0.9047619048 | AH58: =IF(BRNDateDiff(AF58,BRNNewExpDate)>0,(AG58*AC59)+(1-AG58)*AC60,IF(BRNDateDiff(AF58,BRNNewExpDate)=0,((8/20)*AC59+(11/20)*AC60+1/20*AC61),IF(BRNDateDiff(AF58,BRNNewExpDate)<0,(AG58*AC60)+(1-AG58)*AC61))) -> 62.14666667 | AI58: =IF(OR(AD59="",AD60="",AD61=""),"",IF(BRNDateDiff(AF58,BRNNewExpDate)>0,(AG58*AD59)+(1-AG58)*AD60,IF(BRNDateDiff(AF58,BRNNewExpDate)=0,((8/20)*AD59+(11/20)*AD60+1/20*AD61),IF(BRNDateDiff(AF58,BRNNewExpDate)<0,(AG58*AD60)+(1-AG58)*AD61)))) ->  | AK58: =IF(BRNDateDiff(AF58,BRNNewExpDate)>0,IF(OR(Y59="",Y60=""),"",(AG58*Y59)+(1-AG58)*Y60),IF(BRNDateDiff(AF58,BRNNewExpDate)=0,IF(OR(Y59="",Y60="",Y61=""),"",(8/20*Y59)+11/20*Y60)+(1/20*Y61),IF(BRNDateDiff(AF58,BRNNewExpDate)<0,IF(OR(Y60="",Y61=""),"",(AG58*Y60)+(1-AG58)*Y61)))) -> 62.56666667 | AL58: Dec'19 | AM58: -4.325 | AN58: -4.388333333 | CP58: =RTD("esrtd",,"GAS 51!-ICE","Delivery") -> Dec'19 | CQ58: =RTD("esrtd",,"GAS 51!-ICE","Symbol") -> GAS 19Z-ICE | CR58: =RTD("esrtd",, SUBSTITUTE(CQ57,"-ICE","") & ":" & SUBSTITUTE(CQ58," ",""),"Market") -> -1.25 | CS58: -1.25 | CU58: 583.25 | CV58: =RTD("esrtd",,"GAS 51!-ICE","Last") ->  | CW58: =RTD("esrtd",,"GAS 51!-ICE","Change") ->  | CX58: =RTD("esrtd",,"GAS 51!-ICE","Time") -> 42278.36927 | CY58: =RTD("esrtd",,"GAS 51!-ICE","PrevPrice") -> 578.5 | CZ58: =RTD("esrtd",,"GAS 51!-ICE","NewSettlement") ->  | DB58: =RTD("esrtd",,"GAS 51!-ICE","Expiration") -> 2019-12-12 | DC58: 0.380952381 | DD58: 579.2738095 | DG58: 584.0238095 | DH58: 15.82579099 | DI58: 15.60820709
B59: =RTD("esrtd",,"CL 51!","Delivery") -> Jan'20 | C59: =RTD("esrtd",,"CL 51!","Symbol") -> CL F20 | D59: =RTD("esrtd",,C58 & ":" & SUBSTITUTE(C59," ",""),"Market") -> -0.06 | E59: -0.06 | G59: 58.155 | H59: =RTD("esrtd",,"CL 51!","Last") ->  | I59: =RTD("esrtd",,"CL 51!","Change") ->  | J59: =RTD("esrtd",,"CL 51!","Time") -> 42277.63007 | K59: =RTD("esrtd",,"CL 51!","PrevPrice") -> 57.65 | L59: =RTD("esrtd",,"CL 51!","NewSettlement") ->  | N59: =RTD("esrtd",,"CL 51!","Expiration") -> 2019-12-19 | O59: 0.619047619 | P59: 57.75047619 | S59: 58.25547619 | T59: =RTD("esrtd",,"BRN 51!-ICE","Delivery") -> Jan'20 | U59: =RTD("esrtd",,"BRN 51!-ICE","Symbol") -> BRN 20F-ICE | V59: =RTD("esrtd",, SUBSTITUTE(U58,"-ICE","") & ":" & SUBSTITUTE(U59," ",""),"Market") -> -0.07 | W59: -0.07 | Y59: 62.49 | Z59: =RTD("esrtd",,"BRN 51!-ICE","Last") ->  | AA59: =RTD("esrtd",,"BRN 51!-ICE","Change") ->  | AB59: =RTD("esrtd",,"BRN 51!-ICE","Time") -> 42277.83333 | AC59: =RTD("esrtd",,"BRN 51!-ICE","PrevPrice") -> 62.07 | AD59: =RTD("esrtd",,"BRN 51!-ICE","NewSettlement") ->  | AF59: =RTD("esrtd",,"BRN 51!-ICE","Expiration") -> 2019-11-29 | AG59: =IF(BRNDateDiff(AF59,BRNNewExpDate)>0,NetDaysRatio(AF60,ICEHolidays,-1),IF(BRNDateDiff(AF59,BRNNewExpDate)=0,"",IF(BRNDateDiff(AF59,BRNNewExpDate)<0,NetDaysRatio(AF61,ICEHolidays,-1)))) -> 0.9545454545 | AH59: =IF(BRNDateDiff(AF59,BRNNewExpDate)>0,(AG59*AC60)+(1-AG59)*AC61,IF(BRNDateDiff(AF59,BRNNewExpDate)=0,((8/20)*AC60+(11/20)*AC61+1/20*AC62),IF(BRNDateDiff(AF59,BRNNewExpDate)<0,(AG59*AC61)+(1-AG59)*AC62))) -> 62.21318182 | AI59: =IF(OR(AD60="",AD61="",AD62=""),"",IF(BRNDateDiff(AF59,BRNNewExpDate)>0,(AG59*AD60)+(1-AG59)*AD61,IF(BRNDateDiff(AF59,BRNNewExpDate)=0,((8/20)*AD60+(11/20)*AD61+1/20*AD62),IF(BRNDateDiff(AF59,BRNNewExpDate)<0,(AG59*AD61)+(1-AG59)*AD62)))) ->  | AK59: =IF(BRNDateDiff(AF59,BRNNewExpDate)>0,IF(OR(Y60="",Y61=""),"",(AG59*Y60)+(1-AG59)*Y61),IF(BRNDateDiff(AF59,BRNNewExpDate)=0,IF(OR(Y60="",Y61="",Y62=""),"",(8/20*Y60)+11/20*Y61)+(1/20*Y62),IF(BRNDateDiff(AF59,BRNNewExpDate)<0,IF(OR(Y61="",Y62=""),"",(AG59*Y61)+(1-AG59)*Y62)))) -> 62.63318182 | AL59: Jan'20 | AM59: -4.335 | AN59: -4.377705628 | CP59: =RTD("esrtd",,"GAS 52!-ICE","Delivery") -> Jan'20 | CQ59: =RTD("esrtd",,"GAS 52!-ICE","Symbol") -> GAS 20F-ICE | CR59: =RTD("esrtd",, SUBSTITUTE(CQ58,"-ICE","") & ":" & SUBSTITUTE(CQ59," ",""),"Market") -> -1.25 | CS59: -1.25 | CU59: 584.5 | CV59: =RTD("esrtd",,"GAS 52!-ICE","Last") ->  | CW59: =RTD("esrtd",,"GAS 52!-ICE","Change") ->  | CX59: =RTD("esrtd",,"GAS 52!-ICE","Time") -> 42277.83333 | CY59: =RTD("esrtd",,"GAS 52!-ICE","PrevPrice") -> 579.75 | CZ59: =RTD("esrtd",,"GAS 52!-ICE","NewSettlement") ->  | DB59: =RTD("esrtd",,"GAS 52!-ICE","Expiration") -> 2020-01-10 | DC59: 0.2727272727 | DD59: 580.6590909 | DG59: 585.4090909 | DH59: 15.94521965 | DI59: 15.72763575
B60: =RTD("esrtd",,"CL 52!","Delivery") -> Feb'20 | C60: =RTD("esrtd",,"CL 52!","Symbol") -> CL G20 | D60: =RTD("esrtd",,C59 & ":" & SUBSTITUTE(C60," ",""),"Market") -> -0.07 | E60: -0.07 | G60: 58.225 | H60: =RTD("esrtd",,"CL 52!","Last") ->  | I60: =RTD("esrtd",,"CL 52!","Change") ->  | J60: =RTD("esrtd",,"CL 52!","Time") -> 42277.63007 | K60: =RTD("esrtd",,"CL 52!","PrevPrice") -> 57.72 | L60: =RTD("esrtd",,"CL 52!","NewSettlement") ->  | N60: =RTD("esrtd",,"CL 52!","Expiration") -> 2020-01-21 | O60: 0.6842105263 | P60: 57.83157895 | S60: 58.33657895 | T60: =RTD("esrtd",,"BRN 52!-ICE","Delivery") -> Feb'20 | U60: =RTD("esrtd",,"BRN 52!-ICE","Symbol") -> BRN 20G-ICE | V60: =RTD("esrtd",, SUBSTITUTE(U59,"-ICE","") & ":" & SUBSTITUTE(U60," ",""),"Market") -> -0.07 | W60: -0.07 | Y60: 62.56 | Z60: =RTD("esrtd",,"BRN 52!-ICE","Last") ->  | AA60: =RTD("esrtd",,"BRN 52!-ICE","Change") ->  | AB60: =RTD("esrtd",,"BRN 52!-ICE","Time") -> 42277.83333 | AC60: =RTD("esrtd",,"BRN 52!-ICE","PrevPrice") -> 62.14 | AD60: =RTD("esrtd",,"BRN 52!-ICE","NewSettlement") ->  | AF60: =RTD("esrtd",,"BRN 52!-ICE","Expiration") -> 2019-12-30 | AG60: =IF(BRNDateDiff(AF60,BRNNewExpDate)>0,NetDaysRatio(AF61,ICEHolidays,-1),IF(BRNDateDiff(AF60,BRNNewExpDate)=0,"",IF(BRNDateDiff(AF60,BRNNewExpDate)<0,NetDaysRatio(AF62,ICEHolidays,-1)))) -> 0.95 | AH60: =IF(BRNDateDiff(AF60,BRNNewExpDate)>0,(AG60*AC61)+(1-AG60)*AC62,IF(BRNDateDiff(AF60,BRNNewExpDate)=0,((8/20)*AC61+(11/20)*AC62+1/20*AC63),IF(BRNDateDiff(AF60,BRNNewExpDate)<0,(AG60*AC62)+(1-AG60)*AC63))) -> 62.283 | AI60: =IF(OR(AD61="",AD62="",AD63=""),"",IF(BRNDateDiff(AF60,BRNNewExpDate)>0,(AG60*AD61)+(1-AG60)*AD62,IF(BRNDateDiff(AF60,BRNNewExpDate)=0,((8/20)*AD61+(11/20)*AD62+1/20*AD63),IF(BRNDateDiff(AF60,BRNNewExpDate)<0,(AG60*AD62)+(1-AG60)*AD63)))) ->  | AK60: =IF(BRNDateDiff(AF60,BRNNewExpDate)>0,IF(OR(Y61="",Y62=""),"",(AG60*Y61)+(1-AG60)*Y62),IF(BRNDateDiff(AF60,BRNNewExpDate)=0,IF(OR(Y61="",Y62="",Y63=""),"",(8/20*Y61)+11/20*Y62)+(1/20*Y63),IF(BRNDateDiff(AF60,BRNNewExpDate)<0,IF(OR(Y62="",Y63=""),"",(AG60*Y62)+(1-AG60)*Y63)))) -> 62.703 | AL60: Feb'20 | AM60: -4.335 | AN60: -4.366421053 | CP60: =RTD("esrtd",,"GAS 53!-ICE","Delivery") -> Feb'20 | CQ60: =RTD("esrtd",,"GAS 53!-ICE","Symbol") -> GAS 20G-ICE | CR60: =RTD("esrtd",, SUBSTITUTE(CQ59,"-ICE","") & ":" & SUBSTITUTE(CQ60," ",""),"Market") -> -1.25 | CS60: -1.25 | CU60: 585.75 | CV60: =RTD("esrtd",,"GAS 53!-ICE","Last") ->  | CW60: =RTD("esrtd",,"GAS 53!-ICE","Change") ->  | CX60: =RTD("esrtd",,"GAS 53!-ICE","Time") -> 42277.83333 | CY60: =RTD("esrtd",,"GAS 53!-ICE","PrevPrice") -> 581 | CZ60: =RTD("esrtd",,"GAS 53!-ICE","NewSettlement") ->  | DB60: =RTD("esrtd",,"GAS 53!-ICE","Expiration") -> 2020-02-12 | DC60: 0.35 | DD60: 581.8125 | DG60: 586.5625 | DH60: 16.03022148 | DI60: 15.81263758
B61: =RTD("esrtd",,"CL 53!","Delivery") -> Mar'20 | C61: =RTD("esrtd",,"CL 53!","Symbol") -> CL H20 | D61: =RTD("esrtd",,C60 & ":" & SUBSTITUTE(C61," ",""),"Market") -> -0.08 | E61: -0.08 | G61: 58.305 | H61: =RTD("esrtd",,"CL 53!","Last") ->  | I61: =RTD("esrtd",,"CL 53!","Change") ->  | J61: =RTD("esrtd",,"CL 53!","Time") -> 42277.63007 | K61: =RTD("esrtd",,"CL 53!","PrevPrice") -> 57.8 | L61: =RTD("esrtd",,"CL 53!","NewSettlement") ->  | N61: =RTD("esrtd",,"CL 53!","Expiration") -> 2020-02-20 | O61: 0.6818181818 | P61: 57.93181818 | S61: 58.43681818 | T61: =RTD("esrtd",,"BRN 53!-ICE","Delivery") -> Mar'20 | U61: =RTD("esrtd",,"BRN 53!-ICE","Symbol") -> BRN 20H-ICE | V61: =RTD("esrtd",, SUBSTITUTE(U60,"-ICE","") & ":" & SUBSTITUTE(U61," ",""),"Market") -> -0.07 | W61: -0.07 | Y61: 62.63 | Z61: =RTD("esrtd",,"BRN 53!-ICE","Last") ->  | AA61: =RTD("esrtd",,"BRN 53!-ICE","Change") ->  | AB61: =RTD("esrtd",,"BRN 53!-ICE","Time") -> 42277.83333 | AC61: =RTD("esrtd",,"BRN 53!-ICE","PrevPrice") -> 62.21 | AD61: =RTD("esrtd",,"BRN 53!-ICE","NewSettlement") ->  | AF61: =RTD("esrtd",,"BRN 53!-ICE","Expiration") -> 2020-01-31 | AG61: =IF(BRNDateDiff(AF61,BRNNewExpDate)>0,NetDaysRatio(AF62,ICEHolidays,-1),IF(BRNDateDiff(AF61,BRNNewExpDate)=0,"",IF(BRNDateDiff(AF61,BRNNewExpDate)<0,NetDaysRatio(AF63,ICEHolidays,-1)))) -> 0.9545454545 | AH61: =IF(BRNDateDiff(AF61,BRNNewExpDate)>0,(AG61*AC62)+(1-AG61)*AC63,IF(BRNDateDiff(AF61,BRNNewExpDate)=0,((8/20)*AC62+(11/20)*AC63+1/20*AC64),IF(BRNDateDiff(AF61,BRNNewExpDate)<0,(AG61*AC63)+(1-AG61)*AC64))) -> 62.34272727 | AI61: =IF(OR(AD62="",AD63="",AD64=""),"",IF(BRNDateDiff(AF61,BRNNewExpDate)>0,(AG61*AD62)+(1-AG61)*AD63,IF(BRNDateDiff(AF61,BRNNewExpDate)=0,((8/20)*AD62+(11/20)*AD63+1/20*AD64),IF(BRNDateDiff(AF61,BRNNewExpDate)<0,(AG61*AD63)+(1-AG61)*AD64)))) ->  | AK61: =IF(BRNDateDiff(AF61,BRNNewExpDate)>0,IF(OR(Y62="",Y63=""),"",(AG61*Y62)+(1-AG61)*Y63),IF(BRNDateDiff(AF61,BRNNewExpDate)=0,IF(OR(Y62="",Y63="",Y64=""),"",(8/20*Y62)+11/20*Y63)+(1/20*Y64),IF(BRNDateDiff(AF61,BRNNewExpDate)<0,IF(OR(Y63="",Y64=""),"",(AG61*Y63)+(1-AG61)*Y64)))) -> 62.76272727 | AL61: Mar'20 | AM61: -4.325 | AN61: -4.325909091 | CP61: =RTD("esrtd",,"GAS 54!-ICE","Delivery") -> Mar'20 | CQ61: =RTD("esrtd",,"GAS 54!-ICE","Symbol") -> GAS 20H-ICE | CR61: =RTD("esrtd",, SUBSTITUTE(CQ60,"-ICE","") & ":" & SUBSTITUTE(CQ61," ",""),"Market") -> -1.25 | CS61: -1.25 | CU61: 587 | CV61: =RTD("esrtd",,"GAS 54!-ICE","Last") ->  | CW61: =RTD("esrtd",,"GAS 54!-ICE","Change") ->  | CX61: =RTD("esrtd",,"GAS 54!-ICE","Time") -> 42277.83333 | CY61: =RTD("esrtd",,"GAS 54!-ICE","PrevPrice") -> 582.25 | CZ61: =RTD("esrtd",,"GAS 54!-ICE","NewSettlement") ->  | DB61: =RTD("esrtd",,"GAS 54!-ICE","Expiration") -> 2020-03-12T01:00:00 | DC61: 0.3636363636 | DD61: 583.0454545 | DG61: 587.7954545 | DH61: 16.13599146 | DI61: 15.91840757
B62: =RTD("esrtd",,"CL 54!","Delivery") -> Apr'20 | C62: =RTD("esrtd",,"CL 54!","Symbol") -> CL J20 | D62: =RTD("esrtd",,C61 & ":" & SUBSTITUTE(C62," ",""),"Market") -> -0.1 | E62: -0.1 | G62: 58.405 | H62: =RTD("esrtd",,"CL 54!","Last") ->  | I62: =RTD("esrtd",,"CL 54!","Change") ->  | J62: =RTD("esrtd",,"CL 54!","Time") -> 42277.63007 | K62: =RTD("esrtd",,"CL 54!","PrevPrice") -> 57.9 | L62: =RTD("esrtd",,"CL 54!","NewSettlement") ->  | N62: =RTD("esrtd",,"CL 54!","Expiration") -> 2020-03-20 | O62: 0.6666666667 | P62: 58.04 | S62: 58.545 | T62: =RTD("esrtd",,"BRN 54!-ICE","Delivery") -> Apr'20 | U62: =RTD("esrtd",,"BRN 54!-ICE","Symbol") -> BRN 20J-ICE | V62: =RTD("esrtd",, SUBSTITUTE(U61,"-ICE","") & ":" & SUBSTITUTE(U62," ",""),"Market") -> -0.07 | W62: -0.07 | Y62: 62.7 | Z62: =RTD("esrtd",,"BRN 54!-ICE","Last") ->  | AA62: =RTD("esrtd",,"BRN 54!-ICE","Change") ->  | AB62: =RTD("esrtd",,"BRN 54!-ICE","Time") -> 42277.83333 | AC62: =RTD("esrtd",,"BRN 54!-ICE","PrevPrice") -> 62.28 | AD62: =RTD("esrtd",,"BRN 54!-ICE","NewSettlement") ->  | AF62: =RTD("esrtd",,"BRN 54!-ICE","Expiration") -> 2020-02-28 | AG62: =IF(BRNDateDiff(AF62,BRNNewExpDate)>0,NetDaysRatio(AF63,ICEHolidays,-1),IF(BRNDateDiff(AF62,BRNNewExpDate)=0,"",IF(BRNDateDiff(AF62,BRNNewExpDate)<0,NetDaysRatio(AF64,ICEHolidays,-1)))) -> 0.9523809524 | AH62: =IF(BRNDateDiff(AF62,BRNNewExpDate)>0,(AG62*AC63)+(1-AG62)*AC64,IF(BRNDateDiff(AF62,BRNNewExpDate)=0,((8/20)*AC63+(11/20)*AC64+1/20*AC65),IF(BRNDateDiff(AF62,BRNNewExpDate)<0,(AG62*AC64)+(1-AG62)*AC65))) -> 62.40333333 | AI62: =IF(OR(AD63="",AD64="",AD65=""),"",IF(BRNDateDiff(AF62,BRNNewExpDate)>0,(AG62*AD63)+(1-AG62)*AD64,IF(BRNDateDiff(AF62,BRNNewExpDate)=0,((8/20)*AD63+(11/20)*AD64+1/20*AD65),IF(BRNDateDiff(AF62,BRNNewExpDate)<0,(AG62*AD64)+(1-AG62)*AD65)))) ->  | AK62: =IF(BRNDateDiff(AF62,BRNNewExpDate)>0,IF(OR(Y63="",Y64=""),"",(AG62*Y63)+(1-AG62)*Y64),IF(BRNDateDiff(AF62,BRNNewExpDate)=0,IF(OR(Y63="",Y64="",Y65=""),"",(8/20*Y63)+11/20*Y64)+(1/20*Y65),IF(BRNDateDiff(AF62,BRNNewExpDate)<0,IF(OR(Y64="",Y65=""),"",(AG62*Y64)+(1-AG62)*Y65)))) -> 62.82333333 | AL62: Apr'20 | AM62: -4.295 | AN62: -4.278333333 | CP62: =RTD("esrtd",,"GAS 55!-ICE","Delivery") -> Apr'20 | CQ62: =RTD("esrtd",,"GAS 55!-ICE","Symbol") -> GAS 20J-ICE | CR62: =RTD("esrtd",, SUBSTITUTE(CQ61,"-ICE","") & ":" & SUBSTITUTE(CQ62," ",""),"Market") -> -1.25 | CS62: -1.25 | CU62: 588.25 | CV62: =RTD("esrtd",,"GAS 55!-ICE","Last") ->  | CW62: =RTD("esrtd",,"GAS 55!-ICE","Change") ->  | CX62: =RTD("esrtd",,"GAS 55!-ICE","Time") -> 42277.83333 | CY62: =RTD("esrtd",,"GAS 55!-ICE","PrevPrice") -> 583.5 | CZ62: =RTD("esrtd",,"GAS 55!-ICE","NewSettlement") ->  | DB62: =RTD("esrtd",,"GAS 55!-ICE","Expiration") -> 2020-04-08 | DC62: 0.2380952381 | DD62: 584.2619048 | DG62: 589.0119048 | DH62: 16.23866731 | DI62: 16.02108341
B63: =RTD("esrtd",,"CL 55!","Delivery") -> May'20 | C63: =RTD("esrtd",,"CL 55!","Symbol") -> CL K20 | D63: =RTD("esrtd",,C62 & ":" & SUBSTITUTE(C63," ",""),"Market") ->  | E63: -0.1 | G63: 58.505 | H63: =RTD("esrtd",,"CL 55!","Last") ->  | I63: =RTD("esrtd",,"CL 55!","Change") ->  | J63: =RTD("esrtd",,"CL 55!","Time") -> 42277.63007 | K63: =RTD("esrtd",,"CL 55!","PrevPrice") -> 58 | L63: =RTD("esrtd",,"CL 55!","NewSettlement") ->  | N63: =RTD("esrtd",,"CL 55!","Expiration") -> 2020-04-21 | O63: 0.65 | P63: 58.1165 | S63: 58.6215 | T63: =RTD("esrtd",,"BRN 55!-ICE","Delivery") -> May'20 | U63: =RTD("esrtd",,"BRN 55!-ICE","Symbol") -> BRN 20K-ICE | V63: =RTD("esrtd",, SUBSTITUTE(U62,"-ICE","") & ":" & SUBSTITUTE(U63," ",""),"Market") -> -0.06 | W63: -0.06 | Y63: 62.76 | Z63: =RTD("esrtd",,"BRN 55!-ICE","Last") ->  | AA63: =RTD("esrtd",,"BRN 55!-ICE","Change") ->  | AB63: =RTD("esrtd",,"BRN 55!-ICE","Time") -> 42277.83333 | AC63: =RTD("esrtd",,"BRN 55!-ICE","PrevPrice") -> 62.34 | AD63: =RTD("esrtd",,"BRN 55!-ICE","NewSettlement") ->  | AF63: =RTD("esrtd",,"BRN 55!-ICE","Expiration") -> 2020-03-31 | AG63: =IF(BRNDateDiff(AF63,BRNNewExpDate)>0,NetDaysRatio(AF64,ICEHolidays,-1),IF(BRNDateDiff(AF63,BRNNewExpDate)=0,"",IF(BRNDateDiff(AF63,BRNNewExpDate)<0,NetDaysRatio(AF65,ICEHolidays,-1)))) -> 0.9523809524 | AH63: =IF(BRNDateDiff(AF63,BRNNewExpDate)>0,(AG63*AC64)+(1-AG63)*AC65,IF(BRNDateDiff(AF63,BRNNewExpDate)=0,((8/20)*AC64+(11/20)*AC65+1/20*AC66),IF(BRNDateDiff(AF63,BRNNewExpDate)<0,(AG63*AC65)+(1-AG63)*AC66))) -> 62.47333333 | AI63: =IF(OR(AD64="",AD65="",AD66=""),"",IF(BRNDateDiff(AF63,BRNNewExpDate)>0,(AG63*AD64)+(1-AG63)*AD65,IF(BRNDateDiff(AF63,BRNNewExpDate)=0,((8/20)*AD64+(11/20)*AD65+1/20*AD66),IF(BRNDateDiff(AF63,BRNNewExpDate)<0,(AG63*AD65)+(1-AG63)*AD66)))) ->  | AK63: =IF(BRNDateDiff(AF63,BRNNewExpDate)>0,IF(OR(Y64="",Y65=""),"",(AG63*Y64)+(1-AG63)*Y65),IF(BRNDateDiff(AF63,BRNNewExpDate)=0,IF(OR(Y64="",Y65="",Y66=""),"",(8/20*Y64)+11/20*Y65)+(1/20*Y66),IF(BRNDateDiff(AF63,BRNNewExpDate)<0,IF(OR(Y65="",Y66=""),"",(AG63*Y65)+(1-AG63)*Y66)))) -> 62.89333333 | AL63: May'20 | AM63: -4.255 | AN63: -4.271833333 | CP63: =RTD("esrtd",,"GAS 56!-ICE","Delivery") -> May'20 | CQ63: =RTD("esrtd",,"GAS 56!-ICE","Symbol") -> GAS 20K-ICE | CR63: =RTD("esrtd",, SUBSTITUTE(CQ62,"-ICE","") & ":" & SUBSTITUTE(CQ63," ",""),"Market") -> -1 | CS63: -1 | CU63: 589.25 | CV63: =RTD("esrtd",,"GAS 56!-ICE","Last") ->  | CW63: =RTD("esrtd",,"GAS 56!-ICE","Change") ->  | CX63: =RTD("esrtd",,"GAS 56!-ICE","Time") -> 42277.83333 | CY63: =RTD("esrtd",,"GAS 56!-ICE","PrevPrice") -> 584.5 | CZ63: =RTD("esrtd",,"GAS 56!-ICE","NewSettlement") ->  | DB63: =RTD("esrtd",,"GAS 56!-ICE","Expiration") -> 2020-05-12 | DC63: 0.3333333333 | DD63: 585.1666667 | DG63: 589.9166667 | DH63: 16.29011186 | DI63: 16.07252796
B64: =RTD("esrtd",,"CL 56!","Delivery") -> Jun'20 | C64: =RTD("esrtd",,"CL 56!","Symbol") -> CL M20 | D64: =RTD("esrtd",,C63 & ":" & SUBSTITUTE(C64," ",""),"Market") ->  | E64: -0.12 | G64: 58.625 | H64: =RTD("esrtd",,"CL 56!","Last") ->  | I64: =RTD("esrtd",,"CL 56!","Change") ->  | J64: =RTD("esrtd",,"CL 56!","Time") -> 42277.63007 | K64: =RTD("esrtd",,"CL 56!","PrevPrice") -> 58.12 | L64: =RTD("esrtd",,"CL 56!","NewSettlement") ->  | N64: =RTD("esrtd",,"CL 56!","Expiration") -> 2020-05-19 | O64: 0.7272727273 | P64: 58.12090909 | S64: 58.62590909 | T64: =RTD("esrtd",,"BRN 56!-ICE","Delivery") -> Jun'20 | U64: =RTD("esrtd",,"BRN 56!-ICE","Symbol") -> BRN 20M-ICE | V64: =RTD("esrtd",, SUBSTITUTE(U63,"-ICE","") & ":" & SUBSTITUTE(U64," ",""),"Market") -> -0.06 | W64: -0.06 | Y64: 62.82 | Z64: =RTD("esrtd",,"BRN 56!-ICE","Last") ->  | AA64: =RTD("esrtd",,"BRN 56!-ICE","Change") ->  | AB64: =RTD("esrtd",,"BRN 56!-ICE","Time") -> 42278.36932 | AC64: =RTD("esrtd",,"BRN 56!-ICE","PrevPrice") -> 62.4 | AD64: =RTD("esrtd",,"BRN 56!-ICE","NewSettlement") ->  | AF64: =RTD("esrtd",,"BRN 56!-ICE","Expiration") -> 2020-04-30 | AG64: =IF(BRNDateDiff(AF64,BRNNewExpDate)>0,NetDaysRatio(AF65,ICEHolidays,-1),IF(BRNDateDiff(AF64,BRNNewExpDate)=0,"",IF(BRNDateDiff(AF64,BRNNewExpDate)<0,NetDaysRatio(AF66,ICEHolidays,-1)))) -> 0.9545454545 | AH64: =IF(BRNDateDiff(AF64,BRNNewExpDate)>0,(AG64*AC65)+(1-AG64)*AC66,IF(BRNDateDiff(AF64,BRNNewExpDate)=0,((8/20)*AC65+(11/20)*AC66+1/20*AC67),IF(BRNDateDiff(AF64,BRNNewExpDate)<0,(AG64*AC66)+(1-AG64)*AC67))) -> 62.54318182 | AI64: =IF(OR(AD65="",AD66="",AD67=""),"",IF(BRNDateDiff(AF64,BRNNewExpDate)>0,(AG64*AD65)+(1-AG64)*AD66,IF(BRNDateDiff(AF64,BRNNewExpDate)=0,((8/20)*AD65+(11/20)*AD66+1/20*AD67),IF(BRNDateDiff(AF64,BRNNewExpDate)<0,(AG64*AD66)+(1-AG64)*AD67)))) ->  | AK64: =IF(BRNDateDiff(AF64,BRNNewExpDate)>0,IF(OR(Y65="",Y66=""),"",(AG64*Y65)+(1-AG64)*Y66),IF(BRNDateDiff(AF64,BRNNewExpDate)=0,IF(OR(Y65="",Y66="",Y67=""),"",(8/20*Y65)+11/20*Y66)+(1/20*Y67),IF(BRNDateDiff(AF64,BRNNewExpDate)<0,IF(OR(Y66="",Y67=""),"",(AG64*Y66)+(1-AG64)*Y67)))) -> 62.96318182 | AL64: Jun'20 | AM64: -4.195 | AN64: -4.337272727 | CP64: =RTD("esrtd",,"GAS 57!-ICE","Delivery") -> Jun'20 | CQ64: =RTD("esrtd",,"GAS 57!-ICE","Symbol") -> GAS 20M-ICE | CR64: =RTD("esrtd",, SUBSTITUTE(CQ63,"-ICE","") & ":" & SUBSTITUTE(CQ64," ",""),"Market") -> -1 | CS64: -1 | CU64: 590.25 | CV64: =RTD("esrtd",,"GAS 57!-ICE","Last") ->  | CW64: =RTD("esrtd",,"GAS 57!-ICE","Change") ->  | CX64: =RTD("esrtd",,"GAS 57!-ICE","Time") -> 42277.83333 | CY64: =RTD("esrtd",,"GAS 57!-ICE","PrevPrice") -> 585.5 | CZ64: =RTD("esrtd",,"GAS 57!-ICE","NewSettlement") ->  | DB64: =RTD("esrtd",,"GAS 57!-ICE","Expiration") -> 2020-06-11 | DC64: 0.3636363636 | DD64: 586.2954545 | DG64: 591.0454545 | DH64: 16.37177852 | DI64: 16.15419463
B65: =RTD("esrtd",,"CL 57!","Delivery") -> Jul'20 | C65: =RTD("esrtd",,"CL 57!","Symbol") -> CL N20 | D65: =RTD("esrtd",,C64 & ":" & SUBSTITUTE(C65," ",""),"Market") ->  | E65: 0.01 | G65: 58.615 | H65: =RTD("esrtd",,"CL 57!","Last") ->  | I65: =RTD("esrtd",,"CL 57!","Change") ->  | J65: =RTD("esrtd",,"CL 57!","Time") -> 42277.63007 | K65: =RTD("esrtd",,"CL 57!","PrevPrice") -> 58.11 | L65: =RTD("esrtd",,"CL 57!","NewSettlement") ->  | N65: =RTD("esrtd",,"CL 57!","Expiration") -> 2020-06-22 | O65: 0.6363636364 | P65: 58.17545455 | S65: 58.68045455 | T65: =RTD("esrtd",,"BRN 57!-ICE","Delivery") -> Jul'20 | U65: =RTD("esrtd",,"BRN 57!-ICE","Symbol") -> BRN 20N-ICE | V65: =RTD("esrtd",, SUBSTITUTE(U64,"-ICE","") & ":" & SUBSTITUTE(U65," ",""),"Market") -> -0.07 | W65: -0.07 | Y65: 62.89 | Z65: =RTD("esrtd",,"BRN 57!-ICE","Last") ->  | AA65: =RTD("esrtd",,"BRN 57!-ICE","Change") ->  | AB65: =RTD("esrtd",,"BRN 57!-ICE","Time") -> 42277.83333 | AC65: =RTD("esrtd",,"BRN 57!-ICE","PrevPrice") -> 62.47 | AD65: =RTD("esrtd",,"BRN 57!-ICE","NewSettlement") ->  | AF65: =RTD("esrtd",,"BRN 57!-ICE","Expiration") -> 2020-05-29 | AG65: =IF(BRNDateDiff(AF65,BRNNewExpDate)>0,NetDaysRatio(AF66,ICEHolidays,-1),IF(BRNDateDiff(AF65,BRNNewExpDate)=0,"",IF(BRNDateDiff(AF65,BRNNewExpDate)<0,NetDaysRatio(AF67,ICEHolidays,-1)))) -> 0.9565217391 | AH65: =IF(BRNDateDiff(AF65,BRNNewExpDate)>0,(AG65*AC66)+(1-AG65)*AC67,IF(BRNDateDiff(AF65,BRNNewExpDate)=0,((8/20)*AC66+(11/20)*AC67+1/20*AC68),IF(BRNDateDiff(AF65,BRNNewExpDate)<0,(AG65*AC67)+(1-AG65)*AC68))) -> 62.61304348 | AI65: =IF(OR(AD66="",AD67="",AD68=""),"",IF(BRNDateDiff(AF65,BRNNewExpDate)>0,(AG65*AD66)+(1-AG65)*AD67,IF(BRNDateDiff(AF65,BRNNewExpDate)=0,((8/20)*AD66+(11/20)*AD67+1/20*AD68),IF(BRNDateDiff(AF65,BRNNewExpDate)<0,(AG65*AD67)+(1-AG65)*AD68)))) ->  | AK65: =IF(BRNDateDiff(AF65,BRNNewExpDate)>0,IF(OR(Y66="",Y67=""),"",(AG65*Y66)+(1-AG65)*Y67),IF(BRNDateDiff(AF65,BRNNewExpDate)=0,IF(OR(Y66="",Y67="",Y68=""),"",(8/20*Y66)+11/20*Y67)+(1/20*Y68),IF(BRNDateDiff(AF65,BRNNewExpDate)<0,IF(OR(Y67="",Y68=""),"",(AG65*Y67)+(1-AG65)*Y68)))) -> 63.03304348 | AL65: Jul'20 | AM65: -4.275 | AN65: -4.352588933 | CP65: =RTD("esrtd",,"GAS 58!-ICE","Delivery") -> Jul'20 | CQ65: =RTD("esrtd",,"GAS 58!-ICE","Symbol") -> GAS 20N-ICE | CR65: =RTD("esrtd",, SUBSTITUTE(CQ64,"-ICE","") & ":" & SUBSTITUTE(CQ65," ",""),"Market") -> -1.25 | CS65: -1.25 | CU65: 591.5 | CV65: =RTD("esrtd",,"GAS 58!-ICE","Last") ->  | CW65: =RTD("esrtd",,"GAS 58!-ICE","Change") ->  | CX65: =RTD("esrtd",,"GAS 58!-ICE","Time") -> 42277.83333 | CY65: =RTD("esrtd",,"GAS 58!-ICE","PrevPrice") -> 586.75 | CZ65: =RTD("esrtd",,"GAS 58!-ICE","NewSettlement") ->  | DB65: =RTD("esrtd",,"GAS 58!-ICE","Expiration") -> 2020-07-10 | DC65: 0.3043478261 | DD65: 587.6195652 | DG65: 592.3695652 | DH65: 16.47964984 | DI65: 16.26206595
B66: =RTD("esrtd",,"CL 58!","Delivery") -> Aug'20 | C66: =RTD("esrtd",,"CL 58!","Symbol") -> CL Q20 | D66: =RTD("esrtd",,C65 & ":" & SUBSTITUTE(C66," ",""),"Market") ->  | E66: -0.04 | G66: 58.655 | H66: =RTD("esrtd",,"CL 58!","Last") ->  | I66: =RTD("esrtd",,"CL 58!","Change") ->  | J66: =RTD("esrtd",,"CL 58!","Time") -> 42277.63007 | K66: =RTD("esrtd",,"CL 58!","PrevPrice") -> 58.15 | L66: =RTD("esrtd",,"CL 58!","NewSettlement") ->  | N66: =RTD("esrtd",,"CL 58!","Expiration") -> 2020-07-21 | O66: 0.6666666667 | P66: 58.25 | S66: 58.755 | T66: =RTD("esrtd",,"BRN 58!-ICE","Delivery") -> Aug'20 | U66: =RTD("esrtd",,"BRN 58!-ICE","Symbol") -> BRN 20Q-ICE | V66: =RTD("esrtd",, SUBSTITUTE(U65,"-ICE","") & ":" & SUBSTITUTE(U66," ",""),"Market") -> -0.07 | W66: -0.07 | Y66: 62.96 | Z66: =RTD("esrtd",,"BRN 58!-ICE","Last") ->  | AA66: =RTD("esrtd",,"BRN 58!-ICE","Change") ->  | AB66: =RTD("esrtd",,"BRN 58!-ICE","Time") -> 42277.83333 | AC66: =RTD("esrtd",,"BRN 58!-ICE","PrevPrice") -> 62.54 | AD66: =RTD("esrtd",,"BRN 58!-ICE","NewSettlement") ->  | AF66: =RTD("esrtd",,"BRN 58!-ICE","Expiration") -> 2020-06-30 | AG66: =IF(BRNDateDiff(AF66,BRNNewExpDate)>0,NetDaysRatio(AF67,ICEHolidays,-1),IF(BRNDateDiff(AF66,BRNNewExpDate)=0,"",IF(BRNDateDiff(AF66,BRNNewExpDate)<0,NetDaysRatio(AF68,ICEHolidays,-1)))) -> 0.9047619048 | AH66: =IF(BRNDateDiff(AF66,BRNNewExpDate)>0,(AG66*AC67)+(1-AG66)*AC68,IF(BRNDateDiff(AF66,BRNNewExpDate)=0,((8/20)*AC67+(11/20)*AC68+1/20*AC69),IF(BRNDateDiff(AF66,BRNNewExpDate)<0,(AG66*AC68)+(1-AG66)*AC69))) -> 56.71047619 | AI66: =IF(OR(AD67="",AD68="",AD69=""),"",IF(BRNDateDiff(AF66,BRNNewExpDate)>0,(AG66*AD67)+(1-AG66)*AD68,IF(BRNDateDiff(AF66,BRNNewExpDate)=0,((8/20)*AD67+(11/20)*AD68+1/20*AD69),IF(BRNDateDiff(AF66,BRNNewExpDate)<0,(AG66*AD68)+(1-AG66)*AD69)))) ->  | AK66: =IF(BRNDateDiff(AF66,BRNNewExpDate)>0,IF(OR(Y67="",Y68=""),"",(AG66*Y67)+(1-AG66)*Y68),IF(BRNDateDiff(AF66,BRNNewExpDate)=0,IF(OR(Y67="",Y68="",Y69=""),"",(8/20*Y67)+11/20*Y68)+(1/20*Y69),IF(BRNDateDiff(AF66,BRNNewExpDate)<0,IF(OR(Y68="",Y69=""),"",(AG66*Y68)+(1-AG66)*Y69)))) ->  | AL66: Aug'20 | AM66: -4.305 | CP66: =RTD("esrtd",,"GAS 59!-ICE","Delivery") -> Aug'20 | CQ66: =RTD("esrtd",,"GAS 59!-ICE","Symbol") -> GAS 20Q-ICE | CR66: =RTD("esrtd",, SUBSTITUTE(CQ65,"-ICE","") & ":" & SUBSTITUTE(CQ66," ",""),"Market") -> -1.25 | CS66: -1.25 | CU66: 592.75 | CV66: =RTD("esrtd",,"GAS 59!-ICE","Last") ->  | CW66: =RTD("esrtd",,"GAS 59!-ICE","Change") ->  | CX66: =RTD("esrtd",,"GAS 59!-ICE","Time") -> 42277.83333 | CY66: =RTD("esrtd",,"GAS 59!-ICE","PrevPrice") -> 588 | CZ66: =RTD("esrtd",,"GAS 59!-ICE","NewSettlement") ->  | DB66: =RTD("esrtd",,"GAS 59!-ICE","Expiration") -> 2020-08-12 | DC66: 0.3333333333 | DD66: 588.8333333 | DG66: 593.5833333
B67: =RTD("esrtd",,"CL 59!","Delivery") -> Sep'20 | C67: =RTD("esrtd",,"CL 59!","Symbol") -> CL U20 | D67: =RTD("esrtd",,C66 & ":" & SUBSTITUTE(C67," ",""),"Market") ->  | E67: -0.07 | G67: 58.725 | H67: =RTD("esrtd",,"CL 59!","Last") ->  | I67: =RTD("esrtd",,"CL 59!","Change") ->  | J67: =RTD("esrtd",,"CL 59!","Time") -> 42277.63007 | K67: =RTD("esrtd",,"CL 59!","PrevPrice") -> 58.22 | L67: =RTD("esrtd",,"CL 59!","NewSettlement") ->  | N67: =RTD("esrtd",,"CL 59!","Expiration") -> 2020-08-20 | O67: 0.7142857143 | T67: =RTD("esrtd",,"BRN 59!-ICE","Delivery") -> Sep'20 | U67: =RTD("esrtd",,"BRN 59!-ICE","Symbol") -> BRN 20U-ICE | V67: =RTD("esrtd",, SUBSTITUTE(U66,"-ICE","") & ":" & SUBSTITUTE(U67," ",""),"Market") -> -0.07 | W67: -0.07 | Y67: 63.03 | Z67: =RTD("esrtd",,"BRN 59!-ICE","Last") ->  | AA67: =RTD("esrtd",,"BRN 59!-ICE","Change") ->  | AB67: =RTD("esrtd",,"BRN 59!-ICE","Time") -> 42277.83333 | AC67: =RTD("esrtd",,"BRN 59!-ICE","PrevPrice") -> 62.61 | AD67: =RTD("esrtd",,"BRN 59!-ICE","NewSettlement") ->  | AF67: =RTD("esrtd",,"BRN 59!-ICE","Expiration") -> 2020-07-31 | AL67: Sep'20 | AM67: -4.305 | CP67: =RTD("esrtd",,"GAS 60!-ICE","Delivery") -> Sep'20 | CQ67: =RTD("esrtd",,"GAS 60!-ICE","Symbol") -> GAS 20U-ICE | CR67: =RTD("esrtd",, SUBSTITUTE(CQ66,"-ICE","") & ":" & SUBSTITUTE(CQ67," ",""),"Market") -> -1.25 | CS67: -1.25 | CU67: 594 | CV67: =RTD("esrtd",,"GAS 60!-ICE","Last") ->  | CW67: =RTD("esrtd",,"GAS 60!-ICE","Change") ->  | CX67: =RTD("esrtd",,"GAS 60!-ICE","Time") -> 42277.83333 | CY67: =RTD("esrtd",,"GAS 60!-ICE","PrevPrice") -> 589.25 | CZ67: =RTD("esrtd",,"GAS 60!-ICE","NewSettlement") ->  | DB67: =RTD("esrtd",,"GAS 60!-ICE","Expiration") -> 2020-09-10 | DC67: 0.3181818182 | DD67: 590.1022727 | DG67: 594.8522727
B68: =RTD("esrtd",,"CL 60!","Delivery") -> Oct'20 | C68: =RTD("esrtd",,"CL 60!","Symbol") -> CL V20 | D68: =RTD("esrtd",,C67 & ":" & SUBSTITUTE(C68," ",""),"Market") ->  | E68: -0.09 | G68: 58.815 | H68: =RTD("esrtd",,"CL 60!","Last") ->  | I68: =RTD("esrtd",,"CL 60!","Change") ->  | J68: =RTD("esrtd",,"CL 60!","Time") -> 42277.63007 | K68: =RTD("esrtd",,"CL 60!","PrevPrice") -> 58.31 | L68: =RTD("esrtd",,"CL 60!","NewSettlement") ->  | N68: =RTD("esrtd",,"CL 60!","Expiration") -> 2020-09-22 | T68: =RTD("esrtd",,"BRN 60!-ICE","Delivery") -> Oct'20 | U68: =RTD("esrtd",,"BRN 60!-ICE","Symbol") -> BRN 20V-ICE | V68: =RTD("esrtd",, SUBSTITUTE(U67,"-ICE","") & ":" & SUBSTITUTE(U68," ",""),"Market") -> -0.07 | W68: -0.07 | Y68: 63.1 | Z68: =RTD("esrtd",,"BRN 60!-ICE","Last") ->  | AA68: =RTD("esrtd",,"BRN 60!-ICE","Change") ->  | AB68: =RTD("esrtd",,"BRN 60!-ICE","Time") -> 42277.83333 | AC68: =RTD("esrtd",,"BRN 60!-ICE","PrevPrice") -> 62.68 | AD68: =RTD("esrtd",,"BRN 60!-ICE","NewSettlement") ->  | AF68: =RTD("esrtd",,"BRN 60!-ICE","Expiration") -> 2020-08-28 | AL68: Oct'20 | AM68: -4.285 | CP68: =RTD("esrtd",,"GAS 61!-ICE","Delivery") -> Oct'20 | CQ68: =RTD("esrtd",,"GAS 61!-ICE","Symbol") -> GAS 20V-ICE | CR68: =RTD("esrtd",, SUBSTITUTE(CQ67,"-ICE","") & ":" & SUBSTITUTE(CQ68," ",""),"Market") -> -1.25 | CS68: -1.25 | CU68: 595.25 | CV68: =RTD("esrtd",,"GAS 61!-ICE","Last") ->  | CW68: =RTD("esrtd",,"GAS 61!-ICE","Change") ->  | CX68: =RTD("esrtd",,"GAS 61!-ICE","Time") -> 42277.83333 | CY68: =RTD("esrtd",,"GAS 61!-ICE","PrevPrice") -> 590.5 | CZ68: =RTD("esrtd",,"GAS 61!-ICE","NewSettlement") ->  | DB68: =RTD("esrtd",,"GAS 61!-ICE","Expiration") -> 2020-10-12 | DC68: 0.3181818182
B70: ="Q"&INT((MONTH(EDATE(TODAY(),3))-1)/3)+1 & " " & RIGHT(YEAR(EDATE(TODAY(),3)),4) -> Q1 2016 | G70: =AVERAGE(OFFSET($G$1,CL_QtrStartRow-1,0,3,1)) -> 47.68833333 | K70: =AVERAGE(OFFSET($K$1,CL_QtrStartRow-1,0,3,1)) -> 46.76333333 | L70: =IF(COUNTBLANK(OFFSET($L$1,CL_QtrStartRow-1,0,3,1))>0,"",AVERAGE(OFFSET($L$1,CL_QtrStartRow-1,0,3,1))) ->  | P70: =AVERAGE(OFFSET($P$1,CL_QtrStartRow-1,0,3,1)) -> 47.51322397 | Q70: =IF(COUNTBLANK(OFFSET($Q$1,CL_QtrStartRow-1,0,3,1))>0,"",AVERAGE(OFFSET($Q$1,CL_QtrStartRow-1,0,3,1))) ->  | R70: =IF(AND(P70<>"",Q70<>""),Q70-P70,"") ->  | S70: =AVERAGE(OFFSET($S$1,CL_QtrStartRow-1,0,3,1)) -> 48.40657876 | T70: =B70 -> Q1 2016 | Y70: =AVERAGE(OFFSET($Y$1,BRN_QtrStartRow-1,0,3,1)) -> 51.01833333 | AC70: =AVERAGE(OFFSET($AC$1,BRN_QtrStartRow-1,0,3,1)) -> 50.34333333 | AD70: =IF(COUNTBLANK(OFFSET($AD$1,BRN_QtrStartRow-1,0,3,1))>0,"",AVERAGE(OFFSET($AD$1,BRN_QtrStartRow-1,0,3,1))) ->  | AH70: =AVERAGE(OFFSET($AH$1,BRN_QtrStartRow-1,0,3,1)) -> 51.55184921 | AI70: =IF(COUNTBLANK(OFFSET($AI$1,BRN_QtrStartRow-1,0,3,1))>0,"",AVERAGE(OFFSET($AI$1,BRN_QtrStartRow-1,0,3,1))) ->  | AK70: =AVERAGE(OFFSET($AK$1,BRN_QtrStartRow-1,0,3,1)) -> 52.21727742 | AL70: =B70 -> Q1 2016 | AM70: =AVERAGE(OFFSET($AM$1,BRNWTI_QtrStartRow-1,0,3,1)) -> -3.33 | AN70: =AVERAGE(OFFSET($AN$1,BRNWTI_QtrStartRow-1,0,3,1)) -> -3.81069866 | AO70: =B70 -> Q1 2016 | AT70: =AVERAGE(OFFSET($AT$1,RBOB_QtrStartRow-1,0,3,1)) -> 1.387466667 | AX70: =AVERAGE(OFFSET($AX$1,RBOB_QtrStartRow-1,0,3,1)) -> 1.359166667 | AY70: =IF(COUNTBLANK(OFFSET($AY$1,RBOB_QtrStartRow-1,0,3,1))>0,"",AVERAGE(OFFSET($AY$1,RBOB_QtrStartRow-1,0,3,1))) ->  | BB70: =AVERAGE(OFFSET($BB$1,RBOB_QtrStartRow-1,0,3,1)) -> 1.4436 | BC70: =IF(COUNTBLANK(OFFSET($BC$1,RBOB_QtrStartRow-1,0,3,1))>0,"",AVERAGE(OFFSET($BC$1,RBOB_QtrStartRow-1,0,3,1))) ->  | BE70: =AVERAGE(OFFSET($BE$1,RBOB_QtrStartRow-1,0,3,1)) -> 1.470016667 | BF70: =AVERAGE(OFFSET($BF$1,RBOB_QtrStartRow-1,0,3,1)) -> 13.33412124 | BG70: =AVERAGE(OFFSET($BG$1,RBOB_QtrStartRow-1,0,3,1)) -> 13.11797603 | BH70: =IF(COUNTBLANK(OFFSET($BH$1,RBOB_QtrStartRow-1,0,3,1))>0,"",AVERAGE(OFFSET($BH$1,RBOB_QtrStartRow-1,0,3,1))) ->  | BJ70: =AVERAGE(OFFSET($BJ$1,RBOB_QtrStartRow-1,0,3,1)) -> 9.523422583 | BK70: =AVERAGE(OFFSET($BK$1,RBOB_QtrStartRow-1,0,3,1)) -> 9.079350794 | BL70: =IF(COUNTBLANK(OFFSET($BL$1,RBOB_QtrStartRow-1,0,3,1))>0,"",AVERAGE(OFFSET($BL$1,RBOB_QtrStartRow-1,0,3,1))) ->  | BN70: =B70 -> Q1 2016 | BS70: =AVERAGE(OFFSET($BS$1,HO_QtrStartRow-1,0,3,1)) -> 1.608733333 | BW70: =AVERAGE(OFFSET($BW$1,HO_QtrStartRow-1,0,3,1)) -> 1.5858 | BX70: =IF(COUNTBLANK(OFFSET($BX$1,HO_QtrStartRow-1,0,3,1))>0,"",AVERAGE(OFFSET($BX$1,HO_QtrStartRow-1,0,3,1))) ->  | CA70: =AVERAGE(OFFSET($CA$1,HO_QtrStartRow-1,0,3,1)) -> 1.5894 | CB70: =IF(COUNTBLANK(OFFSET($CB$1,HO_QtrStartRow-1,0,3,1))>0,"",AVERAGE(OFFSET($CB$1,HO_QtrStartRow-1,0,3,1))) ->  | CD70: =AVERAGE(OFFSET($CD$1,HO_QtrStartRow-1,0,3,1)) -> 1.611716667 | CE70: =AVERAGE(OFFSET($CE$1,HO_QtrStartRow-1,0,3,1)) -> 19.28552124 | CF70: =AVERAGE(OFFSET($CF$1,HO_QtrStartRow-1,0,3,1)) -> 19.24157603 | CG70: =IF(COUNTBLANK(OFFSET($CG$1,HO_QtrStartRow-1,0,3,1))>0,"",AVERAGE(OFFSET($CG$1,HO_QtrStartRow-1,0,3,1))) ->  | CI70: =AVERAGE(OFFSET($CI$1,HO_QtrStartRow-1,0,3,1)) -> 15.47482258 | CJ70: =AVERAGE(OFFSET($CJ$1,HO_QtrStartRow-1,0,3,1)) -> 15.20295079 | CK70: =IF(COUNTBLANK(OFFSET($CK$1,HO_QtrStartRow-1,0,3,1))>0,"",AVERAGE(OFFSET($CK$1,HO_QtrStartRow-1,0,3,1))) ->  | CM70: =B70 -> Q1 2016 | CN70: =AVERAGE(OFFSET($CN$1,RBOBHO_QtrStartRow-1,0,3,1)) -> -0.2212666667 | CO70: =AVERAGE(OFFSET($CO$1,RBOBHO_QtrStartRow-1,0,3,1)) -> -0.1417 | CP70: =B70 -> Q1 2016 | CU70: =AVERAGE(OFFSET($CU$1,GAS_QtrStartRow-1,0,3,1)) -> 484.8333333 | CY70: =AVERAGE(OFFSET($CY$1,GAS_QtrStartRow-1,0,3,1)) -> 477.0833333 | CZ70: =IF(COUNTBLANK(OFFSET($CZ$1,GAS_QtrStartRow-1,0,3,1))>0,"",AVERAGE(OFFSET($CZ$1,GAS_QtrStartRow-1,0,3,1))) ->  | DD70: =AVERAGE(OFFSET($DD$1,GAS_QtrStartRow-1,0,3,1)) -> 479.4207071 | DE70: =IF(COUNTBLANK(OFFSET($DE$1,GAS_QtrStartRow-1,0,3,1))>0,"",AVERAGE(OFFSET($DE$1,GAS_QtrStartRow-1,0,3,1))) ->  | DF70: =IF(AND(DD70<>"",DE70<>""),DE70-DD70,"") ->  | DG70: =AVERAGE(OFFSET($DG$1,GAS_QtrStartRow-1,0,3,1)) -> 487.0873377 | DH70: =AVERAGE(OFFSET($DH$1,GAS_QtrStartRow-1,0,3,1)) -> 13.16357328 | DI70: =AVERAGE(OFFSET($DI$1,GAS_QtrStartRow-1,0,3,1)) -> 12.79992355 | DJ70: =IF(COUNTBLANK(OFFSET($DJ$1,GAS_QtrStartRow-1,0,3,1))>0,"",AVERAGE(OFFSET($DJ$1,GAS_QtrStartRow-1,0,3,1))) ->  | DK70: =IF(AND(DI70<>"",DJ70<>""),DJ70-DI70,"") ->  | DL70: =B70 -> Q1 2016 | DM70: =AVERAGE(OFFSET($DM$1,HOGO_QtrStartRow-1,0,3,1)) -> 0.05925000533 | DN70: =AVERAGE(OFFSET($DN$1,HOGO_QtrStartRow-1,0,3,1)) -> 0.05502974541
B71: ="Q"&INT((MONTH(EDATE(TODAY(),6))-1)/3)+1 & " " & RIGHT(YEAR(EDATE(TODAY(),6)),4) -> Q2 2016 | G71: =AVERAGE(OFFSET($G$1,CL_QtrStartRow-1+3,0,3,1)) -> 49.2 | K71: =AVERAGE(OFFSET($K$1,CL_QtrStartRow-1+3,0,3,1)) -> 48.34 | L71: =IF(COUNTBLANK(OFFSET($L$1,CL_QtrStartRow-1+3,0,3,1))>0,"",AVERAGE(OFFSET($L$1,CL_QtrStartRow-1+3,0,3,1))) ->  | P71: =AVERAGE(OFFSET($P$1,CL_QtrStartRow-1+3,0,3,1)) -> 48.81816739 | Q71: =IF(COUNTBLANK(OFFSET($Q$1,CL_QtrStartRow-1+3,0,3,1))>0,"",AVERAGE(OFFSET($Q$1,CL_QtrStartRow-1+3,0,3,1))) ->  | S71: =AVERAGE(OFFSET($S$1,CL_QtrStartRow-1+3,0,3,1)) -> 49.65848124 | T71: Q2 2016 | Y71: =AVERAGE(OFFSET($Y$1,BRN_QtrStartRow-1+3,0,3,1)) -> 52.87 | AC71: =AVERAGE(OFFSET($AC$1,BRN_QtrStartRow-1+3,0,3,1)) -> 52.21 | AD71: =IF(COUNTBLANK(OFFSET($AD$1,BRN_QtrStartRow-1+3,0,3,1))>0,"",AVERAGE(OFFSET($AD$1,BRN_QtrStartRow-1+3,0,3,1))) ->  | AH71: =AVERAGE(OFFSET($AH$1,BRN_QtrStartRow-1+3,0,3,1)) -> 53.24988456 | AI71: =IF(COUNTBLANK(OFFSET($AI$1,BRN_QtrStartRow-1+3,0,3,1))>0,"",AVERAGE(OFFSET($AI$1,BRN_QtrStartRow-1+3,0,3,1))) ->  | AK71: =AVERAGE(OFFSET($AK$1,BRN_QtrStartRow-1+3,0,3,1)) -> 53.90298701 | AL71: Q2 2016 | AM71: =AVERAGE(OFFSET($AM$1,BRNWTI_QtrStartRow-1+3,0,3,1)) -> -3.67 | AN71: =AVERAGE(OFFSET($AN$1,BRNWTI_QtrStartRow-1+3,0,3,1)) -> -4.244505772 | AO71: Q2 2016 | AT71: =AVERAGE(OFFSET($AT$1,RBOB_QtrStartRow-1+3,0,3,1)) -> 1.62275 | AX71: =AVERAGE(OFFSET($AX$1,RBOB_QtrStartRow-1+3,0,3,1)) -> 1.599833333 | AY71: =IF(COUNTBLANK(OFFSET($AY$1,RBOB_QtrStartRow-1+3,0,3,1))>0,"",AVERAGE(OFFSET($AY$1,RBOB_QtrStartRow-1+3,0,3,1))) ->  | BB71: =AVERAGE(OFFSET($BB$1,RBOB_QtrStartRow-1+3,0,3,1)) -> 1.600433333 | BC71: =IF(COUNTBLANK(OFFSET($BC$1,RBOB_QtrStartRow-1+3,0,3,1))>0,"",AVERAGE(OFFSET($BC$1,RBOB_QtrStartRow-1+3,0,3,1))) ->  | BE71: =AVERAGE(OFFSET($BE$1,RBOB_QtrStartRow-1+3,0,3,1)) -> 1.6224 | BF71: =AVERAGE(OFFSET($BF$1,RBOB_QtrStartRow-1+3,0,3,1)) -> 18.48231876 | BG71: =AVERAGE(OFFSET($BG$1,RBOB_QtrStartRow-1+3,0,3,1)) -> 18.40003261 | BH71: =IF(COUNTBLANK(OFFSET($BH$1,RBOB_QtrStartRow-1+3,0,3,1))>0,"",AVERAGE(OFFSET($BH$1,RBOB_QtrStartRow-1+3,0,3,1))) ->  | BJ71: =AVERAGE(OFFSET($BJ$1,RBOB_QtrStartRow-1+3,0,3,1)) -> 14.23781299 | BK71: =AVERAGE(OFFSET($BK$1,RBOB_QtrStartRow-1+3,0,3,1)) -> 13.96831544 | BL71: =IF(COUNTBLANK(OFFSET($BL$1,RBOB_QtrStartRow-1+3,0,3,1))>0,"",AVERAGE(OFFSET($BL$1,RBOB_QtrStartRow-1+3,0,3,1))) ->  | BN71: Q2 2016 | BS71: =AVERAGE(OFFSET($BS$1,HO_QtrStartRow-1+3,0,3,1)) -> 1.615583333 | BW71: =AVERAGE(OFFSET($BW$1,HO_QtrStartRow-1+3,0,3,1)) -> 1.593966667 | BX71: =IF(COUNTBLANK(OFFSET($BX$1,HO_QtrStartRow-1+3,0,3,1))>0,"",AVERAGE(OFFSET($BX$1,HO_QtrStartRow-1+3,0,3,1))) ->  | CA71: =AVERAGE(OFFSET($CA$1,HO_QtrStartRow-1+3,0,3,1)) -> 1.603166667 | CB71: =IF(COUNTBLANK(OFFSET($CB$1,HO_QtrStartRow-1+3,0,3,1))>0,"",AVERAGE(OFFSET($CB$1,HO_QtrStartRow-1+3,0,3,1))) ->  | CD71: =AVERAGE(OFFSET($CD$1,HO_QtrStartRow-1+3,0,3,1)) -> 1.624483333 | CE71: =AVERAGE(OFFSET($CE$1,HO_QtrStartRow-1+3,0,3,1)) -> 18.56981876 | CF71: =AVERAGE(OFFSET($CF$1,HO_QtrStartRow-1+3,0,3,1)) -> 18.51483261 | CG71: =IF(COUNTBLANK(OFFSET($CG$1,HO_QtrStartRow-1+3,0,3,1))>0,"",AVERAGE(OFFSET($CG$1,HO_QtrStartRow-1+3,0,3,1))) ->  | CI71: =AVERAGE(OFFSET($CI$1,HO_QtrStartRow-1+3,0,3,1)) -> 14.32531299 | CJ71: =AVERAGE(OFFSET($CJ$1,HO_QtrStartRow-1+3,0,3,1)) -> 14.08311544 | CK71: =IF(COUNTBLANK(OFFSET($CK$1,HO_QtrStartRow-1+3,0,3,1))>0,"",AVERAGE(OFFSET($CK$1,HO_QtrStartRow-1+3,0,3,1))) ->  | CM71: =B71 -> Q2 2016 | CN71: =AVERAGE(OFFSET($CN$1,RBOBHO_QtrStartRow-1+3,0,3,1)) -> 0.007166666667 | CO71: =AVERAGE(OFFSET($CO$1,RBOBHO_QtrStartRow-1+3,0,3,1)) -> -0.002083333333 | CP71: Q2 2016 | CU71: =AVERAGE(OFFSET($CU$1,GAS_QtrStartRow-1+3,0,3,1)) -> 494.125 | CY71: =AVERAGE(OFFSET($CY$1,GAS_QtrStartRow-1+3,0,3,1)) -> 486.8333333 | CZ71: =IF(COUNTBLANK(OFFSET($CZ$1,GAS_QtrStartRow-1+3,0,3,1))>0,"",AVERAGE(OFFSET($CZ$1,GAS_QtrStartRow-1+3,0,3,1))) ->  | DD71: =AVERAGE(OFFSET($DD$1,GAS_QtrStartRow-1+3,0,3,1)) -> 489.2184343 | DE71: =IF(COUNTBLANK(OFFSET($DE$1,GAS_QtrStartRow-1+3,0,3,1))>0,"",AVERAGE(OFFSET($DE$1,GAS_QtrStartRow-1+3,0,3,1))) ->  | DG71: =AVERAGE(OFFSET($DG$1,GAS_QtrStartRow-1+3,0,3,1)) -> 496.3175505 | DH71: =AVERAGE(OFFSET($DH$1,GAS_QtrStartRow-1+3,0,3,1)) -> 12.71681842 | DI71: =AVERAGE(OFFSET($DI$1,GAS_QtrStartRow-1+3,0,3,1)) -> 12.41701938 | DJ71: =IF(COUNTBLANK(OFFSET($DJ$1,GAS_QtrStartRow-1+3,0,3,1))>0,"",AVERAGE(OFFSET($DJ$1,GAS_QtrStartRow-1+3,0,3,1))) ->  | DL71: =B71 -> Q2 2016 | DM71: =AVERAGE(OFFSET($DM$1,HOGO_QtrStartRow-1+3,0,3,1)) -> 0.03640468201 | DN71: =AVERAGE(OFFSET($DN$1,HOGO_QtrStartRow-1+3,0,3,1)) -> 0.0382974896
B72: ="Q"&INT((MONTH(EDATE(TODAY(),9))-1)/3)+1 & " " & RIGHT(YEAR(EDATE(TODAY(),9)),4) -> Q3 2016 | G72: =AVERAGE(OFFSET($G$1,CL_QtrStartRow-1+6,0,3,1)) -> 50.165 | K72: =AVERAGE(OFFSET($K$1,CL_QtrStartRow-1+6,0,3,1)) -> 49.34666667 | L72: =IF(COUNTBLANK(OFFSET($L$1,CL_QtrStartRow-1+6,0,3,1))>0,"",AVERAGE(OFFSET($L$1,CL_QtrStartRow-1+6,0,3,1))) ->  | P72: =AVERAGE(OFFSET($P$1,CL_QtrStartRow-1+6,0,3,1)) -> 49.78112905 | Q72: =IF(COUNTBLANK(OFFSET($Q$1,CL_QtrStartRow-1+6,0,3,1))>0,"",AVERAGE(OFFSET($Q$1,CL_QtrStartRow-1+6,0,3,1))) ->  | S72: =AVERAGE(OFFSET($S$1,CL_QtrStartRow-1+6,0,3,1)) -> 50.58532488 | T72: Q3 2016 | Y72: =AVERAGE(OFFSET($Y$1,BRN_QtrStartRow-1+6,0,3,1)) -> 54.30833333 | AC72: =AVERAGE(OFFSET($AC$1,BRN_QtrStartRow-1+6,0,3,1)) -> 53.66 | AD72: =IF(COUNTBLANK(OFFSET($AD$1,BRN_QtrStartRow-1+6,0,3,1))>0,"",AVERAGE(OFFSET($AD$1,BRN_QtrStartRow-1+6,0,3,1))) ->  | AH72: =AVERAGE(OFFSET($AH$1,BRN_QtrStartRow-1+6,0,3,1)) -> 54.47760023 | AI72: =IF(COUNTBLANK(OFFSET($AI$1,BRN_QtrStartRow-1+6,0,3,1))>0,"",AVERAGE(OFFSET($AI$1,BRN_QtrStartRow-1+6,0,3,1))) ->  | AK72: =AVERAGE(OFFSET($AK$1,BRN_QtrStartRow-1+6,0,3,1)) -> 55.11229688 | AL72: Q3 2016 | AM72: =AVERAGE(OFFSET($AM$1,BRNWTI_QtrStartRow-1+6,0,3,1)) -> -4.143333333 | AN72: =AVERAGE(OFFSET($AN$1,BRNWTI_QtrStartRow-1+6,0,3,1)) -> -4.526972003 | AO72: Q3 2016 | AT72: =AVERAGE(OFFSET($AT$1,RBOB_QtrStartRow-1+6,0,3,1)) -> 1.596333333 | AX72: =AVERAGE(OFFSET($AX$1,RBOB_QtrStartRow-1+6,0,3,1)) -> 1.575866667 | AY72: =IF(COUNTBLANK(OFFSET($AY$1,RBOB_QtrStartRow-1+6,0,3,1))>0,"",AVERAGE(OFFSET($AY$1,RBOB_QtrStartRow-1+6,0,3,1))) ->  | BB72: =AVERAGE(OFFSET($BB$1,RBOB_QtrStartRow-1+6,0,3,1)) -> 1.5186 | BC72: =IF(COUNTBLANK(OFFSET($BC$1,RBOB_QtrStartRow-1+6,0,3,1))>0,"",AVERAGE(OFFSET($BC$1,RBOB_QtrStartRow-1+6,0,3,1))) ->  | BE72: =AVERAGE(OFFSET($BE$1,RBOB_QtrStartRow-1+6,0,3,1)) -> 1.5379 | BF72: =AVERAGE(OFFSET($BF$1,RBOB_QtrStartRow-1+6,0,3,1)) -> 14.00647512 | BG72: =AVERAGE(OFFSET($BG$1,RBOB_QtrStartRow-1+6,0,3,1)) -> 14.00007095 | BH72: =IF(COUNTBLANK(OFFSET($BH$1,RBOB_QtrStartRow-1+6,0,3,1))>0,"",AVERAGE(OFFSET($BH$1,RBOB_QtrStartRow-1+6,0,3,1))) ->  | BJ72: =AVERAGE(OFFSET($BJ$1,RBOB_QtrStartRow-1+6,0,3,1)) -> 9.479503118 | BK72: =AVERAGE(OFFSET($BK$1,RBOB_QtrStartRow-1+6,0,3,1)) -> 9.303599774 | BL72: =IF(COUNTBLANK(OFFSET($BL$1,RBOB_QtrStartRow-1+6,0,3,1))>0,"",AVERAGE(OFFSET($BL$1,RBOB_QtrStartRow-1+6,0,3,1))) ->  | BN72: Q3 2016 | BS72: =AVERAGE(OFFSET($BS$1,HO_QtrStartRow-1+6,0,3,1)) -> 1.648133333 | BW72: =AVERAGE(OFFSET($BW$1,HO_QtrStartRow-1+6,0,3,1)) -> 1.6278 | BX72: =IF(COUNTBLANK(OFFSET($BX$1,HO_QtrStartRow-1+6,0,3,1))>0,"",AVERAGE(OFFSET($BX$1,HO_QtrStartRow-1+6,0,3,1))) ->  | CA72: =AVERAGE(OFFSET($CA$1,HO_QtrStartRow-1+6,0,3,1)) -> 1.6423 | CB72: =IF(COUNTBLANK(OFFSET($CB$1,HO_QtrStartRow-1+6,0,3,1))>0,"",AVERAGE(OFFSET($CB$1,HO_QtrStartRow-1+6,0,3,1))) ->  | CD72: =AVERAGE(OFFSET($CD$1,HO_QtrStartRow-1+6,0,3,1)) -> 1.66215 | CE72: =AVERAGE(OFFSET($CE$1,HO_QtrStartRow-1+6,0,3,1)) -> 19.22497512 | CF72: =AVERAGE(OFFSET($CF$1,HO_QtrStartRow-1+6,0,3,1)) -> 19.19547095 | CG72: =IF(COUNTBLANK(OFFSET($CG$1,HO_QtrStartRow-1+6,0,3,1))>0,"",AVERAGE(OFFSET($CG$1,HO_QtrStartRow-1+6,0,3,1))) ->  | CI72: =AVERAGE(OFFSET($CI$1,HO_QtrStartRow-1+6,0,3,1)) -> 14.69800312 | CJ72: =AVERAGE(OFFSET($CJ$1,HO_QtrStartRow-1+6,0,3,1)) -> 14.49899977 | CK72: =IF(COUNTBLANK(OFFSET($CK$1,HO_QtrStartRow-1+6,0,3,1))>0,"",AVERAGE(OFFSET($CK$1,HO_QtrStartRow-1+6,0,3,1))) ->  | CM72: Q3 2016 | CN72: =AVERAGE(OFFSET($CN$1,RBOBHO_QtrStartRow-1+6,0,3,1)) -> -0.0518 | CO72: =AVERAGE(OFFSET($CO$1,RBOBHO_QtrStartRow-1+6,0,3,1)) -> -0.12425 | CP72: Q3 2016 | CU72: =AVERAGE(OFFSET($CU$1,GAS_QtrStartRow-1+6,0,3,1)) -> 505.25 | CY72: =AVERAGE(OFFSET($CY$1,GAS_QtrStartRow-1+6,0,3,1)) -> 498.75 | CZ72: =IF(COUNTBLANK(OFFSET($CZ$1,GAS_QtrStartRow-1+6,0,3,1))>0,"",AVERAGE(OFFSET($CZ$1,GAS_QtrStartRow-1+6,0,3,1))) ->  | DD72: =AVERAGE(OFFSET($DD$1,GAS_QtrStartRow-1+6,0,3,1)) -> 501.5311265 | DE72: =IF(COUNTBLANK(OFFSET($DE$1,GAS_QtrStartRow-1+6,0,3,1))>0,"",AVERAGE(OFFSET($DE$1,GAS_QtrStartRow-1+6,0,3,1))) ->  | DG72: =AVERAGE(OFFSET($DG$1,GAS_QtrStartRow-1+6,0,3,1)) -> 508.0045839 | DH72: =AVERAGE(OFFSET($DH$1,GAS_QtrStartRow-1+6,0,3,1)) -> 13.07623787 | DI72: =AVERAGE(OFFSET($DI$1,GAS_QtrStartRow-1+6,0,3,1)) -> 12.84201407 | DJ72: =IF(COUNTBLANK(OFFSET($DJ$1,GAS_QtrStartRow-1+6,0,3,1))>0,"",AVERAGE(OFFSET($DJ$1,GAS_QtrStartRow-1+6,0,3,1))) ->  | DL72: Q3 2016 | DM72: =AVERAGE(OFFSET($DM$1,HOGO_QtrStartRow-1+6,0,3,1)) -> 0.03340019175 | DN72: =AVERAGE(OFFSET($DN$1,HOGO_QtrStartRow-1+6,0,3,1)) -> 0.03861345835
B73: ="Q"&INT((MONTH(EDATE(TODAY(),12))-1)/3)+1 & " " & RIGHT(YEAR(EDATE(TODAY(),12)),4) -> Q4 2016 | G73: =AVERAGE(OFFSET($G$1,CL_QtrStartRow-1+9,0,3,1)) -> 51.14333333 | K73: =AVERAGE(OFFSET($K$1,CL_QtrStartRow-1+9,0,3,1)) -> 50.36 | L73: =IF(COUNTBLANK(OFFSET($L$1,CL_QtrStartRow-1+9,0,3,1))>0,"",AVERAGE(OFFSET($L$1,CL_QtrStartRow-1+9,0,3,1))) ->  | P73: =AVERAGE(OFFSET($P$1,CL_QtrStartRow-1+9,0,3,1)) -> 50.79460317 | Q73: =IF(COUNTBLANK(OFFSET($Q$1,CL_QtrStartRow-1+9,0,3,1))>0,"",AVERAGE(OFFSET($Q$1,CL_QtrStartRow-1+9,0,3,1))) ->  | S73: =AVERAGE(OFFSET($S$1,CL_QtrStartRow-1+9,0,3,1)) -> 51.56357143 | T73: Q4 2016 | Y73: =AVERAGE(OFFSET($Y$1,BRN_QtrStartRow-1+9,0,3,1)) -> 55.475 | AC73: =AVERAGE(OFFSET($AC$1,BRN_QtrStartRow-1+9,0,3,1)) -> 54.84666667 | AD73: =IF(COUNTBLANK(OFFSET($AD$1,BRN_QtrStartRow-1+9,0,3,1))>0,"",AVERAGE(OFFSET($AD$1,BRN_QtrStartRow-1+9,0,3,1))) ->  | AH73: =AVERAGE(OFFSET($AH$1,BRN_QtrStartRow-1+9,0,3,1)) -> 55.61291486 | AI73: =IF(COUNTBLANK(OFFSET($AI$1,BRN_QtrStartRow-1+9,0,3,1))>0,"",AVERAGE(OFFSET($AI$1,BRN_QtrStartRow-1+9,0,3,1))) ->  | AK73: =AVERAGE(OFFSET($AK$1,BRN_QtrStartRow-1+9,0,3,1)) -> 56.22728355 | AL73: Q4 2016 | AM73: =AVERAGE(OFFSET($AM$1,BRNWTI_QtrStartRow-1+9,0,3,1)) -> -4.331666667 | AN73: =AVERAGE(OFFSET($AN$1,BRNWTI_QtrStartRow-1+9,0,3,1)) -> -4.663712121 | AO73: Q4 2016 | AT73: =AVERAGE(OFFSET($AT$1,RBOB_QtrStartRow-1+9,0,3,1)) -> 1.419433333 | AX73: =AVERAGE(OFFSET($AX$1,RBOB_QtrStartRow-1+9,0,3,1)) -> 1.403266667 | AY73: =IF(COUNTBLANK(OFFSET($AY$1,RBOB_QtrStartRow-1+9,0,3,1))>0,"",AVERAGE(OFFSET($AY$1,RBOB_QtrStartRow-1+9,0,3,1))) ->  | BB73: =AVERAGE(OFFSET($BB$1,RBOB_QtrStartRow-1+9,0,3,1)) -> 1.393766667 | BC73: =IF(COUNTBLANK(OFFSET($BC$1,RBOB_QtrStartRow-1+9,0,3,1))>0,"",AVERAGE(OFFSET($BC$1,RBOB_QtrStartRow-1+9,0,3,1))) ->  | BE73: =AVERAGE(OFFSET($BE$1,RBOB_QtrStartRow-1+9,0,3,1)) -> 1.4088 | BF73: =AVERAGE(OFFSET($BF$1,RBOB_QtrStartRow-1+9,0,3,1)) -> 7.606028571 | BG73: =AVERAGE(OFFSET($BG$1,RBOB_QtrStartRow-1+9,0,3,1)) -> 7.743596825 | BH73: =IF(COUNTBLANK(OFFSET($BH$1,RBOB_QtrStartRow-1+9,0,3,1))>0,"",AVERAGE(OFFSET($BH$1,RBOB_QtrStartRow-1+9,0,3,1))) ->  | BJ73: =AVERAGE(OFFSET($BJ$1,RBOB_QtrStartRow-1+9,0,3,1)) -> 2.94231645 | BK73: =AVERAGE(OFFSET($BK$1,RBOB_QtrStartRow-1+9,0,3,1)) -> 2.925285137 | BL73: =IF(COUNTBLANK(OFFSET($BL$1,RBOB_QtrStartRow-1+9,0,3,1))>0,"",AVERAGE(OFFSET($BL$1,RBOB_QtrStartRow-1+9,0,3,1))) ->  | BN73: Q4 2016 | BS73: =AVERAGE(OFFSET($BS$1,HO_QtrStartRow-1+9,0,3,1)) -> 1.692883333 | BW73: =AVERAGE(OFFSET($BW$1,HO_QtrStartRow-1+9,0,3,1)) -> 1.673566667 | BX73: =IF(COUNTBLANK(OFFSET($BX$1,HO_QtrStartRow-1+9,0,3,1))>0,"",AVERAGE(OFFSET($BX$1,HO_QtrStartRow-1+9,0,3,1))) ->  | CA73: =AVERAGE(OFFSET($CA$1,HO_QtrStartRow-1+9,0,3,1)) -> 1.688833333 | CB73: =IF(COUNTBLANK(OFFSET($CB$1,HO_QtrStartRow-1+9,0,3,1))>0,"",AVERAGE(OFFSET($CB$1,HO_QtrStartRow-1+9,0,3,1))) ->  | CD73: =AVERAGE(OFFSET($CD$1,HO_QtrStartRow-1+9,0,3,1)) -> 1.707983333 | CE73: =AVERAGE(OFFSET($CE$1,HO_QtrStartRow-1+9,0,3,1)) -> 20.17172857 | CF73: =AVERAGE(OFFSET($CF$1,HO_QtrStartRow-1+9,0,3,1)) -> 20.13639683 | CG73: =IF(COUNTBLANK(OFFSET($CG$1,HO_QtrStartRow-1+9,0,3,1))>0,"",AVERAGE(OFFSET($CG$1,HO_QtrStartRow-1+9,0,3,1))) ->  | CI73: =AVERAGE(OFFSET($CI$1,HO_QtrStartRow-1+9,0,3,1)) -> 15.50801645 | CJ73: =AVERAGE(OFFSET($CJ$1,HO_QtrStartRow-1+9,0,3,1)) -> 15.31808514 | CK73: =IF(COUNTBLANK(OFFSET($CK$1,HO_QtrStartRow-1+9,0,3,1))>0,"",AVERAGE(OFFSET($CK$1,HO_QtrStartRow-1+9,0,3,1))) ->  | CM73: Q4 2016 | CN73: =AVERAGE(OFFSET($CN$1,RBOBHO_QtrStartRow-1+9,0,3,1)) -> -0.27345 | CO73: =AVERAGE(OFFSET($CO$1,RBOBHO_QtrStartRow-1+9,0,3,1)) -> -0.2991833333 | CP73: Q4 2016 | CU73: =AVERAGE(OFFSET($CU$1,GAS_QtrStartRow-1+9,0,3,1)) -> 515.625 | CY73: =AVERAGE(OFFSET($CY$1,GAS_QtrStartRow-1+9,0,3,1)) -> 509.25 | CZ73: =IF(COUNTBLANK(OFFSET($CZ$1,GAS_QtrStartRow-1+9,0,3,1))>0,"",AVERAGE(OFFSET($CZ$1,GAS_QtrStartRow-1+9,0,3,1))) ->  | DD73: =AVERAGE(OFFSET($DD$1,GAS_QtrStartRow-1+9,0,3,1)) -> 511.1502525 | DE73: =IF(COUNTBLANK(OFFSET($DE$1,GAS_QtrStartRow-1+9,0,3,1))>0,"",AVERAGE(OFFSET($DE$1,GAS_QtrStartRow-1+9,0,3,1))) ->  | DG73: =AVERAGE(OFFSET($DG$1,GAS_QtrStartRow-1+9,0,3,1)) -> 517.4412879 | DH73: =AVERAGE(OFFSET($DH$1,GAS_QtrStartRow-1+9,0,3,1)) -> 13.22792288 | DI73: =AVERAGE(OFFSET($DI$1,GAS_QtrStartRow-1+9,0,3,1)) -> 12.99785729 | DJ73: =IF(COUNTBLANK(OFFSET($DJ$1,GAS_QtrStartRow-1+9,0,3,1))>0,"",AVERAGE(OFFSET($DJ$1,GAS_QtrStartRow-1+9,0,3,1))) ->  | DL73: Q4 2016 | DM73: =AVERAGE(OFFSET($DM$1,HOGO_QtrStartRow-1+9,0,3,1)) -> 0.04499263343 | DN73: =AVERAGE(OFFSET($DN$1,HOGO_QtrStartRow-1+9,0,3,1)) -> 0.05428794222
B74: ="Q"&INT((MONTH(EDATE(TODAY(),15))-1)/3)+1 & " " & RIGHT(YEAR(EDATE(TODAY(),15)),4) -> Q1 2017 | G74: =AVERAGE(OFFSET($G$1,CL_QtrStartRow-1+12,0,3,1)) -> 52.03333333 | K74: =AVERAGE(OFFSET($K$1,CL_QtrStartRow-1+12,0,3,1)) -> 51.28 | L74: =IF(COUNTBLANK(OFFSET($L$1,CL_QtrStartRow-1+12,0,3,1))>0,"",AVERAGE(OFFSET($L$1,CL_QtrStartRow-1+12,0,3,1))) ->  | P74: =AVERAGE(OFFSET($P$1,CL_QtrStartRow-1+12,0,3,1)) -> 51.63968421 | Q74: =IF(COUNTBLANK(OFFSET($Q$1,CL_QtrStartRow-1+12,0,3,1))>0,"",AVERAGE(OFFSET($Q$1,CL_QtrStartRow-1+12,0,3,1))) ->  | S74: =AVERAGE(OFFSET($S$1,CL_QtrStartRow-1+12,0,3,1)) -> 52.37335374 | T74: Q1 2017 | Y74: =AVERAGE(OFFSET($Y$1,BRN_QtrStartRow-1+12,0,3,1)) -> 56.56 | AC74: =AVERAGE(OFFSET($AC$1,BRN_QtrStartRow-1+12,0,3,1)) -> 55.95333333 | AD74: =IF(COUNTBLANK(OFFSET($AD$1,BRN_QtrStartRow-1+12,0,3,1))>0,"",AVERAGE(OFFSET($AD$1,BRN_QtrStartRow-1+12,0,3,1))) ->  | AH74: =AVERAGE(OFFSET($AH$1,BRN_QtrStartRow-1+12,0,3,1)) -> 56.68859765 | AI74: =IF(COUNTBLANK(OFFSET($AI$1,BRN_QtrStartRow-1+12,0,3,1))>0,"",AVERAGE(OFFSET($AI$1,BRN_QtrStartRow-1+12,0,3,1))) ->  | AK74: =AVERAGE(OFFSET($AK$1,BRN_QtrStartRow-1+12,0,3,1)) -> 57.27312733 | AL74: Q1 2017 | AM74: =AVERAGE(OFFSET($AM$1,BRNWTI_QtrStartRow-1+12,0,3,1)) -> -4.526666667 | AN74: =AVERAGE(OFFSET($AN$1,BRNWTI_QtrStartRow-1+12,0,3,1)) -> -4.899773592 | AO74: Q1 2017 | AT74: =AVERAGE(OFFSET($AT$1,RBOB_QtrStartRow-1+12,0,3,1)) -> 1.423733333 | AX74: =AVERAGE(OFFSET($AX$1,RBOB_QtrStartRow-1+12,0,3,1)) -> 1.410333333 | AY74: =IF(COUNTBLANK(OFFSET($AY$1,RBOB_QtrStartRow-1+12,0,3,1))>0,"",AVERAGE(OFFSET($AY$1,RBOB_QtrStartRow-1+12,0,3,1))) ->  | BB74: =AVERAGE(OFFSET($BB$1,RBOB_QtrStartRow-1+12,0,3,1)) -> 1.497866667 | BC74: =IF(COUNTBLANK(OFFSET($BC$1,RBOB_QtrStartRow-1+12,0,3,1))>0,"",AVERAGE(OFFSET($BC$1,RBOB_QtrStartRow-1+12,0,3,1))) ->  | BE74: =AVERAGE(OFFSET($BE$1,RBOB_QtrStartRow-1+12,0,3,1)) -> 1.50955 | BF74: =AVERAGE(OFFSET($BF$1,RBOB_QtrStartRow-1+12,0,3,1)) -> 11.02774626 | BG74: =AVERAGE(OFFSET($BG$1,RBOB_QtrStartRow-1+12,0,3,1)) -> 11.27071579 | BH74: =IF(COUNTBLANK(OFFSET($BH$1,RBOB_QtrStartRow-1+12,0,3,1))>0,"",AVERAGE(OFFSET($BH$1,RBOB_QtrStartRow-1+12,0,3,1))) ->  | BJ74: =AVERAGE(OFFSET($BJ$1,RBOB_QtrStartRow-1+12,0,3,1)) -> 6.127972671 | BK74: =AVERAGE(OFFSET($BK$1,RBOB_QtrStartRow-1+12,0,3,1)) -> 6.221802346 | BL74: =IF(COUNTBLANK(OFFSET($BL$1,RBOB_QtrStartRow-1+12,0,3,1))>0,"",AVERAGE(OFFSET($BL$1,RBOB_QtrStartRow-1+12,0,3,1))) ->  | BN74: Q1 2017 | BS74: =AVERAGE(OFFSET($BS$1,HO_QtrStartRow-1+12,0,3,1)) -> 1.727016667 | BW74: =AVERAGE(OFFSET($BW$1,HO_QtrStartRow-1+12,0,3,1)) -> 1.7084 | BX74: =IF(COUNTBLANK(OFFSET($BX$1,HO_QtrStartRow-1+12,0,3,1))>0,"",AVERAGE(OFFSET($BX$1,HO_QtrStartRow-1+12,0,3,1))) ->  | CA74: =AVERAGE(OFFSET($CA$1,HO_QtrStartRow-1+12,0,3,1)) -> 1.708233333 | CB74: =IF(COUNTBLANK(OFFSET($CB$1,HO_QtrStartRow-1+12,0,3,1))>0,"",AVERAGE(OFFSET($CB$1,HO_QtrStartRow-1+12,0,3,1))) ->  | CD74: =AVERAGE(OFFSET($CD$1,HO_QtrStartRow-1+12,0,3,1)) -> 1.726333333 | CE74: =AVERAGE(OFFSET($CE$1,HO_QtrStartRow-1+12,0,3,1)) -> 20.13264626 | CF74: =AVERAGE(OFFSET($CF$1,HO_QtrStartRow-1+12,0,3,1)) -> 20.10611579 | CG74: =IF(COUNTBLANK(OFFSET($CG$1,HO_QtrStartRow-1+12,0,3,1))>0,"",AVERAGE(OFFSET($CG$1,HO_QtrStartRow-1+12,0,3,1))) ->  | CI74: =AVERAGE(OFFSET($CI$1,HO_QtrStartRow-1+12,0,3,1)) -> 15.23287267 | CJ74: =AVERAGE(OFFSET($CJ$1,HO_QtrStartRow-1+12,0,3,1)) -> 15.05720235 | CK74: =IF(COUNTBLANK(OFFSET($CK$1,HO_QtrStartRow-1+12,0,3,1))>0,"",AVERAGE(OFFSET($CK$1,HO_QtrStartRow-1+12,0,3,1))) ->  | CM74: Q1 2017 | CN74: =AVERAGE(OFFSET($CN$1,RBOBHO_QtrStartRow-1+12,0,3,1)) -> -0.3032833333 | CO74: =AVERAGE(OFFSET($CO$1,RBOBHO_QtrStartRow-1+12,0,3,1)) -> -0.2167833333 | CP74: Q1 2017 | CU74: =AVERAGE(OFFSET($CU$1,GAS_QtrStartRow-1+12,0,3,1)) -> 524.8333333 | CY74: =AVERAGE(OFFSET($CY$1,GAS_QtrStartRow-1+12,0,3,1)) -> 518.75 | CZ74: =IF(COUNTBLANK(OFFSET($CZ$1,GAS_QtrStartRow-1+12,0,3,1))>0,"",AVERAGE(OFFSET($CZ$1,GAS_QtrStartRow-1+12,0,3,1))) ->  | DD74: =AVERAGE(OFFSET($DD$1,GAS_QtrStartRow-1+12,0,3,1)) -> 520.6779589 | DE74: =IF(COUNTBLANK(OFFSET($DE$1,GAS_QtrStartRow-1+12,0,3,1))>0,"",AVERAGE(OFFSET($DE$1,GAS_QtrStartRow-1+12,0,3,1))) ->  | DG74: =AVERAGE(OFFSET($DG$1,GAS_QtrStartRow-1+12,0,3,1)) -> 526.6462258 | DH74: =AVERAGE(OFFSET($DH$1,GAS_QtrStartRow-1+12,0,3,1)) -> 13.41764124 | DI74: =AVERAGE(OFFSET($DI$1,GAS_QtrStartRow-1+12,0,3,1)) -> 13.20106126 | DJ74: =IF(COUNTBLANK(OFFSET($DJ$1,GAS_QtrStartRow-1+12,0,3,1))>0,"",AVERAGE(OFFSET($DJ$1,GAS_QtrStartRow-1+12,0,3,1))) ->  | DL74: Q1 2017 | DM74: =AVERAGE(OFFSET($DM$1,HOGO_QtrStartRow-1+12,0,3,1)) -> 0.04969696921 | DN74: =AVERAGE(OFFSET($DN$1,HOGO_QtrStartRow-1+12,0,3,1)) -> 0.04321979596
B75: ="Q"&INT((MONTH(EDATE(TODAY(),18))-1)/3)+1 & " " & RIGHT(YEAR(EDATE(TODAY(),18)),4) -> Q2 2017 | G75: =AVERAGE(OFFSET($G$1,CL_QtrStartRow-1+15,0,3,1)) -> 52.77833333 | K75: =AVERAGE(OFFSET($K$1,CL_QtrStartRow-1+15,0,3,1)) -> 52.07 | L75: =IF(COUNTBLANK(OFFSET($L$1,CL_QtrStartRow-1+15,0,3,1))>0,"",AVERAGE(OFFSET($L$1,CL_QtrStartRow-1+15,0,3,1))) ->  | P75: =AVERAGE(OFFSET($P$1,CL_QtrStartRow-1+15,0,3,1)) -> 52.37767145 | Q75: =IF(COUNTBLANK(OFFSET($Q$1,CL_QtrStartRow-1+15,0,3,1))>0,"",AVERAGE(OFFSET($Q$1,CL_QtrStartRow-1+15,0,3,1))) ->  | S75: =AVERAGE(OFFSET($S$1,CL_QtrStartRow-1+15,0,3,1)) -> 53.06730463 | T75: Q2 2017 | Y75: =AVERAGE(OFFSET($Y$1,BRN_QtrStartRow-1+15,0,3,1)) -> 57.57166667 | AC75: =AVERAGE(OFFSET($AC$1,BRN_QtrStartRow-1+15,0,3,1)) -> 56.99666667 | AD75: =IF(COUNTBLANK(OFFSET($AD$1,BRN_QtrStartRow-1+15,0,3,1))>0,"",AVERAGE(OFFSET($AD$1,BRN_QtrStartRow-1+15,0,3,1))) ->  | AH75: =AVERAGE(OFFSET($AH$1,BRN_QtrStartRow-1+15,0,3,1)) -> 57.551494 | AI75: =IF(COUNTBLANK(OFFSET($AI$1,BRN_QtrStartRow-1+15,0,3,1))>0,"",AVERAGE(OFFSET($AI$1,BRN_QtrStartRow-1+15,0,3,1))) ->  | AK75: =AVERAGE(OFFSET($AK$1,BRN_QtrStartRow-1+15,0,3,1)) -> 58.10755253 | AL75: Q2 2017 | AM75: =AVERAGE(OFFSET($AM$1,BRNWTI_QtrStartRow-1+15,0,3,1)) -> -4.793333333 | AN75: =AVERAGE(OFFSET($AN$1,BRNWTI_QtrStartRow-1+15,0,3,1)) -> -5.040247902 | AO75: Q2 2017 | AT75: =AVERAGE(OFFSET($AT$1,RBOB_QtrStartRow-1+15,0,3,1)) -> 1.672183333 | AX75: =AVERAGE(OFFSET($AX$1,RBOB_QtrStartRow-1+15,0,3,1)) -> 1.663266667 | AY75: =IF(COUNTBLANK(OFFSET($AY$1,RBOB_QtrStartRow-1+15,0,3,1))>0,"",AVERAGE(OFFSET($AY$1,RBOB_QtrStartRow-1+15,0,3,1))) ->  | BB75: =AVERAGE(OFFSET($BB$1,RBOB_QtrStartRow-1+15,0,3,1)) -> 1.663433333 | BC75: =IF(COUNTBLANK(OFFSET($BC$1,RBOB_QtrStartRow-1+15,0,3,1))>0,"",AVERAGE(OFFSET($BC$1,RBOB_QtrStartRow-1+15,0,3,1))) ->  | BE75: =AVERAGE(OFFSET($BE$1,RBOB_QtrStartRow-1+15,0,3,1)) -> 1.6722 | BF75: =AVERAGE(OFFSET($BF$1,RBOB_QtrStartRow-1+15,0,3,1)) -> 17.16509537 | BG75: =AVERAGE(OFFSET($BG$1,RBOB_QtrStartRow-1+15,0,3,1)) -> 17.48652855 | BH75: =IF(COUNTBLANK(OFFSET($BH$1,RBOB_QtrStartRow-1+15,0,3,1))>0,"",AVERAGE(OFFSET($BH$1,RBOB_QtrStartRow-1+15,0,3,1))) ->  | BJ75: =AVERAGE(OFFSET($BJ$1,RBOB_QtrStartRow-1+15,0,3,1)) -> 12.12484747 | BK75: =AVERAGE(OFFSET($BK$1,RBOB_QtrStartRow-1+15,0,3,1)) -> 12.312706 | BL75: =IF(COUNTBLANK(OFFSET($BL$1,RBOB_QtrStartRow-1+15,0,3,1))>0,"",AVERAGE(OFFSET($BL$1,RBOB_QtrStartRow-1+15,0,3,1))) ->  | BN75: Q2 2017 | BS75: =AVERAGE(OFFSET($BS$1,HO_QtrStartRow-1+15,0,3,1)) -> 1.724416667 | BW75: =AVERAGE(OFFSET($BW$1,HO_QtrStartRow-1+15,0,3,1)) -> 1.7074 | BX75: =IF(COUNTBLANK(OFFSET($BX$1,HO_QtrStartRow-1+15,0,3,1))>0,"",AVERAGE(OFFSET($BX$1,HO_QtrStartRow-1+15,0,3,1))) ->  | CA75: =AVERAGE(OFFSET($CA$1,HO_QtrStartRow-1+15,0,3,1)) -> 1.7144 | CB75: =IF(COUNTBLANK(OFFSET($CB$1,HO_QtrStartRow-1+15,0,3,1))>0,"",AVERAGE(OFFSET($CB$1,HO_QtrStartRow-1+15,0,3,1))) ->  | CD75: =AVERAGE(OFFSET($CD$1,HO_QtrStartRow-1+15,0,3,1)) -> 1.7312 | CE75: =AVERAGE(OFFSET($CE$1,HO_QtrStartRow-1+15,0,3,1)) -> 19.64309537 | CF75: =AVERAGE(OFFSET($CF$1,HO_QtrStartRow-1+15,0,3,1)) -> 19.62712855 | CG75: =IF(COUNTBLANK(OFFSET($CG$1,HO_QtrStartRow-1+15,0,3,1))>0,"",AVERAGE(OFFSET($CG$1,HO_QtrStartRow-1+15,0,3,1))) ->  | CH75: =IF(AND(CF75<>"",CG75<>""),CG75-CF75,"") ->  | CI75: =AVERAGE(OFFSET($CI$1,HO_QtrStartRow-1+15,0,3,1)) -> 14.60284747 | CJ75: =AVERAGE(OFFSET($CJ$1,HO_QtrStartRow-1+15,0,3,1)) -> 14.453306 | CK75: =IF(COUNTBLANK(OFFSET($CK$1,HO_QtrStartRow-1+15,0,3,1))>0,"",AVERAGE(OFFSET($CK$1,HO_QtrStartRow-1+15,0,3,1))) ->  | CL75: =IF(AND(CJ75<>"",CK75<>""),CK75-CJ75,"") ->  | CM75: Q2 2017 | CN75: =AVERAGE(OFFSET($CN$1,RBOBHO_QtrStartRow-1+15,0,3,1)) -> -0.05223333333 | CO75: =AVERAGE(OFFSET($CO$1,RBOBHO_QtrStartRow-1+15,0,3,1)) -> -0.059 | CP75: Q2 2017 | CU75: =AVERAGE(OFFSET($CU$1,GAS_QtrStartRow-1+15,0,3,1)) -> 531.6666667 | CY75: =AVERAGE(OFFSET($CY$1,GAS_QtrStartRow-1+15,0,3,1)) -> 526.1666667 | CZ75: =IF(COUNTBLANK(OFFSET($CZ$1,GAS_QtrStartRow-1+15,0,3,1))>0,"",AVERAGE(OFFSET($CZ$1,GAS_QtrStartRow-1+15,0,3,1))) ->  | DD75: =AVERAGE(OFFSET($DD$1,GAS_QtrStartRow-1+15,0,3,1)) -> 527.8137698 | DE75: =IF(COUNTBLANK(OFFSET($DE$1,GAS_QtrStartRow-1+15,0,3,1))>0,"",AVERAGE(OFFSET($DE$1,GAS_QtrStartRow-1+15,0,3,1))) ->  | DG75: =AVERAGE(OFFSET($DG$1,GAS_QtrStartRow-1+15,0,3,1)) -> 533.2318711 | DH75: =AVERAGE(OFFSET($DH$1,GAS_QtrStartRow-1+15,0,3,1)) -> 13.46719527 | DI75: =AVERAGE(OFFSET($DI$1,GAS_QtrStartRow-1+15,0,3,1)) -> 13.29599188 | DJ75: =IF(COUNTBLANK(OFFSET($DJ$1,GAS_QtrStartRow-1+15,0,3,1))>0,"",AVERAGE(OFFSET($DJ$1,GAS_QtrStartRow-1+15,0,3,1))) ->  | DL75: Q2 2017 | DM75: =AVERAGE(OFFSET($DM$1,HOGO_QtrStartRow-1+15,0,3,1)) -> 0.0252582561 | DN75: =AVERAGE(OFFSET($DN$1,HOGO_QtrStartRow-1+15,0,3,1)) -> 0.02703933827
B76: ="Q"&INT((MONTH(EDATE(TODAY(),21))-1)/3)+1 & " " & RIGHT(YEAR(EDATE(TODAY(),21)),4) -> Q3 2017 | G76: =AVERAGE(OFFSET($G$1,CL_QtrStartRow-1+18,0,3,1)) -> 53.43666667 | K76: =AVERAGE(OFFSET($K$1,CL_QtrStartRow-1+18,0,3,1)) -> 52.77 | L76: =IF(COUNTBLANK(OFFSET($L$1,CL_QtrStartRow-1+18,0,3,1))>0,"",AVERAGE(OFFSET($L$1,CL_QtrStartRow-1+18,0,3,1))) ->  | P76: =AVERAGE(OFFSET($P$1,CL_QtrStartRow-1+18,0,3,1)) -> 53.10821014 | Q76: =IF(COUNTBLANK(OFFSET($Q$1,CL_QtrStartRow-1+18,0,3,1))>0,"",AVERAGE(OFFSET($Q$1,CL_QtrStartRow-1+18,0,3,1))) ->  | S76: =AVERAGE(OFFSET($S$1,CL_QtrStartRow-1+18,0,3,1)) -> 53.76211232 | T76: Q3 2017 | Y76: =AVERAGE(OFFSET($Y$1,BRN_QtrStartRow-1+18,0,3,1)) -> 58.32666667 | AC76: =AVERAGE(OFFSET($AC$1,BRN_QtrStartRow-1+18,0,3,1)) -> 57.78333333 | AD76: =IF(COUNTBLANK(OFFSET($AD$1,BRN_QtrStartRow-1+18,0,3,1))>0,"",AVERAGE(OFFSET($AD$1,BRN_QtrStartRow-1+18,0,3,1))) ->  | AH76: =AVERAGE(OFFSET($AH$1,BRN_QtrStartRow-1+18,0,3,1)) -> 58.24289855 | AI76: =IF(COUNTBLANK(OFFSET($AI$1,BRN_QtrStartRow-1+18,0,3,1))>0,"",AVERAGE(OFFSET($AI$1,BRN_QtrStartRow-1+18,0,3,1))) ->  | AK76: =AVERAGE(OFFSET($AK$1,BRN_QtrStartRow-1+18,0,3,1)) -> 58.75418219 | AL76: Q3 2017 | AM76: =AVERAGE(OFFSET($AM$1,BRNWTI_QtrStartRow-1+18,0,3,1)) -> -4.89 | AN76: =AVERAGE(OFFSET($AN$1,BRNWTI_QtrStartRow-1+18,0,3,1)) -> -4.992069876 | AO76: Q3 2017 | AT76: =AVERAGE(OFFSET($AT$1,RBOB_QtrStartRow-1+18,0,3,1)) -> 1.651366667 | AX76: =AVERAGE(OFFSET($AX$1,RBOB_QtrStartRow-1+18,0,3,1)) -> 1.641433333 | AY76: =IF(COUNTBLANK(OFFSET($AY$1,RBOB_QtrStartRow-1+18,0,3,1))>0,"",AVERAGE(OFFSET($AY$1,RBOB_QtrStartRow-1+18,0,3,1))) ->  | BB76: =AVERAGE(OFFSET($BB$1,RBOB_QtrStartRow-1+18,0,3,1)) -> 1.585933333 | BC76: =IF(COUNTBLANK(OFFSET($BC$1,RBOB_QtrStartRow-1+18,0,3,1))>0,"",AVERAGE(OFFSET($BC$1,RBOB_QtrStartRow-1+18,0,3,1))) ->  | BE76: =AVERAGE(OFFSET($BE$1,RBOB_QtrStartRow-1+18,0,3,1)) -> 1.596783333 | BF76: =AVERAGE(OFFSET($BF$1,RBOB_QtrStartRow-1+18,0,3,1)) -> 13.30278768 | BG76: =AVERAGE(OFFSET($BG$1,RBOB_QtrStartRow-1+18,0,3,1)) -> 13.50098986 | BH76: =IF(COUNTBLANK(OFFSET($BH$1,RBOB_QtrStartRow-1+18,0,3,1))>0,"",AVERAGE(OFFSET($BH$1,RBOB_QtrStartRow-1+18,0,3,1))) ->  | BJ76: =AVERAGE(OFFSET($BJ$1,RBOB_QtrStartRow-1+18,0,3,1)) -> 8.310717805 | BK76: =AVERAGE(OFFSET($BK$1,RBOB_QtrStartRow-1+18,0,3,1)) -> 8.366301449 | BL76: =IF(COUNTBLANK(OFFSET($BL$1,RBOB_QtrStartRow-1+18,0,3,1))>0,"",AVERAGE(OFFSET($BL$1,RBOB_QtrStartRow-1+18,0,3,1))) ->  | BN76: Q3 2017 | BS76: =AVERAGE(OFFSET($BS$1,HO_QtrStartRow-1+18,0,3,1)) -> 1.751066667 | BW76: =AVERAGE(OFFSET($BW$1,HO_QtrStartRow-1+18,0,3,1)) -> 1.737566667 | BX76: =IF(COUNTBLANK(OFFSET($BX$1,HO_QtrStartRow-1+18,0,3,1))>0,"",AVERAGE(OFFSET($BX$1,HO_QtrStartRow-1+18,0,3,1))) ->  | CA76: =AVERAGE(OFFSET($CA$1,HO_QtrStartRow-1+18,0,3,1)) -> 1.7504 | CB76: =IF(COUNTBLANK(OFFSET($CB$1,HO_QtrStartRow-1+18,0,3,1))>0,"",AVERAGE(OFFSET($CB$1,HO_QtrStartRow-1+18,0,3,1))) ->  | CD76: =AVERAGE(OFFSET($CD$1,HO_QtrStartRow-1+18,0,3,1)) -> 1.761833333 | CE76: =AVERAGE(OFFSET($CE$1,HO_QtrStartRow-1+18,0,3,1)) -> 20.23488768 | CF76: =AVERAGE(OFFSET($CF$1,HO_QtrStartRow-1+18,0,3,1)) -> 20.40858986 | CG76: =IF(COUNTBLANK(OFFSET($CG$1,HO_QtrStartRow-1+18,0,3,1))>0,"",AVERAGE(OFFSET($CG$1,HO_QtrStartRow-1+18,0,3,1))) ->  | CI76: =AVERAGE(OFFSET($CI$1,HO_QtrStartRow-1+18,0,3,1)) -> 15.24281781 | CJ76: =AVERAGE(OFFSET($CJ$1,HO_QtrStartRow-1+18,0,3,1)) -> 15.27390145 | CK76: =IF(COUNTBLANK(OFFSET($CK$1,HO_QtrStartRow-1+18,0,3,1))>0,"",AVERAGE(OFFSET($CK$1,HO_QtrStartRow-1+18,0,3,1))) ->  | CM76: Q3 2017 | CN76: =AVERAGE(OFFSET($CN$1,RBOBHO_QtrStartRow-1+18,0,3,1)) -> -0.0997 | CO76: =AVERAGE(OFFSET($CO$1,RBOBHO_QtrStartRow-1+18,0,3,1)) -> -0.16505 | CP76: Q3 2017 | CU76: =AVERAGE(OFFSET($CU$1,GAS_QtrStartRow-1+18,0,3,1)) -> 539.2083333 | CY76: =AVERAGE(OFFSET($CY$1,GAS_QtrStartRow-1+18,0,3,1)) -> 534.4166667 | CZ76: =IF(COUNTBLANK(OFFSET($CZ$1,GAS_QtrStartRow-1+18,0,3,1))>0,"",AVERAGE(OFFSET($CZ$1,GAS_QtrStartRow-1+18,0,3,1))) ->  | DD76: =AVERAGE(OFFSET($DD$1,GAS_QtrStartRow-1+18,0,3,1)) -> 536.2717391 | DE76: =IF(COUNTBLANK(OFFSET($DE$1,GAS_QtrStartRow-1+18,0,3,1))>0,"",AVERAGE(OFFSET($DE$1,GAS_QtrStartRow-1+18,0,3,1))) ->  | DG76: =AVERAGE(OFFSET($DG$1,GAS_QtrStartRow-1+18,0,3,1)) -> 540.9233092 | DH76: =AVERAGE(OFFSET($DH$1,GAS_QtrStartRow-1+18,0,3,1)) -> 13.8529734 | DI76: =AVERAGE(OFFSET($DI$1,GAS_QtrStartRow-1+18,0,3,1)) -> 13.73988523 | DJ76: =IF(COUNTBLANK(OFFSET($DJ$1,GAS_QtrStartRow-1+18,0,3,1))>0,"",AVERAGE(OFFSET($DJ$1,GAS_QtrStartRow-1+18,0,3,1))) ->  | DL76: Q3 2017 | DM76: =AVERAGE(OFFSET($DM$1,HOGO_QtrStartRow-1+18,0,3,1)) -> 0.02780577394 | DN76: =AVERAGE(OFFSET($DN$1,HOGO_QtrStartRow-1+18,0,3,1)) -> 0.03309153347
B77: ="Q"&INT((MONTH(EDATE(TODAY(),24))-1)/3)+1 & " " & RIGHT(YEAR(EDATE(TODAY(),24)),4) -> Q4 2017 | G77: =AVERAGE(OFFSET($G$1,CL_QtrStartRow-1+21,0,3,1)) -> 54.18333333 | K77: =AVERAGE(OFFSET($K$1,CL_QtrStartRow-1+21,0,3,1)) -> 53.54666667 | L77: =IF(COUNTBLANK(OFFSET($L$1,CL_QtrStartRow-1+21,0,3,1))>0,"",AVERAGE(OFFSET($L$1,CL_QtrStartRow-1+21,0,3,1))) ->  | P77: =AVERAGE(OFFSET($P$1,CL_QtrStartRow-1+21,0,3,1)) -> 53.82618687 | Q77: =IF(COUNTBLANK(OFFSET($Q$1,CL_QtrStartRow-1+21,0,3,1))>0,"",AVERAGE(OFFSET($Q$1,CL_QtrStartRow-1+21,0,3,1))) ->  | S77: =AVERAGE(OFFSET($S$1,CL_QtrStartRow-1+21,0,3,1)) -> 54.45007071 | T77: Q4 2017 | Y77: =AVERAGE(OFFSET($Y$1,BRN_QtrStartRow-1+21,0,3,1)) -> 58.94333333 | AC77: =AVERAGE(OFFSET($AC$1,BRN_QtrStartRow-1+21,0,3,1)) -> 58.44 | AD77: =IF(COUNTBLANK(OFFSET($AD$1,BRN_QtrStartRow-1+21,0,3,1))>0,"",AVERAGE(OFFSET($AD$1,BRN_QtrStartRow-1+21,0,3,1))) ->  | AH77: =AVERAGE(OFFSET($AH$1,BRN_QtrStartRow-1+21,0,3,1)) -> 58.88363636 | AI77: =IF(COUNTBLANK(OFFSET($AI$1,BRN_QtrStartRow-1+21,0,3,1))>0,"",AVERAGE(OFFSET($AI$1,BRN_QtrStartRow-1+21,0,3,1))) ->  | AK77: =AVERAGE(OFFSET($AK$1,BRN_QtrStartRow-1+21,0,3,1)) -> 59.37683333 | AL77: Q4 2017 | AM77: =AVERAGE(OFFSET($AM$1,BRNWTI_QtrStartRow-1+21,0,3,1)) -> -4.76 | AN77: =AVERAGE(OFFSET($AN$1,BRNWTI_QtrStartRow-1+21,0,3,1)) -> -4.926762626 | AO77: Q4 2017 | AT77: =AVERAGE(OFFSET($AT$1,RBOB_QtrStartRow-1+21,0,3,1)) -> 1.4837 | AX77: =AVERAGE(OFFSET($AX$1,RBOB_QtrStartRow-1+21,0,3,1)) -> 1.4711 | AY77: =IF(COUNTBLANK(OFFSET($AY$1,RBOB_QtrStartRow-1+21,0,3,1))>0,"",AVERAGE(OFFSET($AY$1,RBOB_QtrStartRow-1+21,0,3,1))) ->  | BB77: =AVERAGE(OFFSET($BB$1,RBOB_QtrStartRow-1+21,0,3,1)) -> 1.462266667 | BC77: =IF(COUNTBLANK(OFFSET($BC$1,RBOB_QtrStartRow-1+21,0,3,1))>0,"",AVERAGE(OFFSET($BC$1,RBOB_QtrStartRow-1+21,0,3,1))) ->  | BE77: =AVERAGE(OFFSET($BE$1,RBOB_QtrStartRow-1+21,0,3,1)) -> 1.4756 | BF77: =AVERAGE(OFFSET($BF$1,RBOB_QtrStartRow-1+21,0,3,1)) -> 7.525129293 | BG77: =AVERAGE(OFFSET($BG$1,RBOB_QtrStartRow-1+21,0,3,1)) -> 7.589013131 | BH77: =IF(COUNTBLANK(OFFSET($BH$1,RBOB_QtrStartRow-1+21,0,3,1))>0,"",AVERAGE(OFFSET($BH$1,RBOB_QtrStartRow-1+21,0,3,1))) ->  | BJ77: =AVERAGE(OFFSET($BJ$1,RBOB_QtrStartRow-1+21,0,3,1)) -> 2.598366667 | BK77: =AVERAGE(OFFSET($BK$1,RBOB_QtrStartRow-1+21,0,3,1)) -> 2.531563636 | BL77: =IF(COUNTBLANK(OFFSET($BL$1,RBOB_QtrStartRow-1+21,0,3,1))>0,"",AVERAGE(OFFSET($BL$1,RBOB_QtrStartRow-1+21,0,3,1))) ->  | BN77: Q4 2017 | BS77: =AVERAGE(OFFSET($BS$1,HO_QtrStartRow-1+21,0,3,1)) -> 1.781616667 | BW77: =AVERAGE(OFFSET($BW$1,HO_QtrStartRow-1+21,0,3,1)) -> 1.771066667 | BX77: =IF(COUNTBLANK(OFFSET($BX$1,HO_QtrStartRow-1+21,0,3,1))>0,"",AVERAGE(OFFSET($BX$1,HO_QtrStartRow-1+21,0,3,1))) ->  | CA77: =AVERAGE(OFFSET($CA$1,HO_QtrStartRow-1+21,0,3,1)) -> 1.7799 | CB77: =IF(COUNTBLANK(OFFSET($CB$1,HO_QtrStartRow-1+21,0,3,1))>0,"",AVERAGE(OFFSET($CB$1,HO_QtrStartRow-1+21,0,3,1))) ->  | CD77: =AVERAGE(OFFSET($CD$1,HO_QtrStartRow-1+21,0,3,1)) -> 1.789716667 | CE77: =AVERAGE(OFFSET($CE$1,HO_QtrStartRow-1+21,0,3,1)) -> 20.71802929 | CF77: =AVERAGE(OFFSET($CF$1,HO_QtrStartRow-1+21,0,3,1)) -> 20.92961313 | CG77: =IF(COUNTBLANK(OFFSET($CG$1,HO_QtrStartRow-1+21,0,3,1))>0,"",AVERAGE(OFFSET($CG$1,HO_QtrStartRow-1+21,0,3,1))) ->  | CI77: =AVERAGE(OFFSET($CI$1,HO_QtrStartRow-1+21,0,3,1)) -> 15.79126667 | CJ77: =AVERAGE(OFFSET($CJ$1,HO_QtrStartRow-1+21,0,3,1)) -> 15.87216364 | CK77: =IF(COUNTBLANK(OFFSET($CK$1,HO_QtrStartRow-1+21,0,3,1))>0,"",AVERAGE(OFFSET($CK$1,HO_QtrStartRow-1+21,0,3,1))) ->  | CM77: Q4 2017 | CN77: =AVERAGE(OFFSET($CN$1,RBOBHO_QtrStartRow-1+21,0,3,1)) -> -0.2979166667 | CO77: =AVERAGE(OFFSET($CO$1,RBOBHO_QtrStartRow-1+21,0,3,1)) -> -0.3141166667 | CP77: Q4 2017 | CU77: =AVERAGE(OFFSET($CU$1,GAS_QtrStartRow-1+21,0,3,1)) -> 545.875 | CY77: =AVERAGE(OFFSET($CY$1,GAS_QtrStartRow-1+21,0,3,1)) -> 541 | CZ77: =IF(COUNTBLANK(OFFSET($CZ$1,GAS_QtrStartRow-1+21,0,3,1))>0,"",AVERAGE(OFFSET($CZ$1,GAS_QtrStartRow-1+21,0,3,1))) ->  | DD77: =AVERAGE(OFFSET($DD$1,GAS_QtrStartRow-1+21,0,3,1)) -> 542.2534091 | DE77: =IF(COUNTBLANK(OFFSET($DE$1,GAS_QtrStartRow-1+21,0,3,1))>0,"",AVERAGE(OFFSET($DE$1,GAS_QtrStartRow-1+21,0,3,1))) ->  | DG77: =AVERAGE(OFFSET($DG$1,GAS_QtrStartRow-1+21,0,3,1)) -> 547.1537879 | DH77: =AVERAGE(OFFSET($DH$1,GAS_QtrStartRow-1+21,0,3,1)) -> 14.06662813 | DI77: =AVERAGE(OFFSET($DI$1,GAS_QtrStartRow-1+21,0,3,1)) -> 13.90205613 | DJ77: =IF(COUNTBLANK(OFFSET($DJ$1,GAS_QtrStartRow-1+21,0,3,1))>0,"",AVERAGE(OFFSET($DJ$1,GAS_QtrStartRow-1+21,0,3,1))) ->  | DL77: Q4 2017 | DM77: =AVERAGE(OFFSET($DM$1,HOGO_QtrStartRow-1+21,0,3,1)) -> 0.03704971237 | DN77: =AVERAGE(OFFSET($DN$1,HOGO_QtrStartRow-1+21,0,3,1)) -> 0.04106282238
B78: ="Q"&INT((MONTH(EDATE(TODAY(),27))-1)/3)+1 & " " & RIGHT(YEAR(EDATE(TODAY(),27)),4) -> Q1 2018 | G78: =AVERAGE(OFFSET($G$1,CL_QtrStartRow-1+24,0,3,1)) -> 54.70666667 | K78: =AVERAGE(OFFSET($K$1,CL_QtrStartRow-1+24,0,3,1)) -> 54.09666667 | L78: =IF(COUNTBLANK(OFFSET($L$1,CL_QtrStartRow-1+24,0,3,1))>0,"",AVERAGE(OFFSET($L$1,CL_QtrStartRow-1+24,0,3,1))) ->  | P78: =AVERAGE(OFFSET($P$1,CL_QtrStartRow-1+24,0,3,1)) -> 54.33327485 | Q78: =IF(COUNTBLANK(OFFSET($Q$1,CL_QtrStartRow-1+24,0,3,1))>0,"",AVERAGE(OFFSET($Q$1,CL_QtrStartRow-1+24,0,3,1))) ->  | S78: =AVERAGE(OFFSET($S$1,CL_QtrStartRow-1+24,0,3,1)) -> 54.9305848 | T78: Q1 2018 | Y78: =AVERAGE(OFFSET($Y$1,BRN_QtrStartRow-1+24,0,3,1)) -> 59.57833333 | AC78: =AVERAGE(OFFSET($AC$1,BRN_QtrStartRow-1+24,0,3,1)) -> 59.09 | AD78: =IF(COUNTBLANK(OFFSET($AD$1,BRN_QtrStartRow-1+24,0,3,1))>0,"",AVERAGE(OFFSET($AD$1,BRN_QtrStartRow-1+24,0,3,1))) ->  | AH78: =AVERAGE(OFFSET($AH$1,BRN_QtrStartRow-1+24,0,3,1)) -> 59.5301746 | AI78: =IF(COUNTBLANK(OFFSET($AI$1,BRN_QtrStartRow-1+24,0,3,1))>0,"",AVERAGE(OFFSET($AI$1,BRN_QtrStartRow-1+24,0,3,1))) ->  | AK78: =AVERAGE(OFFSET($AK$1,BRN_QtrStartRow-1+24,0,3,1)) -> 60.00078932 | AL78: Q1 2018 | AM78: =AVERAGE(OFFSET($AM$1,BRNWTI_QtrStartRow-1+24,0,3,1)) -> -4.871666667 | AN78: =AVERAGE(OFFSET($AN$1,BRNWTI_QtrStartRow-1+24,0,3,1)) -> -5.070204526 | CP78: Q1 2018 | CU78: =AVERAGE(OFFSET($CU$1,GAS_QtrStartRow-1+24,0,3,1)) -> 552 | CY78: =AVERAGE(OFFSET($CY$1,GAS_QtrStartRow-1+24,0,3,1)) -> 547.25 | CZ78: =IF(COUNTBLANK(OFFSET($CZ$1,GAS_QtrStartRow-1+24,0,3,1))>0,"",AVERAGE(OFFSET($CZ$1,GAS_QtrStartRow-1+24,0,3,1))) ->  | DD78: =AVERAGE(OFFSET($DD$1,GAS_QtrStartRow-1+24,0,3,1)) -> 548.4157828 | DE78: =IF(COUNTBLANK(OFFSET($DE$1,GAS_QtrStartRow-1+24,0,3,1))>0,"",AVERAGE(OFFSET($DE$1,GAS_QtrStartRow-1+24,0,3,1))) ->  | DG78: =AVERAGE(OFFSET($DG$1,GAS_QtrStartRow-1+24,0,3,1)) -> 553.1657828 | DH78: =AVERAGE(OFFSET($DH$1,GAS_QtrStartRow-1+24,0,3,1)) -> 14.24965133 | DI78: =AVERAGE(OFFSET($DI$1,GAS_QtrStartRow-1+24,0,3,1)) -> 14.08268215 | DJ78: =IF(COUNTBLANK(OFFSET($DJ$1,GAS_QtrStartRow-1+24,0,3,1))>0,"",AVERAGE(OFFSET($DJ$1,GAS_QtrStartRow-1+24,0,3,1))) ->  | DK78: =IF(AND(DI78<>"",DJ78<>""),DJ78-DI78,"") -> 
B79: ="Q"&INT((MONTH(EDATE(TODAY(),30))-1)/3)+1 & " " & RIGHT(YEAR(EDATE(TODAY(),30)),4) -> Q2 2018 | G79: =AVERAGE(OFFSET($G$1,CL_QtrStartRow-1+27,0,3,1)) -> 55.27666667 | K79: =AVERAGE(OFFSET($K$1,CL_QtrStartRow-1+27,0,3,1)) -> 54.67666667 | L79: =IF(COUNTBLANK(OFFSET($L$1,CL_QtrStartRow-1+27,0,3,1))>0,"",AVERAGE(OFFSET($L$1,CL_QtrStartRow-1+27,0,3,1))) ->  | P79: =AVERAGE(OFFSET($P$1,CL_QtrStartRow-1+27,0,3,1)) -> 54.92887446 | Q79: =IF(COUNTBLANK(OFFSET($Q$1,CL_QtrStartRow-1+27,0,3,1))>0,"",AVERAGE(OFFSET($Q$1,CL_QtrStartRow-1+27,0,3,1))) ->  | S79: =AVERAGE(OFFSET($S$1,CL_QtrStartRow-1+27,0,3,1)) -> 55.54030303 | T79: Q2 2018 | Y79: =AVERAGE(OFFSET($Y$1,BRN_QtrStartRow-1+27,0,3,1)) -> 60.18333333 | AC79: =AVERAGE(OFFSET($AC$1,BRN_QtrStartRow-1+27,0,3,1)) -> 59.73333333 | AD79: =IF(COUNTBLANK(OFFSET($AD$1,BRN_QtrStartRow-1+27,0,3,1))>0,"",AVERAGE(OFFSET($AD$1,BRN_QtrStartRow-1+27,0,3,1))) ->  | AH79: =AVERAGE(OFFSET($AH$1,BRN_QtrStartRow-1+27,0,3,1)) -> 60.08647343 | AI79: =IF(COUNTBLANK(OFFSET($AI$1,BRN_QtrStartRow-1+27,0,3,1))>0,"",AVERAGE(OFFSET($AI$1,BRN_QtrStartRow-1+27,0,3,1))) ->  | AK79: =AVERAGE(OFFSET($AK$1,BRN_QtrStartRow-1+27,0,3,1)) -> 60.50647343 | AL79: Q2 2018 | AM79: =AVERAGE(OFFSET($AM$1,BRNWTI_QtrStartRow-1+27,0,3,1)) -> -4.906666667 | AN79: =AVERAGE(OFFSET($AN$1,BRNWTI_QtrStartRow-1+27,0,3,1)) -> -4.9661704 | CP79: Q2 2018 | CU79: =AVERAGE(OFFSET($CU$1,GAS_QtrStartRow-1+27,0,3,1)) -> 557.1666667 | CY79: =AVERAGE(OFFSET($CY$1,GAS_QtrStartRow-1+27,0,3,1)) -> 552.4166667 | CZ79: =IF(COUNTBLANK(OFFSET($CZ$1,GAS_QtrStartRow-1+27,0,3,1))>0,"",AVERAGE(OFFSET($CZ$1,GAS_QtrStartRow-1+27,0,3,1))) ->  | DD79: =AVERAGE(OFFSET($DD$1,GAS_QtrStartRow-1+27,0,3,1)) -> 553.4033816 | DE79: =IF(COUNTBLANK(OFFSET($DE$1,GAS_QtrStartRow-1+27,0,3,1))>0,"",AVERAGE(OFFSET($DE$1,GAS_QtrStartRow-1+27,0,3,1))) ->  | DG79: =AVERAGE(OFFSET($DG$1,GAS_QtrStartRow-1+27,0,3,1)) -> 558.1533816 | DH79: =AVERAGE(OFFSET($DH$1,GAS_QtrStartRow-1+27,0,3,1)) -> 14.41344357 | DI79: =AVERAGE(OFFSET($DI$1,GAS_QtrStartRow-1+27,0,3,1)) -> 14.19585968 | DJ79: =IF(COUNTBLANK(OFFSET($DJ$1,GAS_QtrStartRow-1+27,0,3,1))>0,"",AVERAGE(OFFSET($DJ$1,GAS_QtrStartRow-1+27,0,3,1))) -> 
B80: ="Q"&INT((MONTH(EDATE(TODAY(),33))-1)/3)+1 & " " & RIGHT(YEAR(EDATE(TODAY(),33)),4) -> Q3 2018 | G80: =AVERAGE(OFFSET($G$1,CL_QtrStartRow-1+30,0,3,1)) -> 55.845 | K80: =AVERAGE(OFFSET($K$1,CL_QtrStartRow-1+30,0,3,1)) -> 55.23 | L80: =IF(COUNTBLANK(OFFSET($L$1,CL_QtrStartRow-1+30,0,3,1))>0,"",AVERAGE(OFFSET($L$1,CL_QtrStartRow-1+30,0,3,1))) ->  | P80: =AVERAGE(OFFSET($P$1,CL_QtrStartRow-1+30,0,3,1)) -> 55.4809077 | Q80: =IF(COUNTBLANK(OFFSET($Q$1,CL_QtrStartRow-1+30,0,3,1))>0,"",AVERAGE(OFFSET($Q$1,CL_QtrStartRow-1+30,0,3,1))) ->  | S80: =AVERAGE(OFFSET($S$1,CL_QtrStartRow-1+30,0,3,1)) -> 56.0959077 | T80: Q3 2018 | Y80: =AVERAGE(OFFSET($Y$1,BRN_QtrStartRow-1+30,0,3,1)) -> 60.64 | AC80: =AVERAGE(OFFSET($AC$1,BRN_QtrStartRow-1+30,0,3,1)) -> 60.22 | AD80: =IF(COUNTBLANK(OFFSET($AD$1,BRN_QtrStartRow-1+30,0,3,1))>0,"",AVERAGE(OFFSET($AD$1,BRN_QtrStartRow-1+30,0,3,1))) ->  | AH80: =AVERAGE(OFFSET($AH$1,BRN_QtrStartRow-1+30,0,3,1)) -> 60.49602042 | AI80: =IF(COUNTBLANK(OFFSET($AI$1,BRN_QtrStartRow-1+30,0,3,1))>0,"",AVERAGE(OFFSET($AI$1,BRN_QtrStartRow-1+30,0,3,1))) ->  | AK80: =AVERAGE(OFFSET($AK$1,BRN_QtrStartRow-1+30,0,3,1)) -> 60.91602042 | AL80: Q3 2018 | AM80: =AVERAGE(OFFSET($AM$1,BRNWTI_QtrStartRow-1+30,0,3,1)) -> -4.795 | AN80: =AVERAGE(OFFSET($AN$1,BRNWTI_QtrStartRow-1+30,0,3,1)) -> -4.820112718 | CP80: Q3 2018 | CU80: =AVERAGE(OFFSET($CU$1,GAS_QtrStartRow-1+30,0,3,1)) -> 561.25 | CY80: =AVERAGE(OFFSET($CY$1,GAS_QtrStartRow-1+30,0,3,1)) -> 556.5 | CZ80: =IF(COUNTBLANK(OFFSET($CZ$1,GAS_QtrStartRow-1+30,0,3,1))>0,"",AVERAGE(OFFSET($CZ$1,GAS_QtrStartRow-1+30,0,3,1))) ->  | DD80: =AVERAGE(OFFSET($DD$1,GAS_QtrStartRow-1+30,0,3,1)) -> 557.3258399 | DE80: =IF(COUNTBLANK(OFFSET($DE$1,GAS_QtrStartRow-1+30,0,3,1))>0,"",AVERAGE(OFFSET($DE$1,GAS_QtrStartRow-1+30,0,3,1))) ->  | DG80: =AVERAGE(OFFSET($DG$1,GAS_QtrStartRow-1+30,0,3,1)) -> 562.0758399 | DH80: =AVERAGE(OFFSET($DH$1,GAS_QtrStartRow-1+30,0,3,1)) -> 14.53040104 | DI80: =AVERAGE(OFFSET($DI$1,GAS_QtrStartRow-1+30,0,3,1)) -> 14.31281715 | DJ80: =IF(COUNTBLANK(OFFSET($DJ$1,GAS_QtrStartRow-1+30,0,3,1))>0,"",AVERAGE(OFFSET($DJ$1,GAS_QtrStartRow-1+30,0,3,1))) -> 
B81: ="Q"&INT((MONTH(EDATE(TODAY(),36))-1)/3)+1 & " " & RIGHT(YEAR(EDATE(TODAY(),36)),4) -> Q4 2018 | G81: =AVERAGE(OFFSET($G$1,CL_QtrStartRow-1+33,0,3,1)) -> 56.39166667 | K81: =AVERAGE(OFFSET($K$1,CL_QtrStartRow-1+33,0,3,1)) -> 55.81333333 | L81: =IF(COUNTBLANK(OFFSET($L$1,CL_QtrStartRow-1+33,0,3,1))>0,"",AVERAGE(OFFSET($L$1,CL_QtrStartRow-1+33,0,3,1))) ->  | P81: =AVERAGE(OFFSET($P$1,CL_QtrStartRow-1+33,0,3,1)) -> 56.02556625 | Q81: =IF(COUNTBLANK(OFFSET($Q$1,CL_QtrStartRow-1+33,0,3,1))>0,"",AVERAGE(OFFSET($Q$1,CL_QtrStartRow-1+33,0,3,1))) ->  | S81: =AVERAGE(OFFSET($S$1,CL_QtrStartRow-1+33,0,3,1)) -> 56.5560735 | T81: Q4 2018 | Y81: =AVERAGE(OFFSET($Y$1,BRN_QtrStartRow-1+33,0,3,1)) -> 61.04 | AC81: =AVERAGE(OFFSET($AC$1,BRN_QtrStartRow-1+33,0,3,1)) -> 60.62 | AD81: =IF(COUNTBLANK(OFFSET($AD$1,BRN_QtrStartRow-1+33,0,3,1))>0,"",AVERAGE(OFFSET($AD$1,BRN_QtrStartRow-1+33,0,3,1))) ->  | AH81: =AVERAGE(OFFSET($AH$1,BRN_QtrStartRow-1+33,0,3,1)) -> 60.90562846 | AI81: =IF(COUNTBLANK(OFFSET($AI$1,BRN_QtrStartRow-1+33,0,3,1))>0,"",AVERAGE(OFFSET($AI$1,BRN_QtrStartRow-1+33,0,3,1))) ->  | AK81: =AVERAGE(OFFSET($AK$1,BRN_QtrStartRow-1+33,0,3,1)) -> 61.32562846 | AL81: Q4 2018 | AM81: =AVERAGE(OFFSET($AM$1,BRNWTI_QtrStartRow-1+33,0,3,1)) -> -4.648333333 | AN81: =AVERAGE(OFFSET($AN$1,BRNWTI_QtrStartRow-1+33,0,3,1)) -> -4.76955496 | CP81: Q4 2018 | CU81: =AVERAGE(OFFSET($CU$1,GAS_QtrStartRow-1+33,0,3,1)) -> 565 | CY81: =AVERAGE(OFFSET($CY$1,GAS_QtrStartRow-1+33,0,3,1)) -> 560.25 | CZ81: =IF(COUNTBLANK(OFFSET($CZ$1,GAS_QtrStartRow-1+33,0,3,1))>0,"",AVERAGE(OFFSET($CZ$1,GAS_QtrStartRow-1+33,0,3,1))) ->  | DD81: =AVERAGE(OFFSET($DD$1,GAS_QtrStartRow-1+33,0,3,1)) -> 561.13083 | DE81: =IF(COUNTBLANK(OFFSET($DE$1,GAS_QtrStartRow-1+33,0,3,1))>0,"",AVERAGE(OFFSET($DE$1,GAS_QtrStartRow-1+33,0,3,1))) ->  | DG81: =AVERAGE(OFFSET($DG$1,GAS_QtrStartRow-1+33,0,3,1)) -> 565.88083 | DH81: =AVERAGE(OFFSET($DH$1,GAS_QtrStartRow-1+33,0,3,1)) -> 14.63152994 | DI81: =AVERAGE(OFFSET($DI$1,GAS_QtrStartRow-1+33,0,3,1)) -> 14.41394604 | DJ81: =IF(COUNTBLANK(OFFSET($DJ$1,GAS_QtrStartRow-1+33,0,3,1))>0,"",AVERAGE(OFFSET($DJ$1,GAS_QtrStartRow-1+33,0,3,1))) -> 
B82: ="Q"&INT((MONTH(EDATE(TODAY(),39))-1)/3)+1 & " " & RIGHT(YEAR(EDATE(TODAY(),39)),4) -> Q1 2019 | G82: =AVERAGE(OFFSET($G$1,CL_QtrStartRow-1+36,0,3,1)) -> 56.72833333 | K82: =AVERAGE(OFFSET($K$1,CL_QtrStartRow-1+36,0,3,1)) -> 56.22333333 | L82: =IF(COUNTBLANK(OFFSET($L$1,CL_QtrStartRow-1+36,0,3,1))>0,"",AVERAGE(OFFSET($L$1,CL_QtrStartRow-1+36,0,3,1))) ->  | P82: =AVERAGE(OFFSET($P$1,CL_QtrStartRow-1+36,0,3,1)) -> 56.39140351 | Q82: =IF(COUNTBLANK(OFFSET($Q$1,CL_QtrStartRow-1+36,0,3,1))>0,"",AVERAGE(OFFSET($Q$1,CL_QtrStartRow-1+36,0,3,1))) ->  | S82: =AVERAGE(OFFSET($S$1,CL_QtrStartRow-1+36,0,3,1)) -> 56.89640351 | T82: Q1 2019 | Y82: =AVERAGE(OFFSET($Y$1,BRN_QtrStartRow-1+36,0,3,1)) -> 61.46 | AC82: =AVERAGE(OFFSET($AC$1,BRN_QtrStartRow-1+36,0,3,1)) -> 61.04 | AD82: =IF(COUNTBLANK(OFFSET($AD$1,BRN_QtrStartRow-1+36,0,3,1))>0,"",AVERAGE(OFFSET($AD$1,BRN_QtrStartRow-1+36,0,3,1))) ->  | AH82: =AVERAGE(OFFSET($AH$1,BRN_QtrStartRow-1+36,0,3,1)) -> 61.32667677 | AI82: =IF(COUNTBLANK(OFFSET($AI$1,BRN_QtrStartRow-1+36,0,3,1))>0,"",AVERAGE(OFFSET($AI$1,BRN_QtrStartRow-1+36,0,3,1))) ->  | AK82: =AVERAGE(OFFSET($AK$1,BRN_QtrStartRow-1+36,0,3,1)) -> 61.74667677 | AL82: Q1 2019 | AM82: =AVERAGE(OFFSET($AM$1,BRNWTI_QtrStartRow-1+36,0,3,1)) -> -4.731666667 | AN82: =AVERAGE(OFFSET($AN$1,BRNWTI_QtrStartRow-1+36,0,3,1)) -> -4.850273259 | CP82: Q1 2019 | CU82: =AVERAGE(OFFSET($CU$1,GAS_QtrStartRow-1+36,0,3,1)) -> 569.25 | CY82: =AVERAGE(OFFSET($CY$1,GAS_QtrStartRow-1+36,0,3,1)) -> 564.5 | CZ82: =IF(COUNTBLANK(OFFSET($CZ$1,GAS_QtrStartRow-1+36,0,3,1))>0,"",AVERAGE(OFFSET($CZ$1,GAS_QtrStartRow-1+36,0,3,1))) ->  | DD82: =AVERAGE(OFFSET($DD$1,GAS_QtrStartRow-1+36,0,3,1)) -> 565.5219697 | DE82: =IF(COUNTBLANK(OFFSET($DE$1,GAS_QtrStartRow-1+36,0,3,1))>0,"",AVERAGE(OFFSET($DE$1,GAS_QtrStartRow-1+36,0,3,1))) ->  | DG82: =AVERAGE(OFFSET($DG$1,GAS_QtrStartRow-1+36,0,3,1)) -> 570.2719697 | DH82: =AVERAGE(OFFSET($DH$1,GAS_QtrStartRow-1+36,0,3,1)) -> 14.79989635 | DI82: =AVERAGE(OFFSET($DI$1,GAS_QtrStartRow-1+36,0,3,1)) -> 14.58231245 | DJ82: =IF(COUNTBLANK(OFFSET($DJ$1,GAS_QtrStartRow-1+36,0,3,1))>0,"",AVERAGE(OFFSET($DJ$1,GAS_QtrStartRow-1+36,0,3,1))) -> 
B84: ="CAL " & RIGHT(YEAR(TODAY())+1,2) -> CAL 16 | G84: =AVERAGE(OFFSET($G$1,CL_FirstMoNextYrRow-1,0,12,1)) -> 49.54916667 | K84: =AVERAGE(OFFSET($K$1,CL_FirstMoNextYrRow-1,0,12,1)) -> 48.7025 | L84: =IF(COUNTBLANK(OFFSET($L$1,CL_FirstMoNextYrRow-1,0,12,1))>0,"",AVERAGE(OFFSET($L$1,CL_FirstMoNextYrRow-1,0,12,1))) ->  | P84: =AVERAGE(OFFSET($P$1,CL_FirstMoNextYrRow-1,0,12,1)) -> 49.2267809 | Q84: =IF(COUNTBLANK(OFFSET($Q$1,CL_FirstMoNextYrRow-1,0,12,1))>0,"",AVERAGE(OFFSET($Q$1,CL_FirstMoNextYrRow-1,0,12,1))) ->  | S84: =AVERAGE(OFFSET($S$1,CL_FirstMoNextYrRow-1,0,12,1)) -> 50.05348908 | T84: CAL 16 | Y84: =AVERAGE(OFFSET($Y$1,BRN_FirstMoNextYrRow-1,0,12,1)) -> 53.41791667 | AC84: =AVERAGE(OFFSET($AC$1,BRN_FirstMoNextYrRow-1,0,12,1)) -> 52.765 | AD84: =IF(COUNTBLANK(OFFSET($AD$1,BRN_FirstMoNextYrRow-1,0,12,1))>0,"",AVERAGE(OFFSET($AD$1,BRN_FirstMoNextYrRow-1,0,12,1))) ->  | AH84: =AVERAGE(OFFSET($AH$1,BRN_FirstMoNextYrRow-1,0,12,1)) -> 53.72306221 | AI84: =IF(COUNTBLANK(OFFSET($AI$1,BRN_FirstMoNextYrRow-1,0,12,1))>0,"",AVERAGE(OFFSET($AI$1,BRN_FirstMoNextYrRow-1,0,12,1))) ->  | AK84: =AVERAGE(OFFSET($AK$1,BRN_FirstMoNextYrRow-1,0,12,1)) -> 54.36496122 | AL84: CAL 16 | AM84: =AVERAGE(OFFSET($AM$1,BRNWTI_FirstMoNextYrRow-1,0,12,1)) -> -3.86875 | AN84: =AVERAGE(OFFSET($AN$1,BRNWTI_FirstMoNextYrRow-1,0,12,1)) -> -4.311472139 | AO84: CAL 16 | AT84: =IF(COUNTBLANK(OFFSET($AT$1,RBOB_FirstMoNextYrRow-1,0,12,1))>0,"",AVERAGE(OFFSET($AT$1,RBOB_FirstMoNextYrRow-1,0,12,1))) -> 1.506495833 | AX84: =IF(COUNTBLANK(OFFSET($AX$1,RBOB_FirstMoNextYrRow-1,0,12,1))>0,"",AVERAGE(OFFSET($AX$1,RBOB_FirstMoNextYrRow-1,0,12,1))) -> 1.484533333 | AY84: =IF(COUNTBLANK(OFFSET($AY$1,RBOB_FirstMoNextYrRow-1,0,12,1))>0,"",AVERAGE(OFFSET($AY$1,RBOB_FirstMoNextYrRow-1,0,12,1))) ->  | BB84: =IF(COUNTBLANK(OFFSET($BB$1,RBOB_FirstMoNextYrRow-1,0,12,1))>0,"",AVERAGE(OFFSET($BB$1,RBOB_FirstMoNextYrRow-1,0,12,1))) -> 1.4891 | BC84: =IF(COUNTBLANK(OFFSET($BC$1,RBOB_FirstMoNextYrRow-1,0,12,1))>0,"",AVERAGE(OFFSET($BC$1,RBOB_FirstMoNextYrRow-1,0,12,1))) ->  | BE84: =IF(COUNTBLANK(OFFSET($BE$1,RBOB_FirstMoNextYrRow-1,0,12,1))>0,"",AVERAGE(OFFSET($BE$1,RBOB_FirstMoNextYrRow-1,0,12,1))) -> 1.509779167 | BF84: =IF(COUNTBLANK(OFFSET($BF$1,RBOB_FirstMoNextYrRow-1,0,12,1))>0,"",AVERAGE(OFFSET($BF$1,RBOB_FirstMoNextYrRow-1,0,12,1))) -> 13.35723592 | BG84: =IF(COUNTBLANK(OFFSET($BG$1,RBOB_FirstMoNextYrRow-1,0,12,1))>0,"",AVERAGE(OFFSET($BG$1,RBOB_FirstMoNextYrRow-1,0,12,1))) -> 13.3154191 | BH84: =IF(COUNTBLANK(OFFSET($BH$1,RBOB_FirstMoNextYrRow-1,0,12,1))>0,"",AVERAGE(OFFSET($BH$1,RBOB_FirstMoNextYrRow-1,0,12,1))) ->  | BJ84: =IF(COUNTBLANK(OFFSET($BJ$1,RBOB_FirstMoNextYrRow-1,0,12,1))>0,"",AVERAGE(OFFSET($BJ$1,RBOB_FirstMoNextYrRow-1,0,12,1))) -> 9.045763785 | BK84: =IF(COUNTBLANK(OFFSET($BK$1,RBOB_FirstMoNextYrRow-1,0,12,1))>0,"",AVERAGE(OFFSET($BK$1,RBOB_FirstMoNextYrRow-1,0,12,1))) -> 8.819137786 | BL84: =IF(COUNTBLANK(OFFSET($BL$1,RBOB_FirstMoNextYrRow-1,0,12,1))>0,"",AVERAGE(OFFSET($BL$1,RBOB_FirstMoNextYrRow-1,0,12,1))) ->  | BN84: CAL 16 | BS84: =IF(COUNTBLANK(OFFSET($BS$1,HO_FirstMoNextYrRow-1,0,12,1))>0,"",AVERAGE(OFFSET($BS$1,HO_FirstMoNextYrRow-1,0,12,1))) -> 1.641333333 | BW84: =IF(COUNTBLANK(OFFSET($BW$1,HO_FirstMoNextYrRow-1,0,12,1))>0,"",AVERAGE(OFFSET($BW$1,HO_FirstMoNextYrRow-1,0,12,1))) -> 1.620283333 | BX84: =IF(COUNTBLANK(OFFSET($BX$1,HO_FirstMoNextYrRow-1,0,12,1))>0,"",AVERAGE(OFFSET($BX$1,HO_FirstMoNextYrRow-1,0,12,1))) ->  | CA84: =IF(COUNTBLANK(OFFSET($CA$1,HO_FirstMoNextYrRow-1,0,12,1))>0,"",AVERAGE(OFFSET($CA$1,HO_FirstMoNextYrRow-1,0,12,1))) -> 1.630925 | CB84: =IF(COUNTBLANK(OFFSET($CB$1,HO_FirstMoNextYrRow-1,0,12,1))>0,"",AVERAGE(OFFSET($CB$1,HO_FirstMoNextYrRow-1,0,12,1))) ->  | CD84: =IF(COUNTBLANK(OFFSET($CD$1,HO_FirstMoNextYrRow-1,0,12,1))>0,"",AVERAGE(OFFSET($CD$1,HO_FirstMoNextYrRow-1,0,12,1))) -> 1.651583333 | CE84: =IF(COUNTBLANK(OFFSET($CE$1,HO_FirstMoNextYrRow-1,0,12,1))>0,"",AVERAGE(OFFSET($CE$1,HO_FirstMoNextYrRow-1,0,12,1))) -> 19.31301092 | CF84: =IF(COUNTBLANK(OFFSET($CF$1,HO_FirstMoNextYrRow-1,0,12,1))>0,"",AVERAGE(OFFSET($CF$1,HO_FirstMoNextYrRow-1,0,12,1))) -> 19.2720691 | CG84: =IF(COUNTBLANK(OFFSET($CG$1,HO_FirstMoNextYrRow-1,0,12,1))>0,"",AVERAGE(OFFSET($CG$1,HO_FirstMoNextYrRow-1,0,12,1))) ->  | CI84: =IF(COUNTBLANK(OFFSET($CI$1,HO_FirstMoNextYrRow-1,0,12,1))>0,"",AVERAGE(OFFSET($CI$1,HO_FirstMoNextYrRow-1,0,12,1))) -> 15.00153878 | CJ84: =IF(COUNTBLANK(OFFSET($CJ$1,HO_FirstMoNextYrRow-1,0,12,1))>0,"",AVERAGE(OFFSET($CJ$1,HO_FirstMoNextYrRow-1,0,12,1))) -> 14.77578779 | CK84: =IF(COUNTBLANK(OFFSET($CK$1,HO_FirstMoNextYrRow-1,0,12,1))>0,"",AVERAGE(OFFSET($CK$1,HO_FirstMoNextYrRow-1,0,12,1))) ->  | CM84: CAL 16 | CN84: =IF(COUNTBLANK(OFFSET($CN$1,RBOBHO_FirstMoNextYrRow-1,0,12,1))>0,"",AVERAGE(OFFSET($CN$1,RBOBHO_FirstMoNextYrRow-1,0,12,1))) -> -0.1348375 | CO84: =IF(COUNTBLANK(OFFSET($CO$1,RBOBHO_FirstMoNextYrRow-1,0,12,1))>0,"",AVERAGE(OFFSET($CO$1,RBOBHO_FirstMoNextYrRow-1,0,12,1))) -> -0.1418041667 | CP84: CAL 16 | CU84: =AVERAGE(OFFSET($CU$1,GAS_FirstMoNextYrRow-1,0,12,1)) -> 499.9583333 | CY84: =AVERAGE(OFFSET($CY$1,GAS_FirstMoNextYrRow-1,0,12,1)) -> 492.9791667 | CZ84: =IF(COUNTBLANK(OFFSET($CZ$1,GAS_FirstMoNextYrRow-1,0,12,1))>0,"",AVERAGE(OFFSET($CZ$1,GAS_FirstMoNextYrRow-1,0,12,1))) ->  | DD84: =AVERAGE(OFFSET($DD$1,GAS_FirstMoNextYrRow-1,0,12,1)) -> 495.3301301 | DE84: =IF(COUNTBLANK(OFFSET($DE$1,GAS_FirstMoNextYrRow-1,0,12,1))>0,"",AVERAGE(OFFSET($DE$1,GAS_FirstMoNextYrRow-1,0,12,1))) ->  | DG84: =AVERAGE(OFFSET($DG$1,GAS_FirstMoNextYrRow-1,0,12,1)) -> 502.21269 | DH84: =AVERAGE(OFFSET($DH$1,GAS_FirstMoNextYrRow-1,0,12,1)) -> 13.04613811 | DI84: =AVERAGE(OFFSET($DI$1,GAS_FirstMoNextYrRow-1,0,12,1)) -> 12.76420357 | DJ84: =IF(COUNTBLANK(OFFSET($DJ$1,GAS_FirstMoNextYrRow-1,0,12,1))>0,"",AVERAGE(OFFSET($DJ$1,GAS_FirstMoNextYrRow-1,0,12,1))) ->  | DL84: CAL 16 | DM84: =IF(COUNTBLANK(OFFSET($DM$1,HOGO_FirstMoNextYrRow-1,0,12,1))>0,"",AVERAGE(OFFSET($DM$1,HOGO_FirstMoNextYrRow-1,0,12,1))) -> 0.04351187813 | DN84: =IF(COUNTBLANK(OFFSET($DN$1,HOGO_FirstMoNextYrRow-1,0,12,1))>0,"",AVERAGE(OFFSET($DN$1,HOGO_FirstMoNextYrRow-1,0,12,1))) -> 0.04655715889
B85: ="CAL " & RIGHT(YEAR(TODAY())+2,2) -> CAL 17 | G85: =AVERAGE(OFFSET($G$1,CL_FirstMoNextYrRow-1+12,0,12,1)) -> 53.10791667 | K85: =AVERAGE(OFFSET($K$1,CL_FirstMoNextYrRow-1+12,0,12,1)) -> 52.41666667 | L85: =IF(COUNTBLANK(OFFSET($L$1,CL_FirstMoNextYrRow-1+12,0,12,1))>0,"",AVERAGE(OFFSET($L$1,CL_FirstMoNextYrRow-1+12,0,12,1))) ->  | P85: =AVERAGE(OFFSET($P$1,CL_FirstMoNextYrRow-1+12,0,12,1)) -> 52.73793817 | Q85: =IF(COUNTBLANK(OFFSET($Q$1,CL_FirstMoNextYrRow-1+12,0,12,1))>0,"",AVERAGE(OFFSET($Q$1,CL_FirstMoNextYrRow-1+12,0,12,1))) ->  | S85: =AVERAGE(OFFSET($S$1,CL_FirstMoNextYrRow-1+12,0,12,1)) -> 53.41321035 | T85: CAL 17 | Y85: =AVERAGE(OFFSET($Y$1,BRN_FirstMoNextYrRow-1+12,0,12,1)) -> 57.85041667 | AC85: =AVERAGE(OFFSET($AC$1,BRN_FirstMoNextYrRow-1+12,0,12,1)) -> 57.29333333 | AD85: =IF(COUNTBLANK(OFFSET($AD$1,BRN_FirstMoNextYrRow-1+12,0,12,1))>0,"",AVERAGE(OFFSET($AD$1,BRN_FirstMoNextYrRow-1+12,0,12,1))) ->  | AH85: =AVERAGE(OFFSET($AH$1,BRN_FirstMoNextYrRow-1+12,0,12,1)) -> 57.84165664 | AI85: =IF(COUNTBLANK(OFFSET($AI$1,BRN_FirstMoNextYrRow-1+12,0,12,1))>0,"",AVERAGE(OFFSET($AI$1,BRN_FirstMoNextYrRow-1+12,0,12,1))) ->  | AK85: =AVERAGE(OFFSET($AK$1,BRN_FirstMoNextYrRow-1+12,0,12,1)) -> 58.37792385 | AL85: CAL 17 | AM85: =AVERAGE(OFFSET($AM$1,BRNWTI_FirstMoNextYrRow-1+12,0,12,1)) -> -4.7425 | AN85: =AVERAGE(OFFSET($AN$1,BRNWTI_FirstMoNextYrRow-1+12,0,12,1)) -> -4.964713499 | AO85: CAL 17 | AT85: =IF(COUNTBLANK(OFFSET($AT$1,RBOB_FirstMoNextYrRow-1+12,0,12,1))>0,"",AVERAGE(OFFSET($AT$1,RBOB_FirstMoNextYrRow-1+12,0,12,1))) -> 1.557745833 | AX85: =IF(COUNTBLANK(OFFSET($AX$1,RBOB_FirstMoNextYrRow-1+12,0,12,1))>0,"",AVERAGE(OFFSET($AX$1,RBOB_FirstMoNextYrRow-1+12,0,12,1))) -> 1.546533333 | AY85: =IF(COUNTBLANK(OFFSET($AY$1,RBOB_FirstMoNextYrRow-1+12,0,12,1))>0,"",AVERAGE(OFFSET($AY$1,RBOB_FirstMoNextYrRow-1+12,0,12,1))) ->  | BB85: =IF(COUNTBLANK(OFFSET($BB$1,RBOB_FirstMoNextYrRow-1+12,0,12,1))>0,"",AVERAGE(OFFSET($BB$1,RBOB_FirstMoNextYrRow-1+12,0,12,1))) -> 1.552375 | BC85: =IF(COUNTBLANK(OFFSET($BC$1,RBOB_FirstMoNextYrRow-1+12,0,12,1))>0,"",AVERAGE(OFFSET($BC$1,RBOB_FirstMoNextYrRow-1+12,0,12,1))) ->  | BE85: =IF(COUNTBLANK(OFFSET($BE$1,RBOB_FirstMoNextYrRow-1+12,0,12,1))>0,"",AVERAGE(OFFSET($BE$1,RBOB_FirstMoNextYrRow-1+12,0,12,1))) -> 1.563533333 | BF85: =IF(COUNTBLANK(OFFSET($BF$1,RBOB_FirstMoNextYrRow-1+12,0,12,1))>0,"",AVERAGE(OFFSET($BF$1,RBOB_FirstMoNextYrRow-1+12,0,12,1))) -> 12.25518965 | BG85: =IF(COUNTBLANK(OFFSET($BG$1,RBOB_FirstMoNextYrRow-1+12,0,12,1))>0,"",AVERAGE(OFFSET($BG$1,RBOB_FirstMoNextYrRow-1+12,0,12,1))) -> 12.46181183 | BH85: =IF(COUNTBLANK(OFFSET($BH$1,RBOB_FirstMoNextYrRow-1+12,0,12,1))>0,"",AVERAGE(OFFSET($BH$1,RBOB_FirstMoNextYrRow-1+12,0,12,1))) ->  | BJ85: =IF(COUNTBLANK(OFFSET($BJ$1,RBOB_FirstMoNextYrRow-1+12,0,12,1))>0,"",AVERAGE(OFFSET($BJ$1,RBOB_FirstMoNextYrRow-1+12,0,12,1))) -> 7.290476154 | BK85: =IF(COUNTBLANK(OFFSET($BK$1,RBOB_FirstMoNextYrRow-1+12,0,12,1))>0,"",AVERAGE(OFFSET($BK$1,RBOB_FirstMoNextYrRow-1+12,0,12,1))) -> 7.358093358 | BL85: =IF(COUNTBLANK(OFFSET($BL$1,RBOB_FirstMoNextYrRow-1+12,0,12,1))>0,"",AVERAGE(OFFSET($BL$1,RBOB_FirstMoNextYrRow-1+12,0,12,1))) ->  | BN85: CAL 17 | BS85: =IF(COUNTBLANK(OFFSET($BS$1,HO_FirstMoNextYrRow-1+12,0,12,1))>0,"",AVERAGE(OFFSET($BS$1,HO_FirstMoNextYrRow-1+12,0,12,1))) -> 1.746029167 | BW85: =IF(COUNTBLANK(OFFSET($BW$1,HO_FirstMoNextYrRow-1+12,0,12,1))>0,"",AVERAGE(OFFSET($BW$1,HO_FirstMoNextYrRow-1+12,0,12,1))) -> 1.731108333 | BX85: =IF(COUNTBLANK(OFFSET($BX$1,HO_FirstMoNextYrRow-1+12,0,12,1))>0,"",AVERAGE(OFFSET($BX$1,HO_FirstMoNextYrRow-1+12,0,12,1))) ->  | CA85: =IF(COUNTBLANK(OFFSET($CA$1,HO_FirstMoNextYrRow-1+12,0,12,1))>0,"",AVERAGE(OFFSET($CA$1,HO_FirstMoNextYrRow-1+12,0,12,1))) -> 1.738233333 | CB85: =IF(COUNTBLANK(OFFSET($CB$1,HO_FirstMoNextYrRow-1+12,0,12,1))>0,"",AVERAGE(OFFSET($CB$1,HO_FirstMoNextYrRow-1+12,0,12,1))) ->  | CD85: =IF(COUNTBLANK(OFFSET($CD$1,HO_FirstMoNextYrRow-1+12,0,12,1))>0,"",AVERAGE(OFFSET($CD$1,HO_FirstMoNextYrRow-1+12,0,12,1))) -> 1.752270833 | CE85: =IF(COUNTBLANK(OFFSET($CE$1,HO_FirstMoNextYrRow-1+12,0,12,1))>0,"",AVERAGE(OFFSET($CE$1,HO_FirstMoNextYrRow-1+12,0,12,1))) -> 20.18216465 | CF85: =IF(COUNTBLANK(OFFSET($CF$1,HO_FirstMoNextYrRow-1+12,0,12,1))>0,"",AVERAGE(OFFSET($CF$1,HO_FirstMoNextYrRow-1+12,0,12,1))) -> 20.26786183 | CG85: =IF(COUNTBLANK(OFFSET($CG$1,HO_FirstMoNextYrRow-1+12,0,12,1))>0,"",AVERAGE(OFFSET($CG$1,HO_FirstMoNextYrRow-1+12,0,12,1))) ->  | CI85: =IF(COUNTBLANK(OFFSET($CI$1,HO_FirstMoNextYrRow-1+12,0,12,1))>0,"",AVERAGE(OFFSET($CI$1,HO_FirstMoNextYrRow-1+12,0,12,1))) -> 15.21745115 | CJ85: =IF(COUNTBLANK(OFFSET($CJ$1,HO_FirstMoNextYrRow-1+12,0,12,1))>0,"",AVERAGE(OFFSET($CJ$1,HO_FirstMoNextYrRow-1+12,0,12,1))) -> 15.16414336 | CK85: =IF(COUNTBLANK(OFFSET($CK$1,HO_FirstMoNextYrRow-1+12,0,12,1))>0,"",AVERAGE(OFFSET($CK$1,HO_FirstMoNextYrRow-1+12,0,12,1))) ->  | CM85: CAL 17 | CN85: =IF(COUNTBLANK(OFFSET($CN$1,RBOBHO_FirstMoNextYrRow-1+12,0,12,1))>0,"",AVERAGE(OFFSET($CN$1,RBOBHO_FirstMoNextYrRow-1+12,0,12,1))) -> -0.1882833333 | CO85: =IF(COUNTBLANK(OFFSET($CO$1,RBOBHO_FirstMoNextYrRow-1+12,0,12,1))>0,"",AVERAGE(OFFSET($CO$1,RBOBHO_FirstMoNextYrRow-1+12,0,12,1))) -> -0.1887375 | CP85: CAL 17 | CU85: =AVERAGE(OFFSET($CU$1,GAS_FirstMoNextYrRow-1+12,0,12,1)) -> 535.3958333 | CY85: =AVERAGE(OFFSET($CY$1,GAS_FirstMoNextYrRow-1+12,0,12,1)) -> 530.0833333 | CZ85: =IF(COUNTBLANK(OFFSET($CZ$1,GAS_FirstMoNextYrRow-1+12,0,12,1))>0,"",AVERAGE(OFFSET($CZ$1,GAS_FirstMoNextYrRow-1+12,0,12,1))) ->  | DD85: =AVERAGE(OFFSET($DD$1,GAS_FirstMoNextYrRow-1+12,0,12,1)) -> 531.7542193 | DE85: =IF(COUNTBLANK(OFFSET($DE$1,GAS_FirstMoNextYrRow-1+12,0,12,1))>0,"",AVERAGE(OFFSET($DE$1,GAS_FirstMoNextYrRow-1+12,0,12,1))) ->  | DG85: =AVERAGE(OFFSET($DG$1,GAS_FirstMoNextYrRow-1+12,0,12,1)) -> 536.9887985 | DH85: =AVERAGE(OFFSET($DH$1,GAS_FirstMoNextYrRow-1+12,0,12,1)) -> 13.70110951 | DI85: =AVERAGE(OFFSET($DI$1,GAS_FirstMoNextYrRow-1+12,0,12,1)) -> 13.53474863 | DJ85: =IF(COUNTBLANK(OFFSET($DJ$1,GAS_FirstMoNextYrRow-1+12,0,12,1))>0,"",AVERAGE(OFFSET($DJ$1,GAS_FirstMoNextYrRow-1+12,0,12,1))) ->  | DL85: CAL 17 | DM85: =IF(COUNTBLANK(OFFSET($DM$1,HOGO_FirstMoNextYrRow-1+12,0,12,1))>0,"",AVERAGE(OFFSET($DM$1,HOGO_FirstMoNextYrRow-1+12,0,12,1))) -> 0.03495267791 | DN85: =IF(COUNTBLANK(OFFSET($DN$1,HOGO_FirstMoNextYrRow-1+12,0,12,1))>0,"",AVERAGE(OFFSET($DN$1,HOGO_FirstMoNextYrRow-1+12,0,12,1))) -> 0.03610337252
B86: ="CAL " & RIGHT(YEAR(TODAY())+3,2) -> CAL 18 | G86: =AVERAGE(OFFSET($G$1,CL_FirstMoNextYrRow-1+24,0,12,1)) -> 55.555 | K86: =AVERAGE(OFFSET($K$1,CL_FirstMoNextYrRow-1+24,0,12,1)) -> 54.95416667 | L86: =IF(COUNTBLANK(OFFSET($L$1,CL_FirstMoNextYrRow-1+24,0,12,1))>0,"",AVERAGE(OFFSET($L$1,CL_FirstMoNextYrRow-1+24,0,12,1))) ->  | P86: =AVERAGE(OFFSET($P$1,CL_FirstMoNextYrRow-1+24,0,12,1)) -> 55.19215582 | Q86: =IF(COUNTBLANK(OFFSET($Q$1,CL_FirstMoNextYrRow-1+24,0,12,1))>0,"",AVERAGE(OFFSET($Q$1,CL_FirstMoNextYrRow-1+24,0,12,1))) ->  | R86: =IF(AND(P86<>"",Q86<>""),Q86-P86,"") ->  | S86: =AVERAGE(OFFSET($S$1,CL_FirstMoNextYrRow-1+24,0,12,1)) -> 55.78071726 | T86: CAL 18 | Y86: =AVERAGE(OFFSET($Y$1,BRN_FirstMoNextYrRow-1+24,0,12,1)) -> 60.36041667 | AC86: =AVERAGE(OFFSET($AC$1,BRN_FirstMoNextYrRow-1+24,0,12,1)) -> 59.91583333 | AD86: =IF(COUNTBLANK(OFFSET($AD$1,BRN_FirstMoNextYrRow-1+24,0,12,1))>0,"",AVERAGE(OFFSET($AD$1,BRN_FirstMoNextYrRow-1+24,0,12,1))) ->  | AH86: =AVERAGE(OFFSET($AH$1,BRN_FirstMoNextYrRow-1+24,0,12,1)) -> 60.25457423 | AI86: =IF(COUNTBLANK(OFFSET($AI$1,BRN_FirstMoNextYrRow-1+24,0,12,1))>0,"",AVERAGE(OFFSET($AI$1,BRN_FirstMoNextYrRow-1+24,0,12,1))) ->  | AK86: =AVERAGE(OFFSET($AK$1,BRN_FirstMoNextYrRow-1+24,0,12,1)) -> 60.68722791 | AL86: CAL 18 | AM86: =AVERAGE(OFFSET($AM$1,BRNWTI_FirstMoNextYrRow-1+24,0,12,1)) -> -4.805416667 | AN86: =AVERAGE(OFFSET($AN$1,BRNWTI_FirstMoNextYrRow-1+24,0,12,1)) -> -4.906510651 | AO86: CAL 18 | AT86: =IF(COUNTBLANK(OFFSET($AT$1,RBOB_FirstMoNextYrRow-1+24,0,12,1))>0,"",AVERAGE(OFFSET($AT$1,RBOB_FirstMoNextYrRow-1+24,0,12,1))) ->  | AX86: =IF(COUNTBLANK(OFFSET($AX$1,RBOB_FirstMoNextYrRow-1+24,0,12,1))>0,"",AVERAGE(OFFSET($AX$1,RBOB_FirstMoNextYrRow-1+24,0,12,1))) ->  | AY86: =IF(COUNTBLANK(OFFSET($AY$1,RBOB_FirstMoNextYrRow-1+24,0,12,1))>0,"",AVERAGE(OFFSET($AY$1,RBOB_FirstMoNextYrRow-1+24,0,12,1))) ->  | BB86: =IF(COUNTBLANK(OFFSET($BB$1,RBOB_FirstMoNextYrRow-1+24,0,12,1))>0,"",AVERAGE(OFFSET($BB$1,RBOB_FirstMoNextYrRow-1+24,0,12,1))) ->  | BC86: =IF(COUNTBLANK(OFFSET($BC$1,RBOB_FirstMoNextYrRow-1+24,0,12,1))>0,"",AVERAGE(OFFSET($BC$1,RBOB_FirstMoNextYrRow-1+24,0,12,1))) ->  | BE86: =IF(COUNTBLANK(OFFSET($BE$1,RBOB_FirstMoNextYrRow-1+24,0,12,1))>0,"",AVERAGE(OFFSET($BE$1,RBOB_FirstMoNextYrRow-1+24,0,12,1))) ->  | BF86: =IF(COUNTBLANK(OFFSET($BF$1,RBOB_FirstMoNextYrRow-1+24,0,12,1))>0,"",AVERAGE(OFFSET($BF$1,RBOB_FirstMoNextYrRow-1+24,0,12,1))) ->  | BG86: =IF(COUNTBLANK(OFFSET($BG$1,RBOB_FirstMoNextYrRow-1+24,0,12,1))>0,"",AVERAGE(OFFSET($BG$1,RBOB_FirstMoNextYrRow-1+24,0,12,1))) ->  | BH86: =IF(COUNTBLANK(OFFSET($BH$1,RBOB_FirstMoNextYrRow-1+24,0,12,1))>0,"",AVERAGE(OFFSET($BH$1,RBOB_FirstMoNextYrRow-1+24,0,12,1))) ->  | BJ86: =IF(COUNTBLANK(OFFSET($BJ$1,RBOB_FirstMoNextYrRow-1+24,0,12,1))>0,"",AVERAGE(OFFSET($BJ$1,RBOB_FirstMoNextYrRow-1+24,0,12,1))) ->  | BK86: =IF(COUNTBLANK(OFFSET($BK$1,RBOB_FirstMoNextYrRow-1+24,0,12,1))>0,"",AVERAGE(OFFSET($BK$1,RBOB_FirstMoNextYrRow-1+24,0,12,1))) ->  | BL86: =IF(COUNTBLANK(OFFSET($BL$1,RBOB_FirstMoNextYrRow-1+24,0,12,1))>0,"",AVERAGE(OFFSET($BL$1,RBOB_FirstMoNextYrRow-1+24,0,12,1))) ->  | BN86: CAL 18 | BS86: =IF(COUNTBLANK(OFFSET($BS$1,HO_FirstMoNextYrRow-1+24,0,12,1))>0,"",AVERAGE(OFFSET($BS$1,HO_FirstMoNextYrRow-1+24,0,12,1))) ->  | BW86: =IF(COUNTBLANK(OFFSET($BW$1,HO_FirstMoNextYrRow-1+24,0,12,1))>0,"",AVERAGE(OFFSET($BW$1,HO_FirstMoNextYrRow-1+24,0,12,1))) ->  | BX86: =IF(COUNTBLANK(OFFSET($BX$1,HO_FirstMoNextYrRow-1+24,0,12,1))>0,"",AVERAGE(OFFSET($BX$1,HO_FirstMoNextYrRow-1+24,0,12,1))) ->  | CA86: =IF(COUNTBLANK(OFFSET($CA$1,HO_FirstMoNextYrRow-1+24,0,12,1))>0,"",AVERAGE(OFFSET($CA$1,HO_FirstMoNextYrRow-1+24,0,12,1))) ->  | CB86: =IF(COUNTBLANK(OFFSET($CB$1,HO_FirstMoNextYrRow-1+24,0,12,1))>0,"",AVERAGE(OFFSET($CB$1,HO_FirstMoNextYrRow-1+24,0,12,1))) ->  | CD86: =IF(COUNTBLANK(OFFSET($CD$1,HO_FirstMoNextYrRow-1+24,0,12,1))>0,"",AVERAGE(OFFSET($CD$1,HO_FirstMoNextYrRow-1+24,0,12,1))) ->  | CE86: =IF(COUNTBLANK(OFFSET($CE$1,HO_FirstMoNextYrRow-1+24,0,12,1))>0,"",AVERAGE(OFFSET($CE$1,HO_FirstMoNextYrRow-1+24,0,12,1))) ->  | CF86: =IF(COUNTBLANK(OFFSET($CF$1,HO_FirstMoNextYrRow-1+24,0,12,1))>0,"",AVERAGE(OFFSET($CF$1,HO_FirstMoNextYrRow-1+24,0,12,1))) ->  | CG86: =IF(COUNTBLANK(OFFSET($CG$1,HO_FirstMoNextYrRow-1+24,0,12,1))>0,"",AVERAGE(OFFSET($CG$1,HO_FirstMoNextYrRow-1+24,0,12,1))) ->  | CI86: =IF(COUNTBLANK(OFFSET($CI$1,HO_FirstMoNextYrRow-1+24,0,12,1))>0,"",AVERAGE(OFFSET($CI$1,HO_FirstMoNextYrRow-1+24,0,12,1))) ->  | CJ86: =IF(COUNTBLANK(OFFSET($CJ$1,HO_FirstMoNextYrRow-1+24,0,12,1))>0,"",AVERAGE(OFFSET($CJ$1,HO_FirstMoNextYrRow-1+24,0,12,1))) ->  | CK86: =IF(COUNTBLANK(OFFSET($CK$1,HO_FirstMoNextYrRow-1+24,0,12,1))>0,"",AVERAGE(OFFSET($CK$1,HO_FirstMoNextYrRow-1+24,0,12,1))) ->  | CM86: CAL 18 | CN86: =IF(COUNTBLANK(OFFSET($CN$1,RBOBHO_FirstMoNextYrRow-1+24,0,12,1))>0,"",AVERAGE(OFFSET($CN$1,RBOBHO_FirstMoNextYrRow-1+24,0,12,1))) ->  | CO86: =IF(COUNTBLANK(OFFSET($CO$1,RBOBHO_FirstMoNextYrRow-1+24,0,12,1))>0,"",AVERAGE(OFFSET($CO$1,RBOBHO_FirstMoNextYrRow-1+24,0,12,1))) ->  | CP86: CAL 18 | CU86: =AVERAGE(OFFSET($CU$1,GAS_FirstMoNextYrRow-1+24,0,12,1)) -> 558.8541667 | CY86: =AVERAGE(OFFSET($CY$1,GAS_FirstMoNextYrRow-1+24,0,12,1)) -> 554.1041667 | CZ86: =IF(COUNTBLANK(OFFSET($CZ$1,GAS_FirstMoNextYrRow-1+24,0,12,1))>0,"",AVERAGE(OFFSET($CZ$1,GAS_FirstMoNextYrRow-1+24,0,12,1))) ->  | DD86: =AVERAGE(OFFSET($DD$1,GAS_FirstMoNextYrRow-1+24,0,12,1)) -> 555.0689586 | DE86: =IF(COUNTBLANK(OFFSET($DE$1,GAS_FirstMoNextYrRow-1+24,0,12,1))>0,"",AVERAGE(OFFSET($DE$1,GAS_FirstMoNextYrRow-1+24,0,12,1))) ->  | DG86: =AVERAGE(OFFSET($DG$1,GAS_FirstMoNextYrRow-1+24,0,12,1)) -> 559.8189586 | DH86: =AVERAGE(OFFSET($DH$1,GAS_FirstMoNextYrRow-1+24,0,12,1)) -> 14.45625647 | DI86: =AVERAGE(OFFSET($DI$1,GAS_FirstMoNextYrRow-1+24,0,12,1)) -> 14.25132626 | DJ86: =IF(COUNTBLANK(OFFSET($DJ$1,GAS_FirstMoNextYrRow-1+24,0,12,1))>0,"",AVERAGE(OFFSET($DJ$1,GAS_FirstMoNextYrRow-1+24,0,12,1))) ->  | DL86: CAL 18 | DM86: =IF(COUNTBLANK(OFFSET($DM$1,HOGO_FirstMoNextYrRow-1+24,0,12,1))>0,"",AVERAGE(OFFSET($DM$1,HOGO_FirstMoNextYrRow-1+24,0,12,1))) ->  | DN86: =IF(COUNTBLANK(OFFSET($DN$1,HOGO_FirstMoNextYrRow-1+24,0,12,1))>0,"",AVERAGE(OFFSET($DN$1,HOGO_FirstMoNextYrRow-1+24,0,12,1))) -> 
B87: ="CAL " & RIGHT(YEAR(TODAY())+4,2) -> CAL 19 | G87: =AVERAGE(OFFSET($G$1,CL_FirstMoNextYrRow-1+36,0,12,1)) -> 57.31166667 | K87: =AVERAGE(OFFSET($K$1,CL_FirstMoNextYrRow-1+36,0,12,1)) -> 56.80666667 | L87: =IF(COUNTBLANK(OFFSET($L$1,CL_FirstMoNextYrRow-1+36,0,12,1))>0,"",AVERAGE(OFFSET($L$1,CL_FirstMoNextYrRow-1+36,0,12,1))) ->  | M87: =IF(AND(K87<>"",L87<>""),L87-K87,"") ->  | P87: =AVERAGE(OFFSET($P$1,CL_FirstMoNextYrRow-1+36,0,12,1)) -> 56.97451389 | Q87: =IF(COUNTBLANK(OFFSET($Q$1,CL_FirstMoNextYrRow-1+36,0,12,1))>0,"",AVERAGE(OFFSET($Q$1,CL_FirstMoNextYrRow-1+36,0,12,1))) ->  | R87: =IF(AND(P87<>"",Q87<>""),Q87-P87,"") ->  | S87: =AVERAGE(OFFSET($S$1,CL_FirstMoNextYrRow-1+36,0,12,1)) -> 57.47951389 | T87: CAL 19 | Y87: =AVERAGE(OFFSET($Y$1,BRN_FirstMoNextYrRow-1+36,0,12,1)) -> 61.965 | AC87: =AVERAGE(OFFSET($AC$1,BRN_FirstMoNextYrRow-1+36,0,12,1)) -> 61.545 | AD87: =IF(COUNTBLANK(OFFSET($AD$1,BRN_FirstMoNextYrRow-1+36,0,12,1))>0,"",AVERAGE(OFFSET($AD$1,BRN_FirstMoNextYrRow-1+36,0,12,1))) ->  | AE87: =IF(AND(AC87<>"",AD87<>""),AD87-AC87,"") ->  | AH87: =AVERAGE(OFFSET($AH$1,BRN_FirstMoNextYrRow-1+36,0,12,1)) -> 61.73846487 | AI87: =IF(COUNTBLANK(OFFSET($AI$1,BRN_FirstMoNextYrRow-1+36,0,12,1))>0,"",AVERAGE(OFFSET($AI$1,BRN_FirstMoNextYrRow-1+36,0,12,1))) ->  | AK87: =AVERAGE(OFFSET($AK$1,BRN_FirstMoNextYrRow-1+36,0,12,1)) -> 62.15846487 | AL87: CAL 19 | AM87: =AVERAGE(OFFSET($AM$1,BRNWTI_FirstMoNextYrRow-1+36,0,12,1)) -> -4.653333333 | AN87: =AVERAGE(OFFSET($AN$1,BRNWTI_FirstMoNextYrRow-1+36,0,12,1)) -> -4.678950985 | CP87: CAL 19 | CU87: =AVERAGE(OFFSET($CU$1,GAS_FirstMoNextYrRow-1+36,0,12,1)) -> 575.625 | CY87: =AVERAGE(OFFSET($CY$1,GAS_FirstMoNextYrRow-1+36,0,12,1)) -> 570.875 | CZ87: =IF(COUNTBLANK(OFFSET($CZ$1,GAS_FirstMoNextYrRow-1+36,0,12,1))>0,"",AVERAGE(OFFSET($CZ$1,GAS_FirstMoNextYrRow-1+36,0,12,1))) ->  | DA87: =IF(AND(CY87<>"",CZ87<>""),CZ87-CY87,"") ->  | DD87: =AVERAGE(OFFSET($DD$1,GAS_FirstMoNextYrRow-1+36,0,12,1)) -> 571.7992126 | DE87: =IF(COUNTBLANK(OFFSET($DE$1,GAS_FirstMoNextYrRow-1+36,0,12,1))>0,"",AVERAGE(OFFSET($DE$1,GAS_FirstMoNextYrRow-1+36,0,12,1))) ->  | DF87: =IF(AND(DD87<>"",DE87<>""),DE87-DD87,"") ->  | DG87: =AVERAGE(OFFSET($DG$1,GAS_FirstMoNextYrRow-1+36,0,12,1)) -> 576.5492126 | DH87: =AVERAGE(OFFSET($DH$1,GAS_FirstMoNextYrRow-1+36,0,12,1)) -> 15.23069118 | DI87: =AVERAGE(OFFSET($DI$1,GAS_FirstMoNextYrRow-1+36,0,12,1)) -> 15.01310729 | DJ87: =IF(COUNTBLANK(OFFSET($DJ$1,GAS_FirstMoNextYrRow-1+36,0,12,1))>0,"",AVERAGE(OFFSET($DJ$1,GAS_FirstMoNextYrRow-1+36,0,12,1))) ->  | DK87: =IF(AND(DI87<>"",DJ87<>""),DJ87-DI87,"") -> 
CT91: ©2014 Interactive Data Corporation. All Rights Reserved.

Sheet Futures Cracks
C3: RBOB Cracks | N3: Heating Oil Cracks | Y3: Gasoil Cracks | AE3: WTI Ratio Cracks | AU3: Brent Ratio Cracks
C4: RBOB / WTI | H4: RBOB / Brent | N4: HO / WTI | S4: HO / Brent | Y4: GO / Brent | AE4: 3:2:1 | AJ4: 2:1:1 | AO4: 5:3:2 | AU4: 3:2:1 | AZ4: 2:1:1 | BE4: 5:3:2
B5: Mo/Yr | C5: Imp Crack | D5: Chg | E5: OldSet | F5: NewSet | G5: SetChg | H5: Imp Crack | I5: Chg | J5: OldSet | K5: NewSet | L5: SetChg | M5: Mo/Yr | N5: Imp Crack | O5: Chg | P5: OldSet | Q5: NewSet | R5: SetChg | S5: Imp Crack | T5: Chg | U5: OldSet | V5: NewSet | W5: SetChg | X5: Mo/Yr | Y5: Imp Crack | Z5: Chg | AA5: OldSet | AB5: NewSet | AC5: SetChg | AD5: Mo/Yr | AE5: Imp Crack | AF5: Chg | AG5: OldSet | AH5: NewSet | AI5: SetChg | AJ5: Imp Crack | AK5: Chg | AL5: OldSet | AM5: NewSet | AN5: SetChg | AO5: Imp Crack | AP5: Chg | AQ5: OldSet | AR5: NewSet | AS5: SetChg | AT5: Mo/Yr | AU5: Imp Crack | AV5: Chg | AW5: OldSet | AX5: NewSet | AY5: SetChg | AZ5: Imp Crack | BA5: Chg | BB5: OldSet | BC5: NewSet | BD5: SetChg | BE5: Imp Crack | BF5: Chg | BG5: OldSet | BH5: NewSet | BI5: SetChg
